Workbook

Sheet Introduction
C4: Joint Monitoring Programme for Water Supply, Sanitation and Hygiene
C6: Estimates on household water, sanitation and hygiene by wealth quintile and sub-national region in
C7: =+Water!B5 -> Democratic Republic of the Congo
C9: Updated May 2021
C11: Follow the links below to find the following information:
C13: JMP Estimates
C14: WASH status and trends by wealth quintile (customized quintiles made without water and sanitation assets)
C15: Water
C16: Sanitation
C17: Hygiene
C19: Data inputs
C20: customized wealth quintiles and subnational data:
C21: =IF(INDIRECT(CONCATENATE("Water","!B105"))=0,"",INDIRECT(CONCATENATE("Water","!B105"))) -> MICS01
C22: =IF(INDIRECT(CONCATENATE("Water","!B106"))=0,"",INDIRECT(CONCATENATE("Water","!B106"))) -> DHS07
C23: =IF(INDIRECT(CONCATENATE("Water","!B107"))=0,"",INDIRECT(CONCATENATE("Water","!B107"))) -> MICS10
C24: =IF(INDIRECT(CONCATENATE("Water","!B108"))=0,"",INDIRECT(CONCATENATE("Water","!B108"))) -> DHS14
C25: =IF(INDIRECT(CONCATENATE("Water","!B109"))=0,"",INDIRECT(CONCATENATE("Water","!B109"))) -> MICS18
C26: =IF(INDIRECT(CONCATENATE("Water","!B110"))=0,"",INDIRECT(CONCATENATE("Water","!B110"))) -> 
C27: =IF(INDIRECT(CONCATENATE("Water","!B111"))=0,"",INDIRECT(CONCATENATE("Water","!B111"))) -> 
C28: =IF(INDIRECT(CONCATENATE("Water","!B112"))=0,"",INDIRECT(CONCATENATE("Water","!B112"))) -> 
C29: =IF(INDIRECT(CONCATENATE("Water","!B113"))=0,"",INDIRECT(CONCATENATE("Water","!B113"))) -> 
C30: =IF(INDIRECT(CONCATENATE("Water","!B114"))=0,"",INDIRECT(CONCATENATE("Water","!B114"))) -> 
C31: =IF(INDIRECT(CONCATENATE("Water","!B115"))=0,"",INDIRECT(CONCATENATE("Water","!B115"))) -> 
C32: =IF(INDIRECT(CONCATENATE("Water","!B116"))=0,"",INDIRECT(CONCATENATE("Water","!B116"))) -> 
L55: =+IF(ISNUMBER(M48), "", "Insufficient data to estimate safely managed sanitation services at national level") -> Insufficient data to estimate safely managed sanitation services at national level

Sheet Water
A1: BGD
B4: Summary of trends in use of drinking water by wealth quintile (%)
B5: =IF(ISERROR(INDIRECT(CONCATENATE($B105,"!A2"))),"",INDIRECT(CONCATENATE($B105,"!A2"))) -> Democratic Republic of the Congo
B7: =B118 -> National use of drinking water sources, 2000–2020 | J7: =B218 -> Urban use of drinking water sources, 2000–2020 | R7: =B318 -> Rural use of drinking water sources, 2000–2020
B31: =IF(ISERROR(INDIRECT(CONCATENATE($B105,"!A2"))),"",INDIRECT(CONCATENATE($B105,"!A2"))) -> Democratic Republic of the Congo | F31: Poorest | J31: Poor | N31: Middle | R31: Rich | V31: Richest
F32: Basic | G32: Limited | H32: Unimproved | I32: Surface water | J32: Basic | K32: Limited | L32: Unimproved | M32: Surface water | N32: Basic | O32: Limited | P32: Unimproved | Q32: Surface water | R32: Basic | S32: Limited | T32: Unimproved | U32: Surface water | V32: Basic | W32: Limited | X32: Unimproved | Y32: Surface water
B33: NATIONAL | D33: Estimate | E33: =C99 -> 2000 | F33: =E99 -> 11.66332581 | G33: =F99 -> 6.550533179 | H33: 55.64515239 | I33: 26.14098862 | J33: =J99 -> 15.91948 | K33: =K99 -> 8.804283503 | L33: 54.27590874 | M33: 21.00032776 | N33: =O99 -> 18.87862284 | O33: =P99 -> 10.89180804 | P33: 48.0360408 | Q33: 22.19352831 | R33: =T99 -> 36.24622946 | S33: =U99 -> 15.59853758 | T33: 34.2320368 | U33: 13.92319616 | V33: =Y99 -> 81.00247866 | W33: =Z99 -> 8.520291139 | X33: 9.301584502 | Y33: 1.1756457
E34: =C100 -> 2020 | F34: =E100 -> 17.79248479 | G34: 9.992884006 | H34: 56.61082177 | I34: 15.60380943 | J34: =J100 -> 20.23427427 | K34: 11.19058456 | L34: 54.51814202 | M34: 14.05699915 | N34: =O100 -> 29.45156699 | O34: 16.99174866 | P34: 43.0078428 | Q34: 10.54884155 | R34: =T100 -> 56.91285442 | S34: 24.49240408 | T34: 15.95226556 | U34: 2.642475941 | V34: =Y100 -> 88.77072517 | W34: 9.337398504 | X34: 1.764724221 | Y34: 0.1271521051
B36: URBAN | D36: Estimate | E36: =C199 -> 2000 | F36: =E199 -> 39.75077116 | G36: =F199 -> 23.24167256 | H36: 29.4000041 | I36: 7.607552179 | J36: =J199 -> 48.07683157 | K36: =K199 -> 21.7598789 | L36: 26.44049877 | M36: 3.722790759 | N36: =O199 -> 63.11797801 | O36: =P199 -> 15.86949295 | P36: 19.15027007 | Q36: 1.862258961 | R36: =T199 -> 83.40072732 | S36: =U199 -> 8.573354422 | T36: 7.21693071 | U36: 0.8089875438 | V36: =Y199 -> 95.23333671 | W36: =Z199 -> 2.792516945 | X36: 1.716293014 | Y36: 0.2578533319
E37: =C200 -> 2020 | F37: =E200 -> 40.9539275 | G37: 23.94513981 | H37: 32.32632169 | I37: 2.774611004 | J37: =J200 -> 59.77629587 | K37: 27.05513064 | L37: 12.35857691 | M37: 0.8099965745 | N37: =O200 -> 75.18590213 | O37: 18.90368135 | P37: 4.958914773 | Q37: 0.9515017515 | R37: =T200 -> 90.16137954 | S37: 9.268329987 | T37: 0.5702904746 | U37: 0 | V37: =Y200 -> 96.47190011 | W37: 2.828835207 | X37: 0.6992646878 | Y37: 0
B39: RURAL | D39: Estimate | E39: =C299 -> 2000 | F39: =E299 -> 9.774016144 | G39: =F299 -> 5.535230097 | H39: 56.66725221 | I39: 28.02350155 | J39: =J299 -> 15.17081529 | K39: =K299 -> 7.360832621 | L39: 55.63522921 | M39: 21.83312288 | N39: =O299 -> 13.22969298 | O39: =P299 -> 7.84006885 | P39: 56.31903289 | Q39: 22.61120528 | R39: =T299 -> 16.9907553 | S39: =U299 -> 9.623210997 | T39: 49.63183772 | U39: 23.75419598 | V39: =Y299 -> 28.23333547 | W39: =Z299 -> 14.51106036 | X39: 36.85792129 | Y39: 20.39768289
E40: =C300 -> 2020 | F40: =E300 -> 15.14647162 | G40: 8.577764181 | H40: 59.53514496 | I40: 16.74061923 | J40: =J300 -> 16.05202244 | K40: 7.788391603 | L40: 58.48077414 | M40: 17.67881182 | N40: =O300 -> 18.8526546 | O40: 11.17230085 | P40: 55.53098571 | Q40: 14.44405884 | R40: =T300 -> 24.10308513 | S40: 13.65148693 | T40: 48.7628002 | U40: 13.48262773 | V40: =Y300 -> 36.72565548 | W40: 18.87584993 | X40: 35.51000216 | Y40: 8.888492423
A97: NATIONAL | D97: Poorest | I97: Poor | N97: Middle | S97: Rich | X97: Richest
D98: Improved | E98: Basic | F98: Limited | G98: Unimproved | H98: Surface water | I98: Improved | J98: Basic | K98: Limited | L98: Unimproved | M98: Surface water | N98: Improved | O98: Basic | P98: Limited | Q98: Unimproved | R98: Surface water | S98: Improved | T98: Basic | U98: Limited | V98: Unimproved | W98: Surface water | X98: Improved | Y98: Basic | Z98: Limited | AA98: Unimproved | AB98: Surface water
A99: Forecast period: | C99: 2000 | D99: =IF((D101+H101)>100,D101*100/(D101+H101),D101) -> 18.21385899 | E99: =D99*AVERAGEIF(E105:E116,">0")/100 -> 11.66332581 | F99: =D99*(100-AVERAGEIF(E105:E116,">0"))/100 -> 6.550533179 | G99: =100-(E99+F99+H99) -> 55.64515239 | H99: =IF((D101+H101)>100,H101*100/(D101+H101),H101) -> 26.14098862 | I99: =IF((I101+M101)>100,I101*100/(I101+M101),I101) -> 24.72376351 | J99: =I99*AVERAGEIF(J105:J116,">0")/100 -> 15.91948 | K99: =I99*(100-AVERAGEIF(J105:J116,">0"))/100 -> 8.804283503 | L99: =100-(J99+K99+M99) -> 54.27590874 | M99: =IF((I101+M101)>100,M101*100/(I101+M101),M101) -> 21.00032776 | N99: =IF((N101+R101)>100,N101*100/(N101+R101),N101) -> 29.77043088 | O99: =N99*AVERAGEIF(O105:O116,">0")/100 -> 18.87862284 | P99: =N99*(100-AVERAGEIF(O105:O116,">0"))/100 -> 10.89180804 | Q99: =100-(O99+P99+R99) -> 48.0360408 | R99: =IF((N101+R101)>100,R101*100/(N101+R101),R101) -> 22.19352831 | S99: =IF((S101+W101)>100,S101*100/(S101+W101),S101) -> 51.84476704 | T99: =S99*AVERAGEIF(T105:T116,">0")/100 -> 36.24622946 | U99: =S99*(100-AVERAGEIF(T105:T116,">0"))/100 -> 15.59853758 | V99: =100-(T99+U99+W99) -> 34.2320368 | W99: =IF((S101+W101)>100,W101*100/(S101+W101),W101) -> 13.92319616 | X99: =IF((X101+AB101)>100,X101*100/(X101+AB101),X101) -> 89.5227698 | Y99: =X99*AVERAGEIF(Y105:Y116,">0")/100 -> 81.00247866 | Z99: =X99*(100-AVERAGEIF(Y105:Y116,">0"))/100 -> 8.520291139 | AA99: =100-(Y99+Z99+AB99) -> 9.301584502 | AB99: =IF((X101+AB101)>100,AB101*100/(X101+AB101),AB101) -> 1.1756457
C100: 2020 | D100: =IF((D102+H102)>100,D102*100/(D102+H102),D102) -> 27.7853688 | E100: =D100*AVERAGEIF(E105:E116,">0")/100 -> 17.79248479 | F100: =D100*(100-AVERAGEIF(E105:E116,">0"))/100 -> 9.992884006 | G100: =100-(E100+F100+H100) -> 56.61082177 | H100: =IF((D102+H102)>100,H102*100/(D102+H102),H102) -> 15.60380943 | I100: =IF((I102+M102)>100,I102*100/(I102+M102),I102) -> 31.42485883 | J100: =I100*AVERAGEIF(J105:J116,">0")/100 -> 20.23427427 | K100: =I100*(100-AVERAGEIF(J105:J116,">0"))/100 -> 11.19058456 | L100: =100-(J100+K100+M100) -> 54.51814202 | M100: =IF((I102+M102)>100,M102*100/(I102+M102),M102) -> 14.05699915 | N100: =IF((N102+R102)>100,N102*100/(N102+R102),N102) -> 46.44331565 | O100: =N100*AVERAGEIF(O105:O116,">0")/100 -> 29.45156699 | P100: =N100*(100-AVERAGEIF(O105:O116,">0"))/100 -> 16.99174866 | Q100: =100-(O100+P100+R100) -> 43.0078428 | R100: =IF((N102+R102)>100,R102*100/(N102+R102),R102) -> 10.54884155 | S100: =IF((S102+W102)>100,S102*100/(S102+W102),S102) -> 81.4052585 | T100: =S100*AVERAGEIF(T105:T116,">0")/100 -> 56.91285442 | U100: =S100*(100-AVERAGEIF(T105:T116,">0"))/100 -> 24.49240408 | V100: =100-(T100+U100+W100) -> 15.95226556 | W100: =IF((S102+W102)>100,W102*100/(S102+W102),W102) -> 2.642475941 | X100: =IF((X102+AB102)>100,X102*100/(X102+AB102),X102) -> 98.10812367 | Y100: =X100*AVERAGEIF(Y105:Y116,">0")/100 -> 88.77072517 | Z100: =X100*(100-AVERAGEIF(Y105:Y116,">0"))/100 -> 9.337398504 | AA100: =100-(Y100+Z100+AB100) -> 1.764724221 | AB100: =IF((X102+AB102)>100,AB102*100/(X102+AB102),AB102) -> 0.1271521051
A101: Regression period: | C101: =MinRegYear(C99,C105:C116) -> 2000 | D101: =IF(MAX(C105:C116)-MIN(C105:C116)<5,AVERAGEIF(C105:C116,">0",D105:D116), IF(FORECAST($C101,D$105:D$116,$C$105:$C$116)<0,0, IF(FORECAST($C101,D$105:D$116,$C$105:$C$116)>100,100, FORECAST($C101,D$105:D$116,$C$105:$C$116)))) -> 18.21385899 | H101: =IF(MAX(C105:C116)-MIN(C105:C116)<5,AVERAGEIF(C105:C116,">0",H105:H116), IF(FORECAST($C101,H$105:H$116,$C$105:$C$116)<0,0, IF(FORECAST($C101,H$105:H$116,$C$105:$C$116)>100,100, FORECAST($C101,H$105:H$116,$C$105:$C$116)))) -> 26.14098862 | I101: =IF(MAX(C105:C116)-MIN(C105:C116)<5,AVERAGEIF(C105:C116,">0",I105:I116), IF(FORECAST($C101,I$105:I$116,$C$105:$C$116)<0,0, IF(FORECAST($C101,I$105:I$116,$C$105:$C$116)>100,100, FORECAST($C101,I$105:I$116,$C$105:$C$116)))) -> 24.72376351 | M101: =IF(MAX(C105:C116)-MIN(C105:C116)<5,AVERAGEIF(C105:C116,">0",M105:M116), IF(FORECAST($C101,M$105:M$116,$C$105:$C$116)<0,0, IF(FORECAST($C101,M$105:M$116,$C$105:$C$116)>100,100, FORECAST($C101,M$105:M$116,$C$105:$C$116)))) -> 21.00032776 | N101: =IF(MAX(C105:C116)-MIN(C105:C116)<5,AVERAGEIF(C105:C116,">0",N105:N116), IF(FORECAST($C101,N$105:N$116,$C$105:$C$116)<0,0, IF(FORECAST($C101,N$105:N$116,$C$105:$C$116)>100,100, FORECAST($C101,N$105:N$116,$C$105:$C$116)))) -> 29.77043088 | R101: =IF(MAX(C105:C116)-MIN(C105:C116)<5,AVERAGEIF(C105:C116,">0",R105:R116), IF(FORECAST($C101,R$105:R$116,$C$105:$C$116)<0,0, IF(FORECAST($C101,R$105:R$116,$C$105:$C$116)>100,100, FORECAST($C101,R$105:R$116,$C$105:$C$116)))) -> 22.19352831 | S101: =IF(MAX(C105:C116)-MIN(C105:C116)<5,AVERAGEIF(C105:C116,">0",S105:S116), IF(FORECAST($C101,S$105:S$116,$C$105:$C$116)<0,0, IF(FORECAST($C101,S$105:S$116,$C$105:$C$116)>100,100, FORECAST($C101,S$105:S$116,$C$105:$C$116)))) -> 51.84476704 | W101: =IF(MAX(C105:C116)-MIN(C105:C116)<5,AVERAGEIF(C105:C116,">0",W105:W116), IF(FORECAST($C101,W$105:W$116,$C$105:$C$116)<0,0, IF(FORECAST($C101,W$105:W$116,$C$105:$C$116)>100,100, FORECAST($C101,W$105:W$116,$C$105:$C$116)))) -> 13.92319616 | X101: =IF(MAX(C105:C116)-MIN(C105:C116)<5,AVERAGEIF(C105:C116,">0",X105:X116), IF(FORECAST($C101,X$105:X$116,$C$105:$C$116)<0,0, IF(FORECAST($C101,X$105:X$116,$C$105:$C$116)>100,100, FORECAST($C101,X$105:X$116,$C$105:$C$116)))) -> 89.5227698 | AB101: =IF(MAX(C105:C116)-MIN(C105:C116)<5,AVERAGEIF(C105:C116,">0",AB105:AB116), IF(FORECAST($C101,AB$105:AB$116,$C$105:$C$116)<0,0, IF(FORECAST($C101,AB$105:AB$116,$C$105:$C$116)>100,100, FORECAST($C101,AB$105:AB$116,$C$105:$C$116)))) -> 1.1756457
C102: =MaxRegYear(C100,C105:C116) -> 2020 | D102: =IF(MAX(C105:C116)-MIN(C105:C116)<5,AVERAGEIF(C105:C116,">0",D105:D116), IF(FORECAST($C102,D$105:D$116,$C$105:$C$116)<0,0, IF(FORECAST($C102,D$105:D$116,$C$105:$C$116)>100,100, FORECAST($C102,D$105:D$116,$C$105:$C$116)))) -> 27.7853688 | H102: =IF(MAX(C105:C116)-MIN(C105:C116)<5,AVERAGEIF(C105:C116,">0",H105:H116), IF(FORECAST($C102,H$105:H$116,$C$105:$C$116)<0,0, IF(FORECAST($C102,H$105:H$116,$C$105:$C$116)>100,100, FORECAST($C102,H$105:H$116,$C$105:$C$116)))) -> 15.60380943 | I102: =IF(MAX(C105:C116)-MIN(C105:C116)<5,AVERAGEIF(C105:C116,">0",I105:I116), IF(FORECAST($C102,I$105:I$116,$C$105:$C$116)<0,0, IF(FORECAST($C102,I$105:I$116,$C$105:$C$116)>100,100, FORECAST($C102,I$105:I$116,$C$105:$C$116)))) -> 31.42485883 | M102: =IF(MAX(C105:C116)-MIN(C105:C116)<5,AVERAGEIF(C105:C116,">0",M105:M116), IF(FORECAST($C102,M$105:M$116,$C$105:$C$116)<0,0, IF(FORECAST($C102,M$105:M$116,$C$105:$C$116)>100,100, FORECAST($C102,M$105:M$116,$C$105:$C$116)))) -> 14.05699915 | N102: =IF(MAX(C105:C116)-MIN(C105:C116)<5,AVERAGEIF(C105:C116,">0",N105:N116), IF(FORECAST($C102,N$105:N$116,$C$105:$C$116)<0,0, IF(FORECAST($C102,N$105:N$116,$C$105:$C$116)>100,100, FORECAST($C102,N$105:N$116,$C$105:$C$116)))) -> 46.44331565 | R102: =IF(MAX(C105:C116)-MIN(C105:C116)<5,AVERAGEIF(C105:C116,">0",R105:R116), IF(FORECAST($C102,R$105:R$116,$C$105:$C$116)<0,0, IF(FORECAST($C102,R$105:R$116,$C$105:$C$116)>100,100, FORECAST($C102,R$105:R$116,$C$105:$C$116)))) -> 10.54884155 | S102: =IF(MAX(C105:C116)-MIN(C105:C116)<5,AVERAGEIF(C105:C116,">0",S105:S116), IF(FORECAST($C102,S$105:S$116,$C$105:$C$116)<0,0, IF(FORECAST($C102,S$105:S$116,$C$105:$C$116)>100,100, FORECAST($C102,S$105:S$116,$C$105:$C$116)))) -> 81.4052585 | W102: =IF(MAX(C105:C116)-MIN(C105:C116)<5,AVERAGEIF(C105:C116,">0",W105:W116), IF(FORECAST($C102,W$105:W$116,$C$105:$C$116)<0,0, IF(FORECAST($C102,W$105:W$116,$C$105:$C$116)>100,100, FORECAST($C102,W$105:W$116,$C$105:$C$116)))) -> 2.642475941 | X102: =IF(MAX(C105:C116)-MIN(C105:C116)<5,AVERAGEIF(C105:C116,">0",X105:X116), IF(FORECAST($C102,X$105:X$116,$C$105:$C$116)<0,0, IF(FORECAST($C102,X$105:X$116,$C$105:$C$116)>100,100, FORECAST($C102,X$105:X$116,$C$105:$C$116)))) -> 98.10812367 | AB102: =IF(MAX(C105:C116)-MIN(C105:C116)<5,AVERAGEIF(C105:C116,">0",AB105:AB116), IF(FORECAST($C102,AB$105:AB$116,$C$105:$C$116)<0,0, IF(FORECAST($C102,AB$105:AB$116,$C$105:$C$116)>100,100, FORECAST($C102,AB$105:AB$116,$C$105:$C$116)))) -> 0.1271521051
B104: Survey | C104: Year | D104: Improved | E104: Basic | H104: Surface water | I104: Improved | J104: Basic | M104: Surface water | N104: Improved | O104: Basic | R104: Surface water | S104: Improved | T104: Basic | W104: Surface water | X104: Improved | Y104: Basic | AB104: Surface water
B105: MICS01 | C105: 2001 | D105: =IF(ISERROR(INDIRECT(CONCATENATE($B105,"!C16"))),"",INDIRECT(CONCATENATE($B105,"!C16"))) -> 21.40742459 | E105: =IF(ISERROR(INDIRECT(CONCATENATE($B105,"!C23"))),"",INDIRECT(CONCATENATE($B105,"!C23"))) -> 60.38659888 | H105: =IF(ISERROR(INDIRECT(CONCATENATE($B105,"!C21"))),"",INDIRECT(CONCATENATE($B105,"!C21"))) -> 26.07709553 | I105: =IF(ISERROR(INDIRECT(CONCATENATE($B105,"!D16"))),"",INDIRECT(CONCATENATE($B105,"!D16"))) -> 28.00064737 | J105: =IF(ISERROR(INDIRECT(CONCATENATE($B105,"!D23"))),"",INDIRECT(CONCATENATE($B105,"!D23"))) -> 62.15579529 | M105: =IF(ISERROR(INDIRECT(CONCATENATE($B105,"!D21"))),"",INDIRECT(CONCATENATE($B105,"!D21"))) -> 20.41392494 | N105: =IF(ISERROR(INDIRECT(CONCATENATE($B105,"!E16"))),"",INDIRECT(CONCATENATE($B105,"!E16"))) -> 33.79483016 | O105: =IF(ISERROR(INDIRECT(CONCATENATE($B105,"!E23"))),"",INDIRECT(CONCATENATE($B105,"!E23"))) -> 59.01630919 | R105: =IF(ISERROR(INDIRECT(CONCATENATE($B105,"!E21"))),"",INDIRECT(CONCATENATE($B105,"!E21"))) -> 20.52614523 | S105: =IF(ISERROR(INDIRECT(CONCATENATE($B105,"!F16"))),"",INDIRECT(CONCATENATE($B105,"!F16"))) -> 54.24166839 | T105: =IF(ISERROR(INDIRECT(CONCATENATE($B105,"!F23"))),"",INDIRECT(CONCATENATE($B105,"!F23"))) -> 71.04062929 | W105: =IF(ISERROR(INDIRECT(CONCATENATE($B105,"!F21"))),"",INDIRECT(CONCATENATE($B105,"!F21"))) -> 13.72946823 | X105: =IF(ISERROR(INDIRECT(CONCATENATE($B105,"!G16"))),"",INDIRECT(CONCATENATE($B105,"!G16"))) -> 89.68863648 | Y105: =IF(ISERROR(INDIRECT(CONCATENATE($B105,"!G23"))),"",INDIRECT(CONCATENATE($B105,"!G23"))) -> 88.42912935 | AB105: =IF(ISERROR(INDIRECT(CONCATENATE($B105,"!G221"))),"",INDIRECT(CONCATENATE($B105,"!G21"))) -> 1.500723962
B106: DHS07 | C106: 2007 | D106: 21.11822767 | E106: 66.6304957 | H106: 20.14103275 | I106: 22.65473919 | J106: 67.1955355 | M106: 18.06619157 | N106: 34.98575431 | O106: 69.34849389 | R106: 16.7347969 | S106: 65.92981552 | T106: 70.80672888 | W106: 7.618054913 | X106: 95.61232193 | Y106: 91.74139986 | AB106: 0.02325857312
B107: MICS10 | C107: 2010 | D107: 17.6 | E107: 65.3 | H107: 25.7 | I107: 28.2 | J107: 70.2 | M107: 20.5 | N107: 33.7 | O107: 71.2 | R107: 21.9 | S107: 62.8 | T107: 66.4 | W107: 10.8 | X107: 90.8 | Y107: 90.4 | AB107: 0.6
B108: DHS14 | C108: 2014 | D108: 25.4 | E108: 65.3 | H108: 13.5 | I108: 28.8 | J108: 68.1 | M108: 12.6 | N108: 38.4 | O108: 65.8 | R108: 11.4 | S108: 66 | T108: 71.1 | W108: 5.9 | X108: 94.2 | Y108: 86.8 | AB108: 1.1
B109: MICS18 | C109: 2018 | D109: 29.47241721 | E109: 62.5601347 | H109: 18.94386686 | I109: 32.71616928 | J109: 54.29560902 | M109: 16.06320075 | N109: 49.65378187 | O109: 51.70522713 | R109: 11.29498254 | S109: 84.15357994 | T109: 70.21761753 | W109: 3.366657116 | X109: 98.77627526 | Y109: 95.04218569 | AB109: 0.03301197746
D111: =IF(ISERROR(INDIRECT(CONCATENATE($B111,"!C16"))),"",INDIRECT(CONCATENATE($B111,"!C16"))) ->  | E111: =IF(ISERROR(INDIRECT(CONCATENATE($B111,"!C23"))),"",INDIRECT(CONCATENATE($B111,"!C23"))) ->  | H111: =IF(ISERROR(INDIRECT(CONCATENATE($B111,"!C21"))),"",INDIRECT(CONCATENATE($B111,"!C21"))) ->  | I111: =IF(ISERROR(INDIRECT(CONCATENATE($B111,"!D16"))),"",INDIRECT(CONCATENATE($B111,"!D16"))) ->  | J111: =IF(ISERROR(INDIRECT(CONCATENATE($B111,"!D23"))),"",INDIRECT(CONCATENATE($B111,"!D23"))) ->  | M111: =IF(ISERROR(INDIRECT(CONCATENATE($B111,"!D21"))),"",INDIRECT(CONCATENATE($B111,"!D21"))) ->  | N111: =IF(ISERROR(INDIRECT(CONCATENATE($B111,"!E16"))),"",INDIRECT(CONCATENATE($B111,"!E16"))) ->  | O111: =IF(ISERROR(INDIRECT(CONCATENATE($B111,"!E23"))),"",INDIRECT(CONCATENATE($B111,"!E23"))) ->  | R111: =IF(ISERROR(INDIRECT(CONCATENATE($B111,"!E21"))),"",INDIRECT(CONCATENATE($B111,"!E21"))) ->  | S111: =IF(ISERROR(INDIRECT(CONCATENATE($B111,"!F16"))),"",INDIRECT(CONCATENATE($B111,"!F16"))) ->  | T111: =IF(ISERROR(INDIRECT(CONCATENATE($B111,"!F23"))),"",INDIRECT(CONCATENATE($B111,"!F23"))) ->  | W111: =IF(ISERROR(INDIRECT(CONCATENATE($B111,"!F21"))),"",INDIRECT(CONCATENATE($B111,"!F21"))) ->  | X111: =IF(ISERROR(INDIRECT(CONCATENATE($B111,"!G16"))),"",INDIRECT(CONCATENATE($B111,"!G16"))) ->  | Y111: =IF(ISERROR(INDIRECT(CONCATENATE($B111,"!G23"))),"",INDIRECT(CONCATENATE($B111,"!G23"))) ->  | AB111: =IF(ISERROR(INDIRECT(CONCATENATE($B111,"!G221"))),"",INDIRECT(CONCATENATE($B111,"!G21"))) -> 
D112: =IF(ISERROR(INDIRECT(CONCATENATE($B112,"!C16"))),"",INDIRECT(CONCATENATE($B112,"!C16"))) ->  | E112: =IF(ISERROR(INDIRECT(CONCATENATE($B112,"!C23"))),"",INDIRECT(CONCATENATE($B112,"!C23"))) ->  | H112: =IF(ISERROR(INDIRECT(CONCATENATE($B112,"!C21"))),"",INDIRECT(CONCATENATE($B112,"!C21"))) ->  | I112: =IF(ISERROR(INDIRECT(CONCATENATE($B112,"!D16"))),"",INDIRECT(CONCATENATE($B112,"!D16"))) ->  | J112: =IF(ISERROR(INDIRECT(CONCATENATE($B112,"!D23"))),"",INDIRECT(CONCATENATE($B112,"!D23"))) ->  | M112: =IF(ISERROR(INDIRECT(CONCATENATE($B112,"!D21"))),"",INDIRECT(CONCATENATE($B112,"!D21"))) ->  | N112: =IF(ISERROR(INDIRECT(CONCATENATE($B112,"!E16"))),"",INDIRECT(CONCATENATE($B112,"!E16"))) ->  | O112: =IF(ISERROR(INDIRECT(CONCATENATE($B112,"!E23"))),"",INDIRECT(CONCATENATE($B112,"!E23"))) ->  | R112: =IF(ISERROR(INDIRECT(CONCATENATE($B112,"!E21"))),"",INDIRECT(CONCATENATE($B112,"!E21"))) ->  | S112: =IF(ISERROR(INDIRECT(CONCATENATE($B112,"!F16"))),"",INDIRECT(CONCATENATE($B112,"!F16"))) ->  | T112: =IF(ISERROR(INDIRECT(CONCATENATE($B112,"!F23"))),"",INDIRECT(CONCATENATE($B112,"!F23"))) ->  | W112: =IF(ISERROR(INDIRECT(CONCATENATE($B112,"!F21"))),"",INDIRECT(CONCATENATE($B112,"!F21"))) ->  | X112: =IF(ISERROR(INDIRECT(CONCATENATE($B112,"!G16"))),"",INDIRECT(CONCATENATE($B112,"!G16"))) ->  | Y112: =IF(ISERROR(INDIRECT(CONCATENATE($B112,"!G23"))),"",INDIRECT(CONCATENATE($B112,"!G23"))) ->  | AB112: =IF(ISERROR(INDIRECT(CONCATENATE($B112,"!G221"))),"",INDIRECT(CONCATENATE($B112,"!G21"))) -> 
B118: =CONCATENATE("National use of drinking water sources, ",C99,"–",C100) -> National use of drinking water sources, 2000–2020 | S118: Data points used for regression
E153: =IF(ISERROR(INDIRECT(CONCATENATE($B153,"!M18"))),"",INDIRECT(CONCATENATE($B153,"!M18"))) ->  | F153: =IF(ISERROR(INDIRECT(CONCATENATE($B153,"!M19"))),"",INDIRECT(CONCATENATE($B153,"!M19"))) ->  | G153: =IF(ISERROR(INDIRECT(CONCATENATE($B153,"!M20"))),"",INDIRECT(CONCATENATE($B153,"!M20"))) ->  | H153: =IF(ISERROR(INDIRECT(CONCATENATE($B153,"!M21"))),"",INDIRECT(CONCATENATE($B153,"!M21"))) ->  | J153: =IF(ISERROR(INDIRECT(CONCATENATE($B153,"!N18"))),"",INDIRECT(CONCATENATE($B153,"!N18"))) ->  | K153: =IF(ISERROR(INDIRECT(CONCATENATE($B153,"!N19"))),"",INDIRECT(CONCATENATE($B153,"!N19"))) ->  | L153: =IF(ISERROR(INDIRECT(CONCATENATE($B153,"!N20"))),"",INDIRECT(CONCATENATE($B153,"!N20"))) ->  | M153: =IF(ISERROR(INDIRECT(CONCATENATE($B153,"!N21"))),"",INDIRECT(CONCATENATE($B153,"!N21"))) ->  | O153: =IF(ISERROR(INDIRECT(CONCATENATE($B153,"!O18"))),"",INDIRECT(CONCATENATE($B153,"!O18"))) ->  | P153: =IF(ISERROR(INDIRECT(CONCATENATE($B153,"!O19"))),"",INDIRECT(CONCATENATE($B153,"!O19"))) ->  | Q153: =IF(ISERROR(INDIRECT(CONCATENATE($B153,"!O20"))),"",INDIRECT(CONCATENATE($B153,"!O20"))) ->  | R153: =IF(ISERROR(INDIRECT(CONCATENATE($B153,"!O21"))),"",INDIRECT(CONCATENATE($B153,"!O21"))) ->  | T153: =IF(ISERROR(INDIRECT(CONCATENATE($B153,"!P18"))),"",INDIRECT(CONCATENATE($B153,"!P18"))) ->  | U153: =IF(ISERROR(INDIRECT(CONCATENATE($B153,"!P19"))),"",INDIRECT(CONCATENATE($B153,"!P19"))) ->  | V153: =IF(ISERROR(INDIRECT(CONCATENATE($B153,"!P20"))),"",INDIRECT(CONCATENATE($B153,"!P20"))) ->  | W153: =IF(ISERROR(INDIRECT(CONCATENATE($B153,"!P21"))),"",INDIRECT(CONCATENATE($B153,"!P21"))) ->  | Y153: =IF(ISERROR(INDIRECT(CONCATENATE($B153,"!Q18"))),"",INDIRECT(CONCATENATE($B153,"!Q18"))) ->  | Z153: =IF(ISERROR(INDIRECT(CONCATENATE($B153,"!Q19"))),"",INDIRECT(CONCATENATE($B153,"!Q19"))) ->  | AA153: =IF(ISERROR(INDIRECT(CONCATENATE($B153,"!Q20"))),"",INDIRECT(CONCATENATE($B153,"!Q20"))) ->  | AB153: =IF(ISERROR(INDIRECT(CONCATENATE($B153,"!Q21"))),"",INDIRECT(CONCATENATE($B153,"!Q1"))) -> 
A197: URBAN | D197: Poorest | I197: Poor | N197: Middle | S197: Rich | X197: Richest
D198: Improved | E198: Basic | F198: Limited | G198: Unimproved | H198: Surface water | I198: Improved | J198: Basic | K198: Limited | L198: Unimproved | M198: Surface water | N198: Improved | O198: Basic | P198: Limited | Q198: Unimproved | R198: Surface water | S198: Improved | T198: Basic | U198: Limited | V198: Unimproved | W198: Surface water | X198: Improved | Y198: Basic | Z198: Limited | AA198: Unimproved | AB198: Surface water
A199: Forecast period: | C199: 2000 | D199: =IF((D201+H201)>100,D201*100/(D201+H201),D201) -> 62.99244372 | E199: =D199*AVERAGEIF(E205:E216,">0")/100 -> 39.75077116 | F199: =D199*(100-AVERAGEIF(E205:E216,">0"))/100 -> 23.24167256 | G199: =100-(E199+F199+H199) -> 29.4000041 | H199: =IF((D201+H201)>100,H201*100/(D201+H201),H201) -> 7.607552179 | I199: =IF((I201+M201)>100,I201*100/(I201+M201),I201) -> 69.83671047 | J199: =I199*AVERAGEIF(J205:J216,">0")/100 -> 48.07683157 | K199: =I199*(100-AVERAGEIF(J205:J216,">0"))/100 -> 21.7598789 | L199: =100-(J199+K199+M199) -> 26.44049877 | M199: =IF((I201+M201)>100,M201*100/(I201+M201),M201) -> 3.722790759 | N199: =IF((N201+R201)>100,N201*100/(N201+R201),N201) -> 78.98747096 | O199: =N199*AVERAGEIF(O205:O216,">0")/100 -> 63.11797801 | P199: =N199*(100-AVERAGEIF(O205:O216,">0"))/100 -> 15.86949295 | Q199: =100-(O199+P199+R199) -> 19.15027007 | R199: =IF((N201+R201)>100,R201*100/(N201+R201),R201) -> 1.862258961 | S199: =IF((S201+W201)>100,S201*100/(S201+W201),S201) -> 91.97408175 | T199: =S199*AVERAGEIF(T205:T216,">0")/100 -> 83.40072732 | U199: =S199*(100-AVERAGEIF(T205:T216,">0"))/100 -> 8.573354422 | V199: =100-(T199+U199+W199) -> 7.21693071 | W199: =IF((S201+W201)>100,W201*100/(S201+W201),W201) -> 0.8089875438 | X199: =IF((X201+AB201)>100,X201*100/(X201+AB201),X201) -> 98.02585365 | Y199: =X199*AVERAGEIF(Y205:Y216,">0")/100 -> 95.23333671 | Z199: =X199*(100-AVERAGEIF(Y205:Y216,">0"))/100 -> 2.792516945 | AA199: =100-(Y199+Z199+AB199) -> 1.716293014 | AB199: =IF((X201+AB201)>100,AB201*100/(X201+AB201),AB201) -> 0.2578533319
C200: 2020 | D200: =IF((D202+H202)>100,D202*100/(D202+H202),D202) -> 64.89906731 | E200: =D200*AVERAGEIF(E205:E216,">0")/100 -> 40.9539275 | F200: =D200*(100-AVERAGEIF(E205:E216,">0"))/100 -> 23.94513981 | G200: =100-(E200+F200+H200) -> 32.32632169 | H200: =IF((D202+H202)>100,H202*100/(D202+H202),H202) -> 2.774611004 | I200: =IF((I202+M202)>100,I202*100/(I202+M202),I202) -> 86.83142651 | J200: =I200*AVERAGEIF(J205:J216,">0")/100 -> 59.77629587 | K200: =I200*(100-AVERAGEIF(J205:J216,">0"))/100 -> 27.05513064 | L200: =100-(J200+K200+M200) -> 12.35857691 | M200: =IF((I202+M202)>100,M202*100/(I202+M202),M202) -> 0.8099965745 | N200: =IF((N202+R202)>100,N202*100/(N202+R202),N202) -> 94.08958348 | O200: =N200*AVERAGEIF(O205:O216,">0")/100 -> 75.18590213 | P200: =N200*(100-AVERAGEIF(O205:O216,">0"))/100 -> 18.90368135 | Q200: =100-(O200+P200+R200) -> 4.958914773 | R200: =IF((N202+R202)>100,R202*100/(N202+R202),R202) -> 0.9515017515 | S200: =IF((S202+W202)>100,S202*100/(S202+W202),S202) -> 99.42970953 | T200: =S200*AVERAGEIF(T205:T216,">0")/100 -> 90.16137954 | U200: =S200*(100-AVERAGEIF(T205:T216,">0"))/100 -> 9.268329987 | V200: =100-(T200+U200+W200) -> 0.5702904746 | W200: =IF((S202+W202)>100,W202*100/(S202+W202),W202) -> 0 | X200: =IF((X202+AB202)>100,X202*100/(X202+AB202),X202) -> 99.30073531 | Y200: =X200*AVERAGEIF(Y205:Y216,">0")/100 -> 96.47190011 | Z200: =X200*(100-AVERAGEIF(Y205:Y216,">0"))/100 -> 2.828835207 | AA200: =100-(Y200+Z200+AB200) -> 0.6992646878 | AB200: =IF((X202+AB202)>100,AB202*100/(X202+AB202),AB202) -> 0
A201: Regression period: | C201: =MinRegYear(C199,C205:C216) -> 2000 | D201: =IF(MAX(C205:C216)-MIN(C205:C216)<5,AVERAGEIF(C205:C216,">0",D205:D216), IF(FORECAST($C201,D$205:D$216,$C$205:$C$216)<0,0, IF(FORECAST($C201,D$205:D$216,$C$205:$C$216)>100,100, FORECAST($C201,D$205:D$216,$C$205:$C$216)))) -> 62.99244372 | H201: =IF(MAX(C205:C216)-MIN(C205:C216)<5,AVERAGEIF(C205:C216,">0",H205:H216), IF(FORECAST($C201,H$205:H$216,$C$205:$C$216)<0,0, IF(FORECAST($C201,H$205:H$216,$C$205:$C$216)>100,100, FORECAST($C201,H$205:H$216,$C$205:$C$216)))) -> 7.607552179 | I201: =IF(MAX(C205:C216)-MIN(C205:C216)<5,AVERAGEIF(C205:C216,">0",I205:I216), IF(FORECAST($C201,I$205:I$216,$C$205:$C$216)<0,0, IF(FORECAST($C201,I$205:I$216,$C$205:$C$216)>100,100, FORECAST($C201,I$205:I$216,$C$205:$C$216)))) -> 69.83671047 | M201: =IF(MAX(C205:C216)-MIN(C205:C216)<5,AVERAGEIF(C205:C216,">0",M205:M216), IF(FORECAST($C201,M$205:M$216,$C$205:$C$216)<0,0, IF(FORECAST($C201,M$205:M$216,$C$205:$C$216)>100,100, FORECAST($C201,M$205:M$216,$C$205:$C$216)))) -> 3.722790759 | N201: =IF(MAX(C205:C216)-MIN(C205:C216)<5,AVERAGEIF(C205:C216,">0",N205:N216), IF(FORECAST($C201,N$205:N$216,$C$205:$C$216)<0,0, IF(FORECAST($C201,N$205:N$216,$C$205:$C$216)>100,100, FORECAST($C201,N$205:N$216,$C$205:$C$216)))) -> 78.98747096 | R201: =IF(MAX(C205:C216)-MIN(C205:C216)<5,AVERAGEIF(C205:C216,">0",R205:R216), IF(FORECAST($C201,R$205:R$216,$C$205:$C$216)<0,0, IF(FORECAST($C201,R$205:R$216,$C$205:$C$216)>100,100, FORECAST($C201,R$205:R$216,$C$205:$C$216)))) -> 1.862258961 | S201: =IF(MAX(C205:C216)-MIN(C205:C216)<5,AVERAGEIF(C205:C216,">0",S205:S216), IF(FORECAST($C201,S$205:S$216,$C$205:$C$216)<0,0, IF(FORECAST($C201,S$205:S$216,$C$205:$C$216)>100,100, FORECAST($C201,S$205:S$216,$C$205:$C$216)))) -> 91.97408175 | W201: =IF(MAX(C205:C216)-MIN(C205:C216)<5,AVERAGEIF(C205:C216,">0",W205:W216), IF(FORECAST($C201,W$205:W$216,$C$205:$C$216)<0,0, IF(FORECAST($C201,W$205:W$216,$C$205:$C$216)>100,100, FORECAST($C201,W$205:W$216,$C$205:$C$216)))) -> 0.8089875438 | X201: =IF(MAX(C205:C216)-MIN(C205:C216)<5,AVERAGEIF(C205:C216,">0",X205:X216), IF(FORECAST($C201,X$205:X$216,$C$205:$C$216)<0,0, IF(FORECAST($C201,X$205:X$216,$C$205:$C$216)>100,100, FORECAST($C201,X$205:X$216,$C$205:$C$216)))) -> 98.02585365 | AB201: =IF(MAX(C205:C216)-MIN(C205:C216)<5,AVERAGEIF(C205:C216,">0",AB205:AB216), IF(FORECAST($C201,AB$205:AB$216,$C$205:$C$216)<0,0, IF(FORECAST($C201,AB$205:AB$216,$C$205:$C$216)>100,100, FORECAST($C201,AB$205:AB$216,$C$205:$C$216)))) -> 0.2578533319
C202: =MaxRegYear(C200,C205:C216) -> 2020 | D202: =IF(MAX(C205:C216)-MIN(C205:C216)<5,AVERAGEIF(C205:C216,">0",D205:D216), IF(FORECAST($C202,D$205:D$216,$C$205:$C$216)<0,0, IF(FORECAST($C202,D$205:D$216,$C$205:$C$216)>100,100, FORECAST($C202,D$205:D$216,$C$205:$C$216)))) -> 64.89906731 | H202: =IF(MAX(C205:C216)-MIN(C205:C216)<5,AVERAGEIF(C205:C216,">0",H205:H216), IF(FORECAST($C202,H$205:H$216,$C$205:$C$216)<0,0, IF(FORECAST($C202,H$205:H$216,$C$205:$C$216)>100,100, FORECAST($C202,H$205:H$216,$C$205:$C$216)))) -> 2.774611004 | I202: =IF(MAX(C205:C216)-MIN(C205:C216)<5,AVERAGEIF(C205:C216,">0",I205:I216), IF(FORECAST($C202,I$205:I$216,$C$205:$C$216)<0,0, IF(FORECAST($C202,I$205:I$216,$C$205:$C$216)>100,100, FORECAST($C202,I$205:I$216,$C$205:$C$216)))) -> 86.83142651 | M202: =IF(MAX(C205:C216)-MIN(C205:C216)<5,AVERAGEIF(C205:C216,">0",M205:M216), IF(FORECAST($C202,M$205:M$216,$C$205:$C$216)<0,0, IF(FORECAST($C202,M$205:M$216,$C$205:$C$216)>100,100, FORECAST($C202,M$205:M$216,$C$205:$C$216)))) -> 0.8099965745 | N202: =IF(MAX(C205:C216)-MIN(C205:C216)<5,AVERAGEIF(C205:C216,">0",N205:N216), IF(FORECAST($C202,N$205:N$216,$C$205:$C$216)<0,0, IF(FORECAST($C202,N$205:N$216,$C$205:$C$216)>100,100, FORECAST($C202,N$205:N$216,$C$205:$C$216)))) -> 94.08958348 | R202: =IF(MAX(C205:C216)-MIN(C205:C216)<5,AVERAGEIF(C205:C216,">0",R205:R216), IF(FORECAST($C202,R$205:R$216,$C$205:$C$216)<0,0, IF(FORECAST($C202,R$205:R$216,$C$205:$C$216)>100,100, FORECAST($C202,R$205:R$216,$C$205:$C$216)))) -> 0.9515017515 | S202: =IF(MAX(C205:C216)-MIN(C205:C216)<5,AVERAGEIF(C205:C216,">0",S205:S216), IF(FORECAST($C202,S$205:S$216,$C$205:$C$216)<0,0, IF(FORECAST($C202,S$205:S$216,$C$205:$C$216)>100,100, FORECAST($C202,S$205:S$216,$C$205:$C$216)))) -> 99.42970953 | W202: =IF(MAX(C205:C216)-MIN(C205:C216)<5,AVERAGEIF(C205:C216,">0",W205:W216), IF(FORECAST($C202,W$205:W$216,$C$205:$C$216)<0,0, IF(FORECAST($C202,W$205:W$216,$C$205:$C$216)>100,100, FORECAST($C202,W$205:W$216,$C$205:$C$216)))) -> 0 | X202: =IF(MAX(C205:C216)-MIN(C205:C216)<5,AVERAGEIF(C205:C216,">0",X205:X216), IF(FORECAST($C202,X$205:X$216,$C$205:$C$216)<0,0, IF(FORECAST($C202,X$205:X$216,$C$205:$C$216)>100,100, FORECAST($C202,X$205:X$216,$C$205:$C$216)))) -> 99.30073531 | AB202: =IF(MAX(C205:C216)-MIN(C205:C216)<5,AVERAGEIF(C205:C216,">0",AB205:AB216), IF(FORECAST($C202,AB$205:AB$216,$C$205:$C$216)<0,0, IF(FORECAST($C202,AB$205:AB$216,$C$205:$C$216)>100,100, FORECAST($C202,AB$205:AB$216,$C$205:$C$216)))) -> 0
B204: Survey | C204: Year | D204: Improved | E204: Basic | H204: Surface water | I204: Improved | J204: Basic | M204: Surface water | N204: Improved | O204: Basic | R204: Surface water | S204: Improved | T204: Basic | W204: Surface water | X204: Improved | Y204: Basic | AB204: Surface water
B205: MICS01 | C205: 2001 | D205: =IF(ISERROR(INDIRECT(CONCATENATE($B205,"!H16"))),"",INDIRECT(CONCATENATE($B205,"!H16"))) -> 70.85844292 | E205: =IF(ISERROR(INDIRECT(CONCATENATE($B205,"!H23"))),"",INDIRECT(CONCATENATE($B205,"!H23"))) -> 61.94000075 | H205: =IF(ISERROR(INDIRECT(CONCATENATE($B205,"!H21"))),"",INDIRECT(CONCATENATE($B205,"!H21"))) -> 5.585107064 | I205: =IF(ISERROR(INDIRECT(CONCATENATE($B205,"!I16"))),"",INDIRECT(CONCATENATE($B205,"!I16"))) -> 74.53618904 | J205: =IF(ISERROR(INDIRECT(CONCATENATE($B205,"!I23"))),"",INDIRECT(CONCATENATE($B205,"!I23"))) -> 69.79827239 | M205: =IF(ISERROR(INDIRECT(CONCATENATE($B205,"!I21"))),"",INDIRECT(CONCATENATE($B205,"!I21"))) -> 3.198797135 | N205: =IF(ISERROR(INDIRECT(CONCATENATE($B205,"!J16"))),"",INDIRECT(CONCATENATE($B205,"!J16"))) -> 83.42299443 | O205: =IF(ISERROR(INDIRECT(CONCATENATE($B205,"!J23"))),"",INDIRECT(CONCATENATE($B205,"!J23"))) -> 78.45705588 | R205: =IF(ISERROR(INDIRECT(CONCATENATE($B205,"!J21"))),"",INDIRECT(CONCATENATE($B205,"!J21"))) -> 2.562586888 | S205: =IF(ISERROR(INDIRECT(CONCATENATE($B205,"!K16"))),"",INDIRECT(CONCATENATE($B205,"!K16"))) -> 91.98986425 | T205: =IF(ISERROR(INDIRECT(CONCATENATE($B205,"!K23"))),"",INDIRECT(CONCATENATE($B205,"!K23"))) -> 91.54654944 | W205: =IF(ISERROR(INDIRECT(CONCATENATE($B205,"!K21"))),"",INDIRECT(CONCATENATE($B205,"!K21"))) -> 1.113103195 | X205: =IF(ISERROR(INDIRECT(CONCATENATE($B205,"!L16"))),"",INDIRECT(CONCATENATE($B205,"!L16"))) -> 97.51935204 | Y205: =IF(ISERROR(INDIRECT(CONCATENATE($B205,"!L23"))),"",INDIRECT(CONCATENATE($B205,"!L23"))) -> 98.35376297 | AB205: =IF(ISERROR(INDIRECT(CONCATENATE($B205,"!L221"))),"",INDIRECT(CONCATENATE($B205,"!L21"))) -> 0.3535086002
B206: DHS07 | C206: 2007 | D206: 55.94821731 | E206: 72.90850983 | H206: 8.888767595 | I206: 70.41749451 | J206: 69.28833749 | M206: 4.021358721 | N206: 81.32565702 | O206: 78.40424232 | R206: 0.8411521294 | S206: 96.04320882 | T206: 90.29776548 | W206: 0.04406333693 | X206: 99.51511822 | Y206: 96.92208779 | AB206: 0
B207: MICS10 | C207: 2010 | D207: 59.9 | E207: 63.3 | H207: 3.5 | I207: 78.6 | J207: 71.2 | M207: 0.7 | N207: 83.4 | O207: 80.4 | R207: 0 | S207: 94.5 | T207: 92.6 | W207: 0 | X207: 98.5 | Y207: 98.2 | AB207: 0
B208: DHS14 | C208: 2014 | D208: 60.6 | E208: 68.7 | H208: 7 | I208: 79.6 | J208: 65.7 | M208: 2.8 | N208: 88.3 | O208: 75.3 | R208: 2.8 | S208: 97.1 | T208: 87.3 | W208: 0.3 | X208: 98.8 | Y208: 94.2 | AB208: 0
B209: MICS18 | C209: 2018 | D209: 72.42211734 | E209: 48.67164398 | H209: 0.9815332963 | I209: 88.51665891 | J209: 68.22226857 | M209: 0.6118124768 | N209: 96.24398466 | O209: 86.98294119 | R209: 0.8306627631 | S209: 98.8764051 | T209: 91.6482373 | W209: 0.03297754956 | X209: 98.98200215 | Y209: 98.08037149 | AB209: 0
B218: =CONCATENATE("Urban use of drinking water sources, ",C199,"–",C200) -> Urban use of drinking water sources, 2000–2020 | S218: Data points used for regression
E253: =IF(ISERROR(INDIRECT(CONCATENATE($B253,"!M18"))),"",INDIRECT(CONCATENATE($B253,"!M18"))) ->  | F253: =IF(ISERROR(INDIRECT(CONCATENATE($B253,"!M19"))),"",INDIRECT(CONCATENATE($B253,"!M19"))) ->  | G253: =IF(ISERROR(INDIRECT(CONCATENATE($B253,"!M20"))),"",INDIRECT(CONCATENATE($B253,"!M20"))) ->  | H253: =IF(ISERROR(INDIRECT(CONCATENATE($B253,"!M21"))),"",INDIRECT(CONCATENATE($B253,"!M21"))) ->  | J253: =IF(ISERROR(INDIRECT(CONCATENATE($B253,"!N18"))),"",INDIRECT(CONCATENATE($B253,"!N18"))) ->  | K253: =IF(ISERROR(INDIRECT(CONCATENATE($B253,"!N19"))),"",INDIRECT(CONCATENATE($B253,"!N19"))) ->  | L253: =IF(ISERROR(INDIRECT(CONCATENATE($B253,"!N20"))),"",INDIRECT(CONCATENATE($B253,"!N20"))) ->  | M253: =IF(ISERROR(INDIRECT(CONCATENATE($B253,"!N21"))),"",INDIRECT(CONCATENATE($B253,"!N21"))) ->  | O253: =IF(ISERROR(INDIRECT(CONCATENATE($B253,"!O18"))),"",INDIRECT(CONCATENATE($B253,"!O18"))) ->  | P253: =IF(ISERROR(INDIRECT(CONCATENATE($B253,"!O19"))),"",INDIRECT(CONCATENATE($B253,"!O19"))) ->  | Q253: =IF(ISERROR(INDIRECT(CONCATENATE($B253,"!O20"))),"",INDIRECT(CONCATENATE($B253,"!O20"))) ->  | R253: =IF(ISERROR(INDIRECT(CONCATENATE($B253,"!O21"))),"",INDIRECT(CONCATENATE($B253,"!O21"))) ->  | T253: =IF(ISERROR(INDIRECT(CONCATENATE($B253,"!P18"))),"",INDIRECT(CONCATENATE($B253,"!P18"))) ->  | U253: =IF(ISERROR(INDIRECT(CONCATENATE($B253,"!P19"))),"",INDIRECT(CONCATENATE($B253,"!P19"))) ->  | V253: =IF(ISERROR(INDIRECT(CONCATENATE($B253,"!P20"))),"",INDIRECT(CONCATENATE($B253,"!P20"))) ->  | W253: =IF(ISERROR(INDIRECT(CONCATENATE($B253,"!P21"))),"",INDIRECT(CONCATENATE($B253,"!P21"))) ->  | Y253: =IF(ISERROR(INDIRECT(CONCATENATE($B253,"!Q18"))),"",INDIRECT(CONCATENATE($B253,"!Q18"))) ->  | Z253: =IF(ISERROR(INDIRECT(CONCATENATE($B253,"!Q19"))),"",INDIRECT(CONCATENATE($B253,"!Q19"))) ->  | AA253: =IF(ISERROR(INDIRECT(CONCATENATE($B253,"!Q20"))),"",INDIRECT(CONCATENATE($B253,"!Q20"))) ->  | AB253: =IF(ISERROR(INDIRECT(CONCATENATE($B253,"!Q21"))),"",INDIRECT(CONCATENATE($B253,"!Q1"))) -> 
E254: =IF(ISERROR(INDIRECT(CONCATENATE($B254,"!M18"))),"",INDIRECT(CONCATENATE($B254,"!M18"))) ->  | F254: =IF(ISERROR(INDIRECT(CONCATENATE($B254,"!M19"))),"",INDIRECT(CONCATENATE($B254,"!M19"))) ->  | G254: =IF(ISERROR(INDIRECT(CONCATENATE($B254,"!M20"))),"",INDIRECT(CONCATENATE($B254,"!M20"))) ->  | H254: =IF(ISERROR(INDIRECT(CONCATENATE($B254,"!M21"))),"",INDIRECT(CONCATENATE($B254,"!M21"))) ->  | J254: =IF(ISERROR(INDIRECT(CONCATENATE($B254,"!N18"))),"",INDIRECT(CONCATENATE($B254,"!N18"))) ->  | K254: =IF(ISERROR(INDIRECT(CONCATENATE($B254,"!N19"))),"",INDIRECT(CONCATENATE($B254,"!N19"))) ->  | L254: =IF(ISERROR(INDIRECT(CONCATENATE($B254,"!N20"))),"",INDIRECT(CONCATENATE($B254,"!N20"))) ->  | M254: =IF(ISERROR(INDIRECT(CONCATENATE($B254,"!N21"))),"",INDIRECT(CONCATENATE($B254,"!N21"))) ->  | O254: =IF(ISERROR(INDIRECT(CONCATENATE($B254,"!O18"))),"",INDIRECT(CONCATENATE($B254,"!O18"))) ->  | P254: =IF(ISERROR(INDIRECT(CONCATENATE($B254,"!O19"))),"",INDIRECT(CONCATENATE($B254,"!O19"))) ->  | Q254: =IF(ISERROR(INDIRECT(CONCATENATE($B254,"!O20"))),"",INDIRECT(CONCATENATE($B254,"!O20"))) ->  | R254: =IF(ISERROR(INDIRECT(CONCATENATE($B254,"!O21"))),"",INDIRECT(CONCATENATE($B254,"!O21"))) ->  | T254: =IF(ISERROR(INDIRECT(CONCATENATE($B254,"!P18"))),"",INDIRECT(CONCATENATE($B254,"!P18"))) ->  | U254: =IF(ISERROR(INDIRECT(CONCATENATE($B254,"!P19"))),"",INDIRECT(CONCATENATE($B254,"!P19"))) ->  | V254: =IF(ISERROR(INDIRECT(CONCATENATE($B254,"!P20"))),"",INDIRECT(CONCATENATE($B254,"!P20"))) ->  | W254: =IF(ISERROR(INDIRECT(CONCATENATE($B254,"!P21"))),"",INDIRECT(CONCATENATE($B254,"!P21"))) ->  | Y254: =IF(ISERROR(INDIRECT(CONCATENATE($B254,"!Q18"))),"",INDIRECT(CONCATENATE($B254,"!Q18"))) ->  | Z254: =IF(ISERROR(INDIRECT(CONCATENATE($B254,"!Q19"))),"",INDIRECT(CONCATENATE($B254,"!Q19"))) ->  | AA254: =IF(ISERROR(INDIRECT(CONCATENATE($B254,"!Q20"))),"",INDIRECT(CONCATENATE($B254,"!Q20"))) ->  | AB254: =IF(ISERROR(INDIRECT(CONCATENATE($B254,"!Q21"))),"",INDIRECT(CONCATENATE($B254,"!Q1"))) -> 
E255: =IF(ISERROR(INDIRECT(CONCATENATE($B255,"!M18"))),"",INDIRECT(CONCATENATE($B255,"!M18"))) ->  | F255: =IF(ISERROR(INDIRECT(CONCATENATE($B255,"!M19"))),"",INDIRECT(CONCATENATE($B255,"!M19"))) ->  | G255: =IF(ISERROR(INDIRECT(CONCATENATE($B255,"!M20"))),"",INDIRECT(CONCATENATE($B255,"!M20"))) ->  | H255: =IF(ISERROR(INDIRECT(CONCATENATE($B255,"!M21"))),"",INDIRECT(CONCATENATE($B255,"!M21"))) ->  | J255: =IF(ISERROR(INDIRECT(CONCATENATE($B255,"!N18"))),"",INDIRECT(CONCATENATE($B255,"!N18"))) ->  | K255: =IF(ISERROR(INDIRECT(CONCATENATE($B255,"!N19"))),"",INDIRECT(CONCATENATE($B255,"!N19"))) ->  | L255: =IF(ISERROR(INDIRECT(CONCATENATE($B255,"!N20"))),"",INDIRECT(CONCATENATE($B255,"!N20"))) ->  | M255: =IF(ISERROR(INDIRECT(CONCATENATE($B255,"!N21"))),"",INDIRECT(CONCATENATE($B255,"!N21"))) ->  | O255: =IF(ISERROR(INDIRECT(CONCATENATE($B255,"!O18"))),"",INDIRECT(CONCATENATE($B255,"!O18"))) ->  | P255: =IF(ISERROR(INDIRECT(CONCATENATE($B255,"!O19"))),"",INDIRECT(CONCATENATE($B255,"!O19"))) ->  | Q255: =IF(ISERROR(INDIRECT(CONCATENATE($B255,"!O20"))),"",INDIRECT(CONCATENATE($B255,"!O20"))) ->  | R255: =IF(ISERROR(INDIRECT(CONCATENATE($B255,"!O21"))),"",INDIRECT(CONCATENATE($B255,"!O21"))) ->  | T255: =IF(ISERROR(INDIRECT(CONCATENATE($B255,"!P18"))),"",INDIRECT(CONCATENATE($B255,"!P18"))) ->  | U255: =IF(ISERROR(INDIRECT(CONCATENATE($B255,"!P19"))),"",INDIRECT(CONCATENATE($B255,"!P19"))) ->  | V255: =IF(ISERROR(INDIRECT(CONCATENATE($B255,"!P20"))),"",INDIRECT(CONCATENATE($B255,"!P20"))) ->  | W255: =IF(ISERROR(INDIRECT(CONCATENATE($B255,"!P21"))),"",INDIRECT(CONCATENATE($B255,"!P21"))) ->  | Y255: =IF(ISERROR(INDIRECT(CONCATENATE($B255,"!Q18"))),"",INDIRECT(CONCATENATE($B255,"!Q18"))) ->  | Z255: =IF(ISERROR(INDIRECT(CONCATENATE($B255,"!Q19"))),"",INDIRECT(CONCATENATE($B255,"!Q19"))) ->  | AA255: =IF(ISERROR(INDIRECT(CONCATENATE($B255,"!Q20"))),"",INDIRECT(CONCATENATE($B255,"!Q20"))) ->  | AB255: =IF(ISERROR(INDIRECT(CONCATENATE($B255,"!Q21"))),"",INDIRECT(CONCATENATE($B255,"!Q1"))) -> 
E256: =IF(ISERROR(INDIRECT(CONCATENATE($B256,"!M18"))),"",INDIRECT(CONCATENATE($B256,"!M18"))) ->  | F256: =IF(ISERROR(INDIRECT(CONCATENATE($B256,"!M19"))),"",INDIRECT(CONCATENATE($B256,"!M19"))) ->  | G256: =IF(ISERROR(INDIRECT(CONCATENATE($B256,"!M20"))),"",INDIRECT(CONCATENATE($B256,"!M20"))) ->  | H256: =IF(ISERROR(INDIRECT(CONCATENATE($B256,"!M21"))),"",INDIRECT(CONCATENATE($B256,"!M21"))) ->  | J256: =IF(ISERROR(INDIRECT(CONCATENATE($B256,"!N18"))),"",INDIRECT(CONCATENATE($B256,"!N18"))) ->  | K256: =IF(ISERROR(INDIRECT(CONCATENATE($B256,"!N19"))),"",INDIRECT(CONCATENATE($B256,"!N19"))) ->  | L256: =IF(ISERROR(INDIRECT(CONCATENATE($B256,"!N20"))),"",INDIRECT(CONCATENATE($B256,"!N20"))) ->  | M256: =IF(ISERROR(INDIRECT(CONCATENATE($B256,"!N21"))),"",INDIRECT(CONCATENATE($B256,"!N21"))) ->  | O256: =IF(ISERROR(INDIRECT(CONCATENATE($B256,"!O18"))),"",INDIRECT(CONCATENATE($B256,"!O18"))) ->  | P256: =IF(ISERROR(INDIRECT(CONCATENATE($B256,"!O19"))),"",INDIRECT(CONCATENATE($B256,"!O19"))) ->  | Q256: =IF(ISERROR(INDIRECT(CONCATENATE($B256,"!O20"))),"",INDIRECT(CONCATENATE($B256,"!O20"))) ->  | R256: =IF(ISERROR(INDIRECT(CONCATENATE($B256,"!O21"))),"",INDIRECT(CONCATENATE($B256,"!O21"))) ->  | T256: =IF(ISERROR(INDIRECT(CONCATENATE($B256,"!P18"))),"",INDIRECT(CONCATENATE($B256,"!P18"))) ->  | U256: =IF(ISERROR(INDIRECT(CONCATENATE($B256,"!P19"))),"",INDIRECT(CONCATENATE($B256,"!P19"))) ->  | V256: =IF(ISERROR(INDIRECT(CONCATENATE($B256,"!P20"))),"",INDIRECT(CONCATENATE($B256,"!P20"))) ->  | W256: =IF(ISERROR(INDIRECT(CONCATENATE($B256,"!P21"))),"",INDIRECT(CONCATENATE($B256,"!P21"))) ->  | Y256: =IF(ISERROR(INDIRECT(CONCATENATE($B256,"!Q18"))),"",INDIRECT(CONCATENATE($B256,"!Q18"))) ->  | Z256: =IF(ISERROR(INDIRECT(CONCATENATE($B256,"!Q19"))),"",INDIRECT(CONCATENATE($B256,"!Q19"))) ->  | AA256: =IF(ISERROR(INDIRECT(CONCATENATE($B256,"!Q20"))),"",INDIRECT(CONCATENATE($B256,"!Q20"))) ->  | AB256: =IF(ISERROR(INDIRECT(CONCATENATE($B256,"!Q21"))),"",INDIRECT(CONCATENATE($B256,"!Q1"))) -> 
E257: =IF(ISERROR(INDIRECT(CONCATENATE($B257,"!M18"))),"",INDIRECT(CONCATENATE($B257,"!M18"))) ->  | F257: =IF(ISERROR(INDIRECT(CONCATENATE($B257,"!M19"))),"",INDIRECT(CONCATENATE($B257,"!M19"))) ->  | G257: =IF(ISERROR(INDIRECT(CONCATENATE($B257,"!M20"))),"",INDIRECT(CONCATENATE($B257,"!M20"))) ->  | H257: =IF(ISERROR(INDIRECT(CONCATENATE($B257,"!M21"))),"",INDIRECT(CONCATENATE($B257,"!M21"))) ->  | J257: =IF(ISERROR(INDIRECT(CONCATENATE($B257,"!N18"))),"",INDIRECT(CONCATENATE($B257,"!N18"))) ->  | K257: =IF(ISERROR(INDIRECT(CONCATENATE($B257,"!N19"))),"",INDIRECT(CONCATENATE($B257,"!N19"))) ->  | L257: =IF(ISERROR(INDIRECT(CONCATENATE($B257,"!N20"))),"",INDIRECT(CONCATENATE($B257,"!N20"))) ->  | M257: =IF(ISERROR(INDIRECT(CONCATENATE($B257,"!N21"))),"",INDIRECT(CONCATENATE($B257,"!N21"))) ->  | O257: =IF(ISERROR(INDIRECT(CONCATENATE($B257,"!O18"))),"",INDIRECT(CONCATENATE($B257,"!O18"))) ->  | P257: =IF(ISERROR(INDIRECT(CONCATENATE($B257,"!O19"))),"",INDIRECT(CONCATENATE($B257,"!O19"))) ->  | Q257: =IF(ISERROR(INDIRECT(CONCATENATE($B257,"!O20"))),"",INDIRECT(CONCATENATE($B257,"!O20"))) ->  | R257: =IF(ISERROR(INDIRECT(CONCATENATE($B257,"!O21"))),"",INDIRECT(CONCATENATE($B257,"!O21"))) ->  | T257: =IF(ISERROR(INDIRECT(CONCATENATE($B257,"!P18"))),"",INDIRECT(CONCATENATE($B257,"!P18"))) ->  | U257: =IF(ISERROR(INDIRECT(CONCATENATE($B257,"!P19"))),"",INDIRECT(CONCATENATE($B257,"!P19"))) ->  | V257: =IF(ISERROR(INDIRECT(CONCATENATE($B257,"!P20"))),"",INDIRECT(CONCATENATE($B257,"!P20"))) ->  | W257: =IF(ISERROR(INDIRECT(CONCATENATE($B257,"!P21"))),"",INDIRECT(CONCATENATE($B257,"!P21"))) ->  | Y257: =IF(ISERROR(INDIRECT(CONCATENATE($B257,"!Q18"))),"",INDIRECT(CONCATENATE($B257,"!Q18"))) ->  | Z257: =IF(ISERROR(INDIRECT(CONCATENATE($B257,"!Q19"))),"",INDIRECT(CONCATENATE($B257,"!Q19"))) ->  | AA257: =IF(ISERROR(INDIRECT(CONCATENATE($B257,"!Q20"))),"",INDIRECT(CONCATENATE($B257,"!Q20"))) ->  | AB257: =IF(ISERROR(INDIRECT(CONCATENATE($B257,"!Q21"))),"",INDIRECT(CONCATENATE($B257,"!Q1"))) -> 
A297: RURAL | D297: Poorest | I297: Poor | N297: Middle | S297: Rich | X297: Richest
D298: Improved | E298: Basic | F298: Limited | G298: Unimproved | H298: Surface water | I298: Improved | J298: Basic | K298: Limited | L298: Unimproved | M298: Surface water | N298: Improved | O298: Basic | P298: Limited | Q298: Unimproved | R298: Surface water | S298: Improved | T298: Basic | U298: Limited | V298: Unimproved | W298: Surface water | X298: Improved | Y298: Basic | Z298: Limited | AA298: Unimproved | AB298: Surface water
A299: Forecast period: | C299: 2000 | D299: =IF((D301+H301)>100,D301*100/(D301+H301),D301) -> 15.30924624 | E299: =D299*AVERAGEIF(E305:E316,">0")/100 -> 9.774016144 | F299: =D299*(100-AVERAGEIF(E305:E316,">0"))/100 -> 5.535230097 | G299: =100-(E299+F299+H299) -> 56.66725221 | H299: =IF((D301+H301)>100,H301*100/(D301+H301),H301) -> 28.02350155 | I299: =IF((I301+M301)>100,I301*100/(I301+M301),I301) -> 22.53164791 | J299: =I299*AVERAGEIF(J305:J316,">0")/100 -> 15.17081529 | K299: =I299*(100-AVERAGEIF(J305:J316,">0"))/100 -> 7.360832621 | L299: =100-(J299+K299+M299) -> 55.63522921 | M299: =IF((I301+M301)>100,M301*100/(I301+M301),M301) -> 21.83312288 | N299: =IF((N301+R301)>100,N301*100/(N301+R301),N301) -> 21.06976183 | O299: =N299*AVERAGEIF(O305:O316,">0")/100 -> 13.22969298 | P299: =N299*(100-AVERAGEIF(O305:O316,">0"))/100 -> 7.84006885 | Q299: =100-(O299+P299+R299) -> 56.31903289 | R299: =IF((N301+R301)>100,R301*100/(N301+R301),R301) -> 22.61120528 | S299: =IF((S301+W301)>100,S301*100/(S301+W301),S301) -> 26.6139663 | T299: =S299*AVERAGEIF(T305:T316,">0")/100 -> 16.9907553 | U299: =S299*(100-AVERAGEIF(T305:T316,">0"))/100 -> 9.623210997 | V299: =100-(T299+U299+W299) -> 49.63183772 | W299: =IF((S301+W301)>100,W301*100/(S301+W301),W301) -> 23.75419598 | X299: =IF((X301+AB301)>100,X301*100/(X301+AB301),X301) -> 42.74439582 | Y299: =X299*AVERAGEIF(Y305:Y316,">0")/100 -> 28.23333547 | Z299: =X299*(100-AVERAGEIF(Y305:Y316,">0"))/100 -> 14.51106036 | AA299: =100-(Y299+Z299+AB299) -> 36.85792129 | AB299: =IF((X301+AB301)>100,AB301*100/(X301+AB301),AB301) -> 20.39768289
C300: 2020 | D300: =IF((D302+H302)>100,D302*100/(D302+H302),D302) -> 23.7242358 | E300: =D300*AVERAGEIF(E305:E316,">0")/100 -> 15.14647162 | F300: =D300*(100-AVERAGEIF(E305:E316,">0"))/100 -> 8.577764181 | G300: =100-(E300+F300+H300) -> 59.53514496 | H300: =IF((D302+H302)>100,H302*100/(D302+H302),H302) -> 16.74061923 | I300: =IF((I302+M302)>100,I302*100/(I302+M302),I302) -> 23.84041404 | J300: =I300*AVERAGEIF(J305:J316,">0")/100 -> 16.05202244 | K300: =I300*(100-AVERAGEIF(J305:J316,">0"))/100 -> 7.788391603 | L300: =100-(J300+K300+M300) -> 58.48077414 | M300: =IF((I302+M302)>100,M302*100/(I302+M302),M302) -> 17.67881182 | N300: =IF((N302+R302)>100,N302*100/(N302+R302),N302) -> 30.02495545 | O300: =N300*AVERAGEIF(O305:O316,">0")/100 -> 18.8526546 | P300: =N300*(100-AVERAGEIF(O305:O316,">0"))/100 -> 11.17230085 | Q300: =100-(O300+P300+R300) -> 55.53098571 | R300: =IF((N302+R302)>100,R302*100/(N302+R302),R302) -> 14.44405884 | S300: =IF((S302+W302)>100,S302*100/(S302+W302),S302) -> 37.75457206 | T300: =S300*AVERAGEIF(T305:T316,">0")/100 -> 24.10308513 | U300: =S300*(100-AVERAGEIF(T305:T316,">0"))/100 -> 13.65148693 | V300: =100-(T300+U300+W300) -> 48.7628002 | W300: =IF((S302+W302)>100,W302*100/(S302+W302),W302) -> 13.48262773 | X300: =IF((X302+AB302)>100,X302*100/(X302+AB302),X302) -> 55.60150542 | Y300: =X300*AVERAGEIF(Y305:Y316,">0")/100 -> 36.72565548 | Z300: =X300*(100-AVERAGEIF(Y305:Y316,">0"))/100 -> 18.87584993 | AA300: =100-(Y300+Z300+AB300) -> 35.51000216 | AB300: =IF((X302+AB302)>100,AB302*100/(X302+AB302),AB302) -> 8.888492423
A301: Regression period: | C301: =MinRegYear(C299,C305:C316) -> 2000 | D301: =IF(MAX(C305:C316)-MIN(C305:C316)<5,AVERAGEIF(C305:C316,">0",D305:D316), IF(FORECAST($C301,D$305:D$316,$C$305:$C$316)<0,0, IF(FORECAST($C301,D$305:D$316,$C$305:$C$316)>100,100, FORECAST($C301,D$305:D$316,$C$305:$C$316)))) -> 15.30924624 | H301: =IF(MAX(C305:C316)-MIN(C305:C316)<5,AVERAGEIF(C305:C316,">0",H305:H316), IF(FORECAST($C301,H$305:H$316,$C$305:$C$316)<0,0, IF(FORECAST($C301,H$305:H$316,$C$305:$C$316)>100,100, FORECAST($C301,H$305:H$316,$C$305:$C$316)))) -> 28.02350155 | I301: =IF(MAX(C305:C316)-MIN(C305:C316)<5,AVERAGEIF(C305:C316,">0",I305:I316), IF(FORECAST($C301,I$305:I$316,$C$305:$C$316)<0,0, IF(FORECAST($C301,I$305:I$316,$C$305:$C$316)>100,100, FORECAST($C301,I$305:I$316,$C$305:$C$316)))) -> 22.53164791 | M301: =IF(MAX(C305:C316)-MIN(C305:C316)<5,AVERAGEIF(C305:C316,">0",M305:M316), IF(FORECAST($C301,M$305:M$316,$C$305:$C$316)<0,0, IF(FORECAST($C301,M$305:M$316,$C$305:$C$316)>100,100, FORECAST($C301,M$305:M$316,$C$305:$C$316)))) -> 21.83312288 | N301: =IF(MAX(C305:C316)-MIN(C305:C316)<5,AVERAGEIF(C305:C316,">0",N305:N316), IF(FORECAST($C301,N$305:N$316,$C$305:$C$316)<0,0, IF(FORECAST($C301,N$305:N$316,$C$305:$C$316)>100,100, FORECAST($C301,N$305:N$316,$C$305:$C$316)))) -> 21.06976183 | R301: =IF(MAX(C305:C316)-MIN(C305:C316)<5,AVERAGEIF(C305:C316,">0",R305:R316), IF(FORECAST($C301,R$305:R$316,$C$305:$C$316)<0,0, IF(FORECAST($C301,R$305:R$316,$C$305:$C$316)>100,100, FORECAST($C301,R$305:R$316,$C$305:$C$316)))) -> 22.61120528 | S301: =IF(MAX(C305:C316)-MIN(C305:C316)<5,AVERAGEIF(C305:C316,">0",S305:S316), IF(FORECAST($C301,S$305:S$316,$C$305:$C$316)<0,0, IF(FORECAST($C301,S$305:S$316,$C$305:$C$316)>100,100, FORECAST($C301,S$305:S$316,$C$305:$C$316)))) -> 26.6139663 | W301: =IF(MAX(C305:C316)-MIN(C305:C316)<5,AVERAGEIF(C305:C316,">0",W305:W316), IF(FORECAST($C301,W$305:W$316,$C$305:$C$316)<0,0, IF(FORECAST($C301,W$305:W$316,$C$305:$C$316)>100,100, FORECAST($C301,W$305:W$316,$C$305:$C$316)))) -> 23.75419598 | X301: =IF(MAX(C305:C316)-MIN(C305:C316)<5,AVERAGEIF(C305:C316,">0",X305:X316), IF(FORECAST($C301,X$305:X$316,$C$305:$C$316)<0,0, IF(FORECAST($C301,X$305:X$316,$C$305:$C$316)>100,100, FORECAST($C301,X$305:X$316,$C$305:$C$316)))) -> 42.74439582 | AB301: =IF(MAX(C305:C316)-MIN(C305:C316)<5,AVERAGEIF(C305:C316,">0",AB305:AB316), IF(FORECAST($C301,AB$305:AB$316,$C$305:$C$316)<0,0, IF(FORECAST($C301,AB$305:AB$316,$C$305:$C$316)>100,100, FORECAST($C301,AB$305:AB$316,$C$305:$C$316)))) -> 20.39768289
C302: =MaxRegYear(C300,C305:C316) -> 2020 | D302: =IF(MAX(C305:C316)-MIN(C305:C316)<5,AVERAGEIF(C305:C316,">0",D305:D316), IF(FORECAST($C302,D$305:D$316,$C$305:$C$316)<0,0, IF(FORECAST($C302,D$305:D$316,$C$305:$C$316)>100,100, FORECAST($C302,D$305:D$316,$C$305:$C$316)))) -> 23.7242358 | H302: =IF(MAX(C305:C316)-MIN(C305:C316)<5,AVERAGEIF(C305:C316,">0",H305:H316), IF(FORECAST($C302,H$305:H$316,$C$305:$C$316)<0,0, IF(FORECAST($C302,H$305:H$316,$C$305:$C$316)>100,100, FORECAST($C302,H$305:H$316,$C$305:$C$316)))) -> 16.74061923 | I302: =IF(MAX(C305:C316)-MIN(C305:C316)<5,AVERAGEIF(C305:C316,">0",I305:I316), IF(FORECAST($C302,I$305:I$316,$C$305:$C$316)<0,0, IF(FORECAST($C302,I$305:I$316,$C$305:$C$316)>100,100, FORECAST($C302,I$305:I$316,$C$305:$C$316)))) -> 23.84041404 | M302: =IF(MAX(C305:C316)-MIN(C305:C316)<5,AVERAGEIF(C305:C316,">0",M305:M316), IF(FORECAST($C302,M$305:M$316,$C$305:$C$316)<0,0, IF(FORECAST($C302,M$305:M$316,$C$305:$C$316)>100,100, FORECAST($C302,M$305:M$316,$C$305:$C$316)))) -> 17.67881182 | N302: =IF(MAX(C305:C316)-MIN(C305:C316)<5,AVERAGEIF(C305:C316,">0",N305:N316), IF(FORECAST($C302,N$305:N$316,$C$305:$C$316)<0,0, IF(FORECAST($C302,N$305:N$316,$C$305:$C$316)>100,100, FORECAST($C302,N$305:N$316,$C$305:$C$316)))) -> 30.02495545 | R302: =IF(MAX(C305:C316)-MIN(C305:C316)<5,AVERAGEIF(C305:C316,">0",R305:R316), IF(FORECAST($C302,R$305:R$316,$C$305:$C$316)<0,0, IF(FORECAST($C302,R$305:R$316,$C$305:$C$316)>100,100, FORECAST($C302,R$305:R$316,$C$305:$C$316)))) -> 14.44405884 | S302: =IF(MAX(C305:C316)-MIN(C305:C316)<5,AVERAGEIF(C305:C316,">0",S305:S316), IF(FORECAST($C302,S$305:S$316,$C$305:$C$316)<0,0, IF(FORECAST($C302,S$305:S$316,$C$305:$C$316)>100,100, FORECAST($C302,S$305:S$316,$C$305:$C$316)))) -> 37.75457206 | W302: =IF(MAX(C305:C316)-MIN(C305:C316)<5,AVERAGEIF(C305:C316,">0",W305:W316), IF(FORECAST($C302,W$305:W$316,$C$305:$C$316)<0,0, IF(FORECAST($C302,W$305:W$316,$C$305:$C$316)>100,100, FORECAST($C302,W$305:W$316,$C$305:$C$316)))) -> 13.48262773 | X302: =IF(MAX(C305:C316)-MIN(C305:C316)<5,AVERAGEIF(C305:C316,">0",X305:X316), IF(FORECAST($C302,X$305:X$316,$C$305:$C$316)<0,0, IF(FORECAST($C302,X$305:X$316,$C$305:$C$316)>100,100, FORECAST($C302,X$305:X$316,$C$305:$C$316)))) -> 55.60150542 | AB302: =IF(MAX(C305:C316)-MIN(C305:C316)<5,AVERAGEIF(C305:C316,">0",AB305:AB316), IF(FORECAST($C302,AB$305:AB$316,$C$305:$C$316)<0,0, IF(FORECAST($C302,AB$305:AB$316,$C$305:$C$316)>100,100, FORECAST($C302,AB$305:AB$316,$C$305:$C$316)))) -> 8.888492423
B304: Survey | C304: Year | D304: Improved | E304: Basic | H304: Surface water | I304: Improved | J304: Basic | M304: Surface water | N304: Improved | O304: Basic | R304: Surface water | S304: Improved | T304: Basic | W304: Surface water | X304: Improved | Y304: Basic | AB304: Surface water
B305: MICS01 | C305: 2001 | D305: =IF(ISERROR(INDIRECT(CONCATENATE($B305,"!M16"))),"",INDIRECT(CONCATENATE($B305,"!M16"))) -> 18.89837952 | E305: =IF(ISERROR(INDIRECT(CONCATENATE($B305,"!M23"))),"",INDIRECT(CONCATENATE($B305,"!M23"))) -> 59.64182323 | H305: =IF(ISERROR(INDIRECT(CONCATENATE($B305,"!M21"))),"",INDIRECT(CONCATENATE($B305,"!M21"))) -> 29.2973641 | I305: =IF(ISERROR(INDIRECT(CONCATENATE($B305,"!N16"))),"",INDIRECT(CONCATENATE($B305,"!N16"))) -> 26.65333949 | J305: =IF(ISERROR(INDIRECT(CONCATENATE($B305,"!N23"))),"",INDIRECT(CONCATENATE($B305,"!N23"))) -> 62.33702485 | M305: =IF(ISERROR(INDIRECT(CONCATENATE($B305,"!N21"))),"",INDIRECT(CONCATENATE($B305,"!N21"))) -> 20.12003198 | N305: =IF(ISERROR(INDIRECT(CONCATENATE($B305,"!O16"))),"",INDIRECT(CONCATENATE($B305,"!O16"))) -> 23.85683103 | O305: =IF(ISERROR(INDIRECT(CONCATENATE($B305,"!O23"))),"",INDIRECT(CONCATENATE($B305,"!O23"))) -> 60.88617267 | R305: =IF(ISERROR(INDIRECT(CONCATENATE($B305,"!O21"))),"",INDIRECT(CONCATENATE($B305,"!O21"))) -> 22.11486493 | S305: =IF(ISERROR(INDIRECT(CONCATENATE($B305,"!P16"))),"",INDIRECT(CONCATENATE($B305,"!P16"))) -> 29.48095225 | T305: =IF(ISERROR(INDIRECT(CONCATENATE($B305,"!P23"))),"",INDIRECT(CONCATENATE($B305,"!P23"))) -> 61.6779094 | W305: =IF(ISERROR(INDIRECT(CONCATENATE($B305,"!P21"))),"",INDIRECT(CONCATENATE($B305,"!P21"))) -> 22.37891754 | X305: =IF(ISERROR(INDIRECT(CONCATENATE($B305,"!Q16"))),"",INDIRECT(CONCATENATE($B305,"!Q16"))) -> 44.22572049 | Y305: =IF(ISERROR(INDIRECT(CONCATENATE($B305,"!Q23"))),"",INDIRECT(CONCATENATE($B305,"!Q23"))) -> 70.90177652 | AB305: =IF(ISERROR(INDIRECT(CONCATENATE($B305,"!Q221"))),"",INDIRECT(CONCATENATE($B305,"!Q21"))) -> 18.92642535
B306: DHS07 | C306: 2007 | D306: 16.75179798 | E306: 60.92035667 | H306: 20.2483387 | I306: 16.14635961 | J306: 63.94979276 | M306: 21.99179948 | N306: 19.10991567 | O306: 62.94824554 | R306: 18.92484758 | S306: 26.2090391 | T306: 65.14763801 | W306: 19.09120056 | X306: 40.41775863 | Y306: 67.42193382 | AB306: 18.96385402
B307: MICS10 | C307: 2010 | D307: 14.4 | E307: 71.5 | H307: 26.6 | I307: 23.1 | J307: 72.8 | M307: 24.1 | N307: 27.2 | O307: 69.8 | R307: 21.9 | S307: 32.9 | T307: 71.6 | W307: 23.8 | X307: 56.5 | Y307: 64.7 | AB307: 14.7
B308: DHS14 | C308: 2014 | D308: 22.1 | E308: 63.3 | H308: 14.4 | I308: 25.2 | J308: 71.2 | M308: 12.2 | N308: 28.1 | O308: 64.2 | R308: 12.8 | S308: 35 | T308: 63.4 | W308: 12.8 | X308: 52.3 | Y308: 77.2 | AB308: 8.9
B309: MICS18 | C309: 2018 | D309: 25.43352761 | E309: 63.85719871 | H309: 21.36459916 | I309: 24.83045579 | J309: 66.36887997 | M309: 20.36800528 | N309: 29.47004651 | O309: 56.11533326 | R309: 16.8984478 | S309: 37.33135456 | T309: 57.38195272 | W309: 15.02194118 | X309: 52.42127398 | Y309: 50.03403366 | AB309: 11.72515891
B318: =CONCATENATE("Rural use of drinking water sources, ",C299,"–",C300) -> Rural use of drinking water sources, 2000–2020 | S318: Data points used for regression

Sheet Sanitation
B4: Summary of trends in use of sanitation facilities by wealth quintile (%)
B5: =IF(ISERROR(INDIRECT(CONCATENATE($B105,"!A2"))),"",INDIRECT(CONCATENATE($B105,"!A2"))) -> Democratic Republic of the Congo
B7: =B118 -> National use of sanitation facilities, 2000–2020 | J7: =B218 -> Urban use of sanitation facilities, 2000–2020 | R7: =B318 -> Rural use of sanitation facilities, 2000–2020
B31: =IF(ISERROR(INDIRECT(CONCATENATE($B105,"!A2"))),"",INDIRECT(CONCATENATE($B105,"!A2"))) -> Democratic Republic of the Congo | F31: Poorest | J31: Poor | N31: Middle | R31: Rich | V31: Richest
F32: Basic | G32: Limited | H32: Unimproved | I32: Open defecation | J32: Basic | K32: Limited | L32: Unimproved | M32: Open defecation | N32: Basic | O32: Limited | P32: Unimproved | Q32: Open defecation | R32: Basic | S32: Limited | T32: Unimproved | U32: Open defecation | V32: Basic | W32: Limited | X32: Unimproved | Y32: Open defecation
B33: NATIONAL | D33: Estimate | E33: =C99 -> 2000 | F33: =E99 -> 17.27404796 | G33: =F99 -> 16.19644708 | H33: 44.04947763 | I33: 22.48002733 | J33: =J99 -> 23.03095608 | K33: =K99 -> 18.63440921 | L33: 44.84796441 | M33: 13.48667029 | N33: =O99 -> 24.62099831 | O33: =P99 -> 19.11632738 | P33: 44.09754244 | Q33: 12.16513187 | R33: =T99 -> 21.48307935 | S33: =U99 -> 26.95186919 | T33: 43.16521973 | U33: 8.399831729 | V33: =Y99 -> 24.43702428 | W33: =Z99 -> 38.95767943 | X33: 35.51587817 | Y33: 1.08941811
E34: =C100 -> 2020 | F34: =E100 -> 9.949713508 | G34: 9.32902402 | H34: 54.65789609 | I34: 26.06336638 | J34: =J100 -> 11.14856453 | K34: 9.020333887 | L34: 60.4908377 | M34: 19.34026388 | N34: =O100 -> 12.52513936 | O34: 9.724815435 | P34: 66.4245246 | Q34: 11.32552061 | R34: =T100 -> 15.03701495 | S34: 18.86487749 | T34: 61.13312994 | U34: 4.964977622 | V34: =Y100 -> 28.42222236 | W34: 45.3109108 | X34: 24.34160627 | Y34: 1.925260566
B36: URBAN | D36: Estimate | E36: =C199 -> 2000 | F36: =E199 -> 27.00812985 | G36: =F199 -> 21.60383095 | H36: 43.19837857 | I36: 8.189660629 | J36: =J199 -> 18.62128957 | K36: =K199 -> 32.341907 | L36: 45.38996131 | M36: 3.64684212 | N36: =O199 -> 19.99806582 | O36: =P199 -> 34.66639488 | P36: 42.63199669 | Q36: 2.703542611 | R36: =T199 -> 20.87392068 | S36: =U199 -> 39.02100449 | T36: 39.37859251 | U36: 0.7264823193 | V36: =Y199 -> 32.09982732 | W36: =Z199 -> 46.01865514 | X36: 21.88151754 | Y36: 0
E37: =C200 -> 2020 | F37: =E200 -> 13.60874481 | G37: 10.88564902 | H37: 67.29576353 | I37: 8.209842648 | J37: =J200 -> 12.24728849 | K37: 21.27138745 | L37: 60.77711556 | M37: 5.704208502 | N37: =O200 -> 19.94677042 | O37: 34.57747495 | P37: 43.83123732 | Q37: 1.644517306 | R37: =T200 -> 23.49824334 | S37: 43.92682491 | T37: 30.42821215 | U37: 2.146719595 | V37: =Y200 -> 35.62673513 | W37: 51.07486782 | X37: 11.71714789 | Y37: 1.581249158
B39: RURAL | D39: Estimate | E39: =C299 -> 2000 | F39: =E299 -> 15.20250503 | G39: =F299 -> 14.84395111 | H39: 46.66656286 | I39: 23.28698099 | J39: =J299 -> 21.62682335 | K39: =K299 -> 17.05337595 | L39: 43.49598051 | M39: 17.82382018 | N39: =O299 -> 23.22040007 | O39: =P299 -> 19.67600631 | P39: 45.41139876 | Q39: 11.69219486 | R39: =T299 -> 23.16756193 | S39: =U299 -> 20.43114935 | T39: 44.27133205 | U39: 12.12995666 | V39: =Y299 -> 30.44306567 | W39: =Z299 -> 19.66682979 | X39: 38.45714356 | Y39: 11.43296098
E40: =C300 -> 2020 | F40: =E300 -> 9.604468018 | G40: 9.377944843 | H40: 50.87770281 | I40: 30.13988433 | J40: =J300 -> 10.0140978 | K40: 7.896405857 | L40: 58.42683333 | M40: 23.66266301 | N40: =O300 -> 11.88366996 | O40: 10.06973026 | P40: 59.80807935 | Q40: 18.23852043 | R40: =T300 -> 10.65913106 | S40: 9.40013884 | T40: 65.85386073 | U40: 14.08686937 | V40: =Y300 -> 12.1891792 | W40: 7.874453745 | X40: 72.0995771 | Y40: 7.836789962
A97: NATIONAL | D97: Poorest | I97: Poor | N97: Middle | S97: Rich | X97: Richest
D98: Improved | E98: Basic | F98: Limited | G98: Unimproved | H98: Open defecation | I98: Improved | J98: Basic | K98: Limited | L98: Unimproved | M98: Open defecation | N98: Improved | O98: Basic | P98: Limited | Q98: Unimproved | R98: Open defecation | S98: Improved | T98: Basic | U98: Limited | V98: Unimproved | W98: Open defecation | X98: Improved | Y98: Basic | Z98: Limited | AA98: Unimproved | AB98: Open defecation
A99: Forecast period: | C99: 2000 | D99: =IF((D101+H101)>100,D101*100/(D101+H101),D101) -> 33.47049504 | E99: =D99*AVERAGEIF(E105:E116,">0")/100 -> 17.27404796 | F99: =D99*(100-AVERAGEIF(E105:E116,">0"))/100 -> 16.19644708 | G99: =100-(E99+F99+H99) -> 44.04947763 | H99: =IF((D101+H101)>100,H101*100/(D101+H101),H101) -> 22.48002733 | I99: =IF((I101+M101)>100,I101*100/(I101+M101),I101) -> 41.6653653 | J99: =I99*AVERAGEIF(J105:J116,">0")/100 -> 23.03095608 | K99: =I99*(100-AVERAGEIF(J105:J116,">0"))/100 -> 18.63440921 | L99: =100-(J99+K99+M99) -> 44.84796441 | M99: =IF((I101+M101)>100,M101*100/(I101+M101),M101) -> 13.48667029 | N99: =IF((N101+R101)>100,N101*100/(N101+R101),N101) -> 43.73732569 | O99: =N99*AVERAGEIF(O105:O116,">0")/100 -> 24.62099831 | P99: =N99*(100-AVERAGEIF(O105:O116,">0"))/100 -> 19.11632738 | Q99: =100-(O99+P99+R99) -> 44.09754244 | R99: =IF((N101+R101)>100,R101*100/(N101+R101),R101) -> 12.16513187 | S99: =IF((S101+W101)>100,S101*100/(S101+W101),S101) -> 48.43494854 | T99: =S99*AVERAGEIF(T105:T116,">0")/100 -> 21.48307935 | U99: =S99*(100-AVERAGEIF(T105:T116,">0"))/100 -> 26.95186919 | V99: =100-(T99+U99+W99) -> 43.16521973 | W99: =IF((S101+W101)>100,W101*100/(S101+W101),W101) -> 8.399831729 | X99: =IF((X101+AB101)>100,X101*100/(X101+AB101),X101) -> 63.39470372 | Y99: =X99*AVERAGEIF(Y105:Y116,">0")/100 -> 24.43702428 | Z99: =X99*(100-AVERAGEIF(Y105:Y116,">0"))/100 -> 38.95767943 | AA99: =100-(Y99+Z99+AB99) -> 35.51587817 | AB99: =IF((X101+AB101)>100,AB101*100/(X101+AB101),AB101) -> 1.08941811
C100: 2020 | D100: =IF((D102+H102)>100,D102*100/(D102+H102),D102) -> 19.27873753 | E100: =D100*AVERAGEIF(E105:E116,">0")/100 -> 9.949713508 | F100: =D100*(100-AVERAGEIF(E105:E116,">0"))/100 -> 9.32902402 | G100: =100-(E100+F100+H100) -> 54.65789609 | H100: =IF((D102+H102)>100,H102*100/(D102+H102),H102) -> 26.06336638 | I100: =IF((I102+M102)>100,I102*100/(I102+M102),I102) -> 20.16889842 | J100: =I100*AVERAGEIF(J105:J116,">0")/100 -> 11.14856453 | K100: =I100*(100-AVERAGEIF(J105:J116,">0"))/100 -> 9.020333887 | L100: =100-(J100+K100+M100) -> 60.4908377 | M100: =IF((I102+M102)>100,M102*100/(I102+M102),M102) -> 19.34026388 | N100: =IF((N102+R102)>100,N102*100/(N102+R102),N102) -> 22.24995479 | O100: =N100*AVERAGEIF(O105:O116,">0")/100 -> 12.52513936 | P100: =N100*(100-AVERAGEIF(O105:O116,">0"))/100 -> 9.724815435 | Q100: =100-(O100+P100+R100) -> 66.4245246 | R100: =IF((N102+R102)>100,R102*100/(N102+R102),R102) -> 11.32552061 | S100: =IF((S102+W102)>100,S102*100/(S102+W102),S102) -> 33.90189244 | T100: =S100*AVERAGEIF(T105:T116,">0")/100 -> 15.03701495 | U100: =S100*(100-AVERAGEIF(T105:T116,">0"))/100 -> 18.86487749 | V100: =100-(T100+U100+W100) -> 61.13312994 | W100: =IF((S102+W102)>100,W102*100/(S102+W102),W102) -> 4.964977622 | X100: =IF((X102+AB102)>100,X102*100/(X102+AB102),X102) -> 73.73313317 | Y100: =X100*AVERAGEIF(Y105:Y116,">0")/100 -> 28.42222236 | Z100: =X100*(100-AVERAGEIF(Y105:Y116,">0"))/100 -> 45.3109108 | AA100: =100-(Y100+Z100+AB100) -> 24.34160627 | AB100: =IF((X102+AB102)>100,AB102*100/(X102+AB102),AB102) -> 1.925260566
A101: Regression period: | C101: =MinRegYear(C99,C105:C116) -> 2000 | D101: =IF(MAX(C105:C116)-MIN(C105:C116)<5,AVERAGEIF(C105:C116,">0",D105:D116), IF(FORECAST($C101,D$105:D$116,$C$105:$C$116)<0,0, IF(FORECAST($C101,D$105:D$116,$C$105:$C$116)>100,100, FORECAST($C101,D$105:D$116,$C$105:$C$116)))) -> 33.47049504 | H101: =IF(MAX(C105:C116)-MIN(C105:C116)<5,AVERAGEIF(C105:C116,">0",H105:H116), IF(FORECAST($C101,H$105:H$116,$C$105:$C$116)<0,0, IF(FORECAST($C101,H$105:H$116,$C$105:$C$116)>100,100, FORECAST($C101,H$105:H$116,$C$105:$C$116)))) -> 22.48002733 | I101: =IF(MAX(C105:C116)-MIN(C105:C116)<5,AVERAGEIF(C105:C116,">0",I105:I116), IF(FORECAST($C101,I$105:I$116,$C$105:$C$116)<0,0, IF(FORECAST($C101,I$105:I$116,$C$105:$C$116)>100,100, FORECAST($C101,I$105:I$116,$C$105:$C$116)))) -> 41.6653653 | M101: =IF(MAX(C105:C116)-MIN(C105:C116)<5,AVERAGEIF(C105:C116,">0",M105:M116), IF(FORECAST($C101,M$105:M$116,$C$105:$C$116)<0,0, IF(FORECAST($C101,M$105:M$116,$C$105:$C$116)>100,100, FORECAST($C101,M$105:M$116,$C$105:$C$116)))) -> 13.48667029 | N101: =IF(MAX(C105:C116)-MIN(C105:C116)<5,AVERAGEIF(C105:C116,">0",N105:N116), IF(FORECAST($C101,N$105:N$116,$C$105:$C$116)<0,0, IF(FORECAST($C101,N$105:N$116,$C$105:$C$116)>100,100, FORECAST($C101,N$105:N$116,$C$105:$C$116)))) -> 43.73732569 | R101: =IF(MAX(C105:C116)-MIN(C105:C116)<5,AVERAGEIF(C105:C116,">0",R105:R116), IF(FORECAST($C101,R$105:R$116,$C$105:$C$116)<0,0, IF(FORECAST($C101,R$105:R$116,$C$105:$C$116)>100,100, FORECAST($C101,R$105:R$116,$C$105:$C$116)))) -> 12.16513187 | S101: =IF(MAX(C105:C116)-MIN(C105:C116)<5,AVERAGEIF(C105:C116,">0",S105:S116), IF(FORECAST($C101,S$105:S$116,$C$105:$C$116)<0,0, IF(FORECAST($C101,S$105:S$116,$C$105:$C$116)>100,100, FORECAST($C101,S$105:S$116,$C$105:$C$116)))) -> 48.43494854 | W101: =IF(MAX(C105:C116)-MIN(C105:C116)<5,AVERAGEIF(C105:C116,">0",W105:W116), IF(FORECAST($C101,W$105:W$116,$C$105:$C$116)<0,0, IF(FORECAST($C101,W$105:W$116,$C$105:$C$116)>100,100, FORECAST($C101,W$105:W$116,$C$105:$C$116)))) -> 8.399831729 | X101: =IF(MAX(C105:C116)-MIN(C105:C116)<5,AVERAGEIF(C105:C116,">0",X105:X116), IF(FORECAST($C101,X$105:X$116,$C$105:$C$116)<0,0, IF(FORECAST($C101,X$105:X$116,$C$105:$C$116)>100,100, FORECAST($C101,X$105:X$116,$C$105:$C$116)))) -> 63.39470372 | AB101: =IF(MAX(C105:C116)-MIN(C105:C116)<5,AVERAGEIF(C105:C116,">0",AB105:AB116), IF(FORECAST($C101,AB$105:AB$116,$C$105:$C$116)<0,0, IF(FORECAST($C101,AB$105:AB$116,$C$105:$C$116)>100,100, FORECAST($C101,AB$105:AB$116,$C$105:$C$116)))) -> 1.08941811
C102: =MaxRegYear(C100,C105:C116) -> 2020 | D102: =IF(MAX(C105:C116)-MIN(C105:C116)<5,AVERAGEIF(C105:C116,">0",D105:D116), IF(FORECAST($C102,D$105:D$116,$C$105:$C$116)<0,0, IF(FORECAST($C102,D$105:D$116,$C$105:$C$116)>100,100, FORECAST($C102,D$105:D$116,$C$105:$C$116)))) -> 19.27873753 | H102: =IF(MAX(C105:C116)-MIN(C105:C116)<5,AVERAGEIF(C105:C116,">0",H105:H116), IF(FORECAST($C102,H$105:H$116,$C$105:$C$116)<0,0, IF(FORECAST($C102,H$105:H$116,$C$105:$C$116)>100,100, FORECAST($C102,H$105:H$116,$C$105:$C$116)))) -> 26.06336638 | I102: =IF(MAX(C105:C116)-MIN(C105:C116)<5,AVERAGEIF(C105:C116,">0",I105:I116), IF(FORECAST($C102,I$105:I$116,$C$105:$C$116)<0,0, IF(FORECAST($C102,I$105:I$116,$C$105:$C$116)>100,100, FORECAST($C102,I$105:I$116,$C$105:$C$116)))) -> 20.16889842 | M102: =IF(MAX(C105:C116)-MIN(C105:C116)<5,AVERAGEIF(C105:C116,">0",M105:M116), IF(FORECAST($C102,M$105:M$116,$C$105:$C$116)<0,0, IF(FORECAST($C102,M$105:M$116,$C$105:$C$116)>100,100, FORECAST($C102,M$105:M$116,$C$105:$C$116)))) -> 19.34026388 | N102: =IF(MAX(C105:C116)-MIN(C105:C116)<5,AVERAGEIF(C105:C116,">0",N105:N116), IF(FORECAST($C102,N$105:N$116,$C$105:$C$116)<0,0, IF(FORECAST($C102,N$105:N$116,$C$105:$C$116)>100,100, FORECAST($C102,N$105:N$116,$C$105:$C$116)))) -> 22.24995479 | R102: =IF(MAX(C105:C116)-MIN(C105:C116)<5,AVERAGEIF(C105:C116,">0",R105:R116), IF(FORECAST($C102,R$105:R$116,$C$105:$C$116)<0,0, IF(FORECAST($C102,R$105:R$116,$C$105:$C$116)>100,100, FORECAST($C102,R$105:R$116,$C$105:$C$116)))) -> 11.32552061 | S102: =IF(MAX(C105:C116)-MIN(C105:C116)<5,AVERAGEIF(C105:C116,">0",S105:S116), IF(FORECAST($C102,S$105:S$116,$C$105:$C$116)<0,0, IF(FORECAST($C102,S$105:S$116,$C$105:$C$116)>100,100, FORECAST($C102,S$105:S$116,$C$105:$C$116)))) -> 33.90189244 | W102: =IF(MAX(C105:C116)-MIN(C105:C116)<5,AVERAGEIF(C105:C116,">0",W105:W116), IF(FORECAST($C102,W$105:W$116,$C$105:$C$116)<0,0, IF(FORECAST($C102,W$105:W$116,$C$105:$C$116)>100,100, FORECAST($C102,W$105:W$116,$C$105:$C$116)))) -> 4.964977622 | X102: =IF(MAX(C105:C116)-MIN(C105:C116)<5,AVERAGEIF(C105:C116,">0",X105:X116), IF(FORECAST($C102,X$105:X$116,$C$105:$C$116)<0,0, IF(FORECAST($C102,X$105:X$116,$C$105:$C$116)>100,100, FORECAST($C102,X$105:X$116,$C$105:$C$116)))) -> 73.73313317 | AB102: =IF(MAX(C105:C116)-MIN(C105:C116)<5,AVERAGEIF(C105:C116,">0",AB105:AB116), IF(FORECAST($C102,AB$105:AB$116,$C$105:$C$116)<0,0, IF(FORECAST($C102,AB$105:AB$116,$C$105:$C$116)>100,100, FORECAST($C102,AB$105:AB$116,$C$105:$C$116)))) -> 1.925260566
B104: Survey | C104: Year | D104: Improved | E104: Not shared | H104: Open defecation | I104: Improved | J104: Not shared | M104: Open defecation | N104: Improved | O104: Not shared | R104: Open defecation | S104: Improved | T104: Not shared | W104: Open defecation | X104: Improved | Y104: Not shared | AB104: Open defecation
B105: MICS01 | C105: 2001 | D105: =IF(ISERROR(INDIRECT(CONCATENATE($B105,"!C122"))),"",INDIRECT(CONCATENATE($B105,"!C122"))) -> 31.07789505 | E105: =IF(ISERROR(INDIRECT(CONCATENATE($B105,"!C129"))),"",INDIRECT(CONCATENATE($B105,"!C129"))) -> N/A | H105: =IF(ISERROR(INDIRECT(CONCATENATE($B105,"!C127"))),"",INDIRECT(CONCATENATE($B105,"!C127"))) -> 21.84082258 | I105: =IF(ISERROR(INDIRECT(CONCATENATE($B105,"!D122"))),"",INDIRECT(CONCATENATE($B105,"!D122"))) -> 40.08250666 | J105: =IF(ISERROR(INDIRECT(CONCATENATE($B105,"!D129"))),"",INDIRECT(CONCATENATE($B105,"!D129"))) -> N/A | M105: =IF(ISERROR(INDIRECT(CONCATENATE($B105,"!D127"))),"",INDIRECT(CONCATENATE($B105,"!D127"))) -> 14.76631757 | N105: =IF(ISERROR(INDIRECT(CONCATENATE($B105,"!E122"))),"",INDIRECT(CONCATENATE($B105,"!E122"))) -> 43.34441745 | O105: =IF(ISERROR(INDIRECT(CONCATENATE($B105,"!E129"))),"",INDIRECT(CONCATENATE($B105,"!E129"))) -> N/A | R105: =IF(ISERROR(INDIRECT(CONCATENATE($B105,"!E127"))),"",INDIRECT(CONCATENATE($B105,"!E127"))) -> 11.8367345 | S105: =IF(ISERROR(INDIRECT(CONCATENATE($B105,"!F122"))),"",INDIRECT(CONCATENATE($B105,"!F122"))) -> 47.13278462 | T105: =IF(ISERROR(INDIRECT(CONCATENATE($B105,"!F129"))),"",INDIRECT(CONCATENATE($B105,"!F129"))) -> N/A | W105: =IF(ISERROR(INDIRECT(CONCATENATE($B105,"!F127"))),"",INDIRECT(CONCATENATE($B105,"!F127"))) -> 8.365421954 | X105: =IF(ISERROR(INDIRECT(CONCATENATE($B105,"!G122"))),"",INDIRECT(CONCATENATE($B105,"!G122"))) -> 66.12713765 | Y105: =IF(ISERROR(INDIRECT(CONCATENATE($B105,"!G129"))),"",INDIRECT(CONCATENATE($B105,"!G129"))) -> N/A | AB105: =IF(ISERROR(INDIRECT(CONCATENATE($B105,"!G2127"))),"",INDIRECT(CONCATENATE($B105,"!G127"))) -> 1.227184972
B106: DHS07 | C106: 2007 | D106: 26.61602385 | E106: 52.16809457 | H106: 21.7266505 | I106: 29.51593788 | J106: 51.94020069 | M106: 11.69382515 | N106: 30.82988453 | O106: 48.91170465 | R106: 9.91483728 | S106: 44.81933143 | T106: 48.63685137 | W106: 5.66630751 | X106: 68.93897836 | Y106: 36.27623617 | AB106: 0.8253561963
B107: MICS10 | C107: 2010 | D107: 28.93977078 | E107: 59.50458748 | H107: 29.11044867 | I107: 34.37009626 | J107: 62.26349113 | M107: 19.28999379 | N107: 35.71758644 | O107: 58.21048101 | R107: 14.01647126 | S107: 39.68385616 | T107: 39.51401509 | W107: 7.861856366 | X107: 63.45636107 | Y107: 41.84243788 | AB107: 2.213569625
B108: DHS14 | C108: 2014 | D108: 30.74898645 | E108: 47.8750413 | H108: 24.30969093 | I108: 34.59163568 | J108: 55.00544568 | M108: 18.20092805 | N108: 35.16593607 | O108: 62.92917151 | R108: 13.63256965 | S108: 39.63174072 | T108: 52.86712764 | W108: 7.264010044 | X108: 66.1347742 | Y108: 39.18863775 | AB108: 1.384823239
B109: MICS18 | C109: 2018 | D109: 14.49040529 | E109: 46.89138592 | H109: 24.37087161 | I109: 16.02548281 | J109: 51.89494661 | M109: 18.11627087 | N109: 19.91037671 | O109: 55.12014495 | R109: 9.326018501 | S109: 34.57438953 | T109: 36.4000067 | W109: 4.254427504 | X109: 78.16234093 | Y109: 36.88237819 | AB109: 1.885762656
B118: =CONCATENATE("National use of sanitation facilities, ",C99,"–",C100) -> National use of sanitation facilities, 2000–2020 | S118: Data points used for regression
A197: URBAN | D197: Poorest | I197: Poor | N197: Middle | S197: Rich | X197: Richest
D198: Improved | E198: Basic | F198: Limited | G198: Unimproved | H198: Open defecation | I198: Improved | J198: Basic | K198: Limited | L198: Unimproved | M198: Open defecation | N198: Improved | O198: Basic | P198: Limited | Q198: Unimproved | R198: Open defecation | S198: Improved | T198: Basic | U198: Limited | V198: Unimproved | W198: Open defecation | X198: Improved | Y198: Basic | Z198: Limited | AA198: Unimproved | AB198: Open defecation
A199: Forecast period: | C199: 2000 | D199: =IF((D201+H201)>100,D201*100/(D201+H201),D201) -> 48.6119608 | E199: =D199*AVERAGEIF(E205:E216,">0")/100 -> 27.00812985 | F199: =D199*(100-AVERAGEIF(E205:E216,">0"))/100 -> 21.60383095 | G199: =100-(E199+F199+H199) -> 43.19837857 | H199: =IF((D201+H201)>100,H201*100/(D201+H201),H201) -> 8.189660629 | I199: =IF((I201+M201)>100,I201*100/(I201+M201),I201) -> 50.96319657 | J199: =I199*AVERAGEIF(J205:J216,">0")/100 -> 18.62128957 | K199: =I199*(100-AVERAGEIF(J205:J216,">0"))/100 -> 32.341907 | L199: =100-(J199+K199+M199) -> 45.38996131 | M199: =IF((I201+M201)>100,M201*100/(I201+M201),M201) -> 3.64684212 | N199: =IF((N201+R201)>100,N201*100/(N201+R201),N201) -> 54.6644607 | O199: =N199*AVERAGEIF(O205:O216,">0")/100 -> 19.99806582 | P199: =N199*(100-AVERAGEIF(O205:O216,">0"))/100 -> 34.66639488 | Q199: =100-(O199+P199+R199) -> 42.63199669 | R199: =IF((N201+R201)>100,R201*100/(N201+R201),R201) -> 2.703542611 | S199: =IF((S201+W201)>100,S201*100/(S201+W201),S201) -> 59.89492517 | T199: =S199*AVERAGEIF(T205:T216,">0")/100 -> 20.87392068 | U199: =S199*(100-AVERAGEIF(T205:T216,">0"))/100 -> 39.02100449 | V199: =100-(T199+U199+W199) -> 39.37859251 | W199: =IF((S201+W201)>100,W201*100/(S201+W201),W201) -> 0.7264823193 | X199: =IF((X201+AB201)>100,X201*100/(X201+AB201),X201) -> 78.11848246 | Y199: =X199*AVERAGEIF(Y205:Y216,">0")/100 -> 32.09982732 | Z199: =X199*(100-AVERAGEIF(Y205:Y216,">0"))/100 -> 46.01865514 | AA199: =100-(Y199+Z199+AB199) -> 21.88151754 | AB199: =IF((X201+AB201)>100,AB201*100/(X201+AB201),AB201) -> 0
C200: 2020 | D200: =IF((D202+H202)>100,D202*100/(D202+H202),D202) -> 24.49439382 | E200: =D200*AVERAGEIF(E205:E216,">0")/100 -> 13.60874481 | F200: =D200*(100-AVERAGEIF(E205:E216,">0"))/100 -> 10.88564902 | G200: =100-(E200+F200+H200) -> 67.29576353 | H200: =IF((D202+H202)>100,H202*100/(D202+H202),H202) -> 8.209842648 | I200: =IF((I202+M202)>100,I202*100/(I202+M202),I202) -> 33.51867593 | J200: =I200*AVERAGEIF(J205:J216,">0")/100 -> 12.24728849 | K200: =I200*(100-AVERAGEIF(J205:J216,">0"))/100 -> 21.27138745 | L200: =100-(J200+K200+M200) -> 60.77711556 | M200: =IF((I202+M202)>100,M202*100/(I202+M202),M202) -> 5.704208502 | N200: =IF((N202+R202)>100,N202*100/(N202+R202),N202) -> 54.52424537 | O200: =N200*AVERAGEIF(O205:O216,">0")/100 -> 19.94677042 | P200: =N200*(100-AVERAGEIF(O205:O216,">0"))/100 -> 34.57747495 | Q200: =100-(O200+P200+R200) -> 43.83123732 | R200: =IF((N202+R202)>100,R202*100/(N202+R202),R202) -> 1.644517306 | S200: =IF((S202+W202)>100,S202*100/(S202+W202),S202) -> 67.42506825 | T200: =S200*AVERAGEIF(T205:T216,">0")/100 -> 23.49824334 | U200: =S200*(100-AVERAGEIF(T205:T216,">0"))/100 -> 43.92682491 | V200: =100-(T200+U200+W200) -> 30.42821215 | W200: =IF((S202+W202)>100,W202*100/(S202+W202),W202) -> 2.146719595 | X200: =IF((X202+AB202)>100,X202*100/(X202+AB202),X202) -> 86.70160295 | Y200: =X200*AVERAGEIF(Y205:Y216,">0")/100 -> 35.62673513 | Z200: =X200*(100-AVERAGEIF(Y205:Y216,">0"))/100 -> 51.07486782 | AA200: =100-(Y200+Z200+AB200) -> 11.71714789 | AB200: =IF((X202+AB202)>100,AB202*100/(X202+AB202),AB202) -> 1.581249158
A201: Regression period: | C201: =MinRegYear(C199,C205:C216) -> 2000 | D201: =IF(MAX(C205:C216)-MIN(C205:C216)<5,AVERAGEIF(C205:C216,">0",D205:D216), IF(FORECAST($C201,D$205:D$216,$C$205:$C$216)<0,0, IF(FORECAST($C201,D$205:D$216,$C$205:$C$216)>100,100, FORECAST($C201,D$205:D$216,$C$205:$C$216)))) -> 48.6119608 | H201: =IF(MAX(C205:C216)-MIN(C205:C216)<5,AVERAGEIF(C205:C216,">0",H205:H216), IF(FORECAST($C201,H$205:H$216,$C$205:$C$216)<0,0, IF(FORECAST($C201,H$205:H$216,$C$205:$C$216)>100,100, FORECAST($C201,H$205:H$216,$C$205:$C$216)))) -> 8.189660629 | I201: =IF(MAX(C205:C216)-MIN(C205:C216)<5,AVERAGEIF(C205:C216,">0",I205:I216), IF(FORECAST($C201,I$205:I$216,$C$205:$C$216)<0,0, IF(FORECAST($C201,I$205:I$216,$C$205:$C$216)>100,100, FORECAST($C201,I$205:I$216,$C$205:$C$216)))) -> 50.96319657 | M201: =IF(MAX(C205:C216)-MIN(C205:C216)<5,AVERAGEIF(C205:C216,">0",M205:M216), IF(FORECAST($C201,M$205:M$216,$C$205:$C$216)<0,0, IF(FORECAST($C201,M$205:M$216,$C$205:$C$216)>100,100, FORECAST($C201,M$205:M$216,$C$205:$C$216)))) -> 3.64684212 | N201: =IF(MAX(C205:C216)-MIN(C205:C216)<5,AVERAGEIF(C205:C216,">0",N205:N216), IF(FORECAST($C201,N$205:N$216,$C$205:$C$216)<0,0, IF(FORECAST($C201,N$205:N$216,$C$205:$C$216)>100,100, FORECAST($C201,N$205:N$216,$C$205:$C$216)))) -> 54.6644607 | R201: =IF(MAX(C205:C216)-MIN(C205:C216)<5,AVERAGEIF(C205:C216,">0",R205:R216), IF(FORECAST($C201,R$205:R$216,$C$205:$C$216)<0,0, IF(FORECAST($C201,R$205:R$216,$C$205:$C$216)>100,100, FORECAST($C201,R$205:R$216,$C$205:$C$216)))) -> 2.703542611 | S201: =IF(MAX(C205:C216)-MIN(C205:C216)<5,AVERAGEIF(C205:C216,">0",S205:S216), IF(FORECAST($C201,S$205:S$216,$C$205:$C$216)<0,0, IF(FORECAST($C201,S$205:S$216,$C$205:$C$216)>100,100, FORECAST($C201,S$205:S$216,$C$205:$C$216)))) -> 59.89492517 | W201: =IF(MAX(C205:C216)-MIN(C205:C216)<5,AVERAGEIF(C205:C216,">0",W205:W216), IF(FORECAST($C201,W$205:W$216,$C$205:$C$216)<0,0, IF(FORECAST($C201,W$205:W$216,$C$205:$C$216)>100,100, FORECAST($C201,W$205:W$216,$C$205:$C$216)))) -> 0.7264823193 | X201: =IF(MAX(C205:C216)-MIN(C205:C216)<5,AVERAGEIF(C205:C216,">0",X205:X216), IF(FORECAST($C201,X$205:X$216,$C$205:$C$216)<0,0, IF(FORECAST($C201,X$205:X$216,$C$205:$C$216)>100,100, FORECAST($C201,X$205:X$216,$C$205:$C$216)))) -> 78.11848246 | AB201: =IF(MAX(C205:C216)-MIN(C205:C216)<5,AVERAGEIF(C205:C216,">0",AB205:AB216), IF(FORECAST($C201,AB$205:AB$216,$C$205:$C$216)<0,0, IF(FORECAST($C201,AB$205:AB$216,$C$205:$C$216)>100,100, FORECAST($C201,AB$205:AB$216,$C$205:$C$216)))) -> 0
C202: =MaxRegYear(C200,C205:C216) -> 2020 | D202: =IF(MAX(C205:C216)-MIN(C205:C216)<5,AVERAGEIF(C205:C216,">0",D205:D216), IF(FORECAST($C202,D$205:D$216,$C$205:$C$216)<0,0, IF(FORECAST($C202,D$205:D$216,$C$205:$C$216)>100,100, FORECAST($C202,D$205:D$216,$C$205:$C$216)))) -> 24.49439382 | H202: =IF(MAX(C205:C216)-MIN(C205:C216)<5,AVERAGEIF(C205:C216,">0",H205:H216), IF(FORECAST($C202,H$205:H$216,$C$205:$C$216)<0,0, IF(FORECAST($C202,H$205:H$216,$C$205:$C$216)>100,100, FORECAST($C202,H$205:H$216,$C$205:$C$216)))) -> 8.209842648 | I202: =IF(MAX(C205:C216)-MIN(C205:C216)<5,AVERAGEIF(C205:C216,">0",I205:I216), IF(FORECAST($C202,I$205:I$216,$C$205:$C$216)<0,0, IF(FORECAST($C202,I$205:I$216,$C$205:$C$216)>100,100, FORECAST($C202,I$205:I$216,$C$205:$C$216)))) -> 33.51867593 | M202: =IF(MAX(C205:C216)-MIN(C205:C216)<5,AVERAGEIF(C205:C216,">0",M205:M216), IF(FORECAST($C202,M$205:M$216,$C$205:$C$216)<0,0, IF(FORECAST($C202,M$205:M$216,$C$205:$C$216)>100,100, FORECAST($C202,M$205:M$216,$C$205:$C$216)))) -> 5.704208502 | N202: =IF(MAX(C205:C216)-MIN(C205:C216)<5,AVERAGEIF(C205:C216,">0",N205:N216), IF(FORECAST($C202,N$205:N$216,$C$205:$C$216)<0,0, IF(FORECAST($C202,N$205:N$216,$C$205:$C$216)>100,100, FORECAST($C202,N$205:N$216,$C$205:$C$216)))) -> 54.52424537 | R202: =IF(MAX(C205:C216)-MIN(C205:C216)<5,AVERAGEIF(C205:C216,">0",R205:R216), IF(FORECAST($C202,R$205:R$216,$C$205:$C$216)<0,0, IF(FORECAST($C202,R$205:R$216,$C$205:$C$216)>100,100, FORECAST($C202,R$205:R$216,$C$205:$C$216)))) -> 1.644517306 | S202: =IF(MAX(C205:C216)-MIN(C205:C216)<5,AVERAGEIF(C205:C216,">0",S205:S216), IF(FORECAST($C202,S$205:S$216,$C$205:$C$216)<0,0, IF(FORECAST($C202,S$205:S$216,$C$205:$C$216)>100,100, FORECAST($C202,S$205:S$216,$C$205:$C$216)))) -> 67.42506825 | W202: =IF(MAX(C205:C216)-MIN(C205:C216)<5,AVERAGEIF(C205:C216,">0",W205:W216), IF(FORECAST($C202,W$205:W$216,$C$205:$C$216)<0,0, IF(FORECAST($C202,W$205:W$216,$C$205:$C$216)>100,100, FORECAST($C202,W$205:W$216,$C$205:$C$216)))) -> 2.146719595 | X202: =IF(MAX(C205:C216)-MIN(C205:C216)<5,AVERAGEIF(C205:C216,">0",X205:X216), IF(FORECAST($C202,X$205:X$216,$C$205:$C$216)<0,0, IF(FORECAST($C202,X$205:X$216,$C$205:$C$216)>100,100, FORECAST($C202,X$205:X$216,$C$205:$C$216)))) -> 86.70160295 | AB202: =IF(MAX(C205:C216)-MIN(C205:C216)<5,AVERAGEIF(C205:C216,">0",AB205:AB216), IF(FORECAST($C202,AB$205:AB$216,$C$205:$C$216)<0,0, IF(FORECAST($C202,AB$205:AB$216,$C$205:$C$216)>100,100, FORECAST($C202,AB$205:AB$216,$C$205:$C$216)))) -> 1.581249158
B204: Survey | C204: Year | D204: Improved | E204: Not shared | H204: Open defecation | I204: Improved | J204: Not shared | M204: Open defecation | N204: Improved | O204: Not shared | R204: Open defecation | S204: Improved | T204: Not shared | W204: Open defecation | X204: Improved | Y204: Not shared | AB204: Open defecation
B205: MICS01 | C205: 2001 | D205: =IF(ISERROR(INDIRECT(CONCATENATE($B205,"!H122"))),"",INDIRECT(CONCATENATE($B205,"!H122"))) -> 49.24912992 | E205: =IF(ISERROR(INDIRECT(CONCATENATE($B205,"!H129"))),"",INDIRECT(CONCATENATE($B205,"!H129"))) -> N/A | H205: =IF(ISERROR(INDIRECT(CONCATENATE($B205,"!H127"))),"",INDIRECT(CONCATENATE($B205,"!H127"))) -> 8.309052369 | I205: =IF(ISERROR(INDIRECT(CONCATENATE($B205,"!I122"))),"",INDIRECT(CONCATENATE($B205,"!I122"))) -> 47.22859479 | J205: =IF(ISERROR(INDIRECT(CONCATENATE($B205,"!I129"))),"",INDIRECT(CONCATENATE($B205,"!I129"))) -> N/A | M205: =IF(ISERROR(INDIRECT(CONCATENATE($B205,"!I127"))),"",INDIRECT(CONCATENATE($B205,"!I127"))) -> 4.306712896 | N205: =IF(ISERROR(INDIRECT(CONCATENATE($B205,"!J122"))),"",INDIRECT(CONCATENATE($B205,"!J122"))) -> 56.99555347 | O205: =IF(ISERROR(INDIRECT(CONCATENATE($B205,"!J129"))),"",INDIRECT(CONCATENATE($B205,"!J129"))) -> N/A | R205: =IF(ISERROR(INDIRECT(CONCATENATE($B205,"!J127"))),"",INDIRECT(CONCATENATE($B205,"!J127"))) -> 2.217726268 | S205: =IF(ISERROR(INDIRECT(CONCATENATE($B205,"!K122"))),"",INDIRECT(CONCATENATE($B205,"!K122"))) -> 63.96897803 | T205: =IF(ISERROR(INDIRECT(CONCATENATE($B205,"!K129"))),"",INDIRECT(CONCATENATE($B205,"!K129"))) -> N/A | W205: =IF(ISERROR(INDIRECT(CONCATENATE($B205,"!K127"))),"",INDIRECT(CONCATENATE($B205,"!K127"))) -> 0.8250510835 | X205: =IF(ISERROR(INDIRECT(CONCATENATE($B205,"!L122"))),"",INDIRECT(CONCATENATE($B205,"!L122"))) -> 80.4782878 | Y205: =IF(ISERROR(INDIRECT(CONCATENATE($B205,"!L129"))),"",INDIRECT(CONCATENATE($B205,"!L129"))) -> N/A | AB205: =IF(ISERROR(INDIRECT(CONCATENATE($B205,"!L2127"))),"",INDIRECT(CONCATENATE($B205,"!L127"))) -> 0.2617473182
B206: DHS07 | C206: 2007 | D206: 31.56648351 | E206: 53.65667989 | H206: 8.364988723 | I206: 44.27737186 | J206: 52.72876869 | M206: 4.430801792 | N206: 49.94530286 | O206: 42.34823029 | R206: 2.522905481 | S206: 61.59020481 | T206: 33.91807602 | W206: 1.114952988 | X206: 81.72724032 | Y206: 35.77148078 | AB206: 0.279041891
B207: MICS10 | C207: 2010 | D207: 41.28863633 | E207: 53.98775135 | H207: 6.35310247 | I207: 45.61173869 | J207: 18.22364951 | M207: 3.837636363 | N207: 56.04439917 | O207: 39.09733045 | R207: 2.386207433 | S207: 59.1747864 | T207: 39.09524751 | W207: 1.882316371 | X207: 78.03428403 | Y207: 39.93540083 | AB207: 1.017127794
B208: DHS14 | C208: 2014 | D208: 38.08769846 | E208: 65.34640343 | H208: 10.9312331 | I208: 45.77119104 | J208: 43.52217719 | M208: 4.219842084 | N208: 54.57200449 | O208: 34.39850326 | R208: 2.854986782 | S208: 61.00762042 | T208: 32.76554214 | W208: 1.010784797 | X208: 83.01009391 | Y208: 46.38503614 | AB208: 0.3477197745
B209: MICS18 | C209: 2018 | D209: 22.57393834 | E209: 49.24360644 | H209: 7.040381531 | I209: 28.31578489 | J209: 31.68020511 | M209: 6.582633418 | N209: 55.41450519 | O209: 30.48915185 | R209: 0.8883238283 | S209: 72.5583939 | T209: 33.62473569 | W209: 2.349899547 | X209: 88.80030746 | Y209: 42.2729102 | AB209: 1.947723077
B218: =CONCATENATE("Urban use of sanitation facilities, ",C199,"–",C200) -> Urban use of sanitation facilities, 2000–2020 | S218: Data points used for regression
A297: RURAL | D297: Poorest | I297: Poor | N297: Middle | S297: Rich | X297: Richest
D298: Improved | E298: Basic | F298: Limited | G298: Unimproved | H298: Open defecation | I298: Improved | J298: Basic | K298: Limited | L298: Unimproved | M298: Open defecation | N298: Improved | O298: Basic | P298: Limited | Q298: Unimproved | R298: Open defecation | S298: Improved | T298: Basic | U298: Limited | V298: Unimproved | W298: Open defecation | X298: Improved | Y298: Basic | Z298: Limited | AA298: Unimproved | AB298: Open defecation
A299: Forecast period: | C299: 2000 | D299: =IF((D301+H301)>100,D301*100/(D301+H301),D301) -> 30.04645614 | E299: =D299*AVERAGEIF(E305:E316,">0")/100 -> 15.20250503 | F299: =D299*(100-AVERAGEIF(E305:E316,">0"))/100 -> 14.84395111 | G299: =100-(E299+F299+H299) -> 46.66656286 | H299: =IF((D301+H301)>100,H301*100/(D301+H301),H301) -> 23.28698099 | I299: =IF((I301+M301)>100,I301*100/(I301+M301),I301) -> 38.68019931 | J299: =I299*AVERAGEIF(J305:J316,">0")/100 -> 21.62682335 | K299: =I299*(100-AVERAGEIF(J305:J316,">0"))/100 -> 17.05337595 | L299: =100-(J299+K299+M299) -> 43.49598051 | M299: =IF((I301+M301)>100,M301*100/(I301+M301),M301) -> 17.82382018 | N299: =IF((N301+R301)>100,N301*100/(N301+R301),N301) -> 42.89640638 | O299: =N299*AVERAGEIF(O305:O316,">0")/100 -> 23.22040007 | P299: =N299*(100-AVERAGEIF(O305:O316,">0"))/100 -> 19.67600631 | Q299: =100-(O299+P299+R299) -> 45.41139876 | R299: =IF((N301+R301)>100,R301*100/(N301+R301),R301) -> 11.69219486 | S299: =IF((S301+W301)>100,S301*100/(S301+W301),S301) -> 43.59871128 | T299: =S299*AVERAGEIF(T305:T316,">0")/100 -> 23.16756193 | U299: =S299*(100-AVERAGEIF(T305:T316,">0"))/100 -> 20.43114935 | V299: =100-(T299+U299+W299) -> 44.27133205 | W299: =IF((S301+W301)>100,W301*100/(S301+W301),W301) -> 12.12995666 | X299: =IF((X301+AB301)>100,X301*100/(X301+AB301),X301) -> 50.10989546 | Y299: =X299*AVERAGEIF(Y305:Y316,">0")/100 -> 30.44306567 | Z299: =X299*(100-AVERAGEIF(Y305:Y316,">0"))/100 -> 19.66682979 | AA299: =100-(Y299+Z299+AB299) -> 38.45714356 | AB299: =IF((X301+AB301)>100,AB301*100/(X301+AB301),AB301) -> 11.43296098
C300: 2020 | D300: =IF((D302+H302)>100,D302*100/(D302+H302),D302) -> 18.98241286 | E300: =D300*AVERAGEIF(E305:E316,">0")/100 -> 9.604468018 | F300: =D300*(100-AVERAGEIF(E305:E316,">0"))/100 -> 9.377944843 | G300: =100-(E300+F300+H300) -> 50.87770281 | H300: =IF((D302+H302)>100,H302*100/(D302+H302),H302) -> 30.13988433 | I300: =IF((I302+M302)>100,I302*100/(I302+M302),I302) -> 17.91050366 | J300: =I300*AVERAGEIF(J305:J316,">0")/100 -> 10.0140978 | K300: =I300*(100-AVERAGEIF(J305:J316,">0"))/100 -> 7.896405857 | L300: =100-(J300+K300+M300) -> 58.42683333 | M300: =IF((I302+M302)>100,M302*100/(I302+M302),M302) -> 23.66266301 | N300: =IF((N302+R302)>100,N302*100/(N302+R302),N302) -> 21.95340022 | O300: =N300*AVERAGEIF(O305:O316,">0")/100 -> 11.88366996 | P300: =N300*(100-AVERAGEIF(O305:O316,">0"))/100 -> 10.06973026 | Q300: =100-(O300+P300+R300) -> 59.80807935 | R300: =IF((N302+R302)>100,R302*100/(N302+R302),R302) -> 18.23852043 | S300: =IF((S302+W302)>100,S302*100/(S302+W302),S302) -> 20.0592699 | T300: =S300*AVERAGEIF(T305:T316,">0")/100 -> 10.65913106 | U300: =S300*(100-AVERAGEIF(T305:T316,">0"))/100 -> 9.40013884 | V300: =100-(T300+U300+W300) -> 65.85386073 | W300: =IF((S302+W302)>100,W302*100/(S302+W302),W302) -> 14.08686937 | X300: =IF((X302+AB302)>100,X302*100/(X302+AB302),X302) -> 20.06363294 | Y300: =X300*AVERAGEIF(Y305:Y316,">0")/100 -> 12.1891792 | Z300: =X300*(100-AVERAGEIF(Y305:Y316,">0"))/100 -> 7.874453745 | AA300: =100-(Y300+Z300+AB300) -> 72.0995771 | AB300: =IF((X302+AB302)>100,AB302*100/(X302+AB302),AB302) -> 7.836789962
A301: Regression period: | C301: =MinRegYear(C299,C305:C316) -> 2000 | D301: =IF(MAX(C305:C316)-MIN(C305:C316)<5,AVERAGEIF(C305:C316,">0",D305:D316), IF(FORECAST($C301,D$305:D$316,$C$305:$C$316)<0,0, IF(FORECAST($C301,D$305:D$316,$C$305:$C$316)>100,100, FORECAST($C301,D$305:D$316,$C$305:$C$316)))) -> 30.04645614 | H301: =IF(MAX(C305:C316)-MIN(C305:C316)<5,AVERAGEIF(C305:C316,">0",H305:H316), IF(FORECAST($C301,H$305:H$316,$C$305:$C$316)<0,0, IF(FORECAST($C301,H$305:H$316,$C$305:$C$316)>100,100, FORECAST($C301,H$305:H$316,$C$305:$C$316)))) -> 23.28698099 | I301: =IF(MAX(C305:C316)-MIN(C305:C316)<5,AVERAGEIF(C305:C316,">0",I305:I316), IF(FORECAST($C301,I$305:I$316,$C$305:$C$316)<0,0, IF(FORECAST($C301,I$305:I$316,$C$305:$C$316)>100,100, FORECAST($C301,I$305:I$316,$C$305:$C$316)))) -> 38.68019931 | M301: =IF(MAX(C305:C316)-MIN(C305:C316)<5,AVERAGEIF(C305:C316,">0",M305:M316), IF(FORECAST($C301,M$305:M$316,$C$305:$C$316)<0,0, IF(FORECAST($C301,M$305:M$316,$C$305:$C$316)>100,100, FORECAST($C301,M$305:M$316,$C$305:$C$316)))) -> 17.82382018 | N301: =IF(MAX(C305:C316)-MIN(C305:C316)<5,AVERAGEIF(C305:C316,">0",N305:N316), IF(FORECAST($C301,N$305:N$316,$C$305:$C$316)<0,0, IF(FORECAST($C301,N$305:N$316,$C$305:$C$316)>100,100, FORECAST($C301,N$305:N$316,$C$305:$C$316)))) -> 42.89640638 | R301: =IF(MAX(C305:C316)-MIN(C305:C316)<5,AVERAGEIF(C305:C316,">0",R305:R316), IF(FORECAST($C301,R$305:R$316,$C$305:$C$316)<0,0, IF(FORECAST($C301,R$305:R$316,$C$305:$C$316)>100,100, FORECAST($C301,R$305:R$316,$C$305:$C$316)))) -> 11.69219486 | S301: =IF(MAX(C305:C316)-MIN(C305:C316)<5,AVERAGEIF(C305:C316,">0",S305:S316), IF(FORECAST($C301,S$305:S$316,$C$305:$C$316)<0,0, IF(FORECAST($C301,S$305:S$316,$C$305:$C$316)>100,100, FORECAST($C301,S$305:S$316,$C$305:$C$316)))) -> 43.59871128 | W301: =IF(MAX(C305:C316)-MIN(C305:C316)<5,AVERAGEIF(C305:C316,">0",W305:W316), IF(FORECAST($C301,W$305:W$316,$C$305:$C$316)<0,0, IF(FORECAST($C301,W$305:W$316,$C$305:$C$316)>100,100, FORECAST($C301,W$305:W$316,$C$305:$C$316)))) -> 12.12995666 | X301: =IF(MAX(C305:C316)-MIN(C305:C316)<5,AVERAGEIF(C305:C316,">0",X305:X316), IF(FORECAST($C301,X$305:X$316,$C$305:$C$316)<0,0, IF(FORECAST($C301,X$305:X$316,$C$305:$C$316)>100,100, FORECAST($C301,X$305:X$316,$C$305:$C$316)))) -> 50.10989546 | AB301: =IF(MAX(C305:C316)-MIN(C305:C316)<5,AVERAGEIF(C305:C316,">0",AB305:AB316), IF(FORECAST($C301,AB$305:AB$316,$C$305:$C$316)<0,0, IF(FORECAST($C301,AB$305:AB$316,$C$305:$C$316)>100,100, FORECAST($C301,AB$305:AB$316,$C$305:$C$316)))) -> 11.43296098
C302: =MaxRegYear(C300,C305:C316) -> 2020 | D302: =IF(MAX(C305:C316)-MIN(C305:C316)<5,AVERAGEIF(C305:C316,">0",D305:D316), IF(FORECAST($C302,D$305:D$316,$C$305:$C$316)<0,0, IF(FORECAST($C302,D$305:D$316,$C$305:$C$316)>100,100, FORECAST($C302,D$305:D$316,$C$305:$C$316)))) -> 18.98241286 | H302: =IF(MAX(C305:C316)-MIN(C305:C316)<5,AVERAGEIF(C305:C316,">0",H305:H316), IF(FORECAST($C302,H$305:H$316,$C$305:$C$316)<0,0, IF(FORECAST($C302,H$305:H$316,$C$305:$C$316)>100,100, FORECAST($C302,H$305:H$316,$C$305:$C$316)))) -> 30.13988433 | I302: =IF(MAX(C305:C316)-MIN(C305:C316)<5,AVERAGEIF(C305:C316,">0",I305:I316), IF(FORECAST($C302,I$305:I$316,$C$305:$C$316)<0,0, IF(FORECAST($C302,I$305:I$316,$C$305:$C$316)>100,100, FORECAST($C302,I$305:I$316,$C$305:$C$316)))) -> 17.91050366 | M302: =IF(MAX(C305:C316)-MIN(C305:C316)<5,AVERAGEIF(C305:C316,">0",M305:M316), IF(FORECAST($C302,M$305:M$316,$C$305:$C$316)<0,0, IF(FORECAST($C302,M$305:M$316,$C$305:$C$316)>100,100, FORECAST($C302,M$305:M$316,$C$305:$C$316)))) -> 23.66266301 | N302: =IF(MAX(C305:C316)-MIN(C305:C316)<5,AVERAGEIF(C305:C316,">0",N305:N316), IF(FORECAST($C302,N$305:N$316,$C$305:$C$316)<0,0, IF(FORECAST($C302,N$305:N$316,$C$305:$C$316)>100,100, FORECAST($C302,N$305:N$316,$C$305:$C$316)))) -> 21.95340022 | R302: =IF(MAX(C305:C316)-MIN(C305:C316)<5,AVERAGEIF(C305:C316,">0",R305:R316), IF(FORECAST($C302,R$305:R$316,$C$305:$C$316)<0,0, IF(FORECAST($C302,R$305:R$316,$C$305:$C$316)>100,100, FORECAST($C302,R$305:R$316,$C$305:$C$316)))) -> 18.23852043 | S302: =IF(MAX(C305:C316)-MIN(C305:C316)<5,AVERAGEIF(C305:C316,">0",S305:S316), IF(FORECAST($C302,S$305:S$316,$C$305:$C$316)<0,0, IF(FORECAST($C302,S$305:S$316,$C$305:$C$316)>100,100, FORECAST($C302,S$305:S$316,$C$305:$C$316)))) -> 20.0592699 | W302: =IF(MAX(C305:C316)-MIN(C305:C316)<5,AVERAGEIF(C305:C316,">0",W305:W316), IF(FORECAST($C302,W$305:W$316,$C$305:$C$316)<0,0, IF(FORECAST($C302,W$305:W$316,$C$305:$C$316)>100,100, FORECAST($C302,W$305:W$316,$C$305:$C$316)))) -> 14.08686937 | X302: =IF(MAX(C305:C316)-MIN(C305:C316)<5,AVERAGEIF(C305:C316,">0",X305:X316), IF(FORECAST($C302,X$305:X$316,$C$305:$C$316)<0,0, IF(FORECAST($C302,X$305:X$316,$C$305:$C$316)>100,100, FORECAST($C302,X$305:X$316,$C$305:$C$316)))) -> 20.06363294 | AB302: =IF(MAX(C305:C316)-MIN(C305:C316)<5,AVERAGEIF(C305:C316,">0",AB305:AB316), IF(FORECAST($C302,AB$305:AB$316,$C$305:$C$316)<0,0, IF(FORECAST($C302,AB$305:AB$316,$C$305:$C$316)>100,100, FORECAST($C302,AB$305:AB$316,$C$305:$C$316)))) -> 7.836789962
B304: Survey | C304: Year | D304: Improved | E304: Not shared | H304: Open defecation | I304: Improved | J304: Not shared | M304: Open defecation | N304: Improved | O304: Not shared | R304: Open defecation | S304: Improved | T304: Not shared | W304: Open defecation | X304: Improved | Y304: Not shared | AB304: Open defecation
B305: MICS01 | C305: 2001 | D305: =IF(ISERROR(INDIRECT(CONCATENATE($B305,"!M122"))),"",INDIRECT(CONCATENATE($B305,"!M122"))) -> 29.29401048 | E305: =IF(ISERROR(INDIRECT(CONCATENATE($B305,"!M129"))),"",INDIRECT(CONCATENATE($B305,"!M129"))) -> N/A | H305: =IF(ISERROR(INDIRECT(CONCATENATE($B305,"!M127"))),"",INDIRECT(CONCATENATE($B305,"!M127"))) -> 22.74748701 | I305: =IF(ISERROR(INDIRECT(CONCATENATE($B305,"!N122"))),"",INDIRECT(CONCATENATE($B305,"!N122"))) -> 36.28200252 | J305: =IF(ISERROR(INDIRECT(CONCATENATE($B305,"!N129"))),"",INDIRECT(CONCATENATE($B305,"!N129"))) -> N/A | M305: =IF(ISERROR(INDIRECT(CONCATENATE($B305,"!N127"))),"",INDIRECT(CONCATENATE($B305,"!N127"))) -> 17.80278288 | N305: =IF(ISERROR(INDIRECT(CONCATENATE($B305,"!O122"))),"",INDIRECT(CONCATENATE($B305,"!O122"))) -> 41.14672386 | O305: =IF(ISERROR(INDIRECT(CONCATENATE($B305,"!O129"))),"",INDIRECT(CONCATENATE($B305,"!O129"))) -> N/A | R305: =IF(ISERROR(INDIRECT(CONCATENATE($B305,"!O127"))),"",INDIRECT(CONCATENATE($B305,"!O127"))) -> 13.33039716 | S305: =IF(ISERROR(INDIRECT(CONCATENATE($B305,"!P122"))),"",INDIRECT(CONCATENATE($B305,"!P122"))) -> 42.25901918 | T305: =IF(ISERROR(INDIRECT(CONCATENATE($B305,"!P129"))),"",INDIRECT(CONCATENATE($B305,"!P129"))) -> N/A | W305: =IF(ISERROR(INDIRECT(CONCATENATE($B305,"!P127"))),"",INDIRECT(CONCATENATE($B305,"!P127"))) -> 12.4415684 | X305: =IF(ISERROR(INDIRECT(CONCATENATE($B305,"!Q122"))),"",INDIRECT(CONCATENATE($B305,"!Q122"))) -> 47.9088754 | Y305: =IF(ISERROR(INDIRECT(CONCATENATE($B305,"!Q129"))),"",INDIRECT(CONCATENATE($B305,"!Q129"))) -> N/A | AB305: =IF(ISERROR(INDIRECT(CONCATENATE($B305,"!Q2127"))),"",INDIRECT(CONCATENATE($B305,"!Q127"))) -> 10.2508782
B306: DHS07 | C306: 2007 | D306: 22.37700591 | E306: 44.37075906 | H306: 23.30384087 | I306: 27.94547112 | J306: 55.80911159 | M306: 18.78543829 | N306: 29.79428139 | O306: 51.4023639 | R306: 11.16416793 | S306: 31.99834094 | T306: 45.70438679 | W306: 10.41020771 | X306: 37.38499067 | Y306: 54.32785643 | AB306: 11.09982655
B307: MICS10 | C307: 2010 | D307: 26.58021437 | E307: 63.53686871 | H307: 32.79275528 | I307: 31.95029371 | J307: 67.01087916 | M307: 22.94926648 | N307: 37.25981227 | O307: 58.04195671 | R307: 16.30090384 | S307: 33.76212476 | T307: 51.94702827 | W307: 15.4053907 | X307: 37.12998651 | Y307: 67.60345062 | AB307: 9.834608535
B308: DHS14 | C308: 2014 | D308: 29.45869746 | E308: 45.8088194 | H308: 26.22401431 | I308: 32.13997435 | J308: 50.09628326 | M308: 21.80455946 | N308: 37.42544626 | O308: 57.8921389 | R308: 15.78517722 | S308: 33.19070026 | T308: 60.58866213 | W308: 14.61017235 | X308: 34.03453206 | Y308: 62.33062188 | AB308: 10.23064568
B309: MICS18 | C309: 2018 | D309: 14.86224429 | E309: 48.67021648 | H309: 28.49906585 | I309: 13.15901571 | J309: 50.73121221 | M309: 22.37416087 | N309: 16.4982527 | O309: 49.18890504 | R309: 18.24614208 | S309: 17.93476783 | T309: 54.31264511 | W309: 12.67472591 | X309: 18.97543637 | Y309: 58.74848165 | AB309: 6.758418387
B318: =CONCATENATE("Rural use of sanitation facilities, ",C299,"–",C300) -> Rural use of sanitation facilities, 2000–2020 | S318: Data points used for regression

Sheet Hygiene
B4: Access to hygiene facilities by wealth quintile (%)
B5: =IF(ISERROR(INDIRECT(CONCATENATE($E$32,"!A2"))),"",INDIRECT(CONCATENATE($E$32,"!A2"))) -> 
B7: =CONCATENATE("National ",IF(ISERROR(INDIRECT(CONCATENATE($E$32,"!A2"))),"",INDIRECT(CONCATENATE($E$32,"!A210")))) -> National | K7: =CONCATENATE("Urban ",IF(ISERROR(INDIRECT(CONCATENATE($E$32,"!A2"))),"",INDIRECT(CONCATENATE($E$32,"!A210")))) -> Urban | S7: =CONCATENATE("Rural ",IF(ISERROR(INDIRECT(CONCATENATE($E$32,"!A2"))),"",INDIRECT(CONCATENATE($E$32,"!A210")))) -> Rural
E32: =INDEX(B88:B100,A88) -> 0 | G32: =IF(ISERROR(INDIRECT(CONCATENATE($E$32,"!A2"))),"",INDIRECT(CONCATENATE($E$32,"!A2"))) ->  | K32: Poorest | N32: Poor | Q32: Middle | T32: Rich | W32: Richest
K33: Basic | L33: Limited | M33: No facility | N33: Basic | O33: Limited | P33: No facility | Q33: Basic | R33: Limited | S33: No facility | T33: Basic | U33: Limited | V33: No facility | W33: Basic | X33: Limited | Y33: No facility
B34: >>> Select Survey : | G34: NATIONAL | J34: =IF(ISERROR(INDIRECT(CONCATENATE(#REF!,"!A2"))),"",INDIRECT(CONCATENATE(#REF!,"!A210"))) ->  | K34: =IF(ISERROR(INDIRECT(CONCATENATE($E$32,"!C222"))),"",INDIRECT(CONCATENATE($E$32,"!C222"))) ->  | L34: =IF(ISERROR(INDIRECT(CONCATENATE($E$32,"!C223"))),"",INDIRECT(CONCATENATE($E$32,"!C223"))) ->  | M34: =IF(ISERROR(INDIRECT(CONCATENATE($E$32,"!C224"))),"",INDIRECT(CONCATENATE($E$32,"!C224"))) ->  | N34: =IF(ISERROR(INDIRECT(CONCATENATE($E$32,"!D222"))),"",INDIRECT(CONCATENATE($E$32,"!D222"))) ->  | O34: =IF(ISERROR(INDIRECT(CONCATENATE($E$32,"!D223"))),"",INDIRECT(CONCATENATE($E$32,"!D223"))) ->  | P34: =IF(ISERROR(INDIRECT(CONCATENATE($E$32,"!D224"))),"",INDIRECT(CONCATENATE($E$32,"!D224"))) ->  | Q34: =IF(ISERROR(INDIRECT(CONCATENATE($E$32,"!E222"))),"",INDIRECT(CONCATENATE($E$32,"!E222"))) ->  | R34: =IF(ISERROR(INDIRECT(CONCATENATE($E$32,"!E223"))),"",INDIRECT(CONCATENATE($E$32,"!E223"))) ->  | S34: =IF(ISERROR(INDIRECT(CONCATENATE($E$32,"!E224"))),"",INDIRECT(CONCATENATE($E$32,"!E224"))) ->  | T34: =IF(ISERROR(INDIRECT(CONCATENATE($E$32,"!F222"))),"",INDIRECT(CONCATENATE($E$32,"!F222"))) ->  | U34: =IF(ISERROR(INDIRECT(CONCATENATE($E$32,"!F223"))),"",INDIRECT(CONCATENATE($E$32,"!F223"))) ->  | V34: =IF(ISERROR(INDIRECT(CONCATENATE($E$32,"!F224"))),"",INDIRECT(CONCATENATE($E$32,"!F224"))) ->  | W34: =IF(ISERROR(INDIRECT(CONCATENATE($E$32,"!G222"))),"",INDIRECT(CONCATENATE($E$32,"!G222"))) ->  | X34: =IF(ISERROR(INDIRECT(CONCATENATE($E$32,"!G223"))),"",INDIRECT(CONCATENATE($E$32,"!G223"))) ->  | Y34: =IF(ISERROR(INDIRECT(CONCATENATE($E$32,"!G224"))),"",INDIRECT(CONCATENATE($E$32,"!G224"))) -> 
G37: URBAN | J37: =IF(ISERROR(INDIRECT(CONCATENATE(#REF!,"!A2"))),"",INDIRECT(CONCATENATE(#REF!,"!A210"))) ->  | K37: =IF(ISERROR(INDIRECT(CONCATENATE($E$32,"!H222"))),"",INDIRECT(CONCATENATE($E$32,"!H222"))) ->  | L37: =IF(ISERROR(INDIRECT(CONCATENATE($E$32,"!H223"))),"",INDIRECT(CONCATENATE($E$32,"!H223"))) ->  | M37: =IF(ISERROR(INDIRECT(CONCATENATE($E$32,"!H224"))),"",INDIRECT(CONCATENATE($E$32,"!H224"))) ->  | N37: =IF(ISERROR(INDIRECT(CONCATENATE($E$32,"!I222"))),"",INDIRECT(CONCATENATE($E$32,"!I222"))) ->  | O37: =IF(ISERROR(INDIRECT(CONCATENATE($E$32,"!I223"))),"",INDIRECT(CONCATENATE($E$32,"!I223"))) ->  | P37: =IF(ISERROR(INDIRECT(CONCATENATE($E$32,"!I224"))),"",INDIRECT(CONCATENATE($E$32,"!I224"))) ->  | Q37: =IF(ISERROR(INDIRECT(CONCATENATE($E$32,"!J222"))),"",INDIRECT(CONCATENATE($E$32,"!J222"))) ->  | R37: =IF(ISERROR(INDIRECT(CONCATENATE($E$32,"!J223"))),"",INDIRECT(CONCATENATE($E$32,"!J223"))) ->  | S37: =IF(ISERROR(INDIRECT(CONCATENATE($E$32,"!J224"))),"",INDIRECT(CONCATENATE($E$32,"!J224"))) ->  | T37: =IF(ISERROR(INDIRECT(CONCATENATE($E$32,"!K222"))),"",INDIRECT(CONCATENATE($E$32,"!K222"))) ->  | U37: =IF(ISERROR(INDIRECT(CONCATENATE($E$32,"!K223"))),"",INDIRECT(CONCATENATE($E$32,"!K223"))) ->  | V37: =IF(ISERROR(INDIRECT(CONCATENATE($E$32,"!K224"))),"",INDIRECT(CONCATENATE($E$32,"!K224"))) ->  | W37: =IF(ISERROR(INDIRECT(CONCATENATE($E$32,"!L222"))),"",INDIRECT(CONCATENATE($E$32,"!L222"))) ->  | X37: =IF(ISERROR(INDIRECT(CONCATENATE($E$32,"!L223"))),"",INDIRECT(CONCATENATE($E$32,"!L223"))) ->  | Y37: =IF(ISERROR(INDIRECT(CONCATENATE($E$32,"!L224"))),"",INDIRECT(CONCATENATE($E$32,"!L224"))) -> 
G40: RURAL | J40: =IF(ISERROR(INDIRECT(CONCATENATE(#REF!,"!A2"))),"",INDIRECT(CONCATENATE(#REF!,"!A210"))) ->  | K40: =IF(ISERROR(INDIRECT(CONCATENATE($E$32,"!M222"))),"",INDIRECT(CONCATENATE($E$32,"!M222"))) ->  | L40: =IF(ISERROR(INDIRECT(CONCATENATE($E$32,"!M223"))),"",INDIRECT(CONCATENATE($E$32,"!M223"))) ->  | M40: =IF(ISERROR(INDIRECT(CONCATENATE($E$32,"!M224"))),"",INDIRECT(CONCATENATE($E$32,"!M224"))) ->  | N40: =IF(ISERROR(INDIRECT(CONCATENATE($E$32,"!N222"))),"",INDIRECT(CONCATENATE($E$32,"!N222"))) ->  | O40: =IF(ISERROR(INDIRECT(CONCATENATE($E$32,"!N223"))),"",INDIRECT(CONCATENATE($E$32,"!N223"))) ->  | P40: =IF(ISERROR(INDIRECT(CONCATENATE($E$32,"!N224"))),"",INDIRECT(CONCATENATE($E$32,"!N224"))) ->  | Q40: =IF(ISERROR(INDIRECT(CONCATENATE($E$32,"!O222"))),"",INDIRECT(CONCATENATE($E$32,"!O222"))) ->  | R40: =IF(ISERROR(INDIRECT(CONCATENATE($E$32,"!O223"))),"",INDIRECT(CONCATENATE($E$32,"!O223"))) ->  | S40: =IF(ISERROR(INDIRECT(CONCATENATE($E$32,"!O224"))),"",INDIRECT(CONCATENATE($E$32,"!O224"))) ->  | T40: =IF(ISERROR(INDIRECT(CONCATENATE($E$32,"!P222"))),"",INDIRECT(CONCATENATE($E$32,"!P222"))) ->  | U40: =IF(ISERROR(INDIRECT(CONCATENATE($E$32,"!P223"))),"",INDIRECT(CONCATENATE($E$32,"!P223"))) ->  | V40: =IF(ISERROR(INDIRECT(CONCATENATE($E$32,"!P224"))),"",INDIRECT(CONCATENATE($E$32,"!P224"))) ->  | W40: =IF(ISERROR(INDIRECT(CONCATENATE($E$32,"!Q222"))),"",INDIRECT(CONCATENATE($E$32,"!Q222"))) ->  | X40: =IF(ISERROR(INDIRECT(CONCATENATE($E$32,"!Q223"))),"",INDIRECT(CONCATENATE($E$32,"!Q223"))) ->  | Y40: =IF(ISERROR(INDIRECT(CONCATENATE($E$32,"!Q224"))),"",INDIRECT(CONCATENATE($E$32,"!Q224"))) -> 
A88: 2 | B88: Template

Sheet MICS01
A2: =A1026 -> Democratic Republic of the Congo
A3: =A1034 -> 2001
A4: Use of drinking water sources
A5: by wealth quintile and sub-national region
A6: Notes:
A7: WHO/UNICEF JMP customised wealth index excludes water,
A8: sanitation and hygiene assets.
A9: Survey used for analysis: | B9: =A1025 -> MICS01
A10: =B1028 -> 
A11: =B1027 -> 
A14: Use of drinking water sources | C14: NATIONAL wealth index quintile | H14: URBAN wealth index quintile | M14: RURAL wealth index quintile | R14: SUB-REGIONS: | BA14: Raw numbers of respondents: | BB14: Use of drinking water sources | BC14: NATIONAL wealth index quintile | BH14: URBAN wealth index quintile | BM14: RURAL wealth index quintile | BR14: SUB-REGIONS:
A15: Weighted percentage (used in graphs) | C15: Poorest | D15: Poor | E15: Middle | F15: Rich | G15: Richest | H15: Poorest | I15: Poor | J15: Middle | K15: Rich | L15: Richest | M15: Poorest | N15: Poor | O15: Middle | P15: Rich | Q15: Richest | R15: bandundu | S15: bas-congo | T15: equateur | U15: kasai occidental | V15: kasai oriental | W15: katanga | X15: kinshasa | Y15: maniema | Z15: nord-kivu | AA15: orientale | AB15: sud-kivu | BA15: Water data, raw numbers (weighted) | BC15: Poorest | BD15: Poor | BE15: Middle | BF15: Rich | BG15: Richest | BH15: Poorest | BI15: Poor | BJ15: Middle | BK15: Rich | BL15: Richest | BM15: Poorest | BN15: Poor | BO15: Middle | BP15: Rich | BQ15: Richest | BR15: bandundu | BS15: bas-congo | BT15: equateur | BU15: kasai occidental | BV15: kasai oriental | BW15: katanga | BX15: kinshasa | BY15: maniema | BZ15: nord-kivu | CA15: orientale | CB15: sud-kivu
A16: Water | B16: Improved | C16: 21.40742459 | D16: 28.00064737 | E16: 33.79483016 | F16: 54.24166839 | G16: 89.68863648 | H16: 70.85844292 | I16: 74.53618904 | J16: 83.42299443 | K16: 91.98986425 | L16: 97.51935204 | M16: 18.89837952 | N16: 26.65333949 | O16: 23.85683103 | P16: 29.48095225 | Q16: 44.22572049 | R16: 27.65520445 | S16: 48.19865166 | T16: 24.23445189 | U16: 31.06112037 | V16: 53.72633918 | W16: 53.68713254 | X16: 88.59616108 | Y16: 32.79882937 | Z16: 44.66056043 | AA16: 41.45108413 | AB16: 48.93008921 | BA16: Water | BB16: Improved | BC16: N/A | BD16: N/A | BE16: N/A | BF16: N/A | BG16: N/A | BH16: N/A | BI16: N/A | BJ16: N/A | BK16: N/A | BL16: N/A | BM16: N/A | BN16: N/A | BO16: N/A | BP16: N/A | BQ16: N/A | BR16: N/A | BS16: N/A | BT16: N/A | BU16: N/A | BV16: N/A | BW16: N/A | BX16: N/A | BY16: N/A | BZ16: N/A | CA16: N/A | CB16: N/A
B17: Not Improved | C17: 78.59257541 | D17: 71.99935263 | E17: 66.20516984 | F17: 45.75833161 | G17: 10.31136352 | H17: 29.14155708 | I17: 25.46381096 | J17: 16.57700557 | K17: 8.010135752 | L17: 2.480647956 | M17: 81.10162048 | N17: 73.34666051 | O17: 76.14316897 | P17: 70.51904775 | Q17: 55.77427951 | R17: 72.34479555 | S17: 51.80134834 | T17: 75.76554811 | U17: 68.93887963 | V17: 46.27366082 | W17: 46.31286746 | X17: 11.40383892 | Y17: 67.20117063 | Z17: 55.33943957 | AA17: 58.54891587 | AB17: 51.06991079 | BB17: Not Improved | BC17: N/A | BD17: N/A | BE17: N/A | BF17: N/A | BG17: N/A | BH17: N/A | BI17: N/A | BJ17: N/A | BK17: N/A | BL17: N/A | BM17: N/A | BN17: N/A | BO17: N/A | BP17: N/A | BQ17: N/A | BR17: N/A | BS17: N/A | BT17: N/A | BU17: N/A | BV17: N/A | BW17: N/A | BX17: N/A | BY17: N/A | BZ17: N/A | CA17: N/A | CB17: N/A
A18: Water ladder | B18: Basic | C18: =C16*C23/100 -> 12.92721562 | D18: =D16*D23/100 -> 17.40402506 | E18: =E16*E23/100 -> 19.94446146 | F18: 38.53362256 | G18: 79.31088037 | H18: 43.88972008 | I18: 52.02497226 | J18: 65.45122535 | K18: 84.21354656 | L18: 95.91395236 | M18: 11.27133811 | N18: 16.61489886 | O18: 14.52551133 | P18: 18.18323502 | Q18: 31.35682151 | R18: 12.09655264 | S18: 40.10046982 | T18: 18.18384208 | U18: 12.03929679 | V18: 37.78052416 | W18: 39.85507002 | X18: 86.48852089 | Y18: 18.46404296 | Z18: 32.49159179 | AA18: 28.87879081 | AB18: 39.87028556 | BA18: Water ladder | BB18: Basic | BC18: N/A | BD18: N/A | BE18: N/A | BF18: N/A | BG18: N/A | BH18: N/A | BI18: N/A | BJ18: N/A | BK18: N/A | BL18: N/A | BM18: N/A | BN18: N/A | BO18: N/A | BP18: N/A | BQ18: N/A | BR18: N/A | BS18: N/A | BT18: N/A | BU18: N/A | BV18: N/A | BW18: N/A | BX18: N/A | BY18: N/A | BZ18: N/A | CA18: N/A | CB18: N/A
B19: Limited | C19: =C16*C22/100 -> 8.480208972 | D19: =D16*D22/100 -> 10.59662231 | E19: =E16*E22/100 -> 13.8503687 | F19: 15.70804583 | G19: 10.37775611 | H19: 26.96872285 | I19: 22.51121679 | J19: 17.97176907 | K19: 7.776317691 | L19: 1.605399681 | M19: 7.627041412 | N19: 10.03844063 | O19: 9.331319694 | P19: 11.29771723 | Q19: 12.86889899 | R19: 15.55865181 | S19: 8.098181835 | T19: 6.050609802 | U19: 19.02182358 | V19: 15.94581502 | W19: 13.83206252 | X19: 2.107640196 | Y19: 14.33478641 | Z19: 12.16896864 | AA19: 12.57229332 | AB19: 9.059803653 | BB19: Limited | BC19: N/A | BD19: N/A | BE19: N/A | BF19: N/A | BG19: N/A | BH19: N/A | BI19: N/A | BJ19: N/A | BK19: N/A | BL19: N/A | BM19: N/A | BN19: N/A | BO19: N/A | BP19: N/A | BQ19: N/A | BR19: N/A | BS19: N/A | BT19: N/A | BU19: N/A | BV19: N/A | BW19: N/A | BX19: N/A | BY19: N/A | BZ19: N/A | CA19: N/A | CB19: N/A
B20: Unimproved | C20: =100-C18-C19-C21 -> 52.51547989 | D20: =100-D18-D19-D21 -> 51.58542769 | E20: =100-E18-E19-E21 -> 45.67902461 | F20: 32.02886338 | G20: 8.810639555 | H20: 23.55645002 | I20: 22.26501382 | J20: 14.01441868 | K20: 6.897032557 | L20: 2.127139356 | M20: 51.80425639 | N20: 53.22662853 | O20: 54.02830404 | P20: 48.14013021 | Q20: 36.84785416 | R20: 58.23054187 | S20: 22.40704843 | T20: 59.86246307 | U20: 37.25082624 | V20: 35.335281 | W20: 33.1420975 | X20: 6.787103249 | Y20: 39.65442774 | Z20: 42.90541803 | AA20: 40.75542941 | AB20: 34.5369667 | BB20: Unimproved | BC20: N/A | BD20: N/A | BE20: N/A | BF20: N/A | BG20: N/A | BH20: N/A | BI20: N/A | BJ20: N/A | BK20: N/A | BL20: N/A | BM20: N/A | BN20: N/A | BO20: N/A | BP20: N/A | BQ20: N/A | BR20: N/A | BS20: N/A | BT20: N/A | BU20: N/A | BV20: N/A | BW20: N/A | BX20: N/A | BY20: N/A | BZ20: N/A | CA20: N/A | CB20: N/A
B21: Surface water | C21: 26.07709553 | D21: 20.41392494 | E21: 20.52614523 | F21: 13.72946823 | G21: 1.500723962 | H21: 5.585107064 | I21: 3.198797135 | J21: 2.562586888 | K21: 1.113103195 | L21: 0.3535086002 | M21: 29.2973641 | N21: 20.12003198 | O21: 22.11486493 | P21: 22.37891754 | Q21: 18.92642535 | R21: 14.11425368 | S21: 29.39429991 | T21: 15.90308505 | U21: 31.68805339 | V21: 10.93837982 | W21: 13.17076996 | X21: 4.616735667 | Y21: 27.5467429 | Z21: 12.43402154 | AA21: 17.79348646 | AB21: 16.53294409 | BB21: Surface water | BC21: N/A | BD21: N/A | BE21: N/A | BF21: N/A | BG21: N/A | BH21: N/A | BI21: N/A | BJ21: N/A | BK21: N/A | BL21: N/A | BM21: N/A | BN21: N/A | BO21: N/A | BP21: N/A | BQ21: N/A | BR21: N/A | BS21: N/A | BT21: N/A | BU21: N/A | BV21: N/A | BW21: N/A | BX21: N/A | BY21: N/A | BZ21: N/A | CA21: N/A | CB21: N/A
A22: Improved water point at more than 30 minutes | B22: Yes | C22: 39.61340112 | D22: 37.84420471 | E22: 40.98369081 | F22: 28.95937071 | G22: 11.57087065 | H22: 38.05999925 | I22: 30.20172761 | J22: 21.54294412 | K22: 8.453450556 | L22: 1.646237026 | M22: 40.35817677 | N22: 37.66297515 | O22: 39.11382733 | P22: 38.3220906 | Q22: 29.09822348 | R22: 56.25939896 | S22: 16.80167714 | T22: 24.96697607 | U22: 61.23997897 | V22: 29.67969764 | W22: 25.76420432 | X22: 2.378929482 | Y22: 43.70517694 | Z22: 27.24768459 | AA22: 30.33043306 | AB22: 18.51581266 | BA22: Improved water point at more than 30 minutes | BB22: Yes | BC22: N/A | BD22: N/A | BE22: N/A | BF22: N/A | BG22: N/A | BH22: N/A | BI22: N/A | BJ22: N/A | BK22: N/A | BL22: N/A | BM22: N/A | BN22: N/A | BO22: N/A | BP22: N/A | BQ22: N/A | BR22: N/A | BS22: N/A | BT22: N/A | BU22: N/A | BV22: N/A | BW22: N/A | BX22: N/A | BY22: N/A | BZ22: N/A | CA22: N/A | CB22: N/A
B23: No | C23: 60.38659888 | D23: 62.15579529 | E23: 59.01630919 | F23: 71.04062929 | G23: 88.42912935 | H23: 61.94000075 | I23: 69.79827239 | J23: 78.45705588 | K23: 91.54654944 | L23: 98.35376297 | M23: 59.64182323 | N23: 62.33702485 | O23: 60.88617267 | P23: 61.6779094 | Q23: 70.90177652 | R23: 43.74060104 | S23: 83.19832286 | T23: 75.03302393 | U23: 38.76002103 | V23: 70.32030236 | W23: 74.23579568 | X23: 97.62107052 | Y23: 56.29482306 | Z23: 72.75231541 | AA23: 69.66956694 | AB23: 81.48418734 | BB23: No | BC23: N/A | BD23: N/A | BE23: N/A | BF23: N/A | BG23: N/A | BH23: N/A | BI23: N/A | BJ23: N/A | BK23: N/A | BL23: N/A | BM23: N/A | BN23: N/A | BO23: N/A | BP23: N/A | BQ23: N/A | BR23: N/A | BS23: N/A | BT23: N/A | BU23: N/A | BV23: N/A | BW23: N/A | BX23: N/A | BY23: N/A | BZ23: N/A | CA23: N/A | CB23: N/A
A24: Manually calculated ratios | B24: Improved wells
B25: Improved springs
B26: Other
C27: NATIONAL wealth index quintile | H27: URBAN wealth index quintile | M27: RURAL wealth index quintile | R27: SUB-REGIONS: | BA27: Raw numbers of respondents: | BB27: Use of drinking water sources | BC27: NATIONAL wealth index quintile | BH27: URBAN wealth index quintile | BM27: RURAL wealth index quintile | BR27: SUB-REGIONS:
A28: Percentage based on weighted population | C28: Poorest | D28: Poor | E28: Middle | F28: Rich | G28: Richest | H28: Poorest | I28: Poor | J28: Middle | K28: Rich | L28: Richest | M28: Poorest | N28: Poor | O28: Middle | P28: Rich | Q28: Richest | R28: bandundu | S28: bas-congo | T28: equateur | U28: kasai occidental | V28: kasai oriental | W28: katanga | X28: kinshasa | Y28: maniema | Z28: nord-kivu | AA28: orientale | AB28: sud-kivu | BA28: Water data, raw numbers (weighted) | BC28: Poorest | BD28: Poor | BE28: Middle | BF28: Rich | BG28: Richest | BH28: Poorest | BI28: Poor | BJ28: Middle | BK28: Rich | BL28: Richest | BM28: Poorest | BN28: Poor | BO28: Middle | BP28: Rich | BQ28: Richest | BR28: bandundu | BS28: bas-congo | BT28: equateur | BU28: kasai occidental | BV28: kasai oriental | BW28: katanga | BX28: kinshasa | BY28: maniema | BZ28: nord-kivu | CA28: orientale | CB28: sud-kivu
A29: Piped water | B29: Yes | C29: 2.23138174 | D29: 4.931413422 | E29: 6.099307486 | F29: 22.56325395 | G29: 75.82073559 | H29: 23.7114264 | I29: 41.5114002 | J29: 59.77281031 | K29: 84.48971981 | L29: 94.95865477 | M29: 2.022105441 | N29: 4.033692639 | O29: 3.338216735 | P29: 5.489474304 | Q29: 12.1125404 | R29: 7.448471522 | S29: 18.05660362 | T29: 0.7042588568 | U29: 5.066690159 | V29: 31.81045264 | W29: 26.30849307 | X29: 86.31288421 | Y29: 0 | Z29: 17.27125617 | AA29: 16.87060492 | AB29: 21.40561352 | BA29: Piped water | BB29: Yes | BC29: N/A | BD29: N/A | BE29: N/A | BF29: N/A | BG29: N/A | BH29: N/A | BI29: N/A | BJ29: N/A | BK29: N/A | BL29: N/A | BM29: N/A | BN29: N/A | BO29: N/A | BP29: N/A | BQ29: N/A | BR29: N/A | BS29: N/A | BT29: N/A | BU29: N/A | BV29: N/A | BW29: N/A | BX29: N/A | BY29: N/A | BZ29: N/A | CA29: N/A | CB29: N/A
B30: No | C30: 97.76861826 | D30: 95.06858658 | E30: 93.90069251 | F30: 77.43674605 | G30: 24.17926441 | H30: 76.2885736 | I30: 58.4885998 | J30: 40.22718969 | K30: 15.51028019 | L30: 5.041345232 | M30: 97.97789456 | N30: 95.96630736 | O30: 96.66178327 | P30: 94.5105257 | Q30: 87.8874596 | R30: 92.55152848 | S30: 81.94339638 | T30: 99.29574114 | U30: 94.93330984 | V30: 68.18954736 | W30: 73.69150693 | X30: 13.68711579 | Y30: 100 | Z30: 82.72874383 | AA30: 83.12939508 | AB30: 78.59438648 | BB30: No | BC30: N/A | BD30: N/A | BE30: N/A | BF30: N/A | BG30: N/A | BH30: N/A | BI30: N/A | BJ30: N/A | BK30: N/A | BL30: N/A | BM30: N/A | BN30: N/A | BO30: N/A | BP30: N/A | BQ30: N/A | BR30: N/A | BS30: N/A | BT30: N/A | BU30: N/A | BV30: N/A | BW30: N/A | BX30: N/A | BY30: N/A | BZ30: N/A | CA30: N/A | CB30: N/A
A31: Piped water on premises | B31: Yes | C31: 0.06465776864 | D31: 0.3157560063 | E31: 0.484292054 | F31: 4.868308395 | G31: 51.83283585 | H31: 6.594275756 | I31: 12.57909908 | J31: 30.09602305 | K31: 55.74018769 | L31: 79.37481955 | M31: 0 | N31: 0.1831338433 | O31: 0.2170055215 | P31: 0 | Q31: 1.492258804 | R31: 2.898876781 | S31: 8.331749002 | T31: 0.7042588568 | U31: 0.3543651279 | V31: 10.39648186 | W31: 11.02814236 | X31: 67.54485008 | Y31: 0 | Z31: 2.210472496 | AA31: 7.357983656 | AB31: 6.353534404 | BA31: Piped water on premises | BB31: Yes | BC31: N/A | BD31: N/A | BE31: N/A | BF31: N/A | BG31: N/A | BH31: N/A | BI31: N/A | BJ31: N/A | BK31: N/A | BL31: N/A | BM31: N/A | BN31: N/A | BO31: N/A | BP31: N/A | BQ31: N/A | BR31: N/A | BS31: N/A | BT31: N/A | BU31: N/A | BV31: N/A | BW31: N/A | BX31: N/A | BY31: N/A | BZ31: N/A | CA31: N/A | CB31: N/A
B32: No | C32: 99.93534223 | D32: 99.68424399 | E32: 99.51570795 | F32: 95.1316916 | G32: 48.16716415 | H32: 93.40572424 | I32: 87.42090092 | J32: 69.90397695 | K32: 44.25981231 | L32: 20.62518045 | M32: 100 | N32: 99.81686616 | O32: 99.78299448 | P32: 100 | Q32: 98.5077412 | R32: 97.10112322 | S32: 91.668251 | T32: 99.29574114 | U32: 99.64563487 | V32: 89.60351814 | W32: 88.97185764 | X32: 32.45514992 | Y32: 100 | Z32: 97.7895275 | AA32: 92.64201634 | AB32: 93.6464656 | BB32: No | BC32: N/A | BD32: N/A | BE32: N/A | BF32: N/A | BG32: N/A | BH32: N/A | BI32: N/A | BJ32: N/A | BK32: N/A | BL32: N/A | BM32: N/A | BN32: N/A | BO32: N/A | BP32: N/A | BQ32: N/A | BR32: N/A | BS32: N/A | BT32: N/A | BU32: N/A | BV32: N/A | BW32: N/A | BX32: N/A | BY32: N/A | BZ32: N/A | CA32: N/A | CB32: N/A
A33: Piped water into dwelling | B33: Yes | C33: N/A | D33: N/A | E33: N/A | F33: N/A | G33: N/A | H33: N/A | I33: N/A | J33: N/A | K33: N/A | L33: N/A | M33: N/A | N33: N/A | O33: N/A | P33: N/A | Q33: N/A | R33: N/A | S33: N/A | T33: N/A | U33: N/A | V33: N/A | W33: N/A | X33: N/A | Y33: N/A | Z33: N/A | AA33: N/A | AB33: N/A | BA33: Piped water into dwelling | BB33: Yes | BC33: N/A | BD33: N/A | BE33: N/A | BF33: N/A | BG33: N/A | BH33: N/A | BI33: N/A | BJ33: N/A | BK33: N/A | BL33: N/A | BM33: N/A | BN33: N/A | BO33: N/A | BP33: N/A | BQ33: N/A | BR33: N/A | BS33: N/A | BT33: N/A | BU33: N/A | BV33: N/A | BW33: N/A | BX33: N/A | BY33: N/A | BZ33: N/A | CA33: N/A | CB33: N/A
B34: No | C34: N/A | D34: N/A | E34: N/A | F34: N/A | G34: N/A | H34: N/A | I34: N/A | J34: N/A | K34: N/A | L34: N/A | M34: N/A | N34: N/A | O34: N/A | P34: N/A | Q34: N/A | R34: N/A | S34: N/A | T34: N/A | U34: N/A | V34: N/A | W34: N/A | X34: N/A | Y34: N/A | Z34: N/A | AA34: N/A | AB34: N/A | BB34: No | BC34: N/A | BD34: N/A | BE34: N/A | BF34: N/A | BG34: N/A | BH34: N/A | BI34: N/A | BJ34: N/A | BK34: N/A | BL34: N/A | BM34: N/A | BN34: N/A | BO34: N/A | BP34: N/A | BQ34: N/A | BR34: N/A | BS34: N/A | BT34: N/A | BU34: N/A | BV34: N/A | BW34: N/A | BX34: N/A | BY34: N/A | BZ34: N/A | CA34: N/A | CB34: N/A
A35: Water source on premises | B35: Yes | C35: 1.175147947 | D35: 2.108935935 | E35: 0.8622201399 | F35: 6.04654993 | G35: 52.94294864 | H35: 7.7990818 | I35: 13.83784662 | J35: 31.48759569 | K35: 56.19735508 | L35: 80.10002455 | M35: 1.331404415 | N35: 1.849545745 | O35: 1.031916233 | P35: 0.4657532698 | Q35: 3.013798836 | R35: 3.03476163 | S35: 8.331749002 | T35: 5.229905347 | U35: 0.3543651279 | V35: 10.49741858 | W35: 13.59200536 | X35: 68.23485134 | Y35: 0.2422191011 | Z35: 2.492807132 | AA35: 7.589031452 | AB35: 8.519213281 | BA35: Water source on premises | BB35: Yes | BC35: N/A | BD35: N/A | BE35: N/A | BF35: N/A | BG35: N/A | BH35: N/A | BI35: N/A | BJ35: N/A | BK35: N/A | BL35: N/A | BM35: N/A | BN35: N/A | BO35: N/A | BP35: N/A | BQ35: N/A | BR35: N/A | BS35: N/A | BT35: N/A | BU35: N/A | BV35: N/A | BW35: N/A | BX35: N/A | BY35: N/A | BZ35: N/A | CA35: N/A | CB35: N/A
B36: No | C36: 98.82485205 | D36: 97.89106407 | E36: 99.13777986 | F36: 93.95345007 | G36: 47.05705136 | H36: 92.2009182 | I36: 86.16215338 | J36: 68.51240431 | K36: 43.80264492 | L36: 19.89997545 | M36: 98.66859558 | N36: 98.15045426 | O36: 98.96808377 | P36: 99.53424673 | Q36: 96.98620116 | R36: 96.96523837 | S36: 91.668251 | T36: 94.77009465 | U36: 99.64563487 | V36: 89.50258142 | W36: 86.40799464 | X36: 31.76514866 | Y36: 99.7577809 | Z36: 97.50719287 | AA36: 92.41096855 | AB36: 91.48078672 | BB36: No | BC36: N/A | BD36: N/A | BE36: N/A | BF36: N/A | BG36: N/A | BH36: N/A | BI36: N/A | BJ36: N/A | BK36: N/A | BL36: N/A | BM36: N/A | BN36: N/A | BO36: N/A | BP36: N/A | BQ36: N/A | BR36: N/A | BS36: N/A | BT36: N/A | BU36: N/A | BV36: N/A | BW36: N/A | BX36: N/A | BY36: N/A | BZ36: N/A | CA36: N/A | CB36: N/A
A37: Improved Water source on premises | B37: Yes | C37: 0.7716776966 | D37: 2.950143263 | E37: 1.699546906 | F37: 10.33781909 | G37: 58.70518473 | H37: 10.69679462 | I37: 18.56527252 | J37: 37.06678197 | K37: 61.09081205 | L37: 82.13756846 | M37: 0 | N37: 2.623548069 | O37: 1.288471005 | P37: 0.175586254 | Q37: 5.000980534 | R37: 10.97356425 | S37: 17.28626988 | T37: 3.372011909 | U37: 1.14086396 | V37: 19.53868203 | W37: 23.88097578 | X37: 77.01784197 | Y37: 0.7384992264 | Z37: 5.581674543 | AA37: 18.05114188 | AB37: 14.59524815 | BA37: Improved water source on premises | BB37: Yes | BC37: N/A | BD37: N/A | BE37: N/A | BF37: N/A | BG37: N/A | BH37: N/A | BI37: N/A | BJ37: N/A | BK37: N/A | BL37: N/A | BM37: N/A | BN37: N/A | BO37: N/A | BP37: N/A | BQ37: N/A | BR37: N/A | BS37: N/A | BT37: N/A | BU37: N/A | BV37: N/A | BW37: N/A | BX37: N/A | BY37: N/A | BZ37: N/A | CA37: N/A | CB37: N/A
B38: No | C38: 99.2283223 | D38: 97.04985674 | E38: 98.30045309 | F38: 89.66218091 | G38: 41.29481527 | H38: 89.30320538 | I38: 81.43472748 | J38: 62.93321803 | K38: 38.90918795 | L38: 17.86243154 | M38: 100 | N38: 97.37645193 | O38: 98.711529 | P38: 99.82441375 | Q38: 94.99901947 | R38: 89.02643575 | S38: 82.71373012 | T38: 96.62798809 | U38: 98.85913604 | V38: 80.46131797 | W38: 76.11902422 | X38: 22.98215803 | Y38: 99.26150077 | Z38: 94.41832546 | AA38: 81.94885812 | AB38: 85.40475185 | BB38: No | BC38: N/A | BD38: N/A | BE38: N/A | BF38: N/A | BG38: N/A | BH38: N/A | BI38: N/A | BJ38: N/A | BK38: N/A | BL38: N/A | BM38: N/A | BN38: N/A | BO38: N/A | BP38: N/A | BQ38: N/A | BR38: N/A | BS38: N/A | BT38: N/A | BU38: N/A | BV38: N/A | BW38: N/A | BX38: N/A | BY38: N/A | BZ38: N/A | CA38: N/A | CB38: N/A
A39: Piped water on premises available when needed | B39: Yes | C39: N/A | D39: N/A | E39: N/A | F39: N/A | G39: N/A | H39: N/A | I39: N/A | J39: N/A | K39: N/A | L39: N/A | M39: N/A | N39: N/A | O39: N/A | P39: N/A | Q39: N/A | R39: N/A | S39: N/A | T39: N/A | U39: N/A | V39: N/A | W39: N/A | X39: N/A | Y39: N/A | Z39: N/A | AA39: N/A | AB39: N/A | BA39: Piped water on premises available when needed | BB39: Yes | BC39: N/A | BD39: N/A | BE39: N/A | BF39: N/A | BG39: N/A | BH39: N/A | BI39: N/A | BJ39: N/A | BK39: N/A | BL39: N/A | BM39: N/A | BN39: N/A | BO39: N/A | BP39: N/A | BQ39: N/A | BR39: N/A | BS39: N/A | BT39: N/A | BU39: N/A | BV39: N/A | BW39: N/A | BX39: N/A | BY39: N/A | BZ39: N/A | CA39: N/A | CB39: N/A
B40: No | C40: N/A | D40: N/A | E40: N/A | F40: N/A | G40: N/A | H40: N/A | I40: N/A | J40: N/A | K40: N/A | L40: N/A | M40: N/A | N40: N/A | O40: N/A | P40: N/A | Q40: N/A | R40: N/A | S40: N/A | T40: N/A | U40: N/A | V40: N/A | W40: N/A | X40: N/A | Y40: N/A | Z40: N/A | AA40: N/A | AB40: N/A | BB40: No | BC40: N/A | BD40: N/A | BE40: N/A | BF40: N/A | BG40: N/A | BH40: N/A | BI40: N/A | BJ40: N/A | BK40: N/A | BL40: N/A | BM40: N/A | BN40: N/A | BO40: N/A | BP40: N/A | BQ40: N/A | BR40: N/A | BS40: N/A | BT40: N/A | BU40: N/A | BV40: N/A | BW40: N/A | BX40: N/A | BY40: N/A | BZ40: N/A | CA40: N/A | CB40: N/A
A41: Water point at more than 30 minutes | B41: Yes | C41: 40.88613055 | D41: 41.1269462 | E41: 42.78388926 | F41: 37.5531413 | G41: 15.48432737 | H41: 40.50851657 | I41: 33.11178628 | J41: 27.107203 | K41: 11.92588736 | L41: 2.80503594 | M41: 41.10088902 | N41: 39.91099872 | O41: 43.23133457 | P41: 41.08811092 | Q41: 39.9028084 | R41: 59.77753295 | S41: 35.62122658 | T41: 34.27945399 | U41: 55.05105044 | V41: 40.52712852 | W41: 30.10180119 | X41: 7.276376866 | Y41: 34.61065335 | Z41: 34.10293035 | AA41: 26.17621704 | AB41: 33.39782862 | BA41: Water point at more than 30 minutes | BB41: Yes | BC41: N/A | BD41: N/A | BE41: N/A | BF41: N/A | BG41: N/A | BH41: N/A | BI41: N/A | BJ41: N/A | BK41: N/A | BL41: N/A | BM41: N/A | BN41: N/A | BO41: N/A | BP41: N/A | BQ41: N/A | BR41: N/A | BS41: N/A | BT41: N/A | BU41: N/A | BV41: N/A | BW41: N/A | BX41: N/A | BY41: N/A | BZ41: N/A | CA41: N/A | CB41: N/A
B42: No | C42: 59.11386945 | D42: 58.8730538 | E42: 57.21611074 | F42: 62.4468587 | G42: 84.51567263 | H42: 59.49148343 | I42: 66.88821372 | J42: 72.892797 | K42: 88.07411264 | L42: 97.19496406 | M42: 58.89911098 | N42: 60.08900128 | O42: 56.76866543 | P42: 58.91188908 | Q42: 60.0971916 | R42: 40.22246705 | S42: 64.37877342 | T42: 65.72054601 | U42: 44.94894956 | V42: 59.47287148 | W42: 69.89819881 | X42: 92.72362313 | Y42: 65.38934665 | Z42: 65.89706965 | AA42: 73.82378296 | AB42: 66.60217138 | BB42: No | BC42: N/A | BD42: N/A | BE42: N/A | BF42: N/A | BG42: N/A | BH42: N/A | BI42: N/A | BJ42: N/A | BK42: N/A | BL42: N/A | BM42: N/A | BN42: N/A | BO42: N/A | BP42: N/A | BQ42: N/A | BR42: N/A | BS42: N/A | BT42: N/A | BU42: N/A | BV42: N/A | BW42: N/A | BX42: N/A | BY42: N/A | BZ42: N/A | CA42: N/A | CB42: N/A
A43: Water source available when needed | B43: Yes | C43: N/A | D43: N/A | E43: N/A | F43: N/A | G43: N/A | H43: N/A | I43: N/A | J43: N/A | K43: N/A | L43: N/A | M43: N/A | N43: N/A | O43: N/A | P43: N/A | Q43: N/A | R43: N/A | S43: N/A | T43: N/A | U43: N/A | V43: N/A | W43: N/A | X43: N/A | Y43: N/A | Z43: N/A | AA43: N/A | AB43: N/A | BA43: Water source available when needed | BB43: Yes | BC43: N/A | BD43: N/A | BE43: N/A | BF43: N/A | BG43: N/A | BH43: N/A | BI43: N/A | BJ43: N/A | BK43: N/A | BL43: N/A | BM43: N/A | BN43: N/A | BO43: N/A | BP43: N/A | BQ43: N/A | BR43: N/A | BS43: N/A | BT43: N/A | BU43: N/A | BV43: N/A | BW43: N/A | BX43: N/A | BY43: N/A | BZ43: N/A | CA43: N/A | CB43: N/A
B44: No | C44: N/A | D44: N/A | E44: N/A | F44: N/A | G44: N/A | H44: N/A | I44: N/A | J44: N/A | K44: N/A | L44: N/A | M44: N/A | N44: N/A | O44: N/A | P44: N/A | Q44: N/A | R44: N/A | S44: N/A | T44: N/A | U44: N/A | V44: N/A | W44: N/A | X44: N/A | Y44: N/A | Z44: N/A | AA44: N/A | AB44: N/A | BB44: No | BC44: N/A | BD44: N/A | BE44: N/A | BF44: N/A | BG44: N/A | BH44: N/A | BI44: N/A | BJ44: N/A | BK44: N/A | BL44: N/A | BM44: N/A | BN44: N/A | BO44: N/A | BP44: N/A | BQ44: N/A | BR44: N/A | BS44: N/A | BT44: N/A | BU44: N/A | BV44: N/A | BW44: N/A | BX44: N/A | BY44: N/A | BZ44: N/A | CA44: N/A | CB44: N/A
A45: Improved water source available when needed | B45: Yes | C45: N/A | D45: N/A | E45: N/A | F45: N/A | G45: N/A | H45: N/A | I45: N/A | J45: N/A | K45: N/A | L45: N/A | M45: N/A | N45: N/A | O45: N/A | P45: N/A | Q45: N/A | R45: N/A | S45: N/A | T45: N/A | U45: N/A | V45: N/A | W45: N/A | X45: N/A | Y45: N/A | Z45: N/A | AA45: N/A | AB45: N/A | BA45: Improved water source available when needed | BB45: Yes | BC45: N/A | BD45: N/A | BE45: N/A | BF45: N/A | BG45: N/A | BH45: N/A | BI45: N/A | BJ45: N/A | BK45: N/A | BL45: N/A | BM45: N/A | BN45: N/A | BO45: N/A | BP45: N/A | BQ45: N/A | BR45: N/A | BS45: N/A | BT45: N/A | BU45: N/A | BV45: N/A | BW45: N/A | BX45: N/A | BY45: N/A | BZ45: N/A | CA45: N/A | CB45: N/A
B46: No | C46: N/A | D46: N/A | E46: N/A | F46: N/A | G46: N/A | H46: N/A | I46: N/A | J46: N/A | K46: N/A | L46: N/A | M46: N/A | N46: N/A | O46: N/A | P46: N/A | Q46: N/A | R46: N/A | S46: N/A | T46: N/A | U46: N/A | V46: N/A | W46: N/A | X46: N/A | Y46: N/A | Z46: N/A | AA46: N/A | AB46: N/A | BB46: No | BC46: N/A | BD46: N/A | BE46: N/A | BF46: N/A | BG46: N/A | BH46: N/A | BI46: N/A | BJ46: N/A | BK46: N/A | BL46: N/A | BM46: N/A | BN46: N/A | BO46: N/A | BP46: N/A | BQ46: N/A | BR46: N/A | BS46: N/A | BT46: N/A | BU46: N/A | BV46: N/A | BW46: N/A | BX46: N/A | BY46: N/A | BZ46: N/A | CA46: N/A | CB46: N/A
A47: Microbiological quality at point of collection | B47: Not contaminated (No E. coli in 100 mL) | C47: N/A | D47: N/A | E47: N/A | F47: N/A | G47: N/A | H47: N/A | I47: N/A | J47: N/A | K47: N/A | L47: N/A | M47: N/A | N47: N/A | O47: N/A | P47: N/A | Q47: N/A | R47: N/A | S47: N/A | T47: N/A | U47: N/A | V47: N/A | W47: N/A | X47: N/A | Y47: N/A | Z47: N/A | AA47: N/A | AB47: N/A | BA47: Microbiological quality at point of collection | BB47: Not contaminated (No E. coli in 100 mL) | BC47: N/A | BD47: N/A | BE47: N/A | BF47: N/A | BG47: N/A | BH47: N/A | BI47: N/A | BJ47: N/A | BK47: N/A | BL47: N/A | BM47: N/A | BN47: N/A | BO47: N/A | BP47: N/A | BQ47: N/A | BR47: N/A | BS47: N/A | BT47: N/A | BU47: N/A | BV47: N/A | BW47: N/A | BX47: N/A | BY47: N/A | BZ47: N/A | CA47: N/A | CB47: N/A
B48: Contaminated (E. coli detected in 100 mL) | C48: N/A | D48: N/A | E48: N/A | F48: N/A | G48: N/A | H48: N/A | I48: N/A | J48: N/A | K48: N/A | L48: N/A | M48: N/A | N48: N/A | O48: N/A | P48: N/A | Q48: N/A | R48: N/A | S48: N/A | T48: N/A | U48: N/A | V48: N/A | W48: N/A | X48: N/A | Y48: N/A | Z48: N/A | AA48: N/A | AB48: N/A | BB48: Contaminated (E. coli detected in 100 mL) | BC48: N/A | BD48: N/A | BE48: N/A | BF48: N/A | BG48: N/A | BH48: N/A | BI48: N/A | BJ48: N/A | BK48: N/A | BL48: N/A | BM48: N/A | BN48: N/A | BO48: N/A | BP48: N/A | BQ48: N/A | BR48: N/A | BS48: N/A | BT48: N/A | BU48: N/A | BV48: N/A | BW48: N/A | BX48: N/A | BY48: N/A | BZ48: N/A | CA48: N/A | CB48: N/A
B49: Highly contaminated (>100 CFU/100 mL) | C49: N/A | D49: N/A | E49: N/A | F49: N/A | G49: N/A | H49: N/A | I49: N/A | J49: N/A | K49: N/A | L49: N/A | M49: N/A | N49: N/A | O49: N/A | P49: N/A | Q49: N/A | R49: N/A | S49: N/A | T49: N/A | U49: N/A | V49: N/A | W49: N/A | X49: N/A | Y49: N/A | Z49: N/A | AA49: N/A | AB49: N/A | BB49: Highly contaminated (>100 CFU/100 mL) | BC49: N/A | BD49: N/A | BE49: N/A | BF49: N/A | BG49: N/A | BH49: N/A | BI49: N/A | BJ49: N/A | BK49: N/A | BL49: N/A | BM49: N/A | BN49: N/A | BO49: N/A | BP49: N/A | BQ49: N/A | BR49: N/A | BS49: N/A | BT49: N/A | BU49: N/A | BV49: N/A | BW49: N/A | BX49: N/A | BY49: N/A | BZ49: N/A | CA49: N/A | CB49: N/A
A50: Microbiological quality of improved water sources at point of collection | B50: Not contaminated (No E. coli in 100 mL) | C50: N/A | D50: N/A | E50: N/A | F50: N/A | G50: N/A | H50: N/A | I50: N/A | J50: N/A | K50: N/A | L50: N/A | M50: N/A | N50: N/A | O50: N/A | P50: N/A | Q50: N/A | R50: N/A | S50: N/A | T50: N/A | U50: N/A | V50: N/A | W50: N/A | X50: N/A | Y50: N/A | Z50: N/A | AA50: N/A | AB50: N/A | BA50: Microbiological quality of improved water sources at point of collection | BB50: Not contaminated (No E. coli in 100 mL) | BC50: N/A | BD50: N/A | BE50: N/A | BF50: N/A | BG50: N/A | BH50: N/A | BI50: N/A | BJ50: N/A | BK50: N/A | BL50: N/A | BM50: N/A | BN50: N/A | BO50: N/A | BP50: N/A | BQ50: N/A | BR50: N/A | BS50: N/A | BT50: N/A | BU50: N/A | BV50: N/A | BW50: N/A | BX50: N/A | BY50: N/A | BZ50: N/A | CA50: N/A | CB50: N/A
B51: Contaminated (E. coli detected in 100 mL) | C51: N/A | D51: N/A | E51: N/A | F51: N/A | G51: N/A | H51: N/A | I51: N/A | J51: N/A | K51: N/A | L51: N/A | M51: N/A | N51: N/A | O51: N/A | P51: N/A | Q51: N/A | R51: N/A | S51: N/A | T51: N/A | U51: N/A | V51: N/A | W51: N/A | X51: N/A | Y51: N/A | Z51: N/A | AA51: N/A | AB51: N/A | BB51: Contaminated (E. coli detected in 100 mL) | BC51: N/A | BD51: N/A | BE51: N/A | BF51: N/A | BG51: N/A | BH51: N/A | BI51: N/A | BJ51: N/A | BK51: N/A | BL51: N/A | BM51: N/A | BN51: N/A | BO51: N/A | BP51: N/A | BQ51: N/A | BR51: N/A | BS51: N/A | BT51: N/A | BU51: N/A | BV51: N/A | BW51: N/A | BX51: N/A | BY51: N/A | BZ51: N/A | CA51: N/A | CB51: N/A
B52: Highly contaminated (>100 CFU/100 mL) | C52: N/A | D52: N/A | E52: N/A | F52: N/A | G52: N/A | H52: N/A | I52: N/A | J52: N/A | K52: N/A | L52: N/A | M52: N/A | N52: N/A | O52: N/A | P52: N/A | Q52: N/A | R52: N/A | S52: N/A | T52: N/A | U52: N/A | V52: N/A | W52: N/A | X52: N/A | Y52: N/A | Z52: N/A | AA52: N/A | AB52: N/A | BB52: Highly contaminated (>100 CFU/100 mL) | BC52: N/A | BD52: N/A | BE52: N/A | BF52: N/A | BG52: N/A | BH52: N/A | BI52: N/A | BJ52: N/A | BK52: N/A | BL52: N/A | BM52: N/A | BN52: N/A | BO52: N/A | BP52: N/A | BQ52: N/A | BR52: N/A | BS52: N/A | BT52: N/A | BU52: N/A | BV52: N/A | BW52: N/A | BX52: N/A | BY52: N/A | BZ52: N/A | CA52: N/A | CB52: N/A
A53: Microbiological quality of piped on premises at point of collection | B53: Not contaminated (No E. coli in 100 mL) | C53: N/A | D53: N/A | E53: N/A | F53: N/A | G53: N/A | H53: N/A | I53: N/A | J53: N/A | K53: N/A | L53: N/A | M53: N/A | N53: N/A | O53: N/A | P53: N/A | Q53: N/A | R53: N/A | S53: N/A | T53: N/A | U53: N/A | V53: N/A | W53: N/A | X53: N/A | Y53: N/A | Z53: N/A | AA53: N/A | AB53: N/A | BA53: Microbiological quality of piped on premises at point of collection | BB53: Not contaminated (No E. coli in 100 mL) | BC53: N/A | BD53: N/A | BE53: N/A | BF53: N/A | BG53: N/A | BH53: N/A | BI53: N/A | BJ53: N/A | BK53: N/A | BL53: N/A | BM53: N/A | BN53: N/A | BO53: N/A | BP53: N/A | BQ53: N/A | BR53: N/A | BS53: N/A | BT53: N/A | BU53: N/A | BV53: N/A | BW53: N/A | BX53: N/A | BY53: N/A | BZ53: N/A | CA53: N/A | CB53: N/A
B54: Contaminated (E. coli detected in 100 mL) | C54: N/A | D54: N/A | E54: N/A | F54: N/A | G54: N/A | H54: N/A | I54: N/A | J54: N/A | K54: N/A | L54: N/A | M54: N/A | N54: N/A | O54: N/A | P54: N/A | Q54: N/A | R54: N/A | S54: N/A | T54: N/A | U54: N/A | V54: N/A | W54: N/A | X54: N/A | Y54: N/A | Z54: N/A | AA54: N/A | AB54: N/A | BB54: Contaminated (E. coli detected in 100 mL) | BC54: N/A | BD54: N/A | BE54: N/A | BF54: N/A | BG54: N/A | BH54: N/A | BI54: N/A | BJ54: N/A | BK54: N/A | BL54: N/A | BM54: N/A | BN54: N/A | BO54: N/A | BP54: N/A | BQ54: N/A | BR54: N/A | BS54: N/A | BT54: N/A | BU54: N/A | BV54: N/A | BW54: N/A | BX54: N/A | BY54: N/A | BZ54: N/A | CA54: N/A | CB54: N/A
B55: Highly contaminated (>100 CFU/100 mL) | C55: N/A | D55: N/A | E55: N/A | F55: N/A | G55: N/A | H55: N/A | I55: N/A | J55: N/A | K55: N/A | L55: N/A | M55: N/A | N55: N/A | O55: N/A | P55: N/A | Q55: N/A | R55: N/A | S55: N/A | T55: N/A | U55: N/A | V55: N/A | W55: N/A | X55: N/A | Y55: N/A | Z55: N/A | AA55: N/A | AB55: N/A | BB55: Highly contaminated (>100 CFU/100 mL) | BC55: N/A | BD55: N/A | BE55: N/A | BF55: N/A | BG55: N/A | BH55: N/A | BI55: N/A | BJ55: N/A | BK55: N/A | BL55: N/A | BM55: N/A | BN55: N/A | BO55: N/A | BP55: N/A | BQ55: N/A | BR55: N/A | BS55: N/A | BT55: N/A | BU55: N/A | BV55: N/A | BW55: N/A | BX55: N/A | BY55: N/A | BZ55: N/A | CA55: N/A | CB55: N/A
C56: NATIONAL wealth index quintile | H56: URBAN wealth index quintile | M56: RURAL wealth index quintile | R56: SUB-REGIONS: | BA56: Raw numbers of respondents: | BB56: Use of drinking water sources | BC56: NATIONAL wealth index quintile | BH56: URBAN wealth index quintile | BM56: RURAL wealth index quintile | BR56: SUB-REGIONS:
A57: Percentage based on weighted population | C57: Poorest | D57: Poor | E57: Middle | F57: Rich | G57: Richest | H57: Poorest | I57: Poor | J57: Middle | K57: Rich | L57: Richest | M57: Poorest | N57: Poor | O57: Middle | P57: Rich | Q57: Richest | R57: bandundu | S57: bas-congo | T57: equateur | U57: kasai occidental | V57: kasai oriental | W57: katanga | X57: kinshasa | Y57: maniema | Z57: nord-kivu | AA57: orientale | AB57: sud-kivu | BA57: Water data, raw numbers (weighted) | BC57: Poorest | BD57: Poor | BE57: Middle | BF57: Rich | BG57: Richest | BH57: Poorest | BI57: Poor | BJ57: Middle | BK57: Rich | BL57: Richest | BM57: Poorest | BN57: Poor | BO57: Middle | BP57: Rich | BQ57: Richest | BR57: bandundu | BS57: bas-congo | BT57: equateur | BU57: kasai occidental | BV57: kasai oriental | BW57: katanga | BX57: kinshasa | BY57: maniema | BZ57: nord-kivu | CA57: orientale | CB57: sud-kivu
A58: source d'eau pour boire | B58: eau de robinet dans le llogement | C58: 0 | D58: 0.03597908722 | E58: 0.1689560001 | F58: 0.6430108583 | G58: 10.1625911 | H58: 0.90808931 | I58: 1.472939126 | J58: 2.144572602 | K58: 7.783052183 | L58: 22.45727825 | M58: 0 | N58: 0 | O58: 0 | P58: 0 | Q58: 0.5824819181 | R58: 0.3170646479 | S58: 0.7399244356 | T58: 0.1557429439 | U58: 0 | V58: 0.4037468683 | W58: 3.654982529 | X58: 10.65111027 | Y58: 0 | Z58: 0.5486581327 | AA58: 2.346023774 | AB58: 2.715005155
B59: eau de robinet dans la cour / parcelle | C59: 0.06465776864 | D59: 0.279776919 | E59: 0.315336054 | F59: 4.225297537 | G59: 41.67024475 | H59: 5.686186446 | I59: 11.10615995 | J59: 27.95145045 | K59: 47.95713551 | L59: 56.9175413 | M59: 0 | N59: 0.1831338433 | O59: 0.2170055215 | P59: 0 | Q59: 0.9097768862 | R59: 2.581812133 | S59: 7.591824566 | T59: 0.548515913 | U59: 0.3543651279 | V59: 9.992734991 | W59: 7.373159833 | X59: 56.89373981 | Y59: 0 | Z59: 1.661814363 | AA59: 5.011959882 | AB59: 3.638529249
B60: borne fontaine | C60: 1.468085985 | D60: 3.476254438 | E60: 4.818324689 | F60: 6.697581764 | G60: 5.432462864 | H60: 7.151787523 | I60: 7.047705868 | J60: 6.590111449 | K60: 6.785744495 | L60: 3.251788467 | M60: 1.45957068 | N60: 2.461181716 | O60: 2.623344156 | P60: 5.123519316 | Q60: 6.293776182 | R60: 3.80977723 | S60: 4.561184469 | T60: 0 | U60: 4.579438108 | V60: 3.317459359 | W60: 8.659175818 | X60: 0 | Y60: 0 | Z60: 12.38860168 | AA60: 5.247123494 | AB60: 1.923630843
B61: puits a pompe | C61: 0.714501433 | D61: 0.9412109671 | E61: 1.007015775 | F61: 2.501093579 | G61: 1.555561844 | H61: 4.687271157 | I61: 4.500441008 | J61: 2.954894876 | K61: 1.615656211 | L61: 0 | M61: 0.6072785024 | N61: 0.9554718244 | O61: 0.3646002092 | P61: 0.758163481 | Q61: 0.9409921261 | R61: 0 | S61: 0 | T61: 0.3458209438 | U61: 0.177182564 | V61: 3.176596403 | W61: 5.121658549 | X61: 0.3763643207 | Y61: 6.772496289 | Z61: 0.8100439904 | AA61: 0 | AB61: 0
B62: puits protege | C62: 1.468418771 | D62: 3.871049408 | E62: 4.487636632 | F62: 5.39266424 | G62: 3.43768651 | H62: 21.78340028 | I62: 13.54341939 | J62: 4.335783617 | K62: 2.864835301 | L62: 0.5277780618 | M62: 0.4117496875 | N62: 2.710343075 | O62: 1.465382723 | P62: 1.647316793 | Q62: 1.691548518 | R62: 0.7851124614 | S62: 0 | T62: 6.397624219 | U62: 3.894045531 | V62: 3.49177971 | W62: 13.83253292 | X62: 0.4014552754 | Y62: 3.144373277 | Z62: 1.184192528 | AA62: 1.293561789 | AB62: 0.3367821945
B63: source amenagee | C63: 16.99312264 | D63: 18.25697358 | E63: 22.20087027 | F63: 23.78465663 | G63: 8.874652541 | H63: 20.67634509 | I63: 14.98092844 | J63: 16.35950562 | K63: 3.019652923 | L63: 2.032919214 | M63: 15.85724589 | N63: 18.95383195 | O63: 18.68863136 | P63: 21.58599767 | Q63: 29.48063945 | R63: 19.42162047 | S63: 30.14204804 | T63: 16.78674787 | U63: 21.92320212 | V63: 15.24751043 | W63: 8.424447996 | X63: 1.505457283 | Y63: 22.8819598 | Z63: 25.39506774 | AA63: 23.28691742 | AB63: 27.1876935
B64: puit non protegee | C64: 5.923470518 | D64: 5.509514114 | E64: 7.02004611 | F64: 5.076995135 | G64: 2.023441789 | H64: 6.232397181 | I64: 4.522275519 | J64: 3.935497697 | K64: 2.394640762 | L64: 0.2185650522 | M64: 4.191935881 | N64: 7.763043314 | O64: 6.294857863 | P64: 6.698520325 | Q64: 4.175286492 | R64: 0.2644289339 | S64: 0 | T64: 3.533763249 | U64: 4.283173387 | V64: 0.9749425493 | W64: 23.52931694 | X64: 0.2760005018 | Y64: 5.872608385 | Z64: 0.4575289312 | AA64: 5.615110272 | AB64: 0.4898650102
B65: source non amenagee | C65: 45.04933657 | D65: 44.77884386 | E65: 37.62855526 | F65: 24.86880547 | G65: 5.241467461 | H65: 16.22168447 | I65: 12.95203521 | J65: 8.543377623 | K65: 2.991049359 | L65: 1.57905495 | M65: 45.98010992 | N65: 43.90086402 | O65: 46.47704297 | P65: 40.76402336 | Q65: 31.0772564 | R65: 57.94847507 | S65: 22.40704843 | T65: 56.24217596 | U65: 28.51890855 | V65: 34.14480588 | W65: 7.681874961 | X65: 6.084556517 | Y65: 33.78181935 | Z65: 37.30206463 | AA65: 33.21042886 | AB65: 32.14887477
B66: mare ruisseau ou fleuve | C66: 26.07709553 | D66: 20.41392494 | E66: 20.52614523 | F66: 13.72946823 | G66: 1.500723962 | H66: 5.585107064 | I66: 3.198797135 | J66: 2.562586888 | K66: 1.113103195 | L66: 0.3535086002 | M66: 29.2973641 | N66: 20.12003198 | O66: 22.11486493 | P66: 22.37891754 | Q66: 18.92642535 | R66: 14.11425368 | S66: 29.39429991 | T66: 15.90308505 | U66: 31.68805339 | V66: 10.93837982 | W66: 13.17076996 | X66: 4.616735667 | Y66: 27.5467429 | Z66: 12.43402154 | AA66: 17.79348646 | AB66: 16.53294409
B67: eau de robinet dans la parcelle voisine | C67: 0.6986379869 | D67: 1.139402978 | E67: 0.7966907428 | F67: 10.99736379 | G67: 18.55543688 | H67: 9.965363119 | I67: 21.88459526 | J67: 23.08667581 | K67: 21.96378763 | L67: 12.33204675 | M67: 0.5625347608 | N67: 1.38937708 | O67: 0.4978670575 | P67: 0.3659549874 | Q67: 4.326505416 | R67: 0.7398175117 | S67: 5.16367015 | T67: 0 | U67: 0.132886923 | V67: 18.09651142 | W67: 6.621174891 | X67: 18.76803412 | Y67: 0 | Z67: 2.672181995 | AA67: 4.265497772 | AB67: 13.12844827
B68: autres | C68: 1.542672795 | D68: 1.297069712 | E68: 1.030423236 | F68: 2.083062775 | G68: 1.545730305 | H68: 1.102368369 | I68: 4.790703093 | J68: 1.535543365 | K68: 1.511342436 | L68: 0.3295193536 | M68: 1.632210588 | N68: 1.562721193 | O68: 1.256403204 | P68: 0.6775865299 | Q68: 1.595311269 | R68: 0.01763785755 | S68: 0 | T68: 0.08652385771 | U68: 4.4487443 | V68: 0.2155325698 | W68: 1.930905591 | X68: 0.4265462301 | Y68: 0 | Z68: 5.145824469 | AA68: 1.92989027 | AB68: 1.898226914
A108: =A1026 -> Democratic Republic of the Congo
A109: =A1034 -> 2001
A110: Use of sanitation facilities
A111: by wealth quintile and sub-national region
A112: Notes:
A113: WHO/UNICEF JMP customised wealth index excludes water,
A114: sanitation and hygiene assets.
A115: Survey used for analysis: | B115: =A1025 -> MICS01
A117: =B1029 -> Ratio of Shared improved based on: | B117: MICS10
A120: Use of sanitation facilities | C120: NATIONAL wealth index quintile | H120: URBAN wealth index quintile | M120: RURAL wealth index quintile | R120: SUB-REGIONS: | BA120: Raw numbers of respondents: | BB120: Use of sanitation facilities | BC120: NATIONAL wealth index quintile | BH120: URBAN wealth index quintile | BM120: RURAL wealth index quintile | BR120: SUB-REGIONS:
A121: Weighted percentage (used in graphs) | C121: Poorest | D121: Poor | E121: Middle | F121: Rich | G121: Richest | H121: Poorest | I121: Poor | J121: Middle | K121: Rich | L121: Richest | M121: Poorest | N121: Poor | O121: Middle | P121: Rich | Q121: Richest | R121: bandundu | S121: bas-congo | T121: equateur | U121: kasai occidental | V121: kasai oriental | W121: katanga | X121: kinshasa | Y121: maniema | Z121: nord-kivu | AA121: orientale | AB121: sud-kivu | BA121: Sanitation data, raw numbers (weighted) | BC121: Poorest | BD121: Poor | BE121: Middle | BF121: Rich | BG121: Richest | BH121: Poorest | BI121: Poor | BJ121: Middle | BK121: Rich | BL121: Richest | BM121: Poorest | BN121: Poor | BO121: Middle | BP121: Rich | BQ121: Richest | BR121: bandundu | BS121: bas-congo | BT121: equateur | BU121: kasai occidental | BV121: kasai oriental | BW121: katanga | BX121: kinshasa | BY121: maniema | BZ121: nord-kivu | CA121: orientale | CB121: sud-kivu
A122: Sanitation | B122: Improved | C122: =C153+C154+C156 -> 31.07789505 | D122: =D153+D154+D156 -> 40.08250666 | E122: 43.34441745 | F122: 47.13278462 | G122: 66.12713765 | H122: 49.24912992 | I122: 47.22859479 | J122: 56.99555347 | K122: 63.96897803 | L122: 80.4782878 | M122: 29.29401048 | N122: 36.28200252 | O122: 41.14672386 | P122: 42.25901918 | Q122: 47.9088754 | R122: 57.74977386 | S122: 26.1010356 | T122: 38.55961384 | U122: 20.93350274 | V122: 40.42606891 | W122: 47.43161462 | X122: 72.06122193 | Y122: 12.28711164 | Z122: 46.80835777 | AA122: 49.15086979 | AB122: 57.12648928 | BA122: Sanitation | BB122: Improved | BC122: N/A | BD122: N/A | BE122: N/A | BF122: N/A | BG122: N/A | BH122: N/A | BI122: N/A | BJ122: N/A | BK122: N/A | BL122: N/A | BM122: N/A | BN122: N/A | BO122: N/A | BP122: N/A | BQ122: N/A | BR122: N/A | BS122: N/A | BT122: N/A | BU122: N/A | BV122: N/A | BW122: N/A | BX122: N/A | BY122: N/A | BZ122: N/A | CA122: N/A | CB122: N/A
B123: Not Improved | C123: =100-C122 -> 68.92210495 | D123: =100-D122 -> 59.91749334 | E123: 56.65558255 | F123: 52.86721538 | G123: 33.87286235 | H123: 50.75087008 | I123: 52.77140521 | J123: 43.00444653 | K123: 36.03102197 | L123: 19.5217122 | M123: 70.70598952 | N123: 63.71799748 | O123: 58.85327614 | P123: 57.74098082 | Q123: 52.0911246 | R123: 42.25022614 | S123: 73.8989644 | T123: 61.44038616 | U123: 79.06649726 | V123: 59.57393109 | W123: 52.56838538 | X123: 27.93877807 | Y123: 87.71288836 | Z123: 53.19164223 | AA123: 50.84913021 | AB123: 42.87351072 | BB123: Not Improved | BC123: N/A | BD123: N/A | BE123: N/A | BF123: N/A | BG123: N/A | BH123: N/A | BI123: N/A | BJ123: N/A | BK123: N/A | BL123: N/A | BM123: N/A | BN123: N/A | BO123: N/A | BP123: N/A | BQ123: N/A | BR123: N/A | BS123: N/A | BT123: N/A | BU123: N/A | BV123: N/A | BW123: N/A | BX123: N/A | BY123: N/A | BZ123: N/A | CA123: N/A | CB123: N/A
A124: Sanitation ladder | B124: Basic | C124: =C122*MICS10!C129/100 -> 18.49277324 | D124: =D122*MICS10!D129/100 -> 24.95676798 | E124: =E122*MICS10!E129/100 -> 25.23099389 | F124: =F122*MICS10!F129/100 -> 18.62405563 | G124: =G122*MICS10!G129/100 -> 27.66920649 | H124: =H122*MICS10!H129/100 -> 26.5884978 | I124: =I122*MICS10!I129/100 -> 8.606773582 | J124: =J122*MICS10!J129/100 -> 22.28373988 | K124: =K122*MICS10!K129/100 -> 25.00883029 | L124: =L122*MICS10!L129/100 -> 32.13932681 | M124: =M122*MICS10!M129/100 -> 18.61249698 | N124: =N122*MICS10!N129/100 -> 24.31288887 | O124: =O122*MICS10!O129/100 -> 23.88236365 | P124: =P122*MICS10!P129/100 -> 21.95230464 | Q124: =Q122*MICS10!Q129/100 -> 32.38805292 | R124: =R122*MICS10!R129/100 -> 46.35919349 | S124: =S122*MICS10!S129/100 -> 17.09754949 | T124: =T122*MICS10!T129/100 -> 23.3965429 | U124: =U122*MICS10!U129/100 -> 9.980199758 | V124: =V122*MICS10!V129/100 -> 16.7586396 | W124: =W122*MICS10!W129/100 -> 19.80115338 | X124: =X122*MICS10!X129/100 -> 23.21541859 | Y124: =Y122*MICS10!Y129/100 -> 7.478138686 | Z124: =Z122*MICS10!Z129/100 -> 32.10703338 | AA124: =AA122*MICS10!AA129/100 -> 42.07053986 | AB124: =AB122*MICS10!AB129/100 -> 37.2292976 | BA124: Sanitation ladder | BB124: Basic | BC124: N/A | BD124: N/A | BE124: N/A | BF124: N/A | BG124: N/A | BH124: N/A | BI124: N/A | BJ124: N/A | BK124: N/A | BL124: N/A | BM124: N/A | BN124: N/A | BO124: N/A | BP124: N/A | BQ124: N/A | BR124: N/A | BS124: N/A | BT124: N/A | BU124: N/A | BV124: N/A | BW124: N/A | BX124: N/A | BY124: N/A | BZ124: N/A | CA124: N/A | CB124: N/A
B125: Limited | C125: =C122*MICS10!C128/100 -> 12.5851218 | D125: =D122*MICS10!D128/100 -> 15.12573868 | E125: =E122*MICS10!E128/100 -> 18.11342356 | F125: =F122*MICS10!F128/100 -> 28.508729 | G125: =G122*MICS10!G128/100 -> 38.45793116 | H125: =H122*MICS10!H128/100 -> 22.66063212 | I125: =I122*MICS10!I128/100 -> 38.62182121 | J125: =J122*MICS10!J128/100 -> 34.71181359 | K125: =K122*MICS10!K128/100 -> 38.96014774 | L125: =L122*MICS10!L128/100 -> 48.33896099 | M125: =M122*MICS10!M128/100 -> 10.6815135 | N125: =N122*MICS10!N128/100 -> 11.96911365 | O125: =O122*MICS10!O128/100 -> 17.26436021 | P125: =P122*MICS10!P128/100 -> 20.30671454 | Q125: =Q122*MICS10!Q128/100 -> 15.52082248 | R125: =R122*MICS10!R128/100 -> 11.39058037 | S125: =S122*MICS10!S128/100 -> 9.003486117 | T125: =T122*MICS10!T128/100 -> 15.16307094 | U125: =U122*MICS10!U128/100 -> 10.95330298 | V125: =V122*MICS10!V128/100 -> 23.66742932 | W125: =W122*MICS10!W128/100 -> 27.63046124 | X125: =X122*MICS10!X128/100 -> 48.84580334 | Y125: =Y122*MICS10!Y128/100 -> 4.808972958 | Z125: =Z122*MICS10!Z128/100 -> 14.70132438 | AA125: =AA122*MICS10!AA128/100 -> 7.080329935 | AB125: =AB122*MICS10!AB128/100 -> 19.89719168 | BB125: Limited | BC125: N/A | BD125: N/A | BE125: N/A | BF125: N/A | BG125: N/A | BH125: N/A | BI125: N/A | BJ125: N/A | BK125: N/A | BL125: N/A | BM125: N/A | BN125: N/A | BO125: N/A | BP125: N/A | BQ125: N/A | BR125: N/A | BS125: N/A | BT125: N/A | BU125: N/A | BV125: N/A | BW125: N/A | BX125: N/A | BY125: N/A | BZ125: N/A | CA125: N/A | CB125: N/A
B126: Unimproved | C126: =100-C124-C125-C127 -> 47.08128238 | D126: =100-D124-D125-D127 -> 45.15117576 | E126: 44.81884805 | F126: 44.50179342 | G126: 32.64567738 | H126: 42.44181771 | I126: 48.46469231 | J126: 40.78672026 | K126: 35.20597089 | L126: 19.25996488 | M126: 47.95850251 | N126: 45.91521459 | O126: 45.52287898 | P126: 45.29941242 | Q126: 41.84024641 | R126: 29.80889045 | S126: 57.33212074 | T126: 42.95088698 | U126: 63.03987645 | V126: 46.22195999 | W126: 36.67416879 | X126: 26.94768536 | Y126: 82.32489029 | Z126: 48.10499706 | AA126: 42.3061881 | AB126: 33.93887235 | BB126: Unimproved | BC126: N/A | BD126: N/A | BE126: N/A | BF126: N/A | BG126: N/A | BH126: N/A | BI126: N/A | BJ126: N/A | BK126: N/A | BL126: N/A | BM126: N/A | BN126: N/A | BO126: N/A | BP126: N/A | BQ126: N/A | BR126: N/A | BS126: N/A | BT126: N/A | BU126: N/A | BV126: N/A | BW126: N/A | BX126: N/A | BY126: N/A | BZ126: N/A | CA126: N/A | CB126: N/A
B127: Open defecation | C127: =C160 -> 21.84082258 | D127: =D160 -> 14.76631757 | E127: 11.8367345 | F127: 8.365421954 | G127: 1.227184972 | H127: 8.309052369 | I127: 4.306712896 | J127: 2.217726268 | K127: 0.8250510835 | L127: 0.2617473182 | M127: 22.74748701 | N127: 17.80278288 | O127: 13.33039716 | P127: 12.4415684 | Q127: 10.2508782 | R127: 12.44133569 | S127: 16.56684365 | T127: 18.48949918 | U127: 16.02662081 | V127: 13.3519711 | W127: 15.8942166 | X127: 0.9910927111 | Y127: 5.387998066 | Z127: 5.086645176 | AA127: 8.54294211 | AB127: 8.934638365 | BB127: Open defecation | BC127: N/A | BD127: N/A | BE127: N/A | BF127: N/A | BG127: N/A | BH127: N/A | BI127: N/A | BJ127: N/A | BK127: N/A | BL127: N/A | BM127: N/A | BN127: N/A | BO127: N/A | BP127: N/A | BQ127: N/A | BR127: N/A | BS127: N/A | BT127: N/A | BU127: N/A | BV127: N/A | BW127: N/A | BX127: N/A | BY127: N/A | BZ127: N/A | CA127: N/A | CB127: N/A
A128: Shared among Improved Sanitation | B128: Yes | C128: N/A | D128: N/A | E128: N/A | F128: N/A | G128: N/A | H128: N/A | I128: N/A | J128: N/A | K128: N/A | L128: N/A | M128: N/A | N128: N/A | O128: N/A | P128: N/A | Q128: N/A | R128: N/A | S128: N/A | T128: N/A | U128: N/A | V128: N/A | W128: N/A | X128: N/A | Y128: N/A | Z128: N/A | AA128: N/A | AB128: N/A | BA128: Shared among improved sanitation facilities | BB128: Yes | BC128: N/A | BD128: N/A | BE128: N/A | BF128: N/A | BG128: N/A | BH128: N/A | BI128: N/A | BJ128: N/A | BK128: N/A | BL128: N/A | BM128: N/A | BN128: N/A | BO128: N/A | BP128: N/A | BQ128: N/A | BR128: N/A | BS128: N/A | BT128: N/A | BU128: N/A | BV128: N/A | BW128: N/A | BX128: N/A | BY128: N/A | BZ128: N/A | CA128: N/A | CB128: N/A
B129: No | C129: N/A | D129: N/A | E129: N/A | F129: N/A | G129: N/A | H129: N/A | I129: N/A | J129: N/A | K129: N/A | L129: N/A | M129: N/A | N129: N/A | O129: N/A | P129: N/A | Q129: N/A | R129: N/A | S129: N/A | T129: N/A | U129: N/A | V129: N/A | W129: N/A | X129: N/A | Y129: N/A | Z129: N/A | AA129: N/A | AB129: N/A | BB129: No | BC129: N/A | BD129: N/A | BE129: N/A | BF129: N/A | BG129: N/A | BH129: N/A | BI129: N/A | BJ129: N/A | BK129: N/A | BL129: N/A | BM129: N/A | BN129: N/A | BO129: N/A | BP129: N/A | BQ129: N/A | BR129: N/A | BS129: N/A | BT129: N/A | BU129: N/A | BV129: N/A | BW129: N/A | BX129: N/A | BY129: N/A | BZ129: N/A | CA129: N/A | CB129: N/A
A130: Manually calculated ratios | B130: Improved latrines
B131: Other
B132: Other
C133: NATIONAL wealth index quintile | H133: URBAN wealth index quintile | M133: RURAL wealth index quintile | R133: SUB-REGIONS: | BA133: Raw numbers of respondents: | BB133: Use of sanitation facilities | BC133: NATIONAL wealth index quintile | BH133: URBAN wealth index quintile | BM133: RURAL wealth index quintile | BR133: SUB-REGIONS:
A134: Percentage based on weighted population | C134: Poorest | D134: Poor | E134: Middle | F134: Rich | G134: Richest | H134: Poorest | I134: Poor | J134: Middle | K134: Rich | L134: Richest | M134: Poorest | N134: Poor | O134: Middle | P134: Rich | Q134: Richest | R134: bandundu | S134: bas-congo | T134: equateur | U134: kasai occidental | V134: kasai oriental | W134: katanga | X134: kinshasa | Y134: maniema | Z134: nord-kivu | AA134: orientale | AB134: sud-kivu | BA134: Sanitation data, raw numbers (weighted) | BC134: Poorest | BD134: Poor | BE134: Middle | BF134: Rich | BG134: Richest | BH134: Poorest | BI134: Poor | BJ134: Middle | BK134: Rich | BL134: Richest | BM134: Poorest | BN134: Poor | BO134: Middle | BP134: Rich | BQ134: Richest | BR134: bandundu | BS134: bas-congo | BT134: equateur | BU134: kasai occidental | BV134: kasai oriental | BW134: katanga | BX134: kinshasa | BY134: maniema | BZ134: nord-kivu | CA134: orientale | CB134: sud-kivu
A135: Sanitation type | B135: Sewer connection | C135: N/A | D135: N/A | E135: N/A | F135: N/A | G135: N/A | H135: N/A | I135: N/A | J135: N/A | K135: N/A | L135: N/A | M135: N/A | N135: N/A | O135: N/A | P135: N/A | Q135: N/A | R135: N/A | S135: N/A | T135: N/A | U135: N/A | V135: N/A | W135: N/A | X135: N/A | Y135: N/A | Z135: N/A | AA135: N/A | AB135: N/A | BA135: Sanitation type | BB135: Sewer connection | BC135: N/A | BD135: N/A | BE135: N/A | BF135: N/A | BG135: N/A | BH135: N/A | BI135: N/A | BJ135: N/A | BK135: N/A | BL135: N/A | BM135: N/A | BN135: N/A | BO135: N/A | BP135: N/A | BQ135: N/A | BR135: N/A | BS135: N/A | BT135: N/A | BU135: N/A | BV135: N/A | BW135: N/A | BX135: N/A | BY135: N/A | BZ135: N/A | CA135: N/A | CB135: N/A
B136: Septic tank connection | C136: N/A | D136: N/A | E136: N/A | F136: N/A | G136: N/A | H136: N/A | I136: N/A | J136: N/A | K136: N/A | L136: N/A | M136: N/A | N136: N/A | O136: N/A | P136: N/A | Q136: N/A | R136: N/A | S136: N/A | T136: N/A | U136: N/A | V136: N/A | W136: N/A | X136: N/A | Y136: N/A | Z136: N/A | AA136: N/A | AB136: N/A | BB136: Septic tank connection | BC136: N/A | BD136: N/A | BE136: N/A | BF136: N/A | BG136: N/A | BH136: N/A | BI136: N/A | BJ136: N/A | BK136: N/A | BL136: N/A | BM136: N/A | BN136: N/A | BO136: N/A | BP136: N/A | BQ136: N/A | BR136: N/A | BS136: N/A | BT136: N/A | BU136: N/A | BV136: N/A | BW136: N/A | BX136: N/A | BY136: N/A | BZ136: N/A | CA136: N/A | CB136: N/A
B137: Improved latrines | C137: N/A | D137: N/A | E137: N/A | F137: N/A | G137: N/A | H137: N/A | I137: N/A | J137: N/A | K137: N/A | L137: N/A | M137: N/A | N137: N/A | O137: N/A | P137: N/A | Q137: N/A | R137: N/A | S137: N/A | T137: N/A | U137: N/A | V137: N/A | W137: N/A | X137: N/A | Y137: N/A | Z137: N/A | AA137: N/A | AB137: N/A | BB137: Improved latrines | BC137: N/A | BD137: N/A | BE137: N/A | BF137: N/A | BG137: N/A | BH137: N/A | BI137: N/A | BJ137: N/A | BK137: N/A | BL137: N/A | BM137: N/A | BN137: N/A | BO137: N/A | BP137: N/A | BQ137: N/A | BR137: N/A | BS137: N/A | BT137: N/A | BU137: N/A | BV137: N/A | BW137: N/A | BX137: N/A | BY137: N/A | BZ137: N/A | CA137: N/A | CB137: N/A
B138: Unimproved facilities | C138: N/A | D138: N/A | E138: N/A | F138: N/A | G138: N/A | H138: N/A | I138: N/A | J138: N/A | K138: N/A | L138: N/A | M138: N/A | N138: N/A | O138: N/A | P138: N/A | Q138: N/A | R138: N/A | S138: N/A | T138: N/A | U138: N/A | V138: N/A | W138: N/A | X138: N/A | Y138: N/A | Z138: N/A | AA138: N/A | AB138: N/A | BB138: Unimproved facilities | BC138: N/A | BD138: N/A | BE138: N/A | BF138: N/A | BG138: N/A | BH138: N/A | BI138: N/A | BJ138: N/A | BK138: N/A | BL138: N/A | BM138: N/A | BN138: N/A | BO138: N/A | BP138: N/A | BQ138: N/A | BR138: N/A | BS138: N/A | BT138: N/A | BU138: N/A | BV138: N/A | BW138: N/A | BX138: N/A | BY138: N/A | BZ138: N/A | CA138: N/A | CB138: N/A
B139: Open defecation | C139: 21.84082258 | D139: 14.76631757 | E139: 11.8367345 | F139: 8.365421954 | G139: 1.227184972 | H139: 8.309052369 | I139: 4.306712896 | J139: 2.217726268 | K139: 0.8250510835 | L139: 0.2617473182 | M139: 22.74748701 | N139: 17.80278288 | O139: 13.33039716 | P139: 12.4415684 | Q139: 10.2508782 | R139: 12.44133569 | S139: 16.56684365 | T139: 18.48949918 | U139: 16.02662081 | V139: 13.3519711 | W139: 15.8942166 | X139: 0.9910927111 | Y139: 5.387998066 | Z139: 5.086645176 | AA139: 8.54294211 | AB139: 8.934638365 | BB139: Open defecation | BC139: N/A | BD139: N/A | BE139: N/A | BF139: N/A | BG139: N/A | BH139: N/A | BI139: N/A | BJ139: N/A | BK139: N/A | BL139: N/A | BM139: N/A | BN139: N/A | BO139: N/A | BP139: N/A | BQ139: N/A | BR139: N/A | BS139: N/A | BT139: N/A | BU139: N/A | BV139: N/A | BW139: N/A | BX139: N/A | BY139: N/A | BZ139: N/A | CA139: N/A | CB139: N/A
A140: Septic tank emptying practices | B140: Not emptied/treated and disposed in situ | C140: N/A | D140: N/A | E140: N/A | F140: N/A | G140: N/A | H140: N/A | I140: N/A | J140: N/A | K140: N/A | L140: N/A | M140: N/A | N140: N/A | O140: N/A | P140: N/A | Q140: N/A | R140: N/A | S140: N/A | T140: N/A | U140: N/A | V140: N/A | W140: N/A | X140: N/A | Y140: N/A | Z140: N/A | AA140: N/A | AB140: N/A | BA140: Septic tank emptying practices | BB140: Not emptied/treated and disposed in situ | BC140: N/A | BD140: N/A | BE140: N/A | BF140: N/A | BG140: N/A | BH140: N/A | BI140: N/A | BJ140: N/A | BK140: N/A | BL140: N/A | BM140: N/A | BN140: N/A | BO140: N/A | BP140: N/A | BQ140: N/A | BR140: N/A | BS140: N/A | BT140: N/A | BU140: N/A | BV140: N/A | BW140: N/A | BX140: N/A | BY140: N/A | BZ140: N/A | CA140: N/A | CB140: N/A
B141: Emptied and buried on site | C141: N/A | D141: N/A | E141: N/A | F141: N/A | G141: N/A | H141: N/A | I141: N/A | J141: N/A | K141: N/A | L141: N/A | M141: N/A | N141: N/A | O141: N/A | P141: N/A | Q141: N/A | R141: N/A | S141: N/A | T141: N/A | U141: N/A | V141: N/A | W141: N/A | X141: N/A | Y141: N/A | Z141: N/A | AA141: N/A | AB141: N/A | BB141: Emptied and buried on site | BC141: N/A | BD141: N/A | BE141: N/A | BF141: N/A | BG141: N/A | BH141: N/A | BI141: N/A | BJ141: N/A | BK141: N/A | BL141: N/A | BM141: N/A | BN141: N/A | BO141: N/A | BP141: N/A | BQ141: N/A | BR141: N/A | BS141: N/A | BT141: N/A | BU141: N/A | BV141: N/A | BW141: N/A | BX141: N/A | BY141: N/A | BZ141: N/A | CA141: N/A | CB141: N/A
B142: Emptied and discharged locally | C142: N/A | D142: N/A | E142: N/A | F142: N/A | G142: N/A | H142: N/A | I142: N/A | J142: N/A | K142: N/A | L142: N/A | M142: N/A | N142: N/A | O142: N/A | P142: N/A | Q142: N/A | R142: N/A | S142: N/A | T142: N/A | U142: N/A | V142: N/A | W142: N/A | X142: N/A | Y142: N/A | Z142: N/A | AA142: N/A | AB142: N/A | BB142: Emptied and discharged locally | BC142: N/A | BD142: N/A | BE142: N/A | BF142: N/A | BG142: N/A | BH142: N/A | BI142: N/A | BJ142: N/A | BK142: N/A | BL142: N/A | BM142: N/A | BN142: N/A | BO142: N/A | BP142: N/A | BQ142: N/A | BR142: N/A | BS142: N/A | BT142: N/A | BU142: N/A | BV142: N/A | BW142: N/A | BX142: N/A | BY142: N/A | BZ142: N/A | CA142: N/A | CB142: N/A
B143: Emptied and removed offsite | C143: N/A | D143: N/A | E143: N/A | F143: N/A | G143: N/A | H143: N/A | I143: N/A | J143: N/A | K143: N/A | L143: N/A | M143: N/A | N143: N/A | O143: N/A | P143: N/A | Q143: N/A | R143: N/A | S143: N/A | T143: N/A | U143: N/A | V143: N/A | W143: N/A | X143: N/A | Y143: N/A | Z143: N/A | AA143: N/A | AB143: N/A | BB143: Emptied and removed offsite | BC143: N/A | BD143: N/A | BE143: N/A | BF143: N/A | BG143: N/A | BH143: N/A | BI143: N/A | BJ143: N/A | BK143: N/A | BL143: N/A | BM143: N/A | BN143: N/A | BO143: N/A | BP143: N/A | BQ143: N/A | BR143: N/A | BS143: N/A | BT143: N/A | BU143: N/A | BV143: N/A | BW143: N/A | BX143: N/A | BY143: N/A | BZ143: N/A | CA143: N/A | CB143: N/A
A144: Latrine emptying practices | B144: Not emptied/treated and disposed in situ | C144: N/A | D144: N/A | E144: N/A | F144: N/A | G144: N/A | H144: N/A | I144: N/A | J144: N/A | K144: N/A | L144: N/A | M144: N/A | N144: N/A | O144: N/A | P144: N/A | Q144: N/A | R144: N/A | S144: N/A | T144: N/A | U144: N/A | V144: N/A | W144: N/A | X144: N/A | Y144: N/A | Z144: N/A | AA144: N/A | AB144: N/A | BA144: Latrine emptying practices | BB144: Not emptied/treated and disposed in situ | BC144: N/A | BD144: N/A | BE144: N/A | BF144: N/A | BG144: N/A | BH144: N/A | BI144: N/A | BJ144: N/A | BK144: N/A | BL144: N/A | BM144: N/A | BN144: N/A | BO144: N/A | BP144: N/A | BQ144: N/A | BR144: N/A | BS144: N/A | BT144: N/A | BU144: N/A | BV144: N/A | BW144: N/A | BX144: N/A | BY144: N/A | BZ144: N/A | CA144: N/A | CB144: N/A
B145: Emptied and buried on site | C145: N/A | D145: N/A | E145: N/A | F145: N/A | G145: N/A | H145: N/A | I145: N/A | J145: N/A | K145: N/A | L145: N/A | M145: N/A | N145: N/A | O145: N/A | P145: N/A | Q145: N/A | R145: N/A | S145: N/A | T145: N/A | U145: N/A | V145: N/A | W145: N/A | X145: N/A | Y145: N/A | Z145: N/A | AA145: N/A | AB145: N/A | BB145: Emptied and buried on site | BC145: N/A | BD145: N/A | BE145: N/A | BF145: N/A | BG145: N/A | BH145: N/A | BI145: N/A | BJ145: N/A | BK145: N/A | BL145: N/A | BM145: N/A | BN145: N/A | BO145: N/A | BP145: N/A | BQ145: N/A | BR145: N/A | BS145: N/A | BT145: N/A | BU145: N/A | BV145: N/A | BW145: N/A | BX145: N/A | BY145: N/A | BZ145: N/A | CA145: N/A | CB145: N/A
B146: Emptied and discharged locally | C146: N/A | D146: N/A | E146: N/A | F146: N/A | G146: N/A | H146: N/A | I146: N/A | J146: N/A | K146: N/A | L146: N/A | M146: N/A | N146: N/A | O146: N/A | P146: N/A | Q146: N/A | R146: N/A | S146: N/A | T146: N/A | U146: N/A | V146: N/A | W146: N/A | X146: N/A | Y146: N/A | Z146: N/A | AA146: N/A | AB146: N/A | BB146: Emptied and discharged locally | BC146: N/A | BD146: N/A | BE146: N/A | BF146: N/A | BG146: N/A | BH146: N/A | BI146: N/A | BJ146: N/A | BK146: N/A | BL146: N/A | BM146: N/A | BN146: N/A | BO146: N/A | BP146: N/A | BQ146: N/A | BR146: N/A | BS146: N/A | BT146: N/A | BU146: N/A | BV146: N/A | BW146: N/A | BX146: N/A | BY146: N/A | BZ146: N/A | CA146: N/A | CB146: N/A
B147: Emptied and removed offsite | C147: N/A | D147: N/A | E147: N/A | F147: N/A | G147: N/A | H147: N/A | I147: N/A | J147: N/A | K147: N/A | L147: N/A | M147: N/A | N147: N/A | O147: N/A | P147: N/A | Q147: N/A | R147: N/A | S147: N/A | T147: N/A | U147: N/A | V147: N/A | W147: N/A | X147: N/A | Y147: N/A | Z147: N/A | AA147: N/A | AB147: N/A | BB147: Emptied and removed offsite | BC147: N/A | BD147: N/A | BE147: N/A | BF147: N/A | BG147: N/A | BH147: N/A | BI147: N/A | BJ147: N/A | BK147: N/A | BL147: N/A | BM147: N/A | BN147: N/A | BO147: N/A | BP147: N/A | BQ147: N/A | BR147: N/A | BS147: N/A | BT147: N/A | BU147: N/A | BV147: N/A | BW147: N/A | BX147: N/A | BY147: N/A | BZ147: N/A | CA147: N/A | CB147: N/A
A148: Shared among improved sanitation facilities | B148: Yes | C148: N/A | D148: N/A | E148: N/A | F148: N/A | G148: N/A | H148: N/A | I148: N/A | J148: N/A | K148: N/A | L148: N/A | M148: N/A | N148: N/A | O148: N/A | P148: N/A | Q148: N/A | R148: N/A | S148: N/A | T148: N/A | U148: N/A | V148: N/A | W148: N/A | X148: N/A | Y148: N/A | Z148: N/A | AA148: N/A | AB148: N/A | BA148: Shared among improved sanitation facilities | BB148: Yes | BC148: N/A | BD148: N/A | BE148: N/A | BF148: N/A | BG148: N/A | BH148: N/A | BI148: N/A | BJ148: N/A | BK148: N/A | BL148: N/A | BM148: N/A | BN148: N/A | BO148: N/A | BP148: N/A | BQ148: N/A | BR148: N/A | BS148: N/A | BT148: N/A | BU148: N/A | BV148: N/A | BW148: N/A | BX148: N/A | BY148: N/A | BZ148: N/A | CA148: N/A | CB148: N/A
B149: No | C149: N/A | D149: N/A | E149: N/A | F149: N/A | G149: N/A | H149: N/A | I149: N/A | J149: N/A | K149: N/A | L149: N/A | M149: N/A | N149: N/A | O149: N/A | P149: N/A | Q149: N/A | R149: N/A | S149: N/A | T149: N/A | U149: N/A | V149: N/A | W149: N/A | X149: N/A | Y149: N/A | Z149: N/A | AA149: N/A | AB149: N/A | BB149: No | BC149: N/A | BD149: N/A | BE149: N/A | BF149: N/A | BG149: N/A | BH149: N/A | BI149: N/A | BJ149: N/A | BK149: N/A | BL149: N/A | BM149: N/A | BN149: N/A | BO149: N/A | BP149: N/A | BQ149: N/A | BR149: N/A | BS149: N/A | BT149: N/A | BU149: N/A | BV149: N/A | BW149: N/A | BX149: N/A | BY149: N/A | BZ149: N/A | CA149: N/A | CB149: N/A
B150: DK/missing | C150: N/A | D150: N/A | E150: N/A | F150: N/A | G150: N/A | H150: N/A | I150: N/A | J150: N/A | K150: N/A | L150: N/A | M150: N/A | N150: N/A | O150: N/A | P150: N/A | Q150: N/A | R150: N/A | S150: N/A | T150: N/A | U150: N/A | V150: N/A | W150: N/A | X150: N/A | Y150: N/A | Z150: N/A | AA150: N/A | AB150: N/A | BB150: DK/missing | BC150: N/A | BD150: N/A | BE150: N/A | BF150: N/A | BG150: N/A | BH150: N/A | BI150: N/A | BJ150: N/A | BK150: N/A | BL150: N/A | BM150: N/A | BN150: N/A | BO150: N/A | BP150: N/A | BQ150: N/A | BR150: N/A | BS150: N/A | BT150: N/A | BU150: N/A | BV150: N/A | BW150: N/A | BX150: N/A | BY150: N/A | BZ150: N/A | CA150: N/A | CB150: N/A
A151: Shared among all sanitation facilities | B151: Yes | C151: N/A | D151: N/A | E151: N/A | F151: N/A | G151: N/A | H151: N/A | I151: N/A | J151: N/A | K151: N/A | L151: N/A | M151: N/A | N151: N/A | O151: N/A | P151: N/A | Q151: N/A | R151: N/A | S151: N/A | T151: N/A | U151: N/A | V151: N/A | W151: N/A | X151: N/A | Y151: N/A | Z151: N/A | AA151: N/A | AB151: N/A | BA151: Shared among all sanitation facilities | BB151: Yes | BC151: N/A | BD151: N/A | BE151: N/A | BF151: N/A | BG151: N/A | BH151: N/A | BI151: N/A | BJ151: N/A | BK151: N/A | BL151: N/A | BM151: N/A | BN151: N/A | BO151: N/A | BP151: N/A | BQ151: N/A | BR151: N/A | BS151: N/A | BT151: N/A | BU151: N/A | BV151: N/A | BW151: N/A | BX151: N/A | BY151: N/A | BZ151: N/A | CA151: N/A | CB151: N/A
B152: No | C152: N/A | D152: N/A | E152: N/A | F152: N/A | G152: N/A | H152: N/A | I152: N/A | J152: N/A | K152: N/A | L152: N/A | M152: N/A | N152: N/A | O152: N/A | P152: N/A | Q152: N/A | R152: N/A | S152: N/A | T152: N/A | U152: N/A | V152: N/A | W152: N/A | X152: N/A | Y152: N/A | Z152: N/A | AA152: N/A | AB152: N/A | BB152: No | BC152: N/A | BD152: N/A | BE152: N/A | BF152: N/A | BG152: N/A | BH152: N/A | BI152: N/A | BJ152: N/A | BK152: N/A | BL152: N/A | BM152: N/A | BN152: N/A | BO152: N/A | BP152: N/A | BQ152: N/A | BR152: N/A | BS152: N/A | BT152: N/A | BU152: N/A | BV152: N/A | BW152: N/A | BX152: N/A | BY152: N/A | BZ152: N/A | CA152: N/A | CB152: N/A
A153: type de toilette | B153: chasse raccordee & l'egout | C153: 0 | D153: 0 | E153: 0 | F153: 0 | G153: 6.325260129 | H153: 0 | I153: 0 | J153: 0.297762559 | K153: 2.369595423 | L153: 17.32527178 | M153: 0 | N153: 0 | O153: 0 | P153: 0 | Q153: 0.3248954624 | R153: 0 | S153: 0.1844167911 | T153: 0 | U153: 0 | V153: 0.2162929652 | W153: 1.90122424 | X153: 7.301467821 | Y153: 0 | Z153: 0 | AA153: 2.097203071 | AB153: 0 | BA153: type de toilette | BB153: chasse raccordee & l'egout | BC153: 0 | BD153: 0 | BE153: 0 | BF153: 0 | BG153: 647.0675688 | BH153: 0 | BI153: 0 | BJ153: 9.301905334 | BK153: 73.92774451 | BL153: 540.7203028 | BM153: 0 | BN153: 0 | BO153: 0 | BP153: 0 | BQ153: 23.11761618 | BR153: 0 | BS153: 6.126834154 | BT153: 0 | BU153: 0 | BV153: 9.845264554 | BW153: 135.3973441 | BX153: 360.913927 | BY153: 0 | BZ153: 0 | CA153: 134.784199 | CB153: 0
B154: latrine a evacuation | C154: 0.1365405772 | D154: 0 | E154: 0.1457324982 | F154: 1.443721594 | G154: 31.82774262 | H154: 0.8457779563 | I154: 2.927876133 | J154: 18.06575334 | K154: 36.7921982 | L154: 49.32348505 | M154: 0.1098537383 | N154: 0.0865804086 | O154: 0 | P154: 0.2095858293 | Q154: 0.4841326354 | R154: 0.3774579142 | S154: 4.024956735 | T154: 0.473986048 | U154: 1.107391025 | V154: 1.557309349 | W154: 7.164734483 | X154: 49.49190817 | Y154: 0 | Z154: 0.7717146727 | AA154: 1.723972016 | AB154: 0.9050017184 | BB154: latrine a evacuation | BC154: 13.95370823 | BD154: 0 | BE154: 14.91141605 | BF154: 147.7999354 | BG154: 3255.945149 | BH154: 26.40770578 | BI154: 91.28513861 | BJ154: 564.3621812 | BK154: 1147.86018 | BL154: 1539.381899 | BM154: 7.705872059 | BN154: 6.247836173 | BO154: 0 | BP154: 14.91141605 | BQ154: 34.44798017 | BR154: 23.05332571 | BS154: 133.7201577 | BT154: 24.44732136 | BU154: 51.1777997 | BV154: 70.88590479 | BW154: 510.2428215 | BX154: 2446.401103 | BY154: 0 | BZ154: 29.33164603 | CA154: 110.7971805 | CB154: 32.55294859
B155: latrines ameliorees a ventilation | C155: 0.2178419303 | D155: 0.126335095 | E155: 0.07534126847 | F155: 0.08605905265 | G155: 1.041047138 | H155: 0 | I155: 0.08092709682 | J155: 0.1389558609 | K155: 1.159967785 | L155: 2.032840993 | M155: 0.3173674821 | N155: 0 | O155: 0.1822941876 | P155: 0.1083523746 | Q155: 0.1238191875 | R155: 0 | S155: 0.3898448264 | T155: 0 | U155: 0 | V155: 0.04755817314 | W155: 0.4074387944 | X155: 1.267093213 | Y155: 0 | Z155: 0.2422211989 | AA155: 0.4005095718 | AB155: 0.459248447 | BB155: latrines ameliorees a ventilation | BC155: 22.26226664 | BD155: 12.95171976 | BE155: 7.708953142 | BF155: 8.810232162 | BG155: 106.4980454 | BH155: 0 | BI155: 2.523139954 | BJ155: 4.340889156 | BK155: 36.18921661 | BL155: 63.44479966 | BM155: 22.26226664 | BN155: 0 | BO155: 12.95171976 | BP155: 7.708953142 | BQ155: 8.810232162 | BR155: 0 | BS155: 12.95171976 | BT155: 0 | BU155: 0 | BV155: 2.16476202 | BW155: 29.01610947 | BX155: 62.63282925 | BY155: 0 | BZ155: 9.206442118 | CA155: 25.74016917 | CB155: 16.5191853
B156: latrines tradionnelle couertes | C156: 30.94135447 | D156: 40.08250666 | E156: 43.19868496 | F156: 45.68906303 | G156: 27.9741349 | H156: 48.40335196 | I156: 44.30071866 | J156: 38.63203758 | K156: 24.8071844 | L156: 13.82953097 | M156: 29.18415674 | N156: 36.19542212 | O156: 41.14672386 | P156: 42.04943335 | Q156: 47.0998473 | R156: 57.37231594 | S156: 21.89166208 | T156: 38.08562779 | U156: 19.82611172 | V156: 38.6524666 | W156: 38.36565589 | X156: 15.26784594 | Y156: 12.28711164 | Z156: 46.03664309 | AA156: 45.32969471 | AB156: 56.22148756 | BB156: latrines tradionnelle couertes | BC156: 3162.039017 | BD156: 4109.209667 | BE156: 4420.109256 | BF156: 4677.384194 | BG156: 2861.725066 | BH156: 1511.296751 | BI156: 1381.20503 | BJ156: 1206.839293 | BK156: 773.9461229 | BL156: 431.6185206 | BM156: 2047.170916 | BN156: 2611.942716 | BO156: 2923.411018 | BP156: 2991.693654 | BQ156: 3351.343179 | BR156: 3504.026904 | BS156: 727.3013598 | BT156: 1964.386052 | BU156: 916.2588027 | BV156: 1759.390367 | BW156: 2732.24368 | BX156: 754.6945861 | BY156: 186.8230292 | BZ156: 1749.779507 | CA156: 2913.27372 | CB156: 2022.289193
B157: latrinetraditionnelles non couvertes | C157: 38.2443291 | D157: 37.81757529 | E157: 38.97808162 | F157: 38.81559076 | G157: 22.96848025 | H157: 38.2695809 | I157: 42.83545744 | J157: 30.58476055 | K157: 23.64830619 | L157: 11.61110308 | M157: 39.45199758 | N157: 36.70202762 | O157: 38.79002874 | P157: 38.89450181 | Q157: 36.14470665 | R157: 24.53318722 | S157: 41.71748631 | T157: 36.95433491 | U157: 61.09175713 | V157: 44.06792027 | W157: 21.9502851 | X157: 15.78221051 | Y157: 78.69366918 | Z157: 38.9813319 | AA157: 37.62426484 | AB157: 28.8536384 | BB157: latrinetraditionnelles non couvertes | BC157: 3908.363511 | BD157: 3877.011667 | BE157: 3988.255188 | BF157: 3973.71753 | BG157: 2349.651773 | BH157: 1194.890249 | BI157: 1335.521208 | BJ157: 955.4476836 | BK157: 737.7908992 | BL157: 362.381569 | BM157: 2767.425584 | BN157: 2648.500503 | BO157: 2755.971478 | BP157: 2767.229543 | BQ157: 2571.840951 | BR157: 1498.369844 | BS157: 1385.969892 | BT157: 1906.036063 | BU157: 2823.340302 | BV157: 2005.892022 | BW157: 1563.208717 | BX157: 780.119794 | BY157: 1196.521207 | BZ157: 1481.618362 | CA157: 2418.05692 | CB157: 1037.866546
B158: trou ouvert | C158: 8.22170605 | D158: 6.682416514 | E158: 5.401853165 | F158: 5.537659609 | G158: 7.837233403 | H158: 4.08363542 | I158: 5.548307774 | J158: 8.754308431 | K158: 9.906740569 | L158: 4.798060439 | M158: 7.841774894 | N158: 8.627707872 | O158: 6.082666577 | P158: 5.850134147 | Q158: 5.520699497 | R158: 5.071667562 | S158: 12.66318504 | T158: 4.940961007 | U158: 1.783351015 | V158: 2.106481546 | W158: 14.3164449 | X158: 9.835654247 | Y158: 3.146782913 | Z158: 8.316261161 | AA158: 3.980148308 | AB158: 4.381052999 | BB158: trou ouvert | BC158: 840.2138744 | BD158: 685.073186 | BE158: 552.7200933 | BF158: 566.9138259 | BG158: 801.7408708 | BH158: 127.5032553 | BI158: 172.9847921 | BJ158: 273.4788032 | BK158: 309.0751183 | BL158: 149.7470704 | BM158: 550.0742623 | BN158: 622.5947209 | BO158: 432.1640417 | BP158: 416.2198586 | BQ158: 392.8199275 | BR158: 309.7532197 | BS158: 420.7059139 | BT158: 254.8456058 | BU158: 82.41712189 | BV158: 95.88322985 | BW158: 1019.558122 | BX158: 486.1795855 | BY158: 47.84619308 | BZ158: 316.087846 | CA158: 255.7983578 | CB158: 157.5866544
B159: autres | C159: 0.3974052984 | D159: 0.5248488653 | E159: 0.3635719917 | F159: 0.06248399755 | G159: 0.798916583 | H159: 0.08860138719 | I159: 0 | J159: 1.308695421 | K159: 0.4909563475 | L159: 0.8179603695 | M159: 0.3473625559 | N159: 0.5854791035 | O159: 0.467889475 | P159: 0.4464240936 | Q159: 0.05102107356 | R159: 0.2040356676 | S159: 2.561604565 | T159: 1.055591064 | U159: 0.1647683074 | V159: 0 | W159: 0 | X159: 0.06272738678 | Y159: 0.4844382023 | Z159: 0.5651827974 | AA159: 0.3012653793 | AB159: 0.2449325051 | BB159: autres | BC159: 40.61267132 | BD159: 53.80686516 | BE159: 37.20085293 | BF159: 6.396753252 | BG159: 81.72834009 | BH159: 2.766399086 | BI159: 0 | BJ159: 40.88277906 | BK159: 15.31708539 | BL159: 25.52847564 | BM159: 24.36632067 | BN159: 42.24948323 | BO159: 33.24282271 | BP159: 31.7617628 | BQ159: 3.630354166 | BR159: 12.46152359 | BS159: 85.10356486 | BT159: 54.4454295 | BU159: 7.614726186 | BV159: 0 | BW159: 0 | BX159: 3.100635111 | BY159: 7.365784168 | BZ159: 21.48169827 | CA159: 19.36188889 | CB159: 8.810232162
B160: pas de toilettes ou brousse ou champ | C160: 21.84082258 | D160: 14.76631757 | E160: 11.8367345 | F160: 8.365421954 | G160: 1.227184972 | H160: 8.309052369 | I160: 4.306712896 | J160: 2.217726268 | K160: 0.8250510835 | L160: 0.2617473182 | M160: 22.74748701 | N160: 17.80278288 | O160: 13.33039716 | P160: 12.4415684 | Q160: 10.2508782 | R160: 12.44133569 | S160: 16.56684365 | T160: 18.48949918 | U160: 16.02662081 | V160: 13.3519711 | W160: 15.8942166 | X160: 0.9910927111 | Y160: 5.387998066 | Z160: 5.086645176 | AA160: 8.54294211 | AB160: 8.934638365 | BB160: pas de toilettes ou brousse ou champ | BC160: 2232.013897 | BD160: 1513.824857 | BE160: 1211.140102 | BF160: 856.4039143 | BG160: 125.5397533 | BH160: 259.4333521 | BI160: 134.2744248 | BJ160: 69.28030127 | BK160: 25.74032897 | BL160: 8.169112206 | BM160: 1595.660078 | BN160: 1284.68868 | BO160: 947.1040768 | BP160: 885.1810421 | BQ160: 729.3911276 | BR160: 759.8573328 | BS160: 550.3962135 | BT160: 953.654079 | BU160: 740.666279 | BV160: 607.757574 | BW160: 1131.920512 | BX160: 48.99003476 | BY160: 81.92341286 | BZ160: 193.3352845 | CA160: 549.0424963 | CB160: 321.3793051
BB161: Total | BC161: 10219.45895 | BD161: 10251.87796 | BE161: 10232.04586 | BF161: 10237.42638 | BG161: 10229.89657 | BH161: 3122.297713 | BI161: 3117.793734 | BJ161: 3123.933836 | BK161: 3119.846696 | BL161: 3120.991749 | BM161: 7014.665299 | BN161: 7216.22394 | BO161: 7104.845157 | BP161: 7114.706229 | BQ161: 7115.401368 | BR161: 6107.52215 | BS161: 3322.275655 | BT161: 5157.814551 | BU161: 4621.475031 | BV161: 4551.819124 | BW161: 7121.587306 | BX161: 4943.032494 | BY161: 1520.479626 | BZ161: 3800.840785 | CA161: 6426.854932 | CB161: 3597.004064
A208: =A1026 -> Democratic Republic of the Congo
A209: =A1034 -> 2001
A210: Access to hygiene facilities
A211: by wealth quintile and sub-national region
A212: Notes:
A213: WHO/UNICEF JMP customised wealth index excludes water,
A214: sanitation and hygiene assets.
A215: Survey used for analysis: | B215: =A1025 -> MICS01
A220: Access to handwashing | C220: NATIONAL wealth index quintile | H220: URBAN wealth index quintile | M220: RURAL wealth index quintile | R220: SUB-REGIONS: | BA220: Raw numbers of respondents: | BB220: Access to handwashing | BC220: NATIONAL wealth index quintile | BH220: URBAN wealth index quintile | BM220: RURAL wealth index quintile | BR220: SUB-REGIONS:
A221: Weighted percentage (used in graphs) | C221: Poorest | D221: Poor | E221: Middle | F221: Rich | G221: Richest | H221: Poorest | I221: Poor | J221: Middle | K221: Rich | L221: Richest | M221: Poorest | N221: Poor | O221: Middle | P221: Rich | Q221: Richest | R221: bandundu | S221: bas-congo | T221: equateur | U221: kasai occidental | V221: kasai oriental | W221: katanga | X221: kinshasa | Y221: maniema | Z221: nord-kivu | AA221: orientale | AB221: sud-kivu | BA221: Hygiene data, raw numbers (weighted) | BC221: Poorest | BD221: Poor | BE221: Middle | BF221: Rich | BG221: Richest | BH221: Poorest | BI221: Poor | BJ221: Middle | BK221: Rich | BL221: Richest | BM221: Poorest | BN221: Poor | BO221: Middle | BP221: Rich | BQ221: Richest | BR221: bandundu | BS221: bas-congo | BT221: equateur | BU221: kasai occidental | BV221: kasai oriental | BW221: katanga | BX221: kinshasa | BY221: maniema | BZ221: nord-kivu | CA221: orientale | CB221: sud-kivu
A222: Hygiene ladder | B222: Basic | C222: N/A | D222: N/A | E222: N/A | F222: N/A | G222: N/A | H222: N/A | I222: N/A | J222: N/A | K222: N/A | L222: N/A | M222: N/A | N222: N/A | O222: N/A | P222: N/A | Q222: N/A | R222: N/A | S222: N/A | T222: N/A | U222: N/A | V222: N/A | W222: N/A | X222: N/A | Y222: N/A | Z222: N/A | AA222: N/A | AB222: N/A | BA222: Hygiene ladder | BB222: Basic | BC222: N/A | BD222: N/A | BE222: N/A | BF222: N/A | BG222: N/A | BH222: N/A | BI222: N/A | BJ222: N/A | BK222: N/A | BL222: N/A | BM222: N/A | BN222: N/A | BO222: N/A | BP222: N/A | BQ222: N/A | BR222: N/A | BS222: N/A | BT222: N/A | BU222: N/A | BV222: N/A | BW222: N/A | BX222: N/A | BY222: N/A | BZ222: N/A | CA222: N/A | CB222: N/A
B223: Limited | C223: N/A | D223: N/A | E223: N/A | F223: N/A | G223: N/A | H223: N/A | I223: N/A | J223: N/A | K223: N/A | L223: N/A | M223: N/A | N223: N/A | O223: N/A | P223: N/A | Q223: N/A | R223: N/A | S223: N/A | T223: N/A | U223: N/A | V223: N/A | W223: N/A | X223: N/A | Y223: N/A | Z223: N/A | AA223: N/A | AB223: N/A | BB223: Limited | BC223: N/A | BD223: N/A | BE223: N/A | BF223: N/A | BG223: N/A | BH223: N/A | BI223: N/A | BJ223: N/A | BK223: N/A | BL223: N/A | BM223: N/A | BN223: N/A | BO223: N/A | BP223: N/A | BQ223: N/A | BR223: N/A | BS223: N/A | BT223: N/A | BU223: N/A | BV223: N/A | BW223: N/A | BX223: N/A | BY223: N/A | BZ223: N/A | CA223: N/A | CB223: N/A
B224: No facility | C224: N/A | D224: N/A | E224: N/A | F224: N/A | G224: N/A | H224: N/A | I224: N/A | J224: N/A | K224: N/A | L224: N/A | M224: N/A | N224: N/A | O224: N/A | P224: N/A | Q224: N/A | R224: N/A | S224: N/A | T224: N/A | U224: N/A | V224: N/A | W224: N/A | X224: N/A | Y224: N/A | Z224: N/A | AA224: N/A | AB224: N/A | BB224: No facility | BC224: N/A | BD224: N/A | BE224: N/A | BF224: N/A | BG224: N/A | BH224: N/A | BI224: N/A | BJ224: N/A | BK224: N/A | BL224: N/A | BM224: N/A | BN224: N/A | BO224: N/A | BP224: N/A | BQ224: N/A | BR224: N/A | BS224: N/A | BT224: N/A | BU224: N/A | BV224: N/A | BW224: N/A | BX224: N/A | BY224: N/A | BZ224: N/A | CA224: N/A | CB224: N/A
BA225: Observed handwashing place | BB225: Fixed | BC225: N/A | BD225: N/A | BE225: N/A | BF225: N/A | BG225: N/A | BH225: N/A | BI225: N/A | BJ225: N/A | BK225: N/A | BL225: N/A | BM225: N/A | BN225: N/A | BO225: N/A | BP225: N/A | BQ225: N/A | BR225: N/A | BS225: N/A | BT225: N/A | BU225: N/A | BV225: N/A | BW225: N/A | BX225: N/A | BY225: N/A | BZ225: N/A | CA225: N/A | CB225: N/A
BB226: Mobile | BC226: N/A | BD226: N/A | BE226: N/A | BF226: N/A | BG226: N/A | BH226: N/A | BI226: N/A | BJ226: N/A | BK226: N/A | BL226: N/A | BM226: N/A | BN226: N/A | BO226: N/A | BP226: N/A | BQ226: N/A | BR226: N/A | BS226: N/A | BT226: N/A | BU226: N/A | BV226: N/A | BW226: N/A | BX226: N/A | BY226: N/A | BZ226: N/A | CA226: N/A | CB226: N/A
BA227: Water / Soap | BB227: Water and soap | BC227: N/A | BD227: N/A | BE227: N/A | BF227: N/A | BG227: N/A | BH227: N/A | BI227: N/A | BJ227: N/A | BK227: N/A | BL227: N/A | BM227: N/A | BN227: N/A | BO227: N/A | BP227: N/A | BQ227: N/A | BR227: N/A | BS227: N/A | BT227: N/A | BU227: N/A | BV227: N/A | BW227: N/A | BX227: N/A | BY227: N/A | BZ227: N/A | CA227: N/A | CB227: N/A
BB228: Water only | BC228: N/A | BD228: N/A | BE228: N/A | BF228: N/A | BG228: N/A | BH228: N/A | BI228: N/A | BJ228: N/A | BK228: N/A | BL228: N/A | BM228: N/A | BN228: N/A | BO228: N/A | BP228: N/A | BQ228: N/A | BR228: N/A | BS228: N/A | BT228: N/A | BU228: N/A | BV228: N/A | BW228: N/A | BX228: N/A | BY228: N/A | BZ228: N/A | CA228: N/A | CB228: N/A
BB229: Soap only | BC229: N/A | BD229: N/A | BE229: N/A | BF229: N/A | BG229: N/A | BH229: N/A | BI229: N/A | BJ229: N/A | BK229: N/A | BL229: N/A | BM229: N/A | BN229: N/A | BO229: N/A | BP229: N/A | BQ229: N/A | BR229: N/A | BS229: N/A | BT229: N/A | BU229: N/A | BV229: N/A | BW229: N/A | BX229: N/A | BY229: N/A | BZ229: N/A | CA229: N/A | CB229: N/A
BB230: Neither | BC230: N/A | BD230: N/A | BE230: N/A | BF230: N/A | BG230: N/A | BH230: N/A | BI230: N/A | BJ230: N/A | BK230: N/A | BL230: N/A | BM230: N/A | BN230: N/A | BO230: N/A | BP230: N/A | BQ230: N/A | BR230: N/A | BS230: N/A | BT230: N/A | BU230: N/A | BV230: N/A | BW230: N/A | BX230: N/A | BY230: N/A | BZ230: N/A | CA230: N/A | CB230: N/A
BA259: Raw numbers of respondents: | BB259: Menstrual health and hygiene | BC259: NATIONAL wealth index quintile | BH259: URBAN wealth index quintile | BM259: RURAL wealth index quintile | BR259: SUB-REGIONS:
BA260: MHH data, raw numbers (weighted) | BC260: Poorest | BD260: Poor | BE260: Middle | BF260: Rich | BG260: Richest | BH260: Poorest | BI260: Poor | BJ260: Middle | BK260: Rich | BL260: Richest | BM260: Poorest | BN260: Poor | BO260: Middle | BP260: Rich | BQ260: Richest | BR260: bandundu | BS260: bas-congo | BT260: equateur | BU260: kasai occidental | BV260: kasai oriental | BW260: katanga | BX260: kinshasa | BY260: maniema | BZ260: nord-kivu | CA260: orientale | CB260: sud-kivu
BA261: Private place to wash and change | BB261: Yes | BC261: N/A | BD261: N/A | BE261: N/A | BF261: N/A | BG261: N/A | BH261: N/A | BI261: N/A | BJ261: N/A | BK261: N/A | BL261: N/A | BM261: N/A | BN261: N/A | BO261: N/A | BP261: N/A | BQ261: N/A | BR261: N/A | BS261: N/A | BT261: N/A | BU261: N/A | BV261: N/A | BW261: N/A | BX261: N/A | BY261: N/A | BZ261: N/A | CA261: N/A | CB261: N/A
BB262: No | BC262: N/A | BD262: N/A | BE262: N/A | BF262: N/A | BG262: N/A | BH262: N/A | BI262: N/A | BJ262: N/A | BK262: N/A | BL262: N/A | BM262: N/A | BN262: N/A | BO262: N/A | BP262: N/A | BQ262: N/A | BR262: N/A | BS262: N/A | BT262: N/A | BU262: N/A | BV262: N/A | BW262: N/A | BX262: N/A | BY262: N/A | BZ262: N/A | CA262: N/A | CB262: N/A
BB263: DK/not sure/missing | BC263: N/A | BD263: N/A | BE263: N/A | BF263: N/A | BG263: N/A | BH263: N/A | BI263: N/A | BJ263: N/A | BK263: N/A | BL263: N/A | BM263: N/A | BN263: N/A | BO263: N/A | BP263: N/A | BQ263: N/A | BR263: N/A | BS263: N/A | BT263: N/A | BU263: N/A | BV263: N/A | BW263: N/A | BX263: N/A | BY263: N/A | BZ263: N/A | CA263: N/A | CB263: N/A
BA264: Use of menstrual materials | BB264: Materials reusable | BC264: N/A | BD264: N/A | BE264: N/A | BF264: N/A | BG264: N/A | BH264: N/A | BI264: N/A | BJ264: N/A | BK264: N/A | BL264: N/A | BM264: N/A | BN264: N/A | BO264: N/A | BP264: N/A | BQ264: N/A | BR264: N/A | BS264: N/A | BT264: N/A | BU264: N/A | BV264: N/A | BW264: N/A | BX264: N/A | BY264: N/A | BZ264: N/A | CA264: N/A | CB264: N/A
BB265: Materials not reusable | BC265: N/A | BD265: N/A | BE265: N/A | BF265: N/A | BG265: N/A | BH265: N/A | BI265: N/A | BJ265: N/A | BK265: N/A | BL265: N/A | BM265: N/A | BN265: N/A | BO265: N/A | BP265: N/A | BQ265: N/A | BR265: N/A | BS265: N/A | BT265: N/A | BU265: N/A | BV265: N/A | BW265: N/A | BX265: N/A | BY265: N/A | BZ265: N/A | CA265: N/A | CB265: N/A
BB266: No materials used | BC266: N/A | BD266: N/A | BE266: N/A | BF266: N/A | BG266: N/A | BH266: N/A | BI266: N/A | BJ266: N/A | BK266: N/A | BL266: N/A | BM266: N/A | BN266: N/A | BO266: N/A | BP266: N/A | BQ266: N/A | BR266: N/A | BS266: N/A | BT266: N/A | BU266: N/A | BV266: N/A | BW266: N/A | BX266: N/A | BY266: N/A | BZ266: N/A | CA266: N/A | CB266: N/A
BB267: DK/not sure/missing | BC267: N/A | BD267: N/A | BE267: N/A | BF267: N/A | BG267: N/A | BH267: N/A | BI267: N/A | BJ267: N/A | BK267: N/A | BL267: N/A | BM267: N/A | BN267: N/A | BO267: N/A | BP267: N/A | BQ267: N/A | BR267: N/A | BS267: N/A | BT267: N/A | BU267: N/A | BV267: N/A | BW267: N/A | BX267: N/A | BY267: N/A | BZ267: N/A | CA267: N/A | CB267: N/A
BA268: Use of menstrual materials with private place to wash and change | BB268: Materials reusable | BC268: N/A | BD268: N/A | BE268: N/A | BF268: N/A | BG268: N/A | BH268: N/A | BI268: N/A | BJ268: N/A | BK268: N/A | BL268: N/A | BM268: N/A | BN268: N/A | BO268: N/A | BP268: N/A | BQ268: N/A | BR268: N/A | BS268: N/A | BT268: N/A | BU268: N/A | BV268: N/A | BW268: N/A | BX268: N/A | BY268: N/A | BZ268: N/A | CA268: N/A | CB268: N/A
BB269: Materials not reusable | BC269: N/A | BD269: N/A | BE269: N/A | BF269: N/A | BG269: N/A | BH269: N/A | BI269: N/A | BJ269: N/A | BK269: N/A | BL269: N/A | BM269: N/A | BN269: N/A | BO269: N/A | BP269: N/A | BQ269: N/A | BR269: N/A | BS269: N/A | BT269: N/A | BU269: N/A | BV269: N/A | BW269: N/A | BX269: N/A | BY269: N/A | BZ269: N/A | CA269: N/A | CB269: N/A
BB270: No materials used | BC270: N/A | BD270: N/A | BE270: N/A | BF270: N/A | BG270: N/A | BH270: N/A | BI270: N/A | BJ270: N/A | BK270: N/A | BL270: N/A | BM270: N/A | BN270: N/A | BO270: N/A | BP270: N/A | BQ270: N/A | BR270: N/A | BS270: N/A | BT270: N/A | BU270: N/A | BV270: N/A | BW270: N/A | BX270: N/A | BY270: N/A | BZ270: N/A | CA270: N/A | CB270: N/A
BA271: Awareness of menstruation before menarche | BB271: Yes | BC271: N/A | BD271: N/A | BE271: N/A | BF271: N/A | BG271: N/A | BH271: N/A | BI271: N/A | BJ271: N/A | BK271: N/A | BL271: N/A | BM271: N/A | BN271: N/A | BO271: N/A | BP271: N/A | BQ271: N/A | BR271: N/A | BS271: N/A | BT271: N/A | BU271: N/A | BV271: N/A | BW271: N/A | BX271: N/A | BY271: N/A | BZ271: N/A | CA271: N/A | CB271: N/A
BB272: No | BC272: N/A | BD272: N/A | BE272: N/A | BF272: N/A | BG272: N/A | BH272: N/A | BI272: N/A | BJ272: N/A | BK272: N/A | BL272: N/A | BM272: N/A | BN272: N/A | BO272: N/A | BP272: N/A | BQ272: N/A | BR272: N/A | BS272: N/A | BT272: N/A | BU272: N/A | BV272: N/A | BW272: N/A | BX272: N/A | BY272: N/A | BZ272: N/A | CA272: N/A | CB272: N/A
BB273: DK/not sure/missing | BC273: N/A | BD273: N/A | BE273: N/A | BF273: N/A | BG273: N/A | BH273: N/A | BI273: N/A | BJ273: N/A | BK273: N/A | BL273: N/A | BM273: N/A | BN273: N/A | BO273: N/A | BP273: N/A | BQ273: N/A | BR273: N/A | BS273: N/A | BT273: N/A | BU273: N/A | BV273: N/A | BW273: N/A | BX273: N/A | BY273: N/A | BZ273: N/A | CA273: N/A | CB273: N/A
BA274: Participation in (all) activities during menstruation | BB274: Yes | BC274: N/A | BD274: N/A | BE274: N/A | BF274: N/A | BG274: N/A | BH274: N/A | BI274: N/A | BJ274: N/A | BK274: N/A | BL274: N/A | BM274: N/A | BN274: N/A | BO274: N/A | BP274: N/A | BQ274: N/A | BR274: N/A | BS274: N/A | BT274: N/A | BU274: N/A | BV274: N/A | BW274: N/A | BX274: N/A | BY274: N/A | BZ274: N/A | CA274: N/A | CB274: N/A
BB275: No | BC275: N/A | BD275: N/A | BE275: N/A | BF275: N/A | BG275: N/A | BH275: N/A | BI275: N/A | BJ275: N/A | BK275: N/A | BL275: N/A | BM275: N/A | BN275: N/A | BO275: N/A | BP275: N/A | BQ275: N/A | BR275: N/A | BS275: N/A | BT275: N/A | BU275: N/A | BV275: N/A | BW275: N/A | BX275: N/A | BY275: N/A | BZ275: N/A | CA275: N/A | CB275: N/A
BB276: DK/not sure/missing/no such activity | BC276: N/A | BD276: N/A | BE276: N/A | BF276: N/A | BG276: N/A | BH276: N/A | BI276: N/A | BJ276: N/A | BK276: N/A | BL276: N/A | BM276: N/A | BN276: N/A | BO276: N/A | BP276: N/A | BQ276: N/A | BR276: N/A | BS276: N/A | BT276: N/A | BU276: N/A | BV276: N/A | BW276: N/A | BX276: N/A | BY276: N/A | BZ276: N/A | CA276: N/A | CB276: N/A
BA277: Participation in specific activities during menstruation | BB277: Did not go to school (amongst those usually attending school) | BC277: N/A | BD277: N/A | BE277: N/A | BF277: N/A | BG277: N/A | BH277: N/A | BI277: N/A | BJ277: N/A | BK277: N/A | BL277: N/A | BM277: N/A | BN277: N/A | BO277: N/A | BP277: N/A | BQ277: N/A | BR277: N/A | BS277: N/A | BT277: N/A | BU277: N/A | BV277: N/A | BW277: N/A | BX277: N/A | BY277: N/A | BZ277: N/A | CA277: N/A | CB277: N/A
BB278: Did not go to work (amongst those who usually work) | BC278: N/A | BD278: N/A | BE278: N/A | BF278: N/A | BG278: N/A | BH278: N/A | BI278: N/A | BJ278: N/A | BK278: N/A | BL278: N/A | BM278: N/A | BN278: N/A | BO278: N/A | BP278: N/A | BQ278: N/A | BR278: N/A | BS278: N/A | BT278: N/A | BU278: N/A | BV278: N/A | BW278: N/A | BX278: N/A | BY278: N/A | BZ278: N/A | CA278: N/A | CB278: N/A
BB279: Did not participate in social activities | BC279: N/A | BD279: N/A | BE279: N/A | BF279: N/A | BG279: N/A | BH279: N/A | BI279: N/A | BJ279: N/A | BK279: N/A | BL279: N/A | BM279: N/A | BN279: N/A | BO279: N/A | BP279: N/A | BQ279: N/A | BR279: N/A | BS279: N/A | BT279: N/A | BU279: N/A | BV279: N/A | BW279: N/A | BX279: N/A | BY279: N/A | BZ279: N/A | CA279: N/A | CB279: N/A
BB280: Did not cook food | BC280: N/A | BD280: N/A | BE280: N/A | BF280: N/A | BG280: N/A | BH280: N/A | BI280: N/A | BJ280: N/A | BK280: N/A | BL280: N/A | BM280: N/A | BN280: N/A | BO280: N/A | BP280: N/A | BQ280: N/A | BR280: N/A | BS280: N/A | BT280: N/A | BU280: N/A | BV280: N/A | BW280: N/A | BX280: N/A | BY280: N/A | BZ280: N/A | CA280: N/A | CB280: N/A
BB281: Did not eat with others | BC281: N/A | BD281: N/A | BE281: N/A | BF281: N/A | BG281: N/A | BH281: N/A | BI281: N/A | BJ281: N/A | BK281: N/A | BL281: N/A | BM281: N/A | BN281: N/A | BO281: N/A | BP281: N/A | BQ281: N/A | BR281: N/A | BS281: N/A | BT281: N/A | BU281: N/A | BV281: N/A | BW281: N/A | BX281: N/A | BY281: N/A | BZ281: N/A | CA281: N/A | CB281: N/A
BB282: Did not bathe in regular place | BC282: N/A | BD282: N/A | BE282: N/A | BF282: N/A | BG282: N/A | BH282: N/A | BI282: N/A | BJ282: N/A | BK282: N/A | BL282: N/A | BM282: N/A | BN282: N/A | BO282: N/A | BP282: N/A | BQ282: N/A | BR282: N/A | BS282: N/A | BT282: N/A | BU282: N/A | BV282: N/A | BW282: N/A | BX282: N/A | BY282: N/A | BZ282: N/A | CA282: N/A | CB282: N/A
BB283: Did not participate in other activities | BC283: N/A | BD283: N/A | BE283: N/A | BF283: N/A | BG283: N/A | BH283: N/A | BI283: N/A | BJ283: N/A | BK283: N/A | BL283: N/A | BM283: N/A | BN283: N/A | BO283: N/A | BP283: N/A | BQ283: N/A | BR283: N/A | BS283: N/A | BT283: N/A | BU283: N/A | BV283: N/A | BW283: N/A | BX283: N/A | BY283: N/A | BZ283: N/A | CA283: N/A | CB283: N/A
BB284: DK/not sure/missing/no such activity | BC284: N/A | BD284: N/A | BE284: N/A | BF284: N/A | BG284: N/A | BH284: N/A | BI284: N/A | BJ284: N/A | BK284: N/A | BL284: N/A | BM284: N/A | BN284: N/A | BO284: N/A | BP284: N/A | BQ284: N/A | BR284: N/A | BS284: N/A | BT284: N/A | BU284: N/A | BV284: N/A | BW284: N/A | BX284: N/A | BY284: N/A | BZ284: N/A | CA284: N/A | CB284: N/A
BA339: Raw numbers of respondents: | BB339: Basic water, sanitation and hygiene | BC339: NATIONAL wealth index quintile | BH339: URBAN wealth index quintile | BM339: RURAL wealth index quintile | BR339: SUB-REGIONS:
BA340: WatSan data, raw numbers (weighted) | BC340: Poorest | BD340: Poor | BE340: Middle | BF340: Rich | BG340: Richest | BH340: Poorest | BI340: Poor | BJ340: Middle | BK340: Rich | BL340: Richest | BM340: Poorest | BN340: Poor | BO340: Middle | BP340: Rich | BQ340: Richest | BR340: bandundu | BS340: bas-congo | BT340: equateur | BU340: kasai occidental | BV340: kasai oriental | BW340: katanga | BX340: kinshasa | BY340: maniema | BZ340: nord-kivu | CA340: orientale | CB340: sud-kivu
BA341: Use of Basic Water Sanitation and Hygiene | BB341: Yes | BC341: N/A | BD341: N/A | BE341: N/A | BF341: N/A | BG341: N/A | BH341: N/A | BI341: N/A | BJ341: N/A | BK341: N/A | BL341: N/A | BM341: N/A | BN341: N/A | BO341: N/A | BP341: N/A | BQ341: N/A | BR341: N/A | BS341: N/A | BT341: N/A | BU341: N/A | BV341: N/A | BW341: N/A | BX341: N/A | BY341: N/A | BZ341: N/A | CA341: N/A | CB341: N/A
BB342: No | BC342: N/A | BD342: N/A | BE342: N/A | BF342: N/A | BG342: N/A | BH342: N/A | BI342: N/A | BJ342: N/A | BK342: N/A | BL342: N/A | BM342: N/A | BN342: N/A | BO342: N/A | BP342: N/A | BQ342: N/A | BR342: N/A | BS342: N/A | BT342: N/A | BU342: N/A | BV342: N/A | BW342: N/A | BX342: N/A | BY342: N/A | BZ342: N/A | CA342: N/A | CB342: N/A
BA343: Use of Basic Water and Sanitation | BB343: Yes | BC343: N/A | BD343: N/A | BE343: N/A | BF343: N/A | BG343: N/A | BH343: N/A | BI343: N/A | BJ343: N/A | BK343: N/A | BL343: N/A | BM343: N/A | BN343: N/A | BO343: N/A | BP343: N/A | BQ343: N/A | BR343: N/A | BS343: N/A | BT343: N/A | BU343: N/A | BV343: N/A | BW343: N/A | BX343: N/A | BY343: N/A | BZ343: N/A | CA343: N/A | CB343: N/A
BB344: No | BC344: N/A | BD344: N/A | BE344: N/A | BF344: N/A | BG344: N/A | BH344: N/A | BI344: N/A | BJ344: N/A | BK344: N/A | BL344: N/A | BM344: N/A | BN344: N/A | BO344: N/A | BP344: N/A | BQ344: N/A | BR344: N/A | BS344: N/A | BT344: N/A | BU344: N/A | BV344: N/A | BW344: N/A | BX344: N/A | BY344: N/A | BZ344: N/A | CA344: N/A | CB344: N/A
BA345: Use of Basic Water and Hygiene | BB345: Yes | BC345: N/A | BD345: N/A | BE345: N/A | BF345: N/A | BG345: N/A | BH345: N/A | BI345: N/A | BJ345: N/A | BK345: N/A | BL345: N/A | BM345: N/A | BN345: N/A | BO345: N/A | BP345: N/A | BQ345: N/A | BR345: N/A | BS345: N/A | BT345: N/A | BU345: N/A | BV345: N/A | BW345: N/A | BX345: N/A | BY345: N/A | BZ345: N/A | CA345: N/A | CB345: N/A
BB346: No | BC346: N/A | BD346: N/A | BE346: N/A | BF346: N/A | BG346: N/A | BH346: N/A | BI346: N/A | BJ346: N/A | BK346: N/A | BL346: N/A | BM346: N/A | BN346: N/A | BO346: N/A | BP346: N/A | BQ346: N/A | BR346: N/A | BS346: N/A | BT346: N/A | BU346: N/A | BV346: N/A | BW346: N/A | BX346: N/A | BY346: N/A | BZ346: N/A | CA346: N/A | CB346: N/A
BA347: Use of Basic Sanitation and Hygiene | BB347: Yes | BC347: N/A | BD347: N/A | BE347: N/A | BF347: N/A | BG347: N/A | BH347: N/A | BI347: N/A | BJ347: N/A | BK347: N/A | BL347: N/A | BM347: N/A | BN347: N/A | BO347: N/A | BP347: N/A | BQ347: N/A | BR347: N/A | BS347: N/A | BT347: N/A | BU347: N/A | BV347: N/A | BW347: N/A | BX347: N/A | BY347: N/A | BZ347: N/A | CA347: N/A | CB347: N/A
BB348: No | BC348: N/A | BD348: N/A | BE348: N/A | BF348: N/A | BG348: N/A | BH348: N/A | BI348: N/A | BJ348: N/A | BK348: N/A | BL348: N/A | BM348: N/A | BN348: N/A | BO348: N/A | BP348: N/A | BQ348: N/A | BR348: N/A | BS348: N/A | BT348: N/A | BU348: N/A | BV348: N/A | BW348: N/A | BX348: N/A | BY348: N/A | BZ348: N/A | CA348: N/A | CB348: N/A
BA349: Use of Basic Water | BB349: Yes | BC349: N/A | BD349: N/A | BE349: N/A | BF349: N/A | BG349: N/A | BH349: N/A | BI349: N/A | BJ349: N/A | BK349: N/A | BL349: N/A | BM349: N/A | BN349: N/A | BO349: N/A | BP349: N/A | BQ349: N/A | BR349: N/A | BS349: N/A | BT349: N/A | BU349: N/A | BV349: N/A | BW349: N/A | BX349: N/A | BY349: N/A | BZ349: N/A | CA349: N/A | CB349: N/A
BB350: No | BC350: N/A | BD350: N/A | BE350: N/A | BF350: N/A | BG350: N/A | BH350: N/A | BI350: N/A | BJ350: N/A | BK350: N/A | BL350: N/A | BM350: N/A | BN350: N/A | BO350: N/A | BP350: N/A | BQ350: N/A | BR350: N/A | BS350: N/A | BT350: N/A | BU350: N/A | BV350: N/A | BW350: N/A | BX350: N/A | BY350: N/A | BZ350: N/A | CA350: N/A | CB350: N/A
BA351: Use of Basic Sanitation | BB351: Yes | BC351: N/A | BD351: N/A | BE351: N/A | BF351: N/A | BG351: N/A | BH351: N/A | BI351: N/A | BJ351: N/A | BK351: N/A | BL351: N/A | BM351: N/A | BN351: N/A | BO351: N/A | BP351: N/A | BQ351: N/A | BR351: N/A | BS351: N/A | BT351: N/A | BU351: N/A | BV351: N/A | BW351: N/A | BX351: N/A | BY351: N/A | BZ351: N/A | CA351: N/A | CB351: N/A
BB352: No | BC352: N/A | BD352: N/A | BE352: N/A | BF352: N/A | BG352: N/A | BH352: N/A | BI352: N/A | BJ352: N/A | BK352: N/A | BL352: N/A | BM352: N/A | BN352: N/A | BO352: N/A | BP352: N/A | BQ352: N/A | BR352: N/A | BS352: N/A | BT352: N/A | BU352: N/A | BV352: N/A | BW352: N/A | BX352: N/A | BY352: N/A | BZ352: N/A | CA352: N/A | CB352: N/A
BA353: Access to Basic Hygiene | BB353: Yes | BC353: N/A | BD353: N/A | BE353: N/A | BF353: N/A | BG353: N/A | BH353: N/A | BI353: N/A | BJ353: N/A | BK353: N/A | BL353: N/A | BM353: N/A | BN353: N/A | BO353: N/A | BP353: N/A | BQ353: N/A | BR353: N/A | BS353: N/A | BT353: N/A | BU353: N/A | BV353: N/A | BW353: N/A | BX353: N/A | BY353: N/A | BZ353: N/A | CA353: N/A | CB353: N/A
BB354: No | BC354: N/A | BD354: N/A | BE354: N/A | BF354: N/A | BG354: N/A | BH354: N/A | BI354: N/A | BJ354: N/A | BK354: N/A | BL354: N/A | BM354: N/A | BN354: N/A | BO354: N/A | BP354: N/A | BQ354: N/A | BR354: N/A | BS354: N/A | BT354: N/A | BU354: N/A | BV354: N/A | BW354: N/A | BX354: N/A | BY354: N/A | BZ354: N/A | CA354: N/A | CB354: N/A
C399: INITIAL (national) Wealth Index | H399: URBAN Wealth Index | M399: RURAL Wealth Index
C400: Component Matrix | H400: Component Matrix | M400: Component Matrix
E401: Component | J401: Component | O401: Component
B402: Note: The INITIAL (national) Wealth Index is based on the first component of the Principal Component Analysis (PCA) which has been obtained at national level. The final national-level (NATIONAL) Wealth Index is based on the URBAN and RURAL specific wealth indexes. Regression procedures are used to establish the relationships between the two sets of scores (urban and rural) and the initial (national) wealth factors. This allows best use of the available information for each area and a better precision of the FINAL (NATIONAL) Wealth Index. For dependency reasons, all WASH variables (contained in the generic MICS and DHS scripts) have been excluded from the sets of asset variables used in the PCAs. The PCA can extracts as many components as there are asset variables in the input. Only the first of the components is used to represent the Wealth Index. The scores represent the weights of the asset variables on the Wealth Index (correlations between the variables and the component). The communalities are the proportion of each variable's variance that can be explained by the component. Proportion of explained variance is the part of the model's total variance that is explained by the component. For more information on the procedure used: The DHS Wealth Index, DHS Comparative Reports No. 6, Shea Oscar Rutstein, Kiersten Johnson, ORC Macro International Inc., 2004. The DHS Wealth Index: Approaches for Rural and Urban Areas, Shea O. Rutstein, ORC Macro International Inc., 2008. MICS Methodological Paper No. 4, Review of options for reporting water, sanitation and hygiene coverage by wealth quintile, UNICEF, 2016. | E402: 1 | J402: 1 | O402: 1
C403: Has bamboo floor | E403: -0.8325883589 | H403: Has bamboo floor | J403: -0.7650672977 | M403: Has wood floor | O403: 0.7431033258
C404: Has wood floor | E404: 0.7649554266 | H404: Household has: scooter | J404: 0.699076852 | M404: Has bamboo floor | O404: -0.7336239544
C405: Household has: scooter | E405: 0.76265217 | H405: Household has: phone | J405: 0.6598454657 | M405: Has rubroof rye roof | O405: -0.7292972993
C406: Has jute wall | E406: 0.7506623372 | H406: Has wood floor | J406: 0.6452163001 | M406: Has palm/bamboo roof | O406: 0.6845457657
C407: Has rubroof rye roof | E407: -0.7174782866 | H407: Has jute wall | J407: 0.6349882687 | M407: Household has: dacha or residencial unit | O407: 0.4330520443
C408: Household has: phone | E408: 0.7083763091 | H408: Household has: electricity | J408: 0.6059479195 | M408: Household has: air conditioning | O408: 0.4247966756
C409: Household has: electricity | E409: 0.6870273691 | H409: Household has: car | J409: 0.5431696301 | M409: Has mud wall | O409: 0.4036611808
C410: Has palm/bamboo roof | E410: 0.5997675153 | H410: Household has: mobile refrigerator | J410: 0.542811963 | M410: Has jute wall | O410: 0.3945937077
C411: Household has: mobile refrigerator | E411: 0.5545747032 | H411: Has rubroof rye roof | J411: -0.535236057 | M411: Household has: sofa | O411: 0.3517782689
C412: Household has: car | E412: 0.5448966413 | H412: Household has: bed | J412: 0.4808498932 | M412: Household has: cupboard | O412: 0.3398257265
C413: Household has: television | E413: 0.5017077161 | H413: Has bamboo with mud wall | J413: -0.4768360859 | M413: Household has: heating | O413: 0.3134568766
C414: Household has: bed | E414: 0.4780738992 | H414: Household has: television | J414: 0.4720047985 | M414: Has stone with mud wall | O414: -0.2608946903
C415: Household has: bicycle | E415: 0.4768573594 | H415: Household has: cupboard | J415: 0.4536584508 | M415: Household has: chimney | O415: 0.2530876484
C416: Household has: radio | E416: 0.4612878953 | H416: Household has: radio | J416: 0.453089913 | M416: Household has: fan | O416: 0.2491972647
C417: Household has: cupboard | E417: 0.4424879238 | H417: Household has: bicycle | J417: 0.4513964936 | M417: Household has: shower | O417: 0.2351073195
C418: Household has: dacha or residencial unit | E418: -0.4291360553 | H418: Has palm/bamboo roof | J418: 0.4315816292 | M418: Household has: stove | O418: 0.2320074881
C419: Has stone with mud wall | E419: -0.4264347539 | H419: Household has: table | J419: 0.4035733045 | M419: Has plank wood roof | O419: 0.2081963035
C420: Household has: air conditioning | E420: -0.4250917506 | H420: Has stone with mud wall | J420: -0.3685057039 | M420: Has plywoodwall | O420: -0.1671347606
C421: Household has: table | E421: 0.3886075009 | H421: Household has: caravan | J421: 0.3177368217 | M421: Has rustic mat roof | O421: 0.1549670751
... 175 more rows

Sheet DHS07
A2: =A1026 -> Democratic Republic of the Congo
A3: =A1034 -> 2007
A4: Use of drinking water sources
A5: by wealth quintile and sub-national region
A6: Notes:
A7: WHO/UNICEF JMP customised wealth index excludes water,
A8: sanitation and hygiene assets.
A9: Survey used for analysis: | B9: =A1025 -> DHS07
A10: =B1028 -> 
A11: =B1027 -> 
A14: Use of drinking water sources | C14: NATIONAL wealth index quintile | H14: URBAN wealth index quintile | M14: RURAL wealth index quintile | R14: SUB-REGIONS: | BA14: Raw numbers of respondents: | BB14: Use of drinking water sources | BC14: NATIONAL wealth index quintile | BH14: URBAN wealth index quintile | BM14: RURAL wealth index quintile | BR14: SUB-REGIONS:
A15: Weighted percentage (used in graphs) | C15: Poorest | D15: Poor | E15: Middle | F15: Rich | G15: Richest | H15: Poorest | I15: Poor | J15: Middle | K15: Rich | L15: Richest | M15: Poorest | N15: Poor | O15: Middle | P15: Rich | Q15: Richest | R15: Bandundu | S15: Bas-Congo | T15: Equateur | U15: Kasaï Occident | V15: Kasaï Oriental | W15: Katanga | X15: Kinshasa | Y15: Maniema | Z15: Nord-Kivu | AA15: Orientale | AB15: Sud-Kivu | BA15: Water data, raw numbers (weighted) | BC15: Poorest | BD15: Poor | BE15: Middle | BF15: Rich | BG15: Richest | BH15: Poorest | BI15: Poor | BJ15: Middle | BK15: Rich | BL15: Richest | BM15: Poorest | BN15: Poor | BO15: Middle | BP15: Rich | BQ15: Richest | BR15: Bandundu | BS15: Bas-Congo | BT15: Equateur | BU15: Kasaï Occident | BV15: Kasaï Oriental | BW15: Katanga | BX15: Kinshasa | BY15: Maniema | BZ15: Nord-Kivu | CA15: Orientale | CB15: Sud-Kivu
A16: Water | B16: Improved | C16: 21.11822767 | D16: 22.65473919 | E16: 34.98575431 | F16: 65.92981552 | G16: 95.61232193 | H16: 55.94821731 | I16: 70.41749451 | J16: 81.32565702 | K16: 96.04320882 | L16: 99.51511822 | M16: 16.75179798 | N16: 16.14635961 | O16: 19.10991567 | P16: 26.2090391 | Q16: 40.41775863 | R16: 32.83007087 | S16: 54.05284944 | T16: 11.93756411 | U16: 23.99675268 | V16: 67.49396984 | W16: 51.13984238 | X16: 94.08099472 | Y16: 44.5565446 | Z16: 77.49739456 | AA16: 35.86141745 | AB16: 63.32013271 | BA16: Water | BB16: Improved | BC16: N/A | BD16: N/A | BE16: N/A | BF16: N/A | BG16: N/A | BH16: N/A | BI16: N/A | BJ16: N/A | BK16: N/A | BL16: N/A | BM16: N/A | BN16: N/A | BO16: N/A | BP16: N/A | BQ16: N/A | BR16: N/A | BS16: N/A | BT16: N/A | BU16: N/A | BV16: N/A | BW16: N/A | BX16: N/A | BY16: N/A | BZ16: N/A | CA16: N/A | CB16: N/A
B17: Not Improved | C17: 78.88177233 | D17: 77.34526081 | E17: 65.01424569 | F17: 34.07018448 | G17: 4.387678066 | H17: 44.05178269 | I17: 29.58250549 | J17: 18.67434298 | K17: 3.956791175 | L17: 0.4848817753 | M17: 83.24820202 | N17: 83.85364039 | O17: 80.89008433 | P17: 73.7909609 | Q17: 59.58224137 | R17: 67.16992913 | S17: 45.94715056 | T17: 88.06243589 | U17: 76.00324732 | V17: 32.50603016 | W17: 48.86015762 | X17: 5.919005285 | Y17: 55.4434554 | Z17: 22.50260544 | AA17: 64.13858255 | AB17: 36.67986729 | BB17: Not Improved | BC17: N/A | BD17: N/A | BE17: N/A | BF17: N/A | BG17: N/A | BH17: N/A | BI17: N/A | BJ17: N/A | BK17: N/A | BL17: N/A | BM17: N/A | BN17: N/A | BO17: N/A | BP17: N/A | BQ17: N/A | BR17: N/A | BS17: N/A | BT17: N/A | BU17: N/A | BV17: N/A | BW17: N/A | BX17: N/A | BY17: N/A | BZ17: N/A | CA17: N/A | CB17: N/A
A18: Water ladder | B18: Basic | C18: =C16*C23/100 -> 14.07117978 | D18: =D16*D23/100 -> 15.22297332 | E18: =E16*E23/100 -> 24.26209369 | F18: 46.68274572 | G18: 87.71608258 | H18: 40.79101152 | I18: 48.79111125 | J18: 63.76276519 | K18: 86.72487147 | L18: 96.45213025 | M18: 10.20525508 | N18: 10.32556351 | O18: 12.02935664 | P18: 17.07456992 | Q18: 27.25043447 | R18: 17.92987352 | S18: 41.98283611 | T18: 7.469232297 | U18: 19.79250532 | V18: 42.17613575 | W18: 47.4704164 | X18: 85.746471 | Y18: 24.3983271 | Z18: 64.01546467 | AA18: 29.14826808 | AB18: 55.05728558 | BA18: Water ladder | BB18: Basic | BC18: N/A | BD18: N/A | BE18: N/A | BF18: N/A | BG18: N/A | BH18: N/A | BI18: N/A | BJ18: N/A | BK18: N/A | BL18: N/A | BM18: N/A | BN18: N/A | BO18: N/A | BP18: N/A | BQ18: N/A | BR18: N/A | BS18: N/A | BT18: N/A | BU18: N/A | BV18: N/A | BW18: N/A | BX18: N/A | BY18: N/A | BZ18: N/A | CA18: N/A | CB18: N/A
B19: Limited | C19: =C16*C22/100 -> 7.047047893 | D19: =D16*D22/100 -> 7.431765877 | E19: =E16*E22/100 -> 10.72366062 | F19: 19.24706979 | G19: 7.896239356 | H19: 15.15720579 | I19: 21.62638326 | J19: 17.56289182 | K19: 9.318337359 | L19: 3.062987972 | M19: 6.546542904 | N19: 5.820796099 | O19: 7.080559032 | P19: 9.134469181 | Q19: 13.16732416 | R19: 14.90019735 | S19: 12.07001333 | T19: 4.468331817 | U19: 4.20424736 | V19: 25.31783409 | W19: 3.669425985 | X19: 8.334523719 | Y19: 20.1582175 | Z19: 13.48192989 | AA19: 6.713149369 | AB19: 8.262847123 | BB19: Limited | BC19: N/A | BD19: N/A | BE19: N/A | BF19: N/A | BG19: N/A | BH19: N/A | BI19: N/A | BJ19: N/A | BK19: N/A | BL19: N/A | BM19: N/A | BN19: N/A | BO19: N/A | BP19: N/A | BQ19: N/A | BR19: N/A | BS19: N/A | BT19: N/A | BU19: N/A | BV19: N/A | BW19: N/A | BX19: N/A | BY19: N/A | BZ19: N/A | CA19: N/A | CB19: N/A
B20: Unimproved | C20: =100-C18-C19-C21 -> 58.74073957 | D20: =100-D18-D19-D21 -> 59.27906923 | E20: =100-E18-E19-E21 -> 48.27944879 | F20: 26.45212957 | G20: 4.364419493 | H20: 35.16301509 | I20: 25.56114677 | J20: 17.83319085 | K20: 3.912727838 | L20: 0.4848817753 | M20: 62.99986331 | N20: 61.86184091 | O20: 61.96523675 | P20: 54.69976034 | Q20: 40.61838735 | R20: 45.67714979 | S20: 31.43515844 | T20: 75.28738329 | U20: 56.84355078 | V20: 26.20782659 | W20: 25.13586362 | X20: 5.597940019 | Y20: 41.53204354 | Z20: 20.93790587 | AA20: 56.8330827 | AB20: 21.40201422 | BB20: Unimproved | BC20: N/A | BD20: N/A | BE20: N/A | BF20: N/A | BG20: N/A | BH20: N/A | BI20: N/A | BJ20: N/A | BK20: N/A | BL20: N/A | BM20: N/A | BN20: N/A | BO20: N/A | BP20: N/A | BQ20: N/A | BR20: N/A | BS20: N/A | BT20: N/A | BU20: N/A | BV20: N/A | BW20: N/A | BX20: N/A | BY20: N/A | BZ20: N/A | CA20: N/A | CB20: N/A
B21: Surface water | C21: 20.14103275 | D21: 18.06619157 | E21: 16.7347969 | F21: 7.618054913 | G21: 0.02325857312 | H21: 8.888767595 | I21: 4.021358721 | J21: 0.8411521294 | K21: 0.04406333693 | L21: 0 | M21: 20.2483387 | N21: 21.99179948 | O21: 18.92484758 | P21: 19.09120056 | Q21: 18.96385402 | R21: 21.49277934 | S21: 14.51199212 | T21: 12.7750526 | U21: 19.15969654 | V21: 6.298203567 | W21: 23.724294 | X21: 0.3210652664 | Y21: 13.91141185 | Z21: 1.564699565 | AA21: 7.305499854 | AB21: 15.27785308 | BB21: Surface water | BC21: N/A | BD21: N/A | BE21: N/A | BF21: N/A | BG21: N/A | BH21: N/A | BI21: N/A | BJ21: N/A | BK21: N/A | BL21: N/A | BM21: N/A | BN21: N/A | BO21: N/A | BP21: N/A | BQ21: N/A | BR21: N/A | BS21: N/A | BT21: N/A | BU21: N/A | BV21: N/A | BW21: N/A | BX21: N/A | BY21: N/A | BZ21: N/A | CA21: N/A | CB21: N/A
A22: Improved water point at more than 30 minutes | B22: Yes | C22: 33.3695043 | D22: 32.8044645 | E22: 30.65150611 | F22: 29.19327112 | G22: 8.258600143 | H22: 27.09149017 | I22: 30.71166251 | J22: 21.59575768 | K22: 9.702234518 | L22: 3.077912207 | M22: 39.07964333 | N22: 36.05020724 | O22: 37.05175446 | P22: 34.85236199 | Q22: 32.57806618 | R22: 45.38582146 | S22: 22.33002229 | T22: 37.43085084 | U22: 17.52006788 | V22: 37.51125345 | W22: 7.175278245 | X22: 8.858881376 | Y22: 45.24187789 | Z22: 17.39662342 | AA22: 18.71969891 | AB22: 13.0493206 | BA22: Improved water point at more than 30 minutes | BB22: Yes | BC22: N/A | BD22: N/A | BE22: N/A | BF22: N/A | BG22: N/A | BH22: N/A | BI22: N/A | BJ22: N/A | BK22: N/A | BL22: N/A | BM22: N/A | BN22: N/A | BO22: N/A | BP22: N/A | BQ22: N/A | BR22: N/A | BS22: N/A | BT22: N/A | BU22: N/A | BV22: N/A | BW22: N/A | BX22: N/A | BY22: N/A | BZ22: N/A | CA22: N/A | CB22: N/A
B23: No | C23: 66.6304957 | D23: 67.1955355 | E23: 69.34849389 | F23: 70.80672888 | G23: 91.74139986 | H23: 72.90850983 | I23: 69.28833749 | J23: 78.40424232 | K23: 90.29776548 | L23: 96.92208779 | M23: 60.92035667 | N23: 63.94979276 | O23: 62.94824554 | P23: 65.14763801 | Q23: 67.42193382 | R23: 54.61417854 | S23: 77.66997771 | T23: 62.56914916 | U23: 82.47993212 | V23: 62.48874655 | W23: 92.82472176 | X23: 91.14111862 | Y23: 54.75812211 | Z23: 82.60337658 | AA23: 81.28030109 | AB23: 86.9506794 | BB23: No | BC23: N/A | BD23: N/A | BE23: N/A | BF23: N/A | BG23: N/A | BH23: N/A | BI23: N/A | BJ23: N/A | BK23: N/A | BL23: N/A | BM23: N/A | BN23: N/A | BO23: N/A | BP23: N/A | BQ23: N/A | BR23: N/A | BS23: N/A | BT23: N/A | BU23: N/A | BV23: N/A | BW23: N/A | BX23: N/A | BY23: N/A | BZ23: N/A | CA23: N/A | CB23: N/A
A24: Manually calculated ratios | B24: Improved wells
B25: Improved springs
B26: Other
C27: NATIONAL wealth index quintile | H27: URBAN wealth index quintile | M27: RURAL wealth index quintile | R27: SUB-REGIONS: | BA27: Raw numbers of respondents: | BB27: Use of drinking water sources | BC27: NATIONAL wealth index quintile | BH27: URBAN wealth index quintile | BM27: RURAL wealth index quintile | BR27: SUB-REGIONS:
A28: Percentage based on weighted population | C28: Poorest | D28: Poor | E28: Middle | F28: Rich | G28: Richest | H28: Poorest | I28: Poor | J28: Middle | K28: Rich | L28: Richest | M28: Poorest | N28: Poor | O28: Middle | P28: Rich | Q28: Richest | R28: Bandundu | S28: Bas-Congo | T28: Equateur | U28: Kasaï Occident | V28: Kasaï Oriental | W28: Katanga | X28: Kinshasa | Y28: Maniema | Z28: Nord-Kivu | AA28: Orientale | AB28: Sud-Kivu | BA28: Water data, raw numbers (weighted) | BC28: Poorest | BD28: Poor | BE28: Middle | BF28: Rich | BG28: Richest | BH28: Poorest | BI28: Poor | BJ28: Middle | BK28: Rich | BL28: Richest | BM28: Poorest | BN28: Poor | BO28: Middle | BP28: Rich | BQ28: Richest | BR28: Bandundu | BS28: Bas-Congo | BT28: Equateur | BU28: Kasaï Occident | BV28: Kasaï Oriental | BW28: Katanga | BX28: Kinshasa | BY28: Maniema | BZ28: Nord-Kivu | CA28: Orientale | CB28: Sud-Kivu
A29: Piped water | B29: Yes | C29: 3.549798718 | D29: 3.794785734 | E29: 4.550169776 | F29: 36.95683398 | G29: 90.24011646 | H29: 12.76596548 | I29: 36.86415402 | J29: 66.59411605 | K29: 89.24871145 | L29: 98.92176737 | M29: 1.538977532 | N29: 1.912356653 | O29: 1.951543942 | P29: 2.660759725 | Q29: 7.186766201 | R29: 3.83091227 | S29: 26.36399765 | T29: 0.759579533 | U29: 0.3349871484 | V29: 47.48775952 | W29: 37.96401499 | X29: 89.80117371 | Y29: 8.039967101 | Z29: 33.76241073 | AA29: 11.68228466 | AB29: 37.00280383 | BA29: Piped water | BB29: Yes | BC29: N/A | BD29: N/A | BE29: N/A | BF29: N/A | BG29: N/A | BH29: N/A | BI29: N/A | BJ29: N/A | BK29: N/A | BL29: N/A | BM29: N/A | BN29: N/A | BO29: N/A | BP29: N/A | BQ29: N/A | BR29: N/A | BS29: N/A | BT29: N/A | BU29: N/A | BV29: N/A | BW29: N/A | BX29: N/A | BY29: N/A | BZ29: N/A | CA29: N/A | CB29: N/A
B30: No | C30: 96.45020128 | D30: 96.20521427 | E30: 95.44983022 | F30: 63.04316602 | G30: 9.759883539 | H30: 87.23403452 | I30: 63.13584598 | J30: 33.40588395 | K30: 10.75128855 | L30: 1.078232627 | M30: 98.46102247 | N30: 98.08764335 | O30: 98.04845606 | P30: 97.33924027 | Q30: 92.8132338 | R30: 96.16908773 | S30: 73.63600235 | T30: 99.24042047 | U30: 99.66501285 | V30: 52.51224048 | W30: 62.03598501 | X30: 10.19882629 | Y30: 91.9600329 | Z30: 66.23758927 | AA30: 88.31771534 | AB30: 62.99719617 | BB30: No | BC30: N/A | BD30: N/A | BE30: N/A | BF30: N/A | BG30: N/A | BH30: N/A | BI30: N/A | BJ30: N/A | BK30: N/A | BL30: N/A | BM30: N/A | BN30: N/A | BO30: N/A | BP30: N/A | BQ30: N/A | BR30: N/A | BS30: N/A | BT30: N/A | BU30: N/A | BV30: N/A | BW30: N/A | BX30: N/A | BY30: N/A | BZ30: N/A | CA30: N/A | CB30: N/A
A31: Piped water on premises | B31: Yes | C31: 0 | D31: 0.01206513599 | E31: 0.08314435172 | F31: 5.521742519 | G31: 46.66020699 | H31: 0.1944389983 | I31: 3.075333595 | J31: 12.70463256 | K31: 34.71507463 | L31: 67.47359418 | M31: 0 | N31: 0 | O31: 0 | P31: 0 | Q31: 2.75062403 | R31: 0.1435616033 | S31: 5.960237977 | T31: 0.1748888972 | U31: 0 | V31: 7.319876524 | W31: 19.20162155 | X31: 46.38741288 | Y31: 0.16736822 | Z31: 1.56981094 | AA31: 3.593745962 | AB31: 15.7047714 | BA31: Piped water on premises | BB31: Yes | BC31: N/A | BD31: N/A | BE31: N/A | BF31: N/A | BG31: N/A | BH31: N/A | BI31: N/A | BJ31: N/A | BK31: N/A | BL31: N/A | BM31: N/A | BN31: N/A | BO31: N/A | BP31: N/A | BQ31: N/A | BR31: N/A | BS31: N/A | BT31: N/A | BU31: N/A | BV31: N/A | BW31: N/A | BX31: N/A | BY31: N/A | BZ31: N/A | CA31: N/A | CB31: N/A
B32: No | C32: 100 | D32: 99.98793486 | E32: 99.91685565 | F32: 94.47825748 | G32: 53.33979301 | H32: 99.805561 | I32: 96.92466641 | J32: 87.29536744 | K32: 65.28492537 | L32: 32.52640582 | M32: 100 | N32: 100 | O32: 100 | P32: 100 | Q32: 97.24937597 | R32: 99.8564384 | S32: 94.03976202 | T32: 99.8251111 | U32: 100 | V32: 92.68012348 | W32: 80.79837845 | X32: 53.61258712 | Y32: 99.83263178 | Z32: 98.43018906 | AA32: 96.40625404 | AB32: 84.2952286 | BB32: No | BC32: N/A | BD32: N/A | BE32: N/A | BF32: N/A | BG32: N/A | BH32: N/A | BI32: N/A | BJ32: N/A | BK32: N/A | BL32: N/A | BM32: N/A | BN32: N/A | BO32: N/A | BP32: N/A | BQ32: N/A | BR32: N/A | BS32: N/A | BT32: N/A | BU32: N/A | BV32: N/A | BW32: N/A | BX32: N/A | BY32: N/A | BZ32: N/A | CA32: N/A | CB32: N/A
A33: Piped water into dwelling | B33: Yes | C33: N/A | D33: N/A | E33: N/A | F33: N/A | G33: N/A | H33: N/A | I33: N/A | J33: N/A | K33: N/A | L33: N/A | M33: N/A | N33: N/A | O33: N/A | P33: N/A | Q33: N/A | R33: N/A | S33: N/A | T33: N/A | U33: N/A | V33: N/A | W33: N/A | X33: N/A | Y33: N/A | Z33: N/A | AA33: N/A | AB33: N/A | BA33: Piped water into dwelling | BB33: Yes | BC33: N/A | BD33: N/A | BE33: N/A | BF33: N/A | BG33: N/A | BH33: N/A | BI33: N/A | BJ33: N/A | BK33: N/A | BL33: N/A | BM33: N/A | BN33: N/A | BO33: N/A | BP33: N/A | BQ33: N/A | BR33: N/A | BS33: N/A | BT33: N/A | BU33: N/A | BV33: N/A | BW33: N/A | BX33: N/A | BY33: N/A | BZ33: N/A | CA33: N/A | CB33: N/A
B34: No | C34: N/A | D34: N/A | E34: N/A | F34: N/A | G34: N/A | H34: N/A | I34: N/A | J34: N/A | K34: N/A | L34: N/A | M34: N/A | N34: N/A | O34: N/A | P34: N/A | Q34: N/A | R34: N/A | S34: N/A | T34: N/A | U34: N/A | V34: N/A | W34: N/A | X34: N/A | Y34: N/A | Z34: N/A | AA34: N/A | AB34: N/A | BB34: No | BC34: N/A | BD34: N/A | BE34: N/A | BF34: N/A | BG34: N/A | BH34: N/A | BI34: N/A | BJ34: N/A | BK34: N/A | BL34: N/A | BM34: N/A | BN34: N/A | BO34: N/A | BP34: N/A | BQ34: N/A | BR34: N/A | BS34: N/A | BT34: N/A | BU34: N/A | BV34: N/A | BW34: N/A | BX34: N/A | BY34: N/A | BZ34: N/A | CA34: N/A | CB34: N/A
A35: Water source on premises | B35: Yes | C35: 0.5316485198 | D35: 0.7443603291 | E35: 1.669610936 | F35: 8.802281166 | G35: 48.02239167 | H35: 3.24499315 | I35: 8.2093332 | J35: 16.51265888 | K35: 36.32081892 | L35: 68.36232657 | M35: 0.2247604383 | N35: 0.5757180867 | O35: 0.5154438947 | P35: 0.7129029598 | Q35: 2.951289163 | R35: 0.1435616033 | S35: 5.971789663 | T35: 2.168680504 | U35: 0.821445691 | V35: 7.757846144 | W35: 24.96280301 | X35: 47.49627797 | Y35: 0.3655466598 | Z35: 3.329940712 | AA35: 5.551811663 | AB35: 16.81454916 | BA35: Water source on premises | BB35: Yes | BC35: N/A | BD35: N/A | BE35: N/A | BF35: N/A | BG35: N/A | BH35: N/A | BI35: N/A | BJ35: N/A | BK35: N/A | BL35: N/A | BM35: N/A | BN35: N/A | BO35: N/A | BP35: N/A | BQ35: N/A | BR35: N/A | BS35: N/A | BT35: N/A | BU35: N/A | BV35: N/A | BW35: N/A | BX35: N/A | BY35: N/A | BZ35: N/A | CA35: N/A | CB35: N/A
B36: No | C36: 99.46835148 | D36: 99.25563967 | E36: 98.33038906 | F36: 91.19771883 | G36: 51.97760833 | H36: 96.75500685 | I36: 91.7906668 | J36: 83.48734112 | K36: 63.67918108 | L36: 31.63767343 | M36: 99.77523956 | N36: 99.42428191 | O36: 99.48455611 | P36: 99.28709704 | Q36: 97.04871084 | R36: 99.8564384 | S36: 94.02821034 | T36: 97.8313195 | U36: 99.17855431 | V36: 92.24215386 | W36: 75.03719699 | X36: 52.50372203 | Y36: 99.63445334 | Z36: 96.67005929 | AA36: 94.44818834 | AB36: 83.18545084 | BB36: No | BC36: N/A | BD36: N/A | BE36: N/A | BF36: N/A | BG36: N/A | BH36: N/A | BI36: N/A | BJ36: N/A | BK36: N/A | BL36: N/A | BM36: N/A | BN36: N/A | BO36: N/A | BP36: N/A | BQ36: N/A | BR36: N/A | BS36: N/A | BT36: N/A | BU36: N/A | BV36: N/A | BW36: N/A | BX36: N/A | BY36: N/A | BZ36: N/A | CA36: N/A | CB36: N/A
A37: Improved Water source on premises | B37: Yes | C37: 0.2328017599 | D37: 0.3537114727 | E37: 0.3924973918 | F37: 10.45423694 | G37: 49.68356124 | H37: 0.7514613808 | I37: 7.256865671 | J37: 17.43450306 | K37: 37.2159439 | L37: 68.43076993 | M37: 0 | N37: 0.5368956953 | O37: 0.2203966232 | P37: 0 | Q37: 6.805483836 | R37: 0.4372869126 | S37: 11.02668599 | T37: 2.716367956 | U37: 1.972690645 | V37: 11.49413223 | W37: 38.60261959 | X37: 50.18399922 | Y37: 0.3756310583 | Z37: 4.090371005 | AA37: 12.58164336 | AB37: 25.66972221 | BA37: Improved water source on premises | BB37: Yes | BC37: N/A | BD37: N/A | BE37: N/A | BF37: N/A | BG37: N/A | BH37: N/A | BI37: N/A | BJ37: N/A | BK37: N/A | BL37: N/A | BM37: N/A | BN37: N/A | BO37: N/A | BP37: N/A | BQ37: N/A | BR37: N/A | BS37: N/A | BT37: N/A | BU37: N/A | BV37: N/A | BW37: N/A | BX37: N/A | BY37: N/A | BZ37: N/A | CA37: N/A | CB37: N/A
B38: No | C38: 99.76719824 | D38: 99.64628853 | E38: 99.60750261 | F38: 89.54576306 | G38: 50.31643876 | H38: 99.24853862 | I38: 92.74313433 | J38: 82.56549694 | K38: 62.7840561 | L38: 31.56923007 | M38: 100 | N38: 99.4631043 | O38: 99.77960338 | P38: 100 | Q38: 93.19451616 | R38: 99.56271309 | S38: 88.97331401 | T38: 97.28363204 | U38: 98.02730935 | V38: 88.50586777 | W38: 61.39738041 | X38: 49.81600078 | Y38: 99.62436894 | Z38: 95.909629 | AA38: 87.41835664 | AB38: 74.33027779 | BB38: No | BC38: N/A | BD38: N/A | BE38: N/A | BF38: N/A | BG38: N/A | BH38: N/A | BI38: N/A | BJ38: N/A | BK38: N/A | BL38: N/A | BM38: N/A | BN38: N/A | BO38: N/A | BP38: N/A | BQ38: N/A | BR38: N/A | BS38: N/A | BT38: N/A | BU38: N/A | BV38: N/A | BW38: N/A | BX38: N/A | BY38: N/A | BZ38: N/A | CA38: N/A | CB38: N/A
A39: Piped water on premises available when needed | B39: Yes | C39: N/A | D39: N/A | E39: N/A | F39: N/A | G39: N/A | H39: N/A | I39: N/A | J39: N/A | K39: N/A | L39: N/A | M39: N/A | N39: N/A | O39: N/A | P39: N/A | Q39: N/A | R39: N/A | S39: N/A | T39: N/A | U39: N/A | V39: N/A | W39: N/A | X39: N/A | Y39: N/A | Z39: N/A | AA39: N/A | AB39: N/A | BA39: Piped water on premises available when needed | BB39: Yes | BC39: N/A | BD39: N/A | BE39: N/A | BF39: N/A | BG39: N/A | BH39: N/A | BI39: N/A | BJ39: N/A | BK39: N/A | BL39: N/A | BM39: N/A | BN39: N/A | BO39: N/A | BP39: N/A | BQ39: N/A | BR39: N/A | BS39: N/A | BT39: N/A | BU39: N/A | BV39: N/A | BW39: N/A | BX39: N/A | BY39: N/A | BZ39: N/A | CA39: N/A | CB39: N/A
B40: No | C40: N/A | D40: N/A | E40: N/A | F40: N/A | G40: N/A | H40: N/A | I40: N/A | J40: N/A | K40: N/A | L40: N/A | M40: N/A | N40: N/A | O40: N/A | P40: N/A | Q40: N/A | R40: N/A | S40: N/A | T40: N/A | U40: N/A | V40: N/A | W40: N/A | X40: N/A | Y40: N/A | Z40: N/A | AA40: N/A | AB40: N/A | BB40: No | BC40: N/A | BD40: N/A | BE40: N/A | BF40: N/A | BG40: N/A | BH40: N/A | BI40: N/A | BJ40: N/A | BK40: N/A | BL40: N/A | BM40: N/A | BN40: N/A | BO40: N/A | BP40: N/A | BQ40: N/A | BR40: N/A | BS40: N/A | BT40: N/A | BU40: N/A | BV40: N/A | BW40: N/A | BX40: N/A | BY40: N/A | BZ40: N/A | CA40: N/A | CB40: N/A
A41: Water point at more than 30 minutes | B41: Yes | C41: 40.86892871 | D41: 35.49368173 | E41: 33.70341245 | F41: 29.20895178 | G41: 9.62427471 | H41: 30.86380684 | I41: 28.66059658 | J41: 22.73633581 | K41: 10.04757435 | L41: 3.187701841 | M41: 41.28139184 | N41: 38.71165166 | O41: 39.11912551 | P41: 38.93609254 | Q41: 30.82389829 | R41: 45.41688493 | S41: 29.69068818 | T41: 34.09162582 | U41: 33.01576197 | V41: 43.05441782 | W41: 21.1369321 | X41: 11.14506444 | Y41: 41.6353826 | Z41: 19.11939717 | AA41: 23.09085939 | AB41: 17.62361114 | BA41: Water point at more than 30 minutes | BB41: Yes | BC41: N/A | BD41: N/A | BE41: N/A | BF41: N/A | BG41: N/A | BH41: N/A | BI41: N/A | BJ41: N/A | BK41: N/A | BL41: N/A | BM41: N/A | BN41: N/A | BO41: N/A | BP41: N/A | BQ41: N/A | BR41: N/A | BS41: N/A | BT41: N/A | BU41: N/A | BV41: N/A | BW41: N/A | BX41: N/A | BY41: N/A | BZ41: N/A | CA41: N/A | CB41: N/A
B42: No | C42: 59.13107129 | D42: 64.50631827 | E42: 66.29658755 | F42: 70.79104822 | G42: 90.37572529 | H42: 69.13619316 | I42: 71.33940342 | J42: 77.26366419 | K42: 89.95242565 | L42: 96.81229816 | M42: 58.71860816 | N42: 61.28834834 | O42: 60.88087449 | P42: 61.06390746 | Q42: 69.17610171 | R42: 54.58311507 | S42: 70.30931182 | T42: 65.90837418 | U42: 66.98423803 | V42: 56.94558218 | W42: 78.8630679 | X42: 88.85493556 | Y42: 58.3646174 | Z42: 80.88060283 | AA42: 76.90914061 | AB42: 82.37638886 | BB42: No | BC42: N/A | BD42: N/A | BE42: N/A | BF42: N/A | BG42: N/A | BH42: N/A | BI42: N/A | BJ42: N/A | BK42: N/A | BL42: N/A | BM42: N/A | BN42: N/A | BO42: N/A | BP42: N/A | BQ42: N/A | BR42: N/A | BS42: N/A | BT42: N/A | BU42: N/A | BV42: N/A | BW42: N/A | BX42: N/A | BY42: N/A | BZ42: N/A | CA42: N/A | CB42: N/A
A43: Water source available when needed | B43: Yes | C43: N/A | D43: N/A | E43: N/A | F43: N/A | G43: N/A | H43: N/A | I43: N/A | J43: N/A | K43: N/A | L43: N/A | M43: N/A | N43: N/A | O43: N/A | P43: N/A | Q43: N/A | R43: N/A | S43: N/A | T43: N/A | U43: N/A | V43: N/A | W43: N/A | X43: N/A | Y43: N/A | Z43: N/A | AA43: N/A | AB43: N/A | BA43: Water source available when needed | BB43: Yes | BC43: N/A | BD43: N/A | BE43: N/A | BF43: N/A | BG43: N/A | BH43: N/A | BI43: N/A | BJ43: N/A | BK43: N/A | BL43: N/A | BM43: N/A | BN43: N/A | BO43: N/A | BP43: N/A | BQ43: N/A | BR43: N/A | BS43: N/A | BT43: N/A | BU43: N/A | BV43: N/A | BW43: N/A | BX43: N/A | BY43: N/A | BZ43: N/A | CA43: N/A | CB43: N/A
B44: No | C44: N/A | D44: N/A | E44: N/A | F44: N/A | G44: N/A | H44: N/A | I44: N/A | J44: N/A | K44: N/A | L44: N/A | M44: N/A | N44: N/A | O44: N/A | P44: N/A | Q44: N/A | R44: N/A | S44: N/A | T44: N/A | U44: N/A | V44: N/A | W44: N/A | X44: N/A | Y44: N/A | Z44: N/A | AA44: N/A | AB44: N/A | BB44: No | BC44: N/A | BD44: N/A | BE44: N/A | BF44: N/A | BG44: N/A | BH44: N/A | BI44: N/A | BJ44: N/A | BK44: N/A | BL44: N/A | BM44: N/A | BN44: N/A | BO44: N/A | BP44: N/A | BQ44: N/A | BR44: N/A | BS44: N/A | BT44: N/A | BU44: N/A | BV44: N/A | BW44: N/A | BX44: N/A | BY44: N/A | BZ44: N/A | CA44: N/A | CB44: N/A
A45: Improved water source available when needed | B45: Yes | C45: N/A | D45: N/A | E45: N/A | F45: N/A | G45: N/A | H45: N/A | I45: N/A | J45: N/A | K45: N/A | L45: N/A | M45: N/A | N45: N/A | O45: N/A | P45: N/A | Q45: N/A | R45: N/A | S45: N/A | T45: N/A | U45: N/A | V45: N/A | W45: N/A | X45: N/A | Y45: N/A | Z45: N/A | AA45: N/A | AB45: N/A | BA45: Improved water source available when needed | BB45: Yes | BC45: N/A | BD45: N/A | BE45: N/A | BF45: N/A | BG45: N/A | BH45: N/A | BI45: N/A | BJ45: N/A | BK45: N/A | BL45: N/A | BM45: N/A | BN45: N/A | BO45: N/A | BP45: N/A | BQ45: N/A | BR45: N/A | BS45: N/A | BT45: N/A | BU45: N/A | BV45: N/A | BW45: N/A | BX45: N/A | BY45: N/A | BZ45: N/A | CA45: N/A | CB45: N/A
B46: No | C46: N/A | D46: N/A | E46: N/A | F46: N/A | G46: N/A | H46: N/A | I46: N/A | J46: N/A | K46: N/A | L46: N/A | M46: N/A | N46: N/A | O46: N/A | P46: N/A | Q46: N/A | R46: N/A | S46: N/A | T46: N/A | U46: N/A | V46: N/A | W46: N/A | X46: N/A | Y46: N/A | Z46: N/A | AA46: N/A | AB46: N/A | BB46: No | BC46: N/A | BD46: N/A | BE46: N/A | BF46: N/A | BG46: N/A | BH46: N/A | BI46: N/A | BJ46: N/A | BK46: N/A | BL46: N/A | BM46: N/A | BN46: N/A | BO46: N/A | BP46: N/A | BQ46: N/A | BR46: N/A | BS46: N/A | BT46: N/A | BU46: N/A | BV46: N/A | BW46: N/A | BX46: N/A | BY46: N/A | BZ46: N/A | CA46: N/A | CB46: N/A
A47: Microbiological quality at point of collection | B47: Not contaminated (No E. coli in 100 mL) | C47: N/A | D47: N/A | E47: N/A | F47: N/A | G47: N/A | H47: N/A | I47: N/A | J47: N/A | K47: N/A | L47: N/A | M47: N/A | N47: N/A | O47: N/A | P47: N/A | Q47: N/A | R47: N/A | S47: N/A | T47: N/A | U47: N/A | V47: N/A | W47: N/A | X47: N/A | Y47: N/A | Z47: N/A | AA47: N/A | AB47: N/A | BA47: Microbiological quality at point of collection | BB47: Not contaminated (No E. coli in 100 mL) | BC47: N/A | BD47: N/A | BE47: N/A | BF47: N/A | BG47: N/A | BH47: N/A | BI47: N/A | BJ47: N/A | BK47: N/A | BL47: N/A | BM47: N/A | BN47: N/A | BO47: N/A | BP47: N/A | BQ47: N/A | BR47: N/A | BS47: N/A | BT47: N/A | BU47: N/A | BV47: N/A | BW47: N/A | BX47: N/A | BY47: N/A | BZ47: N/A | CA47: N/A | CB47: N/A
B48: Contaminated (E. coli detected in 100 mL) | C48: N/A | D48: N/A | E48: N/A | F48: N/A | G48: N/A | H48: N/A | I48: N/A | J48: N/A | K48: N/A | L48: N/A | M48: N/A | N48: N/A | O48: N/A | P48: N/A | Q48: N/A | R48: N/A | S48: N/A | T48: N/A | U48: N/A | V48: N/A | W48: N/A | X48: N/A | Y48: N/A | Z48: N/A | AA48: N/A | AB48: N/A | BB48: Contaminated (E. coli detected in 100 mL) | BC48: N/A | BD48: N/A | BE48: N/A | BF48: N/A | BG48: N/A | BH48: N/A | BI48: N/A | BJ48: N/A | BK48: N/A | BL48: N/A | BM48: N/A | BN48: N/A | BO48: N/A | BP48: N/A | BQ48: N/A | BR48: N/A | BS48: N/A | BT48: N/A | BU48: N/A | BV48: N/A | BW48: N/A | BX48: N/A | BY48: N/A | BZ48: N/A | CA48: N/A | CB48: N/A
B49: Highly contaminated (>100 CFU/100 mL) | C49: N/A | D49: N/A | E49: N/A | F49: N/A | G49: N/A | H49: N/A | I49: N/A | J49: N/A | K49: N/A | L49: N/A | M49: N/A | N49: N/A | O49: N/A | P49: N/A | Q49: N/A | R49: N/A | S49: N/A | T49: N/A | U49: N/A | V49: N/A | W49: N/A | X49: N/A | Y49: N/A | Z49: N/A | AA49: N/A | AB49: N/A | BB49: Highly contaminated (>100 CFU/100 mL) | BC49: N/A | BD49: N/A | BE49: N/A | BF49: N/A | BG49: N/A | BH49: N/A | BI49: N/A | BJ49: N/A | BK49: N/A | BL49: N/A | BM49: N/A | BN49: N/A | BO49: N/A | BP49: N/A | BQ49: N/A | BR49: N/A | BS49: N/A | BT49: N/A | BU49: N/A | BV49: N/A | BW49: N/A | BX49: N/A | BY49: N/A | BZ49: N/A | CA49: N/A | CB49: N/A
A50: Microbiological quality of improved water sources at point of collection | B50: Not contaminated (No E. coli in 100 mL) | C50: N/A | D50: N/A | E50: N/A | F50: N/A | G50: N/A | H50: N/A | I50: N/A | J50: N/A | K50: N/A | L50: N/A | M50: N/A | N50: N/A | O50: N/A | P50: N/A | Q50: N/A | R50: N/A | S50: N/A | T50: N/A | U50: N/A | V50: N/A | W50: N/A | X50: N/A | Y50: N/A | Z50: N/A | AA50: N/A | AB50: N/A | BA50: Microbiological quality of improved water sources at point of collection | BB50: Not contaminated (No E. coli in 100 mL) | BC50: N/A | BD50: N/A | BE50: N/A | BF50: N/A | BG50: N/A | BH50: N/A | BI50: N/A | BJ50: N/A | BK50: N/A | BL50: N/A | BM50: N/A | BN50: N/A | BO50: N/A | BP50: N/A | BQ50: N/A | BR50: N/A | BS50: N/A | BT50: N/A | BU50: N/A | BV50: N/A | BW50: N/A | BX50: N/A | BY50: N/A | BZ50: N/A | CA50: N/A | CB50: N/A
B51: Contaminated (E. coli detected in 100 mL) | C51: N/A | D51: N/A | E51: N/A | F51: N/A | G51: N/A | H51: N/A | I51: N/A | J51: N/A | K51: N/A | L51: N/A | M51: N/A | N51: N/A | O51: N/A | P51: N/A | Q51: N/A | R51: N/A | S51: N/A | T51: N/A | U51: N/A | V51: N/A | W51: N/A | X51: N/A | Y51: N/A | Z51: N/A | AA51: N/A | AB51: N/A | BB51: Contaminated (E. coli detected in 100 mL) | BC51: N/A | BD51: N/A | BE51: N/A | BF51: N/A | BG51: N/A | BH51: N/A | BI51: N/A | BJ51: N/A | BK51: N/A | BL51: N/A | BM51: N/A | BN51: N/A | BO51: N/A | BP51: N/A | BQ51: N/A | BR51: N/A | BS51: N/A | BT51: N/A | BU51: N/A | BV51: N/A | BW51: N/A | BX51: N/A | BY51: N/A | BZ51: N/A | CA51: N/A | CB51: N/A
B52: Highly contaminated (>100 CFU/100 mL) | C52: N/A | D52: N/A | E52: N/A | F52: N/A | G52: N/A | H52: N/A | I52: N/A | J52: N/A | K52: N/A | L52: N/A | M52: N/A | N52: N/A | O52: N/A | P52: N/A | Q52: N/A | R52: N/A | S52: N/A | T52: N/A | U52: N/A | V52: N/A | W52: N/A | X52: N/A | Y52: N/A | Z52: N/A | AA52: N/A | AB52: N/A | BB52: Highly contaminated (>100 CFU/100 mL) | BC52: N/A | BD52: N/A | BE52: N/A | BF52: N/A | BG52: N/A | BH52: N/A | BI52: N/A | BJ52: N/A | BK52: N/A | BL52: N/A | BM52: N/A | BN52: N/A | BO52: N/A | BP52: N/A | BQ52: N/A | BR52: N/A | BS52: N/A | BT52: N/A | BU52: N/A | BV52: N/A | BW52: N/A | BX52: N/A | BY52: N/A | BZ52: N/A | CA52: N/A | CB52: N/A
A53: Microbiological quality of piped on premises at point of collection | B53: Not contaminated (No E. coli in 100 mL) | C53: N/A | D53: N/A | E53: N/A | F53: N/A | G53: N/A | H53: N/A | I53: N/A | J53: N/A | K53: N/A | L53: N/A | M53: N/A | N53: N/A | O53: N/A | P53: N/A | Q53: N/A | R53: N/A | S53: N/A | T53: N/A | U53: N/A | V53: N/A | W53: N/A | X53: N/A | Y53: N/A | Z53: N/A | AA53: N/A | AB53: N/A | BA53: Microbiological quality of piped on premises at point of collection | BB53: Not contaminated (No E. coli in 100 mL) | BC53: N/A | BD53: N/A | BE53: N/A | BF53: N/A | BG53: N/A | BH53: N/A | BI53: N/A | BJ53: N/A | BK53: N/A | BL53: N/A | BM53: N/A | BN53: N/A | BO53: N/A | BP53: N/A | BQ53: N/A | BR53: N/A | BS53: N/A | BT53: N/A | BU53: N/A | BV53: N/A | BW53: N/A | BX53: N/A | BY53: N/A | BZ53: N/A | CA53: N/A | CB53: N/A
B54: Contaminated (E. coli detected in 100 mL) | C54: N/A | D54: N/A | E54: N/A | F54: N/A | G54: N/A | H54: N/A | I54: N/A | J54: N/A | K54: N/A | L54: N/A | M54: N/A | N54: N/A | O54: N/A | P54: N/A | Q54: N/A | R54: N/A | S54: N/A | T54: N/A | U54: N/A | V54: N/A | W54: N/A | X54: N/A | Y54: N/A | Z54: N/A | AA54: N/A | AB54: N/A | BB54: Contaminated (E. coli detected in 100 mL) | BC54: N/A | BD54: N/A | BE54: N/A | BF54: N/A | BG54: N/A | BH54: N/A | BI54: N/A | BJ54: N/A | BK54: N/A | BL54: N/A | BM54: N/A | BN54: N/A | BO54: N/A | BP54: N/A | BQ54: N/A | BR54: N/A | BS54: N/A | BT54: N/A | BU54: N/A | BV54: N/A | BW54: N/A | BX54: N/A | BY54: N/A | BZ54: N/A | CA54: N/A | CB54: N/A
B55: Highly contaminated (>100 CFU/100 mL) | C55: N/A | D55: N/A | E55: N/A | F55: N/A | G55: N/A | H55: N/A | I55: N/A | J55: N/A | K55: N/A | L55: N/A | M55: N/A | N55: N/A | O55: N/A | P55: N/A | Q55: N/A | R55: N/A | S55: N/A | T55: N/A | U55: N/A | V55: N/A | W55: N/A | X55: N/A | Y55: N/A | Z55: N/A | AA55: N/A | AB55: N/A | BB55: Highly contaminated (>100 CFU/100 mL) | BC55: N/A | BD55: N/A | BE55: N/A | BF55: N/A | BG55: N/A | BH55: N/A | BI55: N/A | BJ55: N/A | BK55: N/A | BL55: N/A | BM55: N/A | BN55: N/A | BO55: N/A | BP55: N/A | BQ55: N/A | BR55: N/A | BS55: N/A | BT55: N/A | BU55: N/A | BV55: N/A | BW55: N/A | BX55: N/A | BY55: N/A | BZ55: N/A | CA55: N/A | CB55: N/A
C56: NATIONAL wealth index quintile | H56: URBAN wealth index quintile | M56: RURAL wealth index quintile | R56: SUB-REGIONS: | BA56: Raw numbers of respondents: | BB56: Use of drinking water sources | BC56: NATIONAL wealth index quintile | BH56: URBAN wealth index quintile | BM56: RURAL wealth index quintile | BR56: SUB-REGIONS:
A57: Percentage based on weighted population | C57: Poorest | D57: Poor | E57: Middle | F57: Rich | G57: Richest | H57: Poorest | I57: Poor | J57: Middle | K57: Rich | L57: Richest | M57: Poorest | N57: Poor | O57: Middle | P57: Rich | Q57: Richest | R57: Bandundu | S57: Bas-Congo | T57: Equateur | U57: Kasaï Occident | V57: Kasaï Oriental | W57: Katanga | X57: Kinshasa | Y57: Maniema | Z57: Nord-Kivu | AA57: Orientale | AB57: Sud-Kivu | BA57: Water data, raw numbers (weighted) | BC57: Poorest | BD57: Poor | BE57: Middle | BF57: Rich | BG57: Richest | BH57: Poorest | BI57: Poor | BJ57: Middle | BK57: Rich | BL57: Richest | BM57: Poorest | BN57: Poor | BO57: Middle | BP57: Rich | BQ57: Richest | BR57: Bandundu | BS57: Bas-Congo | BT57: Equateur | BU57: Kasaï Occident | BV57: Kasaï Oriental | BW57: Katanga | BX57: Kinshasa | BY57: Maniema | BZ57: Nord-Kivu | CA57: Orientale | CB57: Sud-Kivu
A58: Source of drinking water | B58: Piped into dwelling | C58: 0 | D58: 0.01206513599 | E58: 0.008646425037 | F58: 2.783458528 | G58: 12.59526981 | H58: 0.02792012907 | I58: 2.214506997 | J58: 5.565157936 | K58: 10.79941202 | L58: 15.41371885 | M58: 0 | N58: 0 | O58: 0 | P58: 0 | Q58: 1.452048681 | R58: 0.09120384209 | S58: 0.7805041373 | T58: 0.1748888972 | U58: 0 | V58: 4.325184743 | W58: 12.25709045 | X58: 3.541832498 | Y58: 0.16736822 | Z58: 0.582873158 | AA58: 2.373411411 | AB58: 9.364974297
B59: Piped to yard/plot | C59: 0 | D59: 0 | E59: 0.07449792668 | F59: 2.738283991 | G59: 34.06493718 | H59: 0.1665188692 | I59: 0.8608265973 | J59: 7.139474625 | K59: 23.91566261 | L59: 52.05987533 | M59: 0 | N59: 0 | O59: 0 | P59: 0 | Q59: 1.298575349 | R59: 0.0523577612 | S59: 5.179733839 | T59: 0 | U59: 0 | V59: 2.994691781 | W59: 6.944531105 | X59: 42.84558038 | Y59: 0 | Z59: 0.9869377816 | AA59: 1.220334551 | AB59: 6.339797104
B60: Public tap/standpipe | C60: 3.549798718 | D60: 3.782720598 | E60: 4.467025424 | F60: 31.43509146 | G60: 43.57990947 | H60: 12.57152648 | I60: 33.78882043 | J60: 53.88948348 | K60: 54.53363682 | L60: 31.4481732 | M60: 1.538977532 | N60: 1.912356653 | O60: 1.951543942 | P60: 2.660759725 | Q60: 4.43614217 | R60: 3.687350666 | S60: 20.40375967 | T60: 0.5846906358 | U60: 0.3349871484 | V60: 40.167883 | W60: 18.76239344 | X60: 43.41376084 | Y60: 7.872598881 | Z60: 32.19259979 | AA60: 8.088538693 | AB60: 21.29803243
B61: Tube well | C61: 0.4788283228 | D61: 0.4588076247 | E61: 0.9164814585 | F61: 2.855736428 | G61: 0.9455020896 | H61: 0.7935674843 | I61: 2.058298916 | J61: 2.212002369 | K61: 2.106631536 | L61: 0 | M61: 0.6843463077 | N61: 0.3328523905 | O61: 0.3605830128 | P61: 0.6020590172 | Q61: 2.617550662 | R61: 0 | S61: 0.8621572661 | T61: 0.2032034313 | U61: 1.323312917 | V61: 3.465569532 | W61: 2.292845455 | X61: 0.8896759573 | Y61: 0.6812383673 | Z61: 2.905498407 | AA61: 0.2774806162 | AB61: 0
B62: Protected well in dwelling | C62: 0 | D62: 0.04307316692 | E62: 0 | F62: 0.2000664931 | G62: 0.1786620034 | H62: 0.09967632201 | I62: 0.4292493053 | J62: 0.03427806687 | K62: 0.4194848403 | L62: 0 | M62: 0 | N62: 0 | O62: 0 | P62: 0 | Q62: 0 | R62: 0 | S62: 0 | T62: 0 | U62: 0.03014702798 | V62: 0.1922009958 | W62: 0.0774154411 | X62: 0 | Y62: 0 | Z62: 0 | AA62: 0.421710799 | AB62: 0
B63: Protected well in yard/plot | C63: 0.02961690709 | D63: 0.005153293867 | E63: 0.03611734595 | F63: 0.2431416261 | G63: 0.06093212643 | H63: 0.08421269986 | I63: 0.5626476921 | J63: 0.1433152711 | K63: 0 | L63: 0 | M63: 0 | N63: 0.05222284394 | O63: 0.00868382296 | P63: 0 | Q63: 0 | R63: 0 | S63: 0 | T63: 0.1493792691 | U63: 0 | V63: 0.04920233047 | W63: 0.4622818179 | X63: 0 | Y63: 0 | Z63: 0 | AA63: 0 | AB63: 0.0223855256
B64: Protected public well | C64: 2.372774608 | D64: 1.334420021 | E64: 3.515006379 | F64: 3.655120896 | G64: 0.9283413582 | H64: 7.972636314 | I64: 6.751961891 | J64: 2.695021741 | K64: 1.576261939 | L64: 0.2653714585 | M64: 2.383221614 | N64: 0.7299021584 | O64: 0.3958636389 | P64: 1.432774602 | Q64: 1.290755535 | R64: 0.9336653804 | S64: 1.945413437 | T64: 1.053514849 | U64: 2.38431993 | V64: 3.029360919 | W64: 5.598228322 | X64: 0.6360947696 | Y64: 8.952691046 | Z64: 0.5250965099 | AA64: 3.103669872 | AB64: 1.411772668
B65: Open well in dwelling | C65: 0.2551881092 | D65: 0.06347806088 | E65: 0.4207546158 | F65: 1.025035836 | G65: 0.1213856153 | H65: 1.473939129 | I65: 1.804272503 | J65: 0.8280581544 | K65: 0.07783533124 | L65: 0 | M65: 0 | N65: 0.006713993236 | O65: 0.0382566887 | P65: 0.1122956866 | Q65: 0 | R65: 0 | S65: 0 | T65: 0.09760633881 | U65: 0 | V65: 0 | W65: 2.613559409 | X65: 0 | Y65: 0 | Z65: 0.1415258716 | AA65: 0.6593855641 | AB65: 0.1407183816
B66: Open well in yard/plot | C66: 0.02643148738 | D66: 0.09850812158 | E66: 0.5817586162 | F66: 0.4450444187 | G66: 0.397399538 | H66: 0.7792988091 | I66: 0.9962335195 | J66: 0.8290101102 | K66: 0.4995968756 | L66: 0.2633649657 | M66: 0 | N66: 0.01118998873 | O66: 0.04575318198 | P66: 0.03371720719 | Q66: 0.09432471718 | R66: 0 | S66: 0 | T66: 0 | U66: 0 | V66: 0 | W66: 2.097255136 | X66: 0.2826723111 | Y66: 0 | Z66: 0 | AA66: 0.2785831469 | AB66: 0.4197286051
B67: Open public well | C67: 3.640556424 | D67: 3.522045771 | E67: 4.319846676 | F67: 7.583288212 | G67: 1.459026137 | H67: 4.984137639 | I67: 10.57002441 | J67: 7.974664001 | K67: 1.843270167 | L67: 0.2215168096 | M67: 2.727110961 | N67: 3.742627261 | O67: 3.298999166 | P67: 3.675115652 | Q67: 3.276507747 | R67: 0.08479241766 | S67: 1.062114543 | T67: 7.251393067 | U67: 8.66494119 | V67: 3.42603327 | W67: 9.076072749 | X67: 1.35228244 | Y67: 3.394569872 | Z67: 3.321211716 | AA67: 2.096020776 | AB67: 5.232151206
B68: Protected spring | C68: 14.66766242 | D68: 16.99865854 | E68: 25.96797935 | F68: 21.67822635 | G68: 3.203771929 | H68: 34.23215901 | I68: 23.21021762 | J68: 9.395407714 | K68: 2.692119061 | L68: 0.2006925122 | M68: 12.14525253 | N68: 13.0845593 | O68: 16.35980747 | P68: 21.51344575 | Q68: 29.32268623 | R68: 28.06549322 | S68: 24.88128109 | T68: 9.771887031 | U68: 19.84251533 | V68: 13.26987654 | W68: 4.745056358 | X68: 2.60975907 | Y68: 26.88264809 | Z68: 38.7042689 | AA68: 20.3762715 | AB68: 24.88317068
B69: Unprotected spring | C69: 54.75690627 | D69: 55.5970386 | E69: 42.86795152 | F69: 17.32156749 | G69: 2.386608202 | H69: 27.92563952 | I69: 12.09945854 | J69: 8.196045919 | K69: 1.492025464 | L69: 0 | M69: 60.16417466 | N69: 58.10405264 | O69: 58.58453636 | P69: 50.72222843 | Q69: 37.18239921 | R69: 45.59245218 | S69: 30.36149221 | T69: 67.94278646 | U69: 48.09564896 | V69: 22.7832858 | W69: 11.23089387 | X69: 3.962985267 | Y69: 38.13747367 | Z69: 16.78610477 | AA69: 53.80122093 | AB69: 15.60941602
B70: River/stream | C70: 18.51033682 | D70: 17.07519019 | E70: 15.66774572 | F70: 7.132737336 | G70: 0.02325857312 | H70: 7.418680928 | I70: 2.983811617 | J70: 0.8411521294 | K70: 0.04406333693 | L70: 0 | M70: 18.74941215 | N70: 20.5404564 | O70: 17.96992409 | P70: 18.24028946 | Q70: 18.30179492 | R70: 21.02820093 | S70: 14.2734256 | T70: 11.40812613 | U70: 18.38572839 | V70: 5.935845679 | W70: 22.32179482 | X70: 0 | Y70: 13.54414391 | Z70: 1.228905336 | AA70: 6.809144165 | AB70: 11.11001069
B71: Sea, lake | C71: 1.549830877 | D71: 0.9856179873 | E71: 1.065848788 | F71: 0.4839804344 | G71: 0 | H71: 1.470086667 | I71: 1.035913738 | J71: 0 | K71: 0 | L71: 0 | M71: 1.37690097 | N71: 1.422321723 | O71: 0.9526148363 | P71: 0.8484996994 | Q71: 0.6620591024 | R71: 0.4480417004 | S71: 0.2385665179 | T71: 1.335350167 | U71: 0.77396815 | V71: 0.3608654128 | W71: 1.402499185 | X71: 0.3210652664 | Y71: 0.3672679461 | Z71: 0.3357942287 | AA71: 0.4942279714 | AB71: 3.93957452
B72: Dam | C72: 0.08086505096 | D72: 0 | E72: 0 | F72: 0 | G72: 0 | H72: 0 | I72: 0 | J72: 0 | K72: 0 | L72: 0 | M72: 0.1220255825 | N72: 0.02040325721 | O72: 0 | P72: 0 | Q72: 0 | R72: 0.01644189726 | S72: 0 | T72: 0.02717372714 | U72: 0 | V72: 0 | W72: 0 | X72: 0 | Y72: 0 | Z72: 0 | AA72: 0 | AB72: 0.2282678672
B73: Rainwater | C73: 0.01954669859 | D73: 0.01984081487 | E73: 0 | F73: 0.01416314901 | G73: 0 | H73: 0 | I73: 0 | J73: 0.03331764008 | K73: 0 | L73: 0 | M73: 0 | N73: 0.03446626573 | O73: 0.03343378588 | P73: 0 | Q73: 0 | R73: 0 | S73: 0 | T73: 0 | U73: 0.08147033158 | V73: 0 | W73: 0 | X73: 0.02168898775 | Y73: 0 | Z73: 0 | AA73: 0 | AB73: 0
B74: Tanker truck | C74: 0 | D74: 0 | E74: 0 | F74: 0.3265265942 | G74: 0 | H74: 0 | I74: 0.5409650582 | J74: 0.2181981709 | K74: 0 | L74: 0 | M74: 0 | N74: 0 | O74: 0 | P74: 0 | Q74: 0 | R74: 0 | S74: 0 | T74: 0 | U74: 0 | V74: 0 | W74: 0 | X74: 0.03839641347 | Y74: 0 | Z74: 1.600120017 | AA74: 0 | AB74: 0
B75: Bottled water | C75: 0 | D75: 0 | E75: 0 | F75: 0 | G75: 0.05499596705 | H75: 0 | I75: 0 | J75: 0 | K75: 0 | L75: 0.127286881 | M75: 0 | N75: 0 | O75: 0 | P75: 0 | Q75: 0 | R75: 0 | S75: 0 | T75: 0 | U75: 0 | V75: 0 | W75: 0 | X75: 0.08420580447 | Y75: 0 | Z75: 0 | AA75: 0 | AB75: 0
B76: Other | C76: 0.06165728246 | D76: 0.003382075894 | E76: 0.0903397562 | F76: 0.0785307539 | G76: 0 | H76: 0 | I76: 0.09279116818 | J76: 0.005412666396 | K76: 0 | L76: 0 | M76: 0.1085776954 | N76: 0.005875138054 | O76: 0 | P76: 0.1588147714 | Q76: 0.06515567534 | R76: 0 | S76: 0.011551686 | T76: 0 | U76: 0.08296062353 | V76: 0 | W76: 0.1180824504 | X76: 0 | Y76: 0 | Z76: 0.689063511 | AA76: 0 | AB76: 0
A108: =A1026 -> Democratic Republic of the Congo
A109: =A1034 -> 2007
A110: Use of sanitation facilities
A111: by wealth quintile and sub-national region
A112: Notes:
A113: WHO/UNICEF JMP customised wealth index excludes water,
A114: sanitation and hygiene assets.
A115: Survey used for analysis: | B115: =A1025 -> DHS07
A117: =B1029 -> 
A120: Use of sanitation facilities | C120: NATIONAL wealth index quintile | H120: URBAN wealth index quintile | M120: RURAL wealth index quintile | R120: SUB-REGIONS: | BA120: Raw numbers of respondents: | BB120: Use of sanitation facilities | BC120: NATIONAL wealth index quintile | BH120: URBAN wealth index quintile | BM120: RURAL wealth index quintile | BR120: SUB-REGIONS:
A121: Weighted percentage (used in graphs) | C121: Poorest | D121: Poor | E121: Middle | F121: Rich | G121: Richest | H121: Poorest | I121: Poor | J121: Middle | K121: Rich | L121: Richest | M121: Poorest | N121: Poor | O121: Middle | P121: Rich | Q121: Richest | R121: Bandundu | S121: Bas-Congo | T121: Equateur | U121: Kasaï Occident | V121: Kasaï Oriental | W121: Katanga | X121: Kinshasa | Y121: Maniema | Z121: Nord-Kivu | AA121: Orientale | AB121: Sud-Kivu | BA121: Sanitation data, raw numbers (weighted) | BC121: Poorest | BD121: Poor | BE121: Middle | BF121: Rich | BG121: Richest | BH121: Poorest | BI121: Poor | BJ121: Middle | BK121: Rich | BL121: Richest | BM121: Poorest | BN121: Poor | BO121: Middle | BP121: Rich | BQ121: Richest | BR121: Bandundu | BS121: Bas-Congo | BT121: Equateur | BU121: Kasaï Occident | BV121: Kasaï Oriental | BW121: Katanga | BX121: Kinshasa | BY121: Maniema | BZ121: Nord-Kivu | CA121: Orientale | CB121: Sud-Kivu
A122: Sanitation | B122: Improved | C122: =C153+C156+C155 -> 26.61602385 | D122: =D153+D156+D155 -> 29.51593788 | E122: 30.82988453 | F122: 44.81933143 | G122: 68.93897836 | H122: 31.56648351 | I122: 44.27737186 | J122: 49.94530286 | K122: 61.59020481 | L122: 81.72724032 | M122: 22.37700591 | N122: 27.94547112 | O122: 29.79428139 | P122: 31.99834094 | Q122: 37.38499067 | R122: 10.02530358 | S122: 30.23175636 | T122: 22.28135788 | U122: 28.84062212 | V122: 68.54895866 | W122: 55.93211454 | X122: 63.03852177 | Y122: 61.11406458 | Z122: 23.52512544 | AA122: 36.78574207 | AB122: 47.32155489 | BA122: Sanitation | BB122: Improved | BC122: 2630.235871 | BD122: 2865.797969 | BE122: 3022.866899 | BF122: 4396.494938 | BG122: 6760.380401 | BH122: 1313.350628 | BI122: 1876.044329 | BJ122: 2077.590667 | BK122: 2573.847416 | BL122: 3465.585019 | BM122: 1255.855178 | BN122: 1569.149423 | BO122: 1724.517417 | BP122: 1782.078683 | BQ122: 2037.757318 | BR122: 696.685076 | BS122: 591.560453 | BT122: 1419.927231 | BU122: 1367.560767 | BV122: 4058.118846 | BW122: 2884.897323 | BX122: 4046.791131 | BY122: 983.603777 | BZ122: 434.928459 | CA122: 2133.448529 | CB122: 1058.254486
B123: Not Improved | C123: =100-C122 -> 73.38397615 | D123: =100-D122 -> 70.48406212 | E123: 69.17011547 | F123: 55.18066857 | G123: 31.06102164 | H123: 68.43351649 | I123: 55.72262814 | J123: 50.05469714 | K123: 38.40979519 | L123: 18.27275968 | M123: 77.62299409 | N123: 72.05452888 | O123: 70.20571861 | P123: 68.00165906 | Q123: 62.61500933 | R123: 89.97469642 | S123: 69.76824364 | T123: 77.71864212 | U123: 71.15937788 | V123: 31.45104134 | W123: 44.06788546 | X123: 36.96147823 | Y123: 38.88593542 | Z123: 76.47487456 | AA123: 63.21425793 | AB123: 52.67844511 | BB123: Not Improved | BC123: 7272.101301 | BD123: 6889.74893 | BE123: 6806.559672 | BF123: 5434.200193 | BG123: 3068.769426 | BH123: 2902.317562 | BI123: 2372.175709 | BJ123: 2101.384785 | BK123: 1612.467395 | BL123: 781.228132 | BM123: 4367.318143 | BN123: 4046.718612 | BO123: 4064.776104 | BP123: 3809.265195 | BQ123: 3413.727885 | BR123: 6272.218705 | BS123: 1366.543325 | BT123: 4965.991016 | BU123: 3384.058534 | BV123: 1902.50532 | BW123: 2285.652561 | BX123: 2372.761576 | BY123: 631.467471 | BZ123: 1417.117368 | CA123: 3685.527665 | CB123: 1187.535981
A124: Sanitation ladder | B124: Basic | C124: =C122*C129/100 -> 13.88507249 | D124: =D122*D129/100 -> 15.33063737 | E124: =E122*E129/100 -> 15.07942206 | F124: 21.79871161 | G124: 25.0084666 | H124: 16.93752701 | I124: 23.34691299 | J124: 21.15095188 | K124: 20.89021249 | L124: 29.23504406 | M124: 9.928847377 | N124: 15.59611916 | O124: 15.31496494 | P124: 14.62464551 | Q124: 20.31046405 | R124: 4.707926802 | S124: 11.70283517 | T124: 9.125598922 | U124: 13.42097346 | V124: 38.91284467 | W124: 25.57101177 | X124: 16.5786579 | Y124: 37.15409713 | Z124: 12.17641026 | AA124: 15.90686234 | AB124: 32.31874066 | BA124: Sanitation ladder | BB124: Basic | BC124: 1307.449139 | BD124: 1444.878488 | BE124: 1449.490787 | BF124: 2029.720363 | BG124: 2374.936011 | BH124: 683.3125 | BI124: 950.20453 | BJ124: 838.798199 | BK124: 845.534334 | BL124: 1196.012617 | BM124: 524.423581 | BN124: 844.244765 | BO124: 862.99229 | BP124: 806.134179 | BQ124: 1054.817793 | BR124: 324.407679 | BS124: 222.885841 | BT124: 562.786657 | BU124: 634.200085 | BV124: 2227.076435 | BW124: 1270.433406 | BX124: 1025.14997 | BY124: 572.413933 | BZ124: 221.375179 | CA124: 866.78182 | CB124: 678.963783
B125: Limited | C125: =C122*C128/100 -> 12.73095136 | D125: =D122*D128/100 -> 14.18530051 | E125: =E122*E128/100 -> 15.75046246 | F125: 23.02061982 | G125: 43.93051175 | H125: 14.6289565 | I125: 20.93045887 | J125: 28.79435098 | K125: 40.69999232 | L125: 52.49219626 | M125: 12.44815853 | N125: 12.34935196 | O125: 14.47931645 | P125: 17.37369543 | Q125: 17.07452661 | R125: 5.317376779 | S125: 18.52892119 | T125: 13.15575896 | U125: 15.41964866 | V125: 29.63611399 | W125: 30.36110278 | X125: 46.45986387 | Y125: 23.95996745 | Z125: 11.34871518 | AA125: 20.87887973 | AB125: 15.00281423 | BB125: Limited | BC125: 1198.77454 | BD125: 1336.933035 | BE125: 1513.993715 | BF125: 2143.494608 | BG125: 4171.87331 | BH125: 590.177588 | BI125: 851.856382 | BJ125: 1141.917862 | BK125: 1647.338002 | BL125: 2147.468254 | BM125: 657.488994 | BN125: 668.49167 | BO125: 815.903824 | BP125: 957.666269 | BQ125: 886.760363 | BR125: 366.402863 | BS125: 352.891767 | BT125: 811.331472 | BU125: 728.646288 | BV125: 1696.146649 | BW125: 1508.417405 | BX125: 2872.869948 | BY125: 369.13881 | BZ125: 206.327136 | CA125: 1137.712327 | CB125: 315.184543
B126: Unimproved | C126: =100-C124-C125-C127 -> 51.65732565 | D126: =100-D124-D125-D127 -> 58.79023697 | E126: =100-E124-E125-E127 -> 59.25527819 | F126: 49.51436106 | G126: 30.23566545 | H126: 60.06852777 | I126: 51.29182635 | J126: 47.53179166 | K126: 37.2948422 | L126: 17.99371779 | M126: 54.31915322 | N126: 53.2690906 | O126: 59.04155067 | P126: 57.59145136 | Q126: 51.51518278 | R126: 78.45775552 | S126: 52.11544363 | T126: 69.78476881 | U126: 46.58402121 | V126: 24.00390771 | W126: 29.56136845 | X126: 35.66535126 | Y126: 29.20888399 | Z126: 70.60158575 | AA126: 56.736888 | AB126: 45.5932845 | BB126: Unimproved | BC126: 5147.598808 | BD126: 5758.773561 | BE126: 5837.87569 | BF126: 4889.814506 | BG126: 2989.406651 | BH126: 2553.011723 | BI126: 2187.223558 | BJ126: 1998.397239 | BK126: 1566.694787 | BL126: 769.718466 | BM126: 3074.134247 | BN126: 3002.350615 | BO126: 3423.542892 | BP126: 3229.097486 | BQ126: 2819.298203 | BR126: 5470.290742 | BS126: 1023.669295 | BT126: 4462.974789 | BU126: 2217.489722 | BV126: 1468.655541 | BW126: 1550.969518 | BX126: 2291.484286 | BY126: 479.245496 | BZ126: 1308.76578 | CA126: 3316.963903 | CB126: 1032.960144
B127: Open defecation | C127: 21.7266505 | D127: 11.69382515 | E127: 9.91483728 | F127: 5.66630751 | G127: 0.8253561963 | H127: 8.364988723 | I127: 4.430801792 | J127: 2.522905481 | K127: 1.114952988 | L127: 0.279041891 | M127: 23.30384087 | N127: 18.78543829 | O127: 11.16416793 | P127: 10.41020771 | Q127: 11.09982655 | R127: 11.5169409 | S127: 17.65280002 | T127: 7.933873306 | U127: 24.57535668 | V127: 7.447133627 | W127: 14.50651701 | X127: 1.296126967 | Y127: 9.677051423 | Z127: 5.87328881 | AA127: 6.477369932 | AB127: 7.085160603 | BB127: Open defecation | BC127: 2124.502493 | BD127: 1130.975369 | BE127: 968.683982 | BF127: 544.385687 | BG127: 79.362775 | BH127: 349.305839 | BI127: 184.952151 | BJ127: 102.987546 | BK127: 45.772608 | BL127: 11.509666 | BM127: 1293.183896 | BN127: 1044.367997 | BO127: 641.233212 | BP127: 580.167709 | BQ127: 594.429682 | BR127: 801.927963 | BS127: 342.87403 | BT127: 503.016227 | BU127: 1166.568812 | BV127: 433.849779 | BW127: 734.683043 | BX127: 81.27729 | BY127: 152.221975 | BZ127: 108.351588 | CA127: 368.563762 | CB127: 154.575837
A128: Shared among Improved Sanitation | B128: Yes | C128: 47.83190543 | D128: 48.05979931 | E128: 51.08829535 | F128: 51.36314863 | G128: 63.72376383 | H128: 46.34332011 | I128: 47.27123131 | J128: 57.65176971 | K128: 66.08192398 | L128: 64.22851922 | M128: 55.62924094 | N128: 44.19088841 | O128: 48.5976361 | P128: 54.29561321 | Q128: 45.67214357 | R128: 53.03955871 | S128: 61.28959551 | T128: 59.04379361 | U128: 53.46503483 | V128: 43.23349992 | W128: 54.28205786 | X128: 73.70075085 | Y128: 39.20532469 | Z128: 48.2408275 | AA128: 56.75807678 | AB128: 31.70397563 | BA128: Shared among improved sanitation facilities | BB128: Yes | BC128: N/A | BD128: N/A | BE128: N/A | BF128: N/A | BG128: N/A | BH128: N/A | BI128: N/A | BJ128: N/A | BK128: N/A | BL128: N/A | BM128: N/A | BN128: N/A | BO128: N/A | BP128: N/A | BQ128: N/A | BR128: N/A | BS128: N/A | BT128: N/A | BU128: N/A | BV128: N/A | BW128: N/A | BX128: N/A | BY128: N/A | BZ128: N/A | CA128: N/A | CB128: N/A
B129: No | C129: 52.16809457 | D129: 51.94020069 | E129: 48.91170465 | F129: 48.63685137 | G129: 36.27623617 | H129: 53.65667989 | I129: 52.72876869 | J129: 42.34823029 | K129: 33.91807602 | L129: 35.77148078 | M129: 44.37075906 | N129: 55.80911159 | O129: 51.4023639 | P129: 45.70438679 | Q129: 54.32785643 | R129: 46.96044129 | S129: 38.71040449 | T129: 40.95620639 | U129: 46.53496517 | V129: 56.76650008 | W129: 45.71794214 | X129: 26.29924915 | Y129: 60.79467531 | Z129: 51.7591725 | AA129: 43.24192322 | AB129: 68.29602437 | BB129: No | BC129: N/A | BD129: N/A | BE129: N/A | BF129: N/A | BG129: N/A | BH129: N/A | BI129: N/A | BJ129: N/A | BK129: N/A | BL129: N/A | BM129: N/A | BN129: N/A | BO129: N/A | BP129: N/A | BQ129: N/A | BR129: N/A | BS129: N/A | BT129: N/A | BU129: N/A | BV129: N/A | BW129: N/A | BX129: N/A | BY129: N/A | BZ129: N/A | CA129: N/A | CB129: N/A
A130: Manually calculated ratios | B130: Improved latrines
B131: Other
B132: Other
C133: NATIONAL wealth index quintile | H133: URBAN wealth index quintile | M133: RURAL wealth index quintile | R133: SUB-REGIONS: | BA133: Raw numbers of respondents: | BB133: Use of sanitation facilities | BC133: NATIONAL wealth index quintile | BH133: URBAN wealth index quintile | BM133: RURAL wealth index quintile | BR133: SUB-REGIONS:
A134: Percentage based on weighted population | C134: Poorest | D134: Poor | E134: Middle | F134: Rich | G134: Richest | H134: Poorest | I134: Poor | J134: Middle | K134: Rich | L134: Richest | M134: Poorest | N134: Poor | O134: Middle | P134: Rich | Q134: Richest | R134: Bandundu | S134: Bas-Congo | T134: Equateur | U134: Kasaï Occident | V134: Kasaï Oriental | W134: Katanga | X134: Kinshasa | Y134: Maniema | Z134: Nord-Kivu | AA134: Orientale | AB134: Sud-Kivu | BA134: Sanitation data, raw numbers (weighted) | BC134: Poorest | BD134: Poor | BE134: Middle | BF134: Rich | BG134: Richest | BH134: Poorest | BI134: Poor | BJ134: Middle | BK134: Rich | BL134: Richest | BM134: Poorest | BN134: Poor | BO134: Middle | BP134: Rich | BQ134: Richest | BR134: Bandundu | BS134: Bas-Congo | BT134: Equateur | BU134: Kasaï Occident | BV134: Kasaï Oriental | BW134: Katanga | BX134: Kinshasa | BY134: Maniema | BZ134: Nord-Kivu | CA134: Orientale | CB134: Sud-Kivu
A135: Sanitation type | B135: Sewer connection | C135: N/A | D135: N/A | E135: N/A | F135: N/A | G135: N/A | H135: N/A | I135: N/A | J135: N/A | K135: N/A | L135: N/A | M135: N/A | N135: N/A | O135: N/A | P135: N/A | Q135: N/A | R135: N/A | S135: N/A | T135: N/A | U135: N/A | V135: N/A | W135: N/A | X135: N/A | Y135: N/A | Z135: N/A | AA135: N/A | AB135: N/A | BA135: Sanitation type | BB135: Sewer connection | BC135: N/A | BD135: N/A | BE135: N/A | BF135: N/A | BG135: N/A | BH135: N/A | BI135: N/A | BJ135: N/A | BK135: N/A | BL135: N/A | BM135: N/A | BN135: N/A | BO135: N/A | BP135: N/A | BQ135: N/A | BR135: N/A | BS135: N/A | BT135: N/A | BU135: N/A | BV135: N/A | BW135: N/A | BX135: N/A | BY135: N/A | BZ135: N/A | CA135: N/A | CB135: N/A
B136: Septic tank connection | C136: N/A | D136: N/A | E136: N/A | F136: N/A | G136: N/A | H136: N/A | I136: N/A | J136: N/A | K136: N/A | L136: N/A | M136: N/A | N136: N/A | O136: N/A | P136: N/A | Q136: N/A | R136: N/A | S136: N/A | T136: N/A | U136: N/A | V136: N/A | W136: N/A | X136: N/A | Y136: N/A | Z136: N/A | AA136: N/A | AB136: N/A | BB136: Septic tank connection | BC136: N/A | BD136: N/A | BE136: N/A | BF136: N/A | BG136: N/A | BH136: N/A | BI136: N/A | BJ136: N/A | BK136: N/A | BL136: N/A | BM136: N/A | BN136: N/A | BO136: N/A | BP136: N/A | BQ136: N/A | BR136: N/A | BS136: N/A | BT136: N/A | BU136: N/A | BV136: N/A | BW136: N/A | BX136: N/A | BY136: N/A | BZ136: N/A | CA136: N/A | CB136: N/A
B137: Improved latrines | C137: 26.56176845 | D137: 29.37608725 | E137: 30.75323751 | F137: 44.72211659 | G137: 68.77889258 | H137: 31.15403226 | I137: 44.16071466 | J137: 49.71531158 | K137: 61.4824143 | L137: 81.60436769 | M137: 22.33356694 | N137: 27.94135142 | O137: 29.788046 | P137: 31.87209948 | Q137: 37.37985599 | R137: 9.997054026 | S137: 30.21088359 | T137: 22.23528671 | U137: 28.78094141 | V137: 68.08211243 | W137: 55.79478755 | X137: 63.03852177 | Y137: 60.90157188 | Z137: 23.48367695 | AA137: 36.66364078 | AB137: 47.12169285 | BB137: Improved latrines | BC137: N/A | BD137: N/A | BE137: N/A | BF137: N/A | BG137: N/A | BH137: N/A | BI137: N/A | BJ137: N/A | BK137: N/A | BL137: N/A | BM137: N/A | BN137: N/A | BO137: N/A | BP137: N/A | BQ137: N/A | BR137: N/A | BS137: N/A | BT137: N/A | BU137: N/A | BV137: N/A | BW137: N/A | BX137: N/A | BY137: N/A | BZ137: N/A | CA137: N/A | CB137: N/A
B138: Unimproved facilities | C138: 51.98367535 | D138: 59.03076086 | E138: 59.3918236 | F138: 49.74027208 | G138: 30.41368484 | H138: 60.56007276 | I138: 51.48564666 | J138: 47.82026748 | K138: 37.42419903 | L138: 18.12461341 | M138: 54.66902888 | N138: 53.46191535 | O138: 59.13576293 | P138: 57.75172403 | Q138: 51.71614887 | R138: 78.49571344 | S138: 52.27860272 | T138: 69.88775328 | U138: 46.66808474 | V138: 24.63929112 | W138: 29.99621999 | X138: 35.69538861 | Y138: 29.67333463 | Z138: 70.6659501 | AA138: 57.00253434 | AB138: 45.99539268 | BB138: Unimproved facilities | BC138: N/A | BD138: N/A | BE138: N/A | BF138: N/A | BG138: N/A | BH138: N/A | BI138: N/A | BJ138: N/A | BK138: N/A | BL138: N/A | BM138: N/A | BN138: N/A | BO138: N/A | BP138: N/A | BQ138: N/A | BR138: N/A | BS138: N/A | BT138: N/A | BU138: N/A | BV138: N/A | BW138: N/A | BX138: N/A | BY138: N/A | BZ138: N/A | CA138: N/A | CB138: N/A
B139: Open defecation | C139: 21.45455619 | D139: 11.59315188 | E139: 9.854938892 | F139: 5.537611326 | G139: 0.8074225787 | H139: 8.285894982 | I139: 4.353638685 | J139: 2.464420937 | K139: 1.093386667 | L139: 0.2710188932 | M139: 22.99740417 | N139: 18.59673323 | O139: 11.07619107 | P139: 10.37617649 | Q139: 10.90399515 | R139: 11.50723253 | S139: 17.51051368 | T139: 7.876960016 | U139: 24.55097385 | V139: 7.278596451 | W139: 14.20899246 | X139: 1.266089613 | Y139: 9.425093487 | Z139: 5.850372945 | AA139: 6.333824881 | AB139: 6.882914469 | BB139: Open defecation | BC139: N/A | BD139: N/A | BE139: N/A | BF139: N/A | BG139: N/A | BH139: N/A | BI139: N/A | BJ139: N/A | BK139: N/A | BL139: N/A | BM139: N/A | BN139: N/A | BO139: N/A | BP139: N/A | BQ139: N/A | BR139: N/A | BS139: N/A | BT139: N/A | BU139: N/A | BV139: N/A | BW139: N/A | BX139: N/A | BY139: N/A | BZ139: N/A | CA139: N/A | CB139: N/A
A140: Septic tank emptying practices | B140: Not emptied/treated and disposed in situ | C140: N/A | D140: N/A | E140: N/A | F140: N/A | G140: N/A | H140: N/A | I140: N/A | J140: N/A | K140: N/A | L140: N/A | M140: N/A | N140: N/A | O140: N/A | P140: N/A | Q140: N/A | R140: N/A | S140: N/A | T140: N/A | U140: N/A | V140: N/A | W140: N/A | X140: N/A | Y140: N/A | Z140: N/A | AA140: N/A | AB140: N/A | BA140: Septic tank emptying practices | BB140: Not emptied/treated and disposed in situ | BC140: N/A | BD140: N/A | BE140: N/A | BF140: N/A | BG140: N/A | BH140: N/A | BI140: N/A | BJ140: N/A | BK140: N/A | BL140: N/A | BM140: N/A | BN140: N/A | BO140: N/A | BP140: N/A | BQ140: N/A | BR140: N/A | BS140: N/A | BT140: N/A | BU140: N/A | BV140: N/A | BW140: N/A | BX140: N/A | BY140: N/A | BZ140: N/A | CA140: N/A | CB140: N/A
B141: Emptied and buried on site | C141: N/A | D141: N/A | E141: N/A | F141: N/A | G141: N/A | H141: N/A | I141: N/A | J141: N/A | K141: N/A | L141: N/A | M141: N/A | N141: N/A | O141: N/A | P141: N/A | Q141: N/A | R141: N/A | S141: N/A | T141: N/A | U141: N/A | V141: N/A | W141: N/A | X141: N/A | Y141: N/A | Z141: N/A | AA141: N/A | AB141: N/A | BB141: Emptied and buried on site | BC141: N/A | BD141: N/A | BE141: N/A | BF141: N/A | BG141: N/A | BH141: N/A | BI141: N/A | BJ141: N/A | BK141: N/A | BL141: N/A | BM141: N/A | BN141: N/A | BO141: N/A | BP141: N/A | BQ141: N/A | BR141: N/A | BS141: N/A | BT141: N/A | BU141: N/A | BV141: N/A | BW141: N/A | BX141: N/A | BY141: N/A | BZ141: N/A | CA141: N/A | CB141: N/A
B142: Emptied and discharged locally | C142: N/A | D142: N/A | E142: N/A | F142: N/A | G142: N/A | H142: N/A | I142: N/A | J142: N/A | K142: N/A | L142: N/A | M142: N/A | N142: N/A | O142: N/A | P142: N/A | Q142: N/A | R142: N/A | S142: N/A | T142: N/A | U142: N/A | V142: N/A | W142: N/A | X142: N/A | Y142: N/A | Z142: N/A | AA142: N/A | AB142: N/A | BB142: Emptied and discharged locally | BC142: N/A | BD142: N/A | BE142: N/A | BF142: N/A | BG142: N/A | BH142: N/A | BI142: N/A | BJ142: N/A | BK142: N/A | BL142: N/A | BM142: N/A | BN142: N/A | BO142: N/A | BP142: N/A | BQ142: N/A | BR142: N/A | BS142: N/A | BT142: N/A | BU142: N/A | BV142: N/A | BW142: N/A | BX142: N/A | BY142: N/A | BZ142: N/A | CA142: N/A | CB142: N/A
B143: Emptied and removed offsite | C143: N/A | D143: N/A | E143: N/A | F143: N/A | G143: N/A | H143: N/A | I143: N/A | J143: N/A | K143: N/A | L143: N/A | M143: N/A | N143: N/A | O143: N/A | P143: N/A | Q143: N/A | R143: N/A | S143: N/A | T143: N/A | U143: N/A | V143: N/A | W143: N/A | X143: N/A | Y143: N/A | Z143: N/A | AA143: N/A | AB143: N/A | BB143: Emptied and removed offsite | BC143: N/A | BD143: N/A | BE143: N/A | BF143: N/A | BG143: N/A | BH143: N/A | BI143: N/A | BJ143: N/A | BK143: N/A | BL143: N/A | BM143: N/A | BN143: N/A | BO143: N/A | BP143: N/A | BQ143: N/A | BR143: N/A | BS143: N/A | BT143: N/A | BU143: N/A | BV143: N/A | BW143: N/A | BX143: N/A | BY143: N/A | BZ143: N/A | CA143: N/A | CB143: N/A
A144: Latrine emptying practices | B144: Not emptied/treated and disposed in situ | C144: N/A | D144: N/A | E144: N/A | F144: N/A | G144: N/A | H144: N/A | I144: N/A | J144: N/A | K144: N/A | L144: N/A | M144: N/A | N144: N/A | O144: N/A | P144: N/A | Q144: N/A | R144: N/A | S144: N/A | T144: N/A | U144: N/A | V144: N/A | W144: N/A | X144: N/A | Y144: N/A | Z144: N/A | AA144: N/A | AB144: N/A | BA144: Latrine emptying practices | BB144: Not emptied/treated and disposed in situ | BC144: N/A | BD144: N/A | BE144: N/A | BF144: N/A | BG144: N/A | BH144: N/A | BI144: N/A | BJ144: N/A | BK144: N/A | BL144: N/A | BM144: N/A | BN144: N/A | BO144: N/A | BP144: N/A | BQ144: N/A | BR144: N/A | BS144: N/A | BT144: N/A | BU144: N/A | BV144: N/A | BW144: N/A | BX144: N/A | BY144: N/A | BZ144: N/A | CA144: N/A | CB144: N/A
B145: Emptied and buried on site | C145: N/A | D145: N/A | E145: N/A | F145: N/A | G145: N/A | H145: N/A | I145: N/A | J145: N/A | K145: N/A | L145: N/A | M145: N/A | N145: N/A | O145: N/A | P145: N/A | Q145: N/A | R145: N/A | S145: N/A | T145: N/A | U145: N/A | V145: N/A | W145: N/A | X145: N/A | Y145: N/A | Z145: N/A | AA145: N/A | AB145: N/A | BB145: Emptied and buried on site | BC145: N/A | BD145: N/A | BE145: N/A | BF145: N/A | BG145: N/A | BH145: N/A | BI145: N/A | BJ145: N/A | BK145: N/A | BL145: N/A | BM145: N/A | BN145: N/A | BO145: N/A | BP145: N/A | BQ145: N/A | BR145: N/A | BS145: N/A | BT145: N/A | BU145: N/A | BV145: N/A | BW145: N/A | BX145: N/A | BY145: N/A | BZ145: N/A | CA145: N/A | CB145: N/A
B146: Emptied and discharged locally | C146: N/A | D146: N/A | E146: N/A | F146: N/A | G146: N/A | H146: N/A | I146: N/A | J146: N/A | K146: N/A | L146: N/A | M146: N/A | N146: N/A | O146: N/A | P146: N/A | Q146: N/A | R146: N/A | S146: N/A | T146: N/A | U146: N/A | V146: N/A | W146: N/A | X146: N/A | Y146: N/A | Z146: N/A | AA146: N/A | AB146: N/A | BB146: Emptied and discharged locally | BC146: N/A | BD146: N/A | BE146: N/A | BF146: N/A | BG146: N/A | BH146: N/A | BI146: N/A | BJ146: N/A | BK146: N/A | BL146: N/A | BM146: N/A | BN146: N/A | BO146: N/A | BP146: N/A | BQ146: N/A | BR146: N/A | BS146: N/A | BT146: N/A | BU146: N/A | BV146: N/A | BW146: N/A | BX146: N/A | BY146: N/A | BZ146: N/A | CA146: N/A | CB146: N/A
B147: Emptied and removed offsite | C147: N/A | D147: N/A | E147: N/A | F147: N/A | G147: N/A | H147: N/A | I147: N/A | J147: N/A | K147: N/A | L147: N/A | M147: N/A | N147: N/A | O147: N/A | P147: N/A | Q147: N/A | R147: N/A | S147: N/A | T147: N/A | U147: N/A | V147: N/A | W147: N/A | X147: N/A | Y147: N/A | Z147: N/A | AA147: N/A | AB147: N/A | BB147: Emptied and removed offsite | BC147: N/A | BD147: N/A | BE147: N/A | BF147: N/A | BG147: N/A | BH147: N/A | BI147: N/A | BJ147: N/A | BK147: N/A | BL147: N/A | BM147: N/A | BN147: N/A | BO147: N/A | BP147: N/A | BQ147: N/A | BR147: N/A | BS147: N/A | BT147: N/A | BU147: N/A | BV147: N/A | BW147: N/A | BX147: N/A | BY147: N/A | BZ147: N/A | CA147: N/A | CB147: N/A
A148: Shared among improved sanitation facilities | B148: Yes | C148: 12.10597578 | D148: 13.70433712 | E148: 15.4026657 | F148: 21.80410011 | G148: 42.44388765 | H148: 13.99962145 | I148: 20.05207768 | J148: 27.32530677 | K148: 39.35055237 | L148: 50.56658199 | M148: 11.69249028 | N148: 11.90362141 | O148: 14.0933228 | P148: 17.12765821 | Q148: 16.26639952 | R148: 5.257682908 | S148: 18.02211767 | T148: 12.70500875 | U148: 15.33469417 | V148: 28.45585633 | W148: 29.17324925 | X148: 44.75187103 | Y148: 22.85588394 | Z148: 11.14049841 | AA148: 19.55176115 | AB148: 14.03445903 | BA148: Shared among improved sanitation facilities | BB148: Yes | BC148: N/A | BD148: N/A | BE148: N/A | BF148: N/A | BG148: N/A | BH148: N/A | BI148: N/A | BJ148: N/A | BK148: N/A | BL148: N/A | BM148: N/A | BN148: N/A | BO148: N/A | BP148: N/A | BQ148: N/A | BR148: N/A | BS148: N/A | BT148: N/A | BU148: N/A | BV148: N/A | BW148: N/A | BX148: N/A | BY148: N/A | BZ148: N/A | CA148: N/A | CB148: N/A
B149: No | C149: 13.20343992 | D149: 14.81084047 | E149: 14.746443 | F149: 20.64676339 | G149: 24.16217122 | H149: 16.20887767 | I149: 22.36712132 | J149: 20.07186232 | K149: 20.19758122 | L149: 28.16259097 | M149: 9.326114474 | N149: 15.03320163 | O149: 14.90669435 | P149: 14.41753891 | Q149: 19.34918199 | R149: 4.655074732 | S149: 11.38273893 | T149: 8.812932381 | U149: 13.34703066 | V149: 37.36314139 | W149: 24.57056666 | X149: 15.96918067 | Y149: 35.44202361 | Z149: 11.95300763 | AA149: 14.89577876 | AB149: 30.23273066 | BB149: No | BC149: N/A | BD149: N/A | BE149: N/A | BF149: N/A | BG149: N/A | BH149: N/A | BI149: N/A | BJ149: N/A | BK149: N/A | BL149: N/A | BM149: N/A | BN149: N/A | BO149: N/A | BP149: N/A | BQ149: N/A | BR149: N/A | BS149: N/A | BT149: N/A | BU149: N/A | BV149: N/A | BW149: N/A | BX149: N/A | BY149: N/A | BZ149: N/A | CA149: N/A | CB149: N/A
B150: DK/missing | C150: 74.6905843 | D150: 71.48482241 | E150: 69.85089129 | F150: 57.5491365 | G150: 33.39394112 | H150: 69.79150088 | I150: 57.580801 | J150: 52.60283092 | K150: 40.45186641 | L150: 21.27082704 | M150: 78.98139525 | N150: 73.06317696 | O150: 70.99998285 | P150: 68.45480288 | Q150: 64.38441849 | R150: 90.08724236 | S150: 70.5951434 | T150: 78.48205887 | U150: 71.31827517 | V150: 34.18100228 | W150: 46.25618409 | X150: 39.2789483 | Y150: 41.70209245 | Z150: 76.90649396 | AA150: 65.55246009 | AB150: 55.73281031 | BB150: DK/missing | BC150: N/A | BD150: N/A | BE150: N/A | BF150: N/A | BG150: N/A | BH150: N/A | BI150: N/A | BJ150: N/A | BK150: N/A | BL150: N/A | BM150: N/A | BN150: N/A | BO150: N/A | BP150: N/A | BQ150: N/A | BR150: N/A | BS150: N/A | BT150: N/A | BU150: N/A | BV150: N/A | BW150: N/A | BX150: N/A | BY150: N/A | BZ150: N/A | CA150: N/A | CB150: N/A
A151: Shared among all sanitation facilities | B151: Yes | C151: 49.28230388 | D151: 45.26545288 | E151: 49.58161127 | F151: 49.11606809 | G151: 61.10362872 | H151: 46.64028154 | I151: 48.39891867 | J151: 51.22442321 | K151: 62.95225775 | L151: 62.76179165 | M151: 54.91620354 | N151: 43.35682556 | O151: 46.72836361 | P151: 49.24371435 | Q151: 47.21368739 | R151: 44.92126507 | S151: 48.02265529 | T151: 54.58272686 | U151: 43.36793492 | V151: 45.70914051 | W151: 53.43527887 | X151: 68.99842245 | Y151: 39.09080338 | Z151: 51.31988023 | AA151: 49.85110215 | AB151: 42.24620296 | BA151: Shared among all sanitation facilities | BB151: Yes | BC151: N/A | BD151: N/A | BE151: N/A | BF151: N/A | BG151: N/A | BH151: N/A | BI151: N/A | BJ151: N/A | BK151: N/A | BL151: N/A | BM151: N/A | BN151: N/A | BO151: N/A | BP151: N/A | BQ151: N/A | BR151: N/A | BS151: N/A | BT151: N/A | BU151: N/A | BV151: N/A | BW151: N/A | BX151: N/A | BY151: N/A | BZ151: N/A | CA151: N/A | CB151: N/A
B152: No | C152: 46.61260895 | D152: 51.37107801 | E152: 48.40039237 | F152: 47.23902255 | G152: 35.80233627 | H152: 50.89996972 | I152: 48.11951327 | J152: 45.24352104 | K152: 34.43041392 | L152: 33.43513696 | M152: 41.25305886 | N152: 52.38248334 | O152: 50.07508429 | P152: 48.32457053 | Q152: 50.08350317 | R152: 52.55200858 | S152: 49.11559894 | T152: 43.1285996 | U152: 55.50028581 | V152: 51.19780675 | W152: 42.13178199 | X152: 27.17654808 | Y152: 56.50780291 | Z152: 46.80370077 | AA152: 45.45432877 | AB152: 53.5431092 | BB152: No | BC152: N/A | BD152: N/A | BE152: N/A | BF152: N/A | BG152: N/A | BH152: N/A | BI152: N/A | BJ152: N/A | BK152: N/A | BL152: N/A | BM152: N/A | BN152: N/A | BO152: N/A | BP152: N/A | BQ152: N/A | BR152: N/A | BS152: N/A | BT152: N/A | BU152: N/A | BV152: N/A | BW152: N/A | BX152: N/A | BY152: N/A | BZ152: N/A | CA152: N/A | CB152: N/A
A153: Type of toilet facility | B153: Flush toilet | C153: 0.09745624462 | D153: 0.150978764 | E153: 0 | F153: 2.93178932 | G153: 29.20269773 | H153: 0 | I153: 1.75560021 | J153: 7.779791636 | K153: 22.58979705 | L153: 42.58946947 | M153: 0.1716024988 | N153: 0.1359187076 | O153: 0.1214068337 | P153: 0 | Q153: 0.06048760608 | R153: 0.02240302587 | S153: 0.8116983749 | T153: 0.3933857488 | U153: 0.267731405 | V153: 6.968682443 | W153: 11.28713288 | X153: 30.86583249 | Y153: 0.9510161911 | Z153: 0.4321744693 | AA153: 0.2301277746 | AB153: 4.810338255 | BA153: Type of toilet facility | BB153: Flush toilet | BC153: 9.630774 | BD153: 14.659017 | BE153: 0 | BF153: 287.59012 | BG153: 2863.711504 | BH153: 0 | BI153: 74.38526 | BJ153: 323.61847 | BK153: 944.024962 | BL153: 1805.975912 | BM153: 9.630774 | BN153: 7.63189 | BO153: 7.027127 | BP153: 0 | BQ153: 3.29702 | BR153: 1.556846 | BS153: 15.882923 | BT153: 25.069349 | BU153: 12.695252 | BV153: 412.548084 | BW153: 582.173939 | BX153: 1981.448385 | BY153: 15.306184 | BZ153: 7.989967 | CA153: 13.346632 | CB153: 107.573854
B154: Traditional pit toilet (uncovered) | C154: 51.67570177 | D154: 58.77566415 | E154: 59.27713886 | F154: 49.52217552 | G154: 30.02568753 | H154: 60.03792374 | I154: 51.35748866 | J154: 47.31882951 | K154: 36.91631611 | L154: 17.94703643 | M154: 54.21127362 | N154: 53.44917773 | O154: 59.03216963 | P154: 57.56065863 | Q154: 51.6529536 | R154: 78.36990794 | S154: 50.72477923 | T154: 69.79095742 | U154: 46.18989818 | V154: 24.12253479 | W154: 29.7055475 | X154: 35.69538861 | Y154: 29.40315581 | Z154: 70.59632941 | AA154: 56.85933945 | AB154: 45.76633743 | BB154: Traditional pit toilet (uncovered) | BC154: 5106.671276 | BD154: 5706.719523 | BE154: 5812.117161 | BF154: 4857.814408 | BG154: 2944.41656 | BH154: 2497.929325 | BI154: 2176.03081 | BJ154: 1968.336419 | BK154: 1542.728509 | BL154: 761.03121 | BM154: 3042.476235 | BN154: 3001.192789 | BO154: 3416.830342 | BP154: 3205.716913 | BQ154: 2815.466376 | BR154: 5446.133858 | BS154: 992.558058 | BT154: 4447.57817 | BU154: 2190.226422 | BV154: 1428.061271 | BW154: 1532.169044 | BX154: 2291.484286 | BY154: 473.230758 | BZ154: 1305.172754 | CA154: 3297.649233 | CB154: 1023.475074
B155: Traditional pit toilet (covered) | C155: 26.39322867 | D155: 29.02477246 | E155: 30.62318741 | F155: 40.99928607 | G155: 28.45232548 | H155: 31.56648351 | I155: 42.27381384 | J155: 39.14133883 | K155: 29.55123398 | L155: 23.62172537 | M155: 21.98470462 | N155: 27.80955241 | O155: 29.10222224 | P155: 31.63444088 | Q155: 37.2411468 | R155: 10.00290055 | S155: 27.61274885 | T155: 21.7665122 | U155: 27.22328794 | V155: 61.35332844 | W155: 39.46830246 | X155: 19.92161665 | Y155: 60.16304839 | Z155: 22.96182437 | AA155: 36.15211345 | AB155: 39.84945107 | BB155: Traditional pit toilet (covered) | BC155: 2608.218913 | BD155: 2818.109128 | BE155: 3002.600269 | BF155: 4021.772479 | BG155: 2790.127561 | BH155: 1313.350628 | BI155: 1791.153029 | BJ155: 1628.174735 | BK155: 1234.942593 | BL155: 1001.662325 | BM155: 1233.83822 | BN155: 1561.517533 | BO155: 1684.460466 | BP155: 1761.812053 | BQ155: 2029.916768 | BR155: 695.12823 | BS155: 540.312975 | BT155: 1387.117588 | BU155: 1290.870231 | BV155: 3632.135386 | BW155: 2035.717781 | BX155: 1278.878681 | BY155: 968.297593 | BZ155: 424.514246 | CA155: 2096.700214 | CB155: 891.155425
B156: Ventilated improved pit latrine | C156: 0.1253389372 | D156: 0.3401866579 | E156: 0.2066971135 | F156: 0.8882560392 | G156: 11.28395515 | H156: 0 | I156: 0.2479578082 | J156: 3.024172393 | K156: 9.449173779 | L156: 15.51604548 | M156: 0.2206987855 | N156: 0 | O156: 0.5706523234 | P156: 0.3639000582 | Q156: 0.08335625894 | R156: 0 | S156: 1.807309135 | T156: 0.121459929 | U156: 1.349602773 | V156: 0.2269477728 | W156: 5.176679202 | X156: 12.25107264 | Y156: 0 | Z156: 0.1311266027 | AA156: 0.4035008406 | AB156: 2.661765566 | BB156: Ventilated improved pit latrine | BC156: 12.386184 | BD156: 33.029824 | BE156: 20.26663 | BF156: 87.132339 | BG156: 1106.541336 | BH156: 0 | BI156: 10.50604 | BJ156: 125.797462 | BK156: 394.879861 | BL156: 657.946782 | BM156: 12.386184 | BN156: 0 | BO156: 33.029824 | BP156: 20.26663 | BQ156: 4.54353 | BR156: 0 | BS156: 35.364555 | BT156: 7.740294 | BU156: 63.995284 | BV156: 13.435376 | BW156: 267.005603 | BX156: 786.464065 | BY156: 0 | BZ156: 2.424246 | CA156: 23.401683 | CB156: 59.525207
B157: No facility, bush, field | C157: 21.49837953 | D157: 11.64834336 | E157: 9.879500588 | F157: 5.549648726 | G157: 0.8093018889 | H157: 8.395592747 | I157: 4.36513948 | J157: 2.475821757 | K157: 1.095303585 | L157: 0.2714269695 | M157: 23.04213431 | N157: 18.59947515 | O157: 11.0785096 | P157: 10.41727525 | Q157: 10.90549297 | R157: 11.53974953 | S157: 17.52261174 | T157: 7.893280958 | U157: 24.60188322 | V157: 7.328506555 | W157: 14.24396487 | X157: 1.266089613 | Y157: 9.45797874 | Z157: 5.860698805 | AA157: 6.354918481 | AB157: 6.912107676 | BB157: No facility, bush, field | BC157: 2124.502493 | BD157: 1130.975369 | BE157: 968.683982 | BF157: 544.385687 | BG157: 79.362775 | BH157: 349.305839 | BI157: 184.952151 | BJ157: 102.987546 | BK157: 45.772608 | BL157: 11.509666 | BM157: 1293.183896 | BN157: 1044.367997 | BO157: 641.233212 | BP157: 580.167709 | BQ157: 594.429682 | BR157: 801.927963 | BS157: 342.87403 | BT157: 503.016227 | BU157: 1166.568812 | BV157: 433.849779 | BW157: 734.683043 | BX157: 81.27729 | BY157: 152.221975 | BZ157: 108.351588 | CA157: 368.563762 | CB157: 154.575837
B158: OTHER | C158: 0.2098948436 | D158: 0.06005461498 | E158: 0.01347602686 | F158: 0.1088443279 | G158: 0.2260322248 | H158: 0 | I158: 0 | J158: 0.2600458733 | K158: 0.3981754924 | L158: 0.0542962843 | M158: 0.3695861645 | N158: 0.005876004289 | O158: 0.09503937692 | P158: 0.02372518354 | Q158: 0.0565627603 | R158: 0.06503894933 | S158: 1.520852679 | T158: 0.03440374027 | U158: 0.3675964845 | V158: 0 | W158: 0.1183730852 | X158: 0 | Y158: 0.02480086949 | Z158: 0.01784633709 | AA158: 0 | AB158: 0 | BB158: OTHER | BC158: 20.742127 | BD158: 5.830897 | BE158: 1.321323 | BF158: 10.676945 | BG158: 22.165455 | BH158: 0 | BI158: 0 | BJ158: 10.817211 | BK158: 16.639707 | BL158: 2.302395 | BM158: 20.742127 | BN158: 0.32994 | BO158: 5.500957 | BP158: 1.321323 | BQ158: 3.083087 | BR158: 4.51973 | BS158: 29.759313 | BT158: 2.192452 | BU158: 17.430641 | BV158: 0 | BW158: 6.105512 | BX158: 0 | BY158: 0.399159 | BZ158: 0.32994 | CA158: 0 | CB158: 0
BB159: Total | BC159: 9882.151767 | BD159: 9709.323758 | BE159: 9804.989365 | BF159: 9809.371978 | BG159: 9806.325191 | BH159: 4160.585792 | BI159: 4237.02729 | BJ159: 4159.731843 | BK159: 4178.98824 | BL159: 4240.42829 | BM159: 5612.257436 | BN159: 5615.040149 | BO159: 5788.081928 | BP159: 5569.284628 | BQ159: 5450.736463 | BR159: 6949.266627 | BS159: 1956.751854 | BT159: 6372.71408 | BU159: 4741.786642 | BV159: 5920.029896 | BW159: 5157.854922 | BX159: 6419.552707 | BY159: 1609.455669 | BZ159: 1848.782741 | CA159: 5799.661524 | CB159: 2236.305397
A208: =A1026 -> Democratic Republic of the Congo
A209: =A1034 -> 2007
A210: Access to hygiene facilities
A211: by wealth quintile and sub-national region
A212: Notes:
A213: WHO/UNICEF JMP customised wealth index excludes water,
A214: sanitation and hygiene assets.
A215: Survey used for analysis: | B215: =A1025 -> DHS07
A220: Access to handwashing | C220: NATIONAL wealth index quintile | H220: URBAN wealth index quintile | M220: RURAL wealth index quintile | R220: SUB-REGIONS: | BA220: Raw numbers of respondents: | BB220: Access to handwashing | BC220: NATIONAL wealth index quintile | BH220: URBAN wealth index quintile | BM220: RURAL wealth index quintile | BR220: SUB-REGIONS:
A221: Weighted percentage (used in graphs) | C221: Poorest | D221: Poor | E221: Middle | F221: Rich | G221: Richest | H221: Poorest | I221: Poor | J221: Middle | K221: Rich | L221: Richest | M221: Poorest | N221: Poor | O221: Middle | P221: Rich | Q221: Richest | R221: Bandundu | S221: Bas-Congo | T221: Equateur | U221: Kasaï Occident | V221: Kasaï Oriental | W221: Katanga | X221: Kinshasa | Y221: Maniema | Z221: Nord-Kivu | AA221: Orientale | AB221: Sud-Kivu | BA221: Hygiene data, raw numbers (weighted) | BC221: Poorest | BD221: Poor | BE221: Middle | BF221: Rich | BG221: Richest | BH221: Poorest | BI221: Poor | BJ221: Middle | BK221: Rich | BL221: Richest | BM221: Poorest | BN221: Poor | BO221: Middle | BP221: Rich | BQ221: Richest | BR221: Bandundu | BS221: Bas-Congo | BT221: Equateur | BU221: Kasaï Occident | BV221: Kasaï Oriental | BW221: Katanga | BX221: Kinshasa | BY221: Maniema | BZ221: Nord-Kivu | CA221: Orientale | CB221: Sud-Kivu
A222: Hygiene ladder | B222: Basic | C222: N/A | D222: N/A | E222: N/A | F222: N/A | G222: N/A | H222: N/A | I222: N/A | J222: N/A | K222: N/A | L222: N/A | M222: N/A | N222: N/A | O222: N/A | P222: N/A | Q222: N/A | R222: N/A | S222: N/A | T222: N/A | U222: N/A | V222: N/A | W222: N/A | X222: N/A | Y222: N/A | Z222: N/A | AA222: N/A | AB222: N/A | BA222: Hygiene ladder | BB222: Basic | BC222: N/A | BD222: N/A | BE222: N/A | BF222: N/A | BG222: N/A | BH222: N/A | BI222: N/A | BJ222: N/A | BK222: N/A | BL222: N/A | BM222: N/A | BN222: N/A | BO222: N/A | BP222: N/A | BQ222: N/A | BR222: N/A | BS222: N/A | BT222: N/A | BU222: N/A | BV222: N/A | BW222: N/A | BX222: N/A | BY222: N/A | BZ222: N/A | CA222: N/A | CB222: N/A
B223: Limited | C223: N/A | D223: N/A | E223: N/A | F223: N/A | G223: N/A | H223: N/A | I223: N/A | J223: N/A | K223: N/A | L223: N/A | M223: N/A | N223: N/A | O223: N/A | P223: N/A | Q223: N/A | R223: N/A | S223: N/A | T223: N/A | U223: N/A | V223: N/A | W223: N/A | X223: N/A | Y223: N/A | Z223: N/A | AA223: N/A | AB223: N/A | BB223: Limited | BC223: N/A | BD223: N/A | BE223: N/A | BF223: N/A | BG223: N/A | BH223: N/A | BI223: N/A | BJ223: N/A | BK223: N/A | BL223: N/A | BM223: N/A | BN223: N/A | BO223: N/A | BP223: N/A | BQ223: N/A | BR223: N/A | BS223: N/A | BT223: N/A | BU223: N/A | BV223: N/A | BW223: N/A | BX223: N/A | BY223: N/A | BZ223: N/A | CA223: N/A | CB223: N/A
B224: No facility | C224: N/A | D224: N/A | E224: N/A | F224: N/A | G224: N/A | H224: N/A | I224: N/A | J224: N/A | K224: N/A | L224: N/A | M224: N/A | N224: N/A | O224: N/A | P224: N/A | Q224: N/A | R224: N/A | S224: N/A | T224: N/A | U224: N/A | V224: N/A | W224: N/A | X224: N/A | Y224: N/A | Z224: N/A | AA224: N/A | AB224: N/A | BB224: No facility | BC224: N/A | BD224: N/A | BE224: N/A | BF224: N/A | BG224: N/A | BH224: N/A | BI224: N/A | BJ224: N/A | BK224: N/A | BL224: N/A | BM224: N/A | BN224: N/A | BO224: N/A | BP224: N/A | BQ224: N/A | BR224: N/A | BS224: N/A | BT224: N/A | BU224: N/A | BV224: N/A | BW224: N/A | BX224: N/A | BY224: N/A | BZ224: N/A | CA224: N/A | CB224: N/A
BA225: Observed handwashing place | BB225: Fixed | BC225: N/A | BD225: N/A | BE225: N/A | BF225: N/A | BG225: N/A | BH225: N/A | BI225: N/A | BJ225: N/A | BK225: N/A | BL225: N/A | BM225: N/A | BN225: N/A | BO225: N/A | BP225: N/A | BQ225: N/A | BR225: N/A | BS225: N/A | BT225: N/A | BU225: N/A | BV225: N/A | BW225: N/A | BX225: N/A | BY225: N/A | BZ225: N/A | CA225: N/A | CB225: N/A
BB226: Mobile | BC226: N/A | BD226: N/A | BE226: N/A | BF226: N/A | BG226: N/A | BH226: N/A | BI226: N/A | BJ226: N/A | BK226: N/A | BL226: N/A | BM226: N/A | BN226: N/A | BO226: N/A | BP226: N/A | BQ226: N/A | BR226: N/A | BS226: N/A | BT226: N/A | BU226: N/A | BV226: N/A | BW226: N/A | BX226: N/A | BY226: N/A | BZ226: N/A | CA226: N/A | CB226: N/A
BA227: Water / Soap | BB227: Water and soap | BC227: N/A | BD227: N/A | BE227: N/A | BF227: N/A | BG227: N/A | BH227: N/A | BI227: N/A | BJ227: N/A | BK227: N/A | BL227: N/A | BM227: N/A | BN227: N/A | BO227: N/A | BP227: N/A | BQ227: N/A | BR227: N/A | BS227: N/A | BT227: N/A | BU227: N/A | BV227: N/A | BW227: N/A | BX227: N/A | BY227: N/A | BZ227: N/A | CA227: N/A | CB227: N/A
BB228: Water only | BC228: N/A | BD228: N/A | BE228: N/A | BF228: N/A | BG228: N/A | BH228: N/A | BI228: N/A | BJ228: N/A | BK228: N/A | BL228: N/A | BM228: N/A | BN228: N/A | BO228: N/A | BP228: N/A | BQ228: N/A | BR228: N/A | BS228: N/A | BT228: N/A | BU228: N/A | BV228: N/A | BW228: N/A | BX228: N/A | BY228: N/A | BZ228: N/A | CA228: N/A | CB228: N/A
BB229: Soap only | BC229: N/A | BD229: N/A | BE229: N/A | BF229: N/A | BG229: N/A | BH229: N/A | BI229: N/A | BJ229: N/A | BK229: N/A | BL229: N/A | BM229: N/A | BN229: N/A | BO229: N/A | BP229: N/A | BQ229: N/A | BR229: N/A | BS229: N/A | BT229: N/A | BU229: N/A | BV229: N/A | BW229: N/A | BX229: N/A | BY229: N/A | BZ229: N/A | CA229: N/A | CB229: N/A
BB230: Neither | BC230: N/A | BD230: N/A | BE230: N/A | BF230: N/A | BG230: N/A | BH230: N/A | BI230: N/A | BJ230: N/A | BK230: N/A | BL230: N/A | BM230: N/A | BN230: N/A | BO230: N/A | BP230: N/A | BQ230: N/A | BR230: N/A | BS230: N/A | BT230: N/A | BU230: N/A | BV230: N/A | BW230: N/A | BX230: N/A | BY230: N/A | BZ230: N/A | CA230: N/A | CB230: N/A
BA259: Raw numbers of respondents: | BB259: Menstrual health and hygiene | BC259: NATIONAL wealth index quintile | BH259: URBAN wealth index quintile | BM259: RURAL wealth index quintile | BR259: SUB-REGIONS:
BA260: MHH data, raw numbers (weighted) | BC260: Poorest | BD260: Poor | BE260: Middle | BF260: Rich | BG260: Richest | BH260: Poorest | BI260: Poor | BJ260: Middle | BK260: Rich | BL260: Richest | BM260: Poorest | BN260: Poor | BO260: Middle | BP260: Rich | BQ260: Richest | BR260: Bandundu | BS260: Bas-Congo | BT260: Equateur | BU260: Kasaï Occident | BV260: Kasaï Oriental | BW260: Katanga | BX260: Kinshasa | BY260: Maniema | BZ260: Nord-Kivu | CA260: Orientale | CB260: Sud-Kivu
BA261: Private place to wash and change | BB261: Yes | BC261: N/A | BD261: N/A | BE261: N/A | BF261: N/A | BG261: N/A | BH261: N/A | BI261: N/A | BJ261: N/A | BK261: N/A | BL261: N/A | BM261: N/A | BN261: N/A | BO261: N/A | BP261: N/A | BQ261: N/A | BR261: N/A | BS261: N/A | BT261: N/A | BU261: N/A | BV261: N/A | BW261: N/A | BX261: N/A | BY261: N/A | BZ261: N/A | CA261: N/A | CB261: N/A
BB262: No | BC262: N/A | BD262: N/A | BE262: N/A | BF262: N/A | BG262: N/A | BH262: N/A | BI262: N/A | BJ262: N/A | BK262: N/A | BL262: N/A | BM262: N/A | BN262: N/A | BO262: N/A | BP262: N/A | BQ262: N/A | BR262: N/A | BS262: N/A | BT262: N/A | BU262: N/A | BV262: N/A | BW262: N/A | BX262: N/A | BY262: N/A | BZ262: N/A | CA262: N/A | CB262: N/A
BB263: DK/not sure/missing | BC263: N/A | BD263: N/A | BE263: N/A | BF263: N/A | BG263: N/A | BH263: N/A | BI263: N/A | BJ263: N/A | BK263: N/A | BL263: N/A | BM263: N/A | BN263: N/A | BO263: N/A | BP263: N/A | BQ263: N/A | BR263: N/A | BS263: N/A | BT263: N/A | BU263: N/A | BV263: N/A | BW263: N/A | BX263: N/A | BY263: N/A | BZ263: N/A | CA263: N/A | CB263: N/A
BA264: Use of menstrual materials | BB264: Materials reusable | BC264: N/A | BD264: N/A | BE264: N/A | BF264: N/A | BG264: N/A | BH264: N/A | BI264: N/A | BJ264: N/A | BK264: N/A | BL264: N/A | BM264: N/A | BN264: N/A | BO264: N/A | BP264: N/A | BQ264: N/A | BR264: N/A | BS264: N/A | BT264: N/A | BU264: N/A | BV264: N/A | BW264: N/A | BX264: N/A | BY264: N/A | BZ264: N/A | CA264: N/A | CB264: N/A
BB265: Materials not reusable | BC265: N/A | BD265: N/A | BE265: N/A | BF265: N/A | BG265: N/A | BH265: N/A | BI265: N/A | BJ265: N/A | BK265: N/A | BL265: N/A | BM265: N/A | BN265: N/A | BO265: N/A | BP265: N/A | BQ265: N/A | BR265: N/A | BS265: N/A | BT265: N/A | BU265: N/A | BV265: N/A | BW265: N/A | BX265: N/A | BY265: N/A | BZ265: N/A | CA265: N/A | CB265: N/A
BB266: No materials used | BC266: N/A | BD266: N/A | BE266: N/A | BF266: N/A | BG266: N/A | BH266: N/A | BI266: N/A | BJ266: N/A | BK266: N/A | BL266: N/A | BM266: N/A | BN266: N/A | BO266: N/A | BP266: N/A | BQ266: N/A | BR266: N/A | BS266: N/A | BT266: N/A | BU266: N/A | BV266: N/A | BW266: N/A | BX266: N/A | BY266: N/A | BZ266: N/A | CA266: N/A | CB266: N/A
BB267: DK/not sure/missing | BC267: N/A | BD267: N/A | BE267: N/A | BF267: N/A | BG267: N/A | BH267: N/A | BI267: N/A | BJ267: N/A | BK267: N/A | BL267: N/A | BM267: N/A | BN267: N/A | BO267: N/A | BP267: N/A | BQ267: N/A | BR267: N/A | BS267: N/A | BT267: N/A | BU267: N/A | BV267: N/A | BW267: N/A | BX267: N/A | BY267: N/A | BZ267: N/A | CA267: N/A | CB267: N/A
BA268: Use of menstrual materials with private place to wash and change | BB268: Materials reusable | BC268: N/A | BD268: N/A | BE268: N/A | BF268: N/A | BG268: N/A | BH268: N/A | BI268: N/A | BJ268: N/A | BK268: N/A | BL268: N/A | BM268: N/A | BN268: N/A | BO268: N/A | BP268: N/A | BQ268: N/A | BR268: N/A | BS268: N/A | BT268: N/A | BU268: N/A | BV268: N/A | BW268: N/A | BX268: N/A | BY268: N/A | BZ268: N/A | CA268: N/A | CB268: N/A
BB269: Materials not reusable | BC269: N/A | BD269: N/A | BE269: N/A | BF269: N/A | BG269: N/A | BH269: N/A | BI269: N/A | BJ269: N/A | BK269: N/A | BL269: N/A | BM269: N/A | BN269: N/A | BO269: N/A | BP269: N/A | BQ269: N/A | BR269: N/A | BS269: N/A | BT269: N/A | BU269: N/A | BV269: N/A | BW269: N/A | BX269: N/A | BY269: N/A | BZ269: N/A | CA269: N/A | CB269: N/A
BB270: No materials used | BC270: N/A | BD270: N/A | BE270: N/A | BF270: N/A | BG270: N/A | BH270: N/A | BI270: N/A | BJ270: N/A | BK270: N/A | BL270: N/A | BM270: N/A | BN270: N/A | BO270: N/A | BP270: N/A | BQ270: N/A | BR270: N/A | BS270: N/A | BT270: N/A | BU270: N/A | BV270: N/A | BW270: N/A | BX270: N/A | BY270: N/A | BZ270: N/A | CA270: N/A | CB270: N/A
BA271: Awareness of menstruation before menarche | BB271: Yes | BC271: N/A | BD271: N/A | BE271: N/A | BF271: N/A | BG271: N/A | BH271: N/A | BI271: N/A | BJ271: N/A | BK271: N/A | BL271: N/A | BM271: N/A | BN271: N/A | BO271: N/A | BP271: N/A | BQ271: N/A | BR271: N/A | BS271: N/A | BT271: N/A | BU271: N/A | BV271: N/A | BW271: N/A | BX271: N/A | BY271: N/A | BZ271: N/A | CA271: N/A | CB271: N/A
BB272: No | BC272: N/A | BD272: N/A | BE272: N/A | BF272: N/A | BG272: N/A | BH272: N/A | BI272: N/A | BJ272: N/A | BK272: N/A | BL272: N/A | BM272: N/A | BN272: N/A | BO272: N/A | BP272: N/A | BQ272: N/A | BR272: N/A | BS272: N/A | BT272: N/A | BU272: N/A | BV272: N/A | BW272: N/A | BX272: N/A | BY272: N/A | BZ272: N/A | CA272: N/A | CB272: N/A
BB273: DK/not sure/missing | BC273: N/A | BD273: N/A | BE273: N/A | BF273: N/A | BG273: N/A | BH273: N/A | BI273: N/A | BJ273: N/A | BK273: N/A | BL273: N/A | BM273: N/A | BN273: N/A | BO273: N/A | BP273: N/A | BQ273: N/A | BR273: N/A | BS273: N/A | BT273: N/A | BU273: N/A | BV273: N/A | BW273: N/A | BX273: N/A | BY273: N/A | BZ273: N/A | CA273: N/A | CB273: N/A
BA274: Participation in (all) activities during menstruation | BB274: Yes | BC274: N/A | BD274: N/A | BE274: N/A | BF274: N/A | BG274: N/A | BH274: N/A | BI274: N/A | BJ274: N/A | BK274: N/A | BL274: N/A | BM274: N/A | BN274: N/A | BO274: N/A | BP274: N/A | BQ274: N/A | BR274: N/A | BS274: N/A | BT274: N/A | BU274: N/A | BV274: N/A | BW274: N/A | BX274: N/A | BY274: N/A | BZ274: N/A | CA274: N/A | CB274: N/A
BB275: No | BC275: N/A | BD275: N/A | BE275: N/A | BF275: N/A | BG275: N/A | BH275: N/A | BI275: N/A | BJ275: N/A | BK275: N/A | BL275: N/A | BM275: N/A | BN275: N/A | BO275: N/A | BP275: N/A | BQ275: N/A | BR275: N/A | BS275: N/A | BT275: N/A | BU275: N/A | BV275: N/A | BW275: N/A | BX275: N/A | BY275: N/A | BZ275: N/A | CA275: N/A | CB275: N/A
BB276: DK/not sure/missing/no such activity | BC276: N/A | BD276: N/A | BE276: N/A | BF276: N/A | BG276: N/A | BH276: N/A | BI276: N/A | BJ276: N/A | BK276: N/A | BL276: N/A | BM276: N/A | BN276: N/A | BO276: N/A | BP276: N/A | BQ276: N/A | BR276: N/A | BS276: N/A | BT276: N/A | BU276: N/A | BV276: N/A | BW276: N/A | BX276: N/A | BY276: N/A | BZ276: N/A | CA276: N/A | CB276: N/A
BA277: Participation in specific activities during menstruation | BB277: Did not go to school (amongst those usually attending school) | BC277: N/A | BD277: N/A | BE277: N/A | BF277: N/A | BG277: N/A | BH277: N/A | BI277: N/A | BJ277: N/A | BK277: N/A | BL277: N/A | BM277: N/A | BN277: N/A | BO277: N/A | BP277: N/A | BQ277: N/A | BR277: N/A | BS277: N/A | BT277: N/A | BU277: N/A | BV277: N/A | BW277: N/A | BX277: N/A | BY277: N/A | BZ277: N/A | CA277: N/A | CB277: N/A
BB278: Did not go to work (amongst those who usually work) | BC278: N/A | BD278: N/A | BE278: N/A | BF278: N/A | BG278: N/A | BH278: N/A | BI278: N/A | BJ278: N/A | BK278: N/A | BL278: N/A | BM278: N/A | BN278: N/A | BO278: N/A | BP278: N/A | BQ278: N/A | BR278: N/A | BS278: N/A | BT278: N/A | BU278: N/A | BV278: N/A | BW278: N/A | BX278: N/A | BY278: N/A | BZ278: N/A | CA278: N/A | CB278: N/A
BB279: Did not participate in social activities | BC279: N/A | BD279: N/A | BE279: N/A | BF279: N/A | BG279: N/A | BH279: N/A | BI279: N/A | BJ279: N/A | BK279: N/A | BL279: N/A | BM279: N/A | BN279: N/A | BO279: N/A | BP279: N/A | BQ279: N/A | BR279: N/A | BS279: N/A | BT279: N/A | BU279: N/A | BV279: N/A | BW279: N/A | BX279: N/A | BY279: N/A | BZ279: N/A | CA279: N/A | CB279: N/A
BB280: Did not cook food | BC280: N/A | BD280: N/A | BE280: N/A | BF280: N/A | BG280: N/A | BH280: N/A | BI280: N/A | BJ280: N/A | BK280: N/A | BL280: N/A | BM280: N/A | BN280: N/A | BO280: N/A | BP280: N/A | BQ280: N/A | BR280: N/A | BS280: N/A | BT280: N/A | BU280: N/A | BV280: N/A | BW280: N/A | BX280: N/A | BY280: N/A | BZ280: N/A | CA280: N/A | CB280: N/A
BB281: Did not eat with others | BC281: N/A | BD281: N/A | BE281: N/A | BF281: N/A | BG281: N/A | BH281: N/A | BI281: N/A | BJ281: N/A | BK281: N/A | BL281: N/A | BM281: N/A | BN281: N/A | BO281: N/A | BP281: N/A | BQ281: N/A | BR281: N/A | BS281: N/A | BT281: N/A | BU281: N/A | BV281: N/A | BW281: N/A | BX281: N/A | BY281: N/A | BZ281: N/A | CA281: N/A | CB281: N/A
BB282: Did not bathe in regular place | BC282: N/A | BD282: N/A | BE282: N/A | BF282: N/A | BG282: N/A | BH282: N/A | BI282: N/A | BJ282: N/A | BK282: N/A | BL282: N/A | BM282: N/A | BN282: N/A | BO282: N/A | BP282: N/A | BQ282: N/A | BR282: N/A | BS282: N/A | BT282: N/A | BU282: N/A | BV282: N/A | BW282: N/A | BX282: N/A | BY282: N/A | BZ282: N/A | CA282: N/A | CB282: N/A
BB283: Did not participate in other activities | BC283: N/A | BD283: N/A | BE283: N/A | BF283: N/A | BG283: N/A | BH283: N/A | BI283: N/A | BJ283: N/A | BK283: N/A | BL283: N/A | BM283: N/A | BN283: N/A | BO283: N/A | BP283: N/A | BQ283: N/A | BR283: N/A | BS283: N/A | BT283: N/A | BU283: N/A | BV283: N/A | BW283: N/A | BX283: N/A | BY283: N/A | BZ283: N/A | CA283: N/A | CB283: N/A
BB284: DK/not sure/missing/no such activity | BC284: N/A | BD284: N/A | BE284: N/A | BF284: N/A | BG284: N/A | BH284: N/A | BI284: N/A | BJ284: N/A | BK284: N/A | BL284: N/A | BM284: N/A | BN284: N/A | BO284: N/A | BP284: N/A | BQ284: N/A | BR284: N/A | BS284: N/A | BT284: N/A | BU284: N/A | BV284: N/A | BW284: N/A | BX284: N/A | BY284: N/A | BZ284: N/A | CA284: N/A | CB284: N/A
BA339: Raw numbers of respondents: | BB339: Basic water, sanitation and hygiene | BC339: NATIONAL wealth index quintile | BH339: URBAN wealth index quintile | BM339: RURAL wealth index quintile | BR339: SUB-REGIONS:
BA340: WatSan data, raw numbers (weighted) | BC340: Poorest | BD340: Poor | BE340: Middle | BF340: Rich | BG340: Richest | BH340: Poorest | BI340: Poor | BJ340: Middle | BK340: Rich | BL340: Richest | BM340: Poorest | BN340: Poor | BO340: Middle | BP340: Rich | BQ340: Richest | BR340: Bandundu | BS340: Bas-Congo | BT340: Equateur | BU340: Kasaï Occident | BV340: Kasaï Oriental | BW340: Katanga | BX340: Kinshasa | BY340: Maniema | BZ340: Nord-Kivu | CA340: Orientale | CB340: Sud-Kivu
BA341: Use of Basic Water Sanitation and Hygiene | BB341: Yes | BC341: N/A | BD341: N/A | BE341: N/A | BF341: N/A | BG341: N/A | BH341: N/A | BI341: N/A | BJ341: N/A | BK341: N/A | BL341: N/A | BM341: N/A | BN341: N/A | BO341: N/A | BP341: N/A | BQ341: N/A | BR341: N/A | BS341: N/A | BT341: N/A | BU341: N/A | BV341: N/A | BW341: N/A | BX341: N/A | BY341: N/A | BZ341: N/A | CA341: N/A | CB341: N/A
BB342: No | BC342: N/A | BD342: N/A | BE342: N/A | BF342: N/A | BG342: N/A | BH342: N/A | BI342: N/A | BJ342: N/A | BK342: N/A | BL342: N/A | BM342: N/A | BN342: N/A | BO342: N/A | BP342: N/A | BQ342: N/A | BR342: N/A | BS342: N/A | BT342: N/A | BU342: N/A | BV342: N/A | BW342: N/A | BX342: N/A | BY342: N/A | BZ342: N/A | CA342: N/A | CB342: N/A
BA343: Use of Basic Water and Sanitation | BB343: Yes | BC343: N/A | BD343: N/A | BE343: N/A | BF343: N/A | BG343: N/A | BH343: N/A | BI343: N/A | BJ343: N/A | BK343: N/A | BL343: N/A | BM343: N/A | BN343: N/A | BO343: N/A | BP343: N/A | BQ343: N/A | BR343: N/A | BS343: N/A | BT343: N/A | BU343: N/A | BV343: N/A | BW343: N/A | BX343: N/A | BY343: N/A | BZ343: N/A | CA343: N/A | CB343: N/A
BB344: No | BC344: N/A | BD344: N/A | BE344: N/A | BF344: N/A | BG344: N/A | BH344: N/A | BI344: N/A | BJ344: N/A | BK344: N/A | BL344: N/A | BM344: N/A | BN344: N/A | BO344: N/A | BP344: N/A | BQ344: N/A | BR344: N/A | BS344: N/A | BT344: N/A | BU344: N/A | BV344: N/A | BW344: N/A | BX344: N/A | BY344: N/A | BZ344: N/A | CA344: N/A | CB344: N/A
BA345: Use of Basic Water and Hygiene | BB345: Yes | BC345: N/A | BD345: N/A | BE345: N/A | BF345: N/A | BG345: N/A | BH345: N/A | BI345: N/A | BJ345: N/A | BK345: N/A | BL345: N/A | BM345: N/A | BN345: N/A | BO345: N/A | BP345: N/A | BQ345: N/A | BR345: N/A | BS345: N/A | BT345: N/A | BU345: N/A | BV345: N/A | BW345: N/A | BX345: N/A | BY345: N/A | BZ345: N/A | CA345: N/A | CB345: N/A
BB346: No | BC346: N/A | BD346: N/A | BE346: N/A | BF346: N/A | BG346: N/A | BH346: N/A | BI346: N/A | BJ346: N/A | BK346: N/A | BL346: N/A | BM346: N/A | BN346: N/A | BO346: N/A | BP346: N/A | BQ346: N/A | BR346: N/A | BS346: N/A | BT346: N/A | BU346: N/A | BV346: N/A | BW346: N/A | BX346: N/A | BY346: N/A | BZ346: N/A | CA346: N/A | CB346: N/A
BA347: Use of Basic Sanitation and Hygiene | BB347: Yes | BC347: N/A | BD347: N/A | BE347: N/A | BF347: N/A | BG347: N/A | BH347: N/A | BI347: N/A | BJ347: N/A | BK347: N/A | BL347: N/A | BM347: N/A | BN347: N/A | BO347: N/A | BP347: N/A | BQ347: N/A | BR347: N/A | BS347: N/A | BT347: N/A | BU347: N/A | BV347: N/A | BW347: N/A | BX347: N/A | BY347: N/A | BZ347: N/A | CA347: N/A | CB347: N/A
BB348: No | BC348: N/A | BD348: N/A | BE348: N/A | BF348: N/A | BG348: N/A | BH348: N/A | BI348: N/A | BJ348: N/A | BK348: N/A | BL348: N/A | BM348: N/A | BN348: N/A | BO348: N/A | BP348: N/A | BQ348: N/A | BR348: N/A | BS348: N/A | BT348: N/A | BU348: N/A | BV348: N/A | BW348: N/A | BX348: N/A | BY348: N/A | BZ348: N/A | CA348: N/A | CB348: N/A
BA349: Use of Basic Water | BB349: Yes | BC349: N/A | BD349: N/A | BE349: N/A | BF349: N/A | BG349: N/A | BH349: N/A | BI349: N/A | BJ349: N/A | BK349: N/A | BL349: N/A | BM349: N/A | BN349: N/A | BO349: N/A | BP349: N/A | BQ349: N/A | BR349: N/A | BS349: N/A | BT349: N/A | BU349: N/A | BV349: N/A | BW349: N/A | BX349: N/A | BY349: N/A | BZ349: N/A | CA349: N/A | CB349: N/A
BB350: No | BC350: N/A | BD350: N/A | BE350: N/A | BF350: N/A | BG350: N/A | BH350: N/A | BI350: N/A | BJ350: N/A | BK350: N/A | BL350: N/A | BM350: N/A | BN350: N/A | BO350: N/A | BP350: N/A | BQ350: N/A | BR350: N/A | BS350: N/A | BT350: N/A | BU350: N/A | BV350: N/A | BW350: N/A | BX350: N/A | BY350: N/A | BZ350: N/A | CA350: N/A | CB350: N/A
BA351: Use of Basic Sanitation | BB351: Yes | BC351: N/A | BD351: N/A | BE351: N/A | BF351: N/A | BG351: N/A | BH351: N/A | BI351: N/A | BJ351: N/A | BK351: N/A | BL351: N/A | BM351: N/A | BN351: N/A | BO351: N/A | BP351: N/A | BQ351: N/A | BR351: N/A | BS351: N/A | BT351: N/A | BU351: N/A | BV351: N/A | BW351: N/A | BX351: N/A | BY351: N/A | BZ351: N/A | CA351: N/A | CB351: N/A
BB352: No | BC352: N/A | BD352: N/A | BE352: N/A | BF352: N/A | BG352: N/A | BH352: N/A | BI352: N/A | BJ352: N/A | BK352: N/A | BL352: N/A | BM352: N/A | BN352: N/A | BO352: N/A | BP352: N/A | BQ352: N/A | BR352: N/A | BS352: N/A | BT352: N/A | BU352: N/A | BV352: N/A | BW352: N/A | BX352: N/A | BY352: N/A | BZ352: N/A | CA352: N/A | CB352: N/A
BA353: Access to Basic Hygiene | BB353: Yes | BC353: N/A | BD353: N/A | BE353: N/A | BF353: N/A | BG353: N/A | BH353: N/A | BI353: N/A | BJ353: N/A | BK353: N/A | BL353: N/A | BM353: N/A | BN353: N/A | BO353: N/A | BP353: N/A | BQ353: N/A | BR353: N/A | BS353: N/A | BT353: N/A | BU353: N/A | BV353: N/A | BW353: N/A | BX353: N/A | BY353: N/A | BZ353: N/A | CA353: N/A | CB353: N/A
BB354: No | BC354: N/A | BD354: N/A | BE354: N/A | BF354: N/A | BG354: N/A | BH354: N/A | BI354: N/A | BJ354: N/A | BK354: N/A | BL354: N/A | BM354: N/A | BN354: N/A | BO354: N/A | BP354: N/A | BQ354: N/A | BR354: N/A | BS354: N/A | BT354: N/A | BU354: N/A | BV354: N/A | BW354: N/A | BX354: N/A | BY354: N/A | BZ354: N/A | CA354: N/A | CB354: N/A
C399: INITIAL (national) Wealth Index | H399: URBAN Wealth Index | M399: RURAL Wealth Index
C400: Component Matrix | H400: Component Matrix | M400: Component Matrix
E401: Component | J401: Component | O401: Component
B402: Note: The INITIAL (national) Wealth Index is based on the first component of the Principal Component Analysis (PCA) which has been obtained at national level. The final national-level (NATIONAL) Wealth Index is based on the URBAN and RURAL specific wealth indexes. Regression procedures are used to establish the relationships between the two sets of scores (urban and rural) and the initial (national) wealth factors. This allows best use of the available information for each area and a better precision of the FINAL (NATIONAL) Wealth Index. For dependency reasons, all WASH variables (contained in the generic MICS and DHS scripts) have been excluded from the sets of asset variables used in the PCAs. The PCA can extracts as many components as there are asset variables in the input. Only the first of the components is used to represent the Wealth Index. The scores represent the weights of the asset variables on the Wealth Index (correlations between the variables and the component). The communalities are the proportion of each variable's variance that can be explained by the component. Proportion of explained variance is the part of the model's total variance that is explained by the component. For more information on the procedure used: The DHS Wealth Index, DHS Comparative Reports No. 6, Shea Oscar Rutstein, Kiersten Johnson, ORC Macro International Inc., 2004. The DHS Wealth Index: Approaches for Rural and Urban Areas, Shea O. Rutstein, ORC Macro International Inc., 2008. MICS Methodological Paper No. 4, Review of options for reporting water, sanitation and hygiene coverage by wealth quintile, UNICEF, 2016. | E402: 1 | J402: 1 | O402: 1
C403: Has parquet/polished wood floor | E403: 0.8316156762 | H403: Has earth/sand floor | J403: -0.7907960963 | M403: Has dung roof | O403: -0.6144129443
C404: Has earth/sand floor | E404: -0.8148680104 | H404: Has parquet/polished wood floor | J404: 0.781301176 | M404: Has tin roof | O404: 0.6064573429
C405: Has electricity | E405: 0.8019502846 | H405: Has electricity | J405: 0.7591359517 | M405: Has parquet/polished wood floor | O405: 0.5860162237
C406: Has television | E406: 0.7940967907 | H406: Has television | J406: 0.7577468948 | M406: Has lamp(s) | O406: 0.4582047942
C407: Has a mobile telephone | E407: 0.7695310768 | H407: Has grill, heater | J407: 0.7095644709 | M407: Has radio | O407: 0.4530938327
C408: Has dung roof | E408: -0.7370330851 | H408: Has a mobile telephone | J408: 0.690390422 | M408: Has earth/sand floor | O408: -0.4507925151
C409: Household fuel type: wood, straw | E409: -0.7336151564 | H409: Has dung roof | J409: -0.6803694973 | M409: Has a mobile telephone | O409: 0.437490799
C410: Has grill, heater | E410: 0.7240595956 | H410: Household fuel type: wood, straw | J410: -0.6451889905 | M410: Has chair(s) | O410: 0.4234682041
C411: Has tin roof | E411: 0.7099999429 | H411: Has tin roof | J411: 0.5720343045 | M411: Has bed(s) | O411: 0.4046653943
C412: Has refrigerator | E412: 0.5434592963 | H412: Has refrigerator | J412: 0.52653407 | M412: Has electricity | O412: 0.3615048602
C413: Household fuel type: electricity | E413: 0.5244156155 | H413: Household fuel type: electricity | J413: 0.5082586111 | M413: Has grill, heater | O413: 0.3201526778
C414: Household fuel type: charcoal | E414: 0.5168506883 | H414: Has radio | J414: 0.3909053193 | M414: Has television | O414: 0.3122260107
C415: Has radio | E415: 0.4544811673 | H415: Has hoe(s) | J415: -0.372368106 | M415: Household fuel type: electricity | O415: 0.3093358834
... 141 more rows

Sheet MICS10
A2: =A1026 -> Democratic Republic of the Congo
A3: =A1034 -> 2010
A4: Use of drinking water sources
A5: by wealth quintile and sub-national region
A6: Notes:
A7: WHO/UNICEF JMP customised wealth index excludes water,
A8: sanitation and hygiene assets.
A9: Survey used for analysis: | B9: =A1025 -> MICS10
A10: =B1028 -> 
A11: =B1027 -> 
